Workbook

Sheet Control
C30: Numerical value
C31: Suggested formula
C32: Probabilistic parameters
C33: Data specified elsewhere
C34: Suggested formula edited

Sheet Existing Phases (hidden)
A1: SOURCE CONCENTRATIONS: Existing Phases
A3: Source Data Options | B3: Source Type
A11: Target Standard
A13: Select which Quality Standard (defined on the Contaminants sheet) to apply
A14: Not Specified
A17: Source Geometry
A19: Existing_Phases_Source_length | B19: 275 | C19: m
A20: Existing_Phases_Source_width | B20: 423 | C20: m
A21: Existing_Phases_Source_area | B21: 73162 | C21: m2
A22: Existing_Phases_Source_thickness | B22: =15-Hydrogeology!C5 -> 14 | C22: m
A23: Existing_Phases_Source_volume | B23: 482000 | C23: m3
A26: General Source Properties
A28: Existing_Phases_Source_field_capacity | B28: [-] | C28: 0.25
A29: Distribution | C29: constant
A30: Existing_Phases_Source_field_capacity_param1
A31: Existing_Phases_Source_field_capacity_param2
A32: Existing_Phases_Source_field_capacity_param3
A35: Existing_Phases_Source_porosity_total | B35: [-]
A36: Distribution | C36: constant
A37: Existing_Phases_Source_porosity_total_param1
A38: Existing_Phases_Source_porosity_total_param2
A39: Existing_Phases_Source_porosity_total_param3
A42: Existing_Phases_Source_porosity_water_filled | B42: [-]
A43: Distribution | C43: constant
A44: Existing_Phases_Source_porosity_water_filled_param1
A45: Existing_Phases_Source_porosity_water_filled_param2
A46: Existing_Phases_Source_porosity_water_filled_param3
A49: Existing_Phases_Source_porosity_air_filled | B49: [-] | C49: =Existing_Phases_Source_porosity_total - Existing_Phases_Source_porosity_water_filled -> 0
A50: Distribution | C50: constant
A51: Existing_Phases_Source_porosity_air_filled_param1
A52: Existing_Phases_Source_porosity_air_filled_param2
A53: Existing_Phases_Source_porosity_air_filled_param3
A56: Existing_Phases_Source_dry_bulk_density | B56: kg/m3
A57: Distribution | C57: constant
A58: Existing_Phases_Source_dry_bulk_density_param1
A59: Existing_Phases_Source_dry_bulk_density_param2
A60: Existing_Phases_Source_dry_bulk_density_param3
A63: Existing_Phases_Source_fraction_organic_carbon | B63: [-]
A64: Distribution | C64: constant
A65: Existing_Phases_Source_fraction_organic_carbon_param1
A66: Existing_Phases_Source_fraction_organic_carbon_param2
A67: Existing_Phases_Source_fraction_organic_carbon_param3
A71: Source Contaminant Information
A73: Source determinand names | C73: =IF( ISTEXT( (Contaminants_Source_determinand_names Contaminants_Species1)), (Contaminants_Source_determinand_names Contaminants_Species1), "Undefined" ) -> Lead | D73: =IF( ISTEXT( (Contaminants_Source_determinand_names Contaminants_Species2)), (Contaminants_Source_determinand_names Contaminants_Species2), "Undefined" ) -> AmmN | E73: =IF( ISTEXT( (Contaminants_Source_determinand_names Contaminants_Species3)), (Contaminants_Source_determinand_names Contaminants_Species3), "Undefined" ) -> Nickel | F73: =IF( ISTEXT( (Contaminants_Source_determinand_names Contaminants_Species4)), (Contaminants_Source_determinand_names Contaminants_Species4), "Undefined" ) -> Chloride | G73: =IF( ISTEXT( (Contaminants_Source_determinand_names Contaminants_Species5)), (Contaminants_Source_determinand_names Contaminants_Species5), "Undefined" ) -> Toluene | H73: =IF( ISTEXT( (Contaminants_Source_determinand_names Contaminants_Species6)), (Contaminants_Source_determinand_names Contaminants_Species6), "Undefined" ) -> Cadmium | I73: =IF( ISTEXT( (Contaminants_Source_determinand_names Contaminants_Species7)), (Contaminants_Source_determinand_names Contaminants_Species7), "Undefined" ) -> Undefined | J73: =IF( ISTEXT( (Contaminants_Source_determinand_names Contaminants_Species8)), (Contaminants_Source_determinand_names Contaminants_Species8), "Undefined" ) -> Undefined
A75: Existing_Phases_Pore_water_concentration | B75: mg/L | C75: 0.01285 | D75: 0.8872 | E75: 0.112 | F75: 55.46 | G75: 0.002 | H75: 0.000565
A76: Distribution | C76: constant | D76: constant | E76: constant | F76: constant | G76: constant | H76: constant | I76: constant | J76: constant
A77: Existing_Phases_Pore_water_concentration_param1
A78: Existing_Phases_Pore_water_concentration_param2
A79: Existing_Phases_Pore_water_concentration_param3
A82: Existing_Phases_Leaching_test_concentration | B82: mg/L
A83: Distribution | C83: constant | D83: constant | E83: constant | F83: constant | G83: constant | H83: constant | I83: constant | J83: constant
A84: Existing_Phases_Leaching_test_concentration_param1
A85: Existing_Phases_Leaching_test_concentration_param2
A86: Existing_Phases_Leaching_test_concentration_param3
A89: Existing_Phases_Soil_contaminant_concentration | B89: mg/kg
A90: Distribution | C90: constant | D90: constant | E90: constant | F90: constant | G90: constant | H90: constant | I90: constant | J90: constant
A91: Existing_Phases_Soil_contaminant_concentration_param1
A92: Existing_Phases_Soil_contaminant_concentration_param2
A93: Existing_Phases_Soil_contaminant_concentration_param3
A96: Existing_Phases_Source_solid_water_partitioning_coefficient_Kd | B96: L/kg | C96: =(Contaminants_Organic_Carbon_Water_Partition_Coefficient_Koc Contaminants_Species1) * ( Existing_Phases_Source_fraction_organic_carbon) -> 0 | D96: =(Contaminants_Organic_Carbon_Water_Partition_Coefficient_Koc Contaminants_Species2) * ( Existing_Phases_Source_fraction_organic_carbon) -> 0 | E96: =(Contaminants_Organic_Carbon_Water_Partition_Coefficient_Koc Contaminants_Species3) * ( Existing_Phases_Source_fraction_organic_carbon) -> 0 | F96: =(Contaminants_Organic_Carbon_Water_Partition_Coefficient_Koc Contaminants_Species4) * ( Existing_Phases_Source_fraction_organic_carbon) -> 0 | G96: =(Contaminants_Organic_Carbon_Water_Partition_Coefficient_Koc Contaminants_Species5) * ( Existing_Phases_Source_fraction_organic_carbon) -> 0 | H96: =(Contaminants_Organic_Carbon_Water_Partition_Coefficient_Koc Contaminants_Species6) * ( Existing_Phases_Source_fraction_organic_carbon) -> 0 | I96: =(Contaminants_Organic_Carbon_Water_Partition_Coefficient_Koc Contaminants_Species7) * ( Existing_Phases_Source_fraction_organic_carbon) -> 0 | J96: =(Contaminants_Organic_Carbon_Water_Partition_Coefficient_Koc Contaminants_Species8) * ( Existing_Phases_Source_fraction_organic_carbon) -> 0
A97: Distribution | C97: constant | D97: constant | E97: constant | F97: constant | G97: constant | H97: constant | I97: constant | J97: constant
A98: Existing_Phases_Source_solid_water_partitioning_coefficient_Kd_param1
A99: Existing_Phases_Source_solid_water_partitioning_coefficient_Kd_param2
A100: Existing_Phases_Source_solid_water_partitioning_coefficient_Kd_param3
A103: Existing_Phases_Initial_inventory | B103: kg | C103: =0.001 * (Existing_Phases_Pore_water_concentration) * (Existing_Phases_Source_field_capacity) * (Existing_Phases_Source_volume) -> 1.548425 | D103: 106.9076 | E103: 13.496 | F103: 6682.93 | G103: 0.241 | H103: 0.0680825 | I103: 0 | J103: 0
A104: Distribution | C104: constant | D104: constant | E104: constant | F104: constant | G104: constant | H104: constant | I104: constant | J104: constant
A105: Existing_Phases_Initial_inventory_param1
A106: Existing_Phases_Initial_inventory_param2
A107: Existing_Phases_Initial_inventory_param3
A110: Existing_Phases_Kappa_slope_value_m | B110: kg/L
A111: Distribution | C111: constant | D111: constant | E111: constant | F111: constant | G111: constant | H111: constant | I111: constant | J111: constant
A112: Existing_Phases_Kappa_slope_value_m_param1
A113: Existing_Phases_Kappa_slope_value_m_param2
A114: Existing_Phases_Kappa_slope_value_m_param3
A117: Existing_Phases_Kappa_intercept_value_c | B117: kg/L
A118: Distribution | C118: constant | D118: constant | E118: constant | F118: constant | G118: constant | H118: constant | I118: constant | J118: constant
A119: Existing_Phases_Kappa_intercept_value_c_param1
A120: Existing_Phases_Kappa_intercept_value_c_param2
A121: Existing_Phases_Kappa_intercept_value_c_param3
A124: Existing_Phases_Kappa_Value | B124: kg/L | C124: =IF(AND(ISNUMBER(Existing_Phases_Kappa_slope_value_m),ISNUMBER(Existing_Phases_Kappa_intercept_value_c),ISNUMBER(Existing_Phases_Input_concentration)), IF(Existing_Phases_Input_concentration>0,MAX(0,Existing_Phases_Kappa_slope_value_m * LN(1000 * Existing_Phases_Input_concentration) + Existing_Phases_Kappa_intercept_value_c),""),"Not-used") -> Not-used | D124: Not-used | E124: Not-used | F124: Not-used | G124: Not-used | H124: Not-used | I124: Not-used | J124: Not-used
A125: Distribution | C125: constant | D125: constant | E125: constant | F125: constant | G125: constant | H125: constant | I125: constant | J125: constant
A126: Existing_Phases_Kappa_Value_param1
A127: Existing_Phases_Kappa_Value_param2
A128: Existing_Phases_Kappa_Value_param3
A131: Existing_Phases_Input_concentration | B131: mg/L | C131: =(Existing_Phases_Pore_water_concentration) -> 0.01285 | D131: 0.8872 | E131: 0.112 | F131: 55.46 | G131: 0.002 | H131: 0.000565 | I131: 0 | J131: 0

Sheet New Phases (hidden)
A1: SOURCE CONCENTRATIONS: New Phases
A3: Source Data Options | B3: Source Type
A11: Target Standard
A13: Select which Quality Standard (defined on the Contaminants sheet) to apply
A14: Not Specified
A17: Source Geometry
A19: New_Phases_Source_length | B19: 1015 | C19: m
A20: New_Phases_Source_width | B20: 640 | C20: m
A21: New_Phases_Source_area | B21: 253100 | C21: m2
A22: New_Phases_Source_thickness | B22: =15-Hydrogeology!C5 -> 14 | C22: m
A23: New_Phases_Source_volume | B23: 2010000 | C23: m3
A26: General Source Properties
A28: New_Phases_Source_field_capacity | B28: [-] | C28: 0.25
A29: Distribution | C29: constant
A30: New_Phases_Source_field_capacity_param1
A31: New_Phases_Source_field_capacity_param2
A32: New_Phases_Source_field_capacity_param3
A35: New_Phases_Source_porosity_total | B35: [-]
A36: Distribution | C36: constant
A37: New_Phases_Source_porosity_total_param1
A38: New_Phases_Source_porosity_total_param2
A39: New_Phases_Source_porosity_total_param3
A42: New_Phases_Source_porosity_water_filled | B42: [-]
A43: Distribution | C43: constant
A44: New_Phases_Source_porosity_water_filled_param1
A45: New_Phases_Source_porosity_water_filled_param2
A46: New_Phases_Source_porosity_water_filled_param3
A49: New_Phases_Source_porosity_air_filled | B49: [-] | C49: =New_Phases_Source_porosity_total - New_Phases_Source_porosity_water_filled -> 0
A50: Distribution | C50: constant
A51: New_Phases_Source_porosity_air_filled_param1
A52: New_Phases_Source_porosity_air_filled_param2
A53: New_Phases_Source_porosity_air_filled_param3
A56: New_Phases_Source_dry_bulk_density | B56: kg/m3
A57: Distribution | C57: constant
A58: New_Phases_Source_dry_bulk_density_param1
A59: New_Phases_Source_dry_bulk_density_param2
A60: New_Phases_Source_dry_bulk_density_param3
A63: New_Phases_Source_fraction_organic_carbon | B63: [-]
A64: Distribution | C64: constant
A65: New_Phases_Source_fraction_organic_carbon_param1
A66: New_Phases_Source_fraction_organic_carbon_param2
A67: New_Phases_Source_fraction_organic_carbon_param3
A71: Source Contaminant Information
A73: Source determinand names | C73: =IF( ISTEXT( (Contaminants_Source_determinand_names Contaminants_Species1)), (Contaminants_Source_determinand_names Contaminants_Species1), "Undefined" ) -> Lead | D73: =IF( ISTEXT( (Contaminants_Source_determinand_names Contaminants_Species2)), (Contaminants_Source_determinand_names Contaminants_Species2), "Undefined" ) -> AmmN | E73: =IF( ISTEXT( (Contaminants_Source_determinand_names Contaminants_Species3)), (Contaminants_Source_determinand_names Contaminants_Species3), "Undefined" ) -> Nickel | F73: =IF( ISTEXT( (Contaminants_Source_determinand_names Contaminants_Species4)), (Contaminants_Source_determinand_names Contaminants_Species4), "Undefined" ) -> Chloride | G73: =IF( ISTEXT( (Contaminants_Source_determinand_names Contaminants_Species5)), (Contaminants_Source_determinand_names Contaminants_Species5), "Undefined" ) -> Toluene | H73: =IF( ISTEXT( (Contaminants_Source_determinand_names Contaminants_Species6)), (Contaminants_Source_determinand_names Contaminants_Species6), "Undefined" ) -> Cadmium | I73: =IF( ISTEXT( (Contaminants_Source_determinand_names Contaminants_Species7)), (Contaminants_Source_determinand_names Contaminants_Species7), "Undefined" ) -> Undefined | J73: =IF( ISTEXT( (Contaminants_Source_determinand_names Contaminants_Species8)), (Contaminants_Source_determinand_names Contaminants_Species8), "Undefined" ) -> Undefined
A75: New_Phases_Pore_water_concentration | B75: mg/L | C75: 0.01285 | D75: 0.8872 | E75: 0.112 | F75: 55.46 | G75: 0.002 | H75: 0.000565
A76: Distribution | C76: constant | D76: constant | E76: constant | F76: constant | G76: constant | H76: constant | I76: constant | J76: constant
A77: New_Phases_Pore_water_concentration_param1
A78: New_Phases_Pore_water_concentration_param2
A79: New_Phases_Pore_water_concentration_param3
A82: New_Phases_Leaching_test_concentration | B82: mg/L
A83: Distribution | C83: constant | D83: constant | E83: constant | F83: constant | G83: constant | H83: constant | I83: constant | J83: constant
A84: New_Phases_Leaching_test_concentration_param1
A85: New_Phases_Leaching_test_concentration_param2
A86: New_Phases_Leaching_test_concentration_param3
A89: New_Phases_Soil_contaminant_concentration | B89: mg/kg
A90: Distribution | C90: constant | D90: constant | E90: constant | F90: constant | G90: constant | H90: constant | I90: constant | J90: constant
A91: New_Phases_Soil_contaminant_concentration_param1
A92: New_Phases_Soil_contaminant_concentration_param2
A93: New_Phases_Soil_contaminant_concentration_param3
A96: New_Phases_Source_solid_water_partitioning_coefficient_Kd | B96: L/kg | C96: =(Contaminants_Organic_Carbon_Water_Partition_Coefficient_Koc Contaminants_Species1) * ( New_Phases_Source_fraction_organic_carbon) -> 0 | D96: =(Contaminants_Organic_Carbon_Water_Partition_Coefficient_Koc Contaminants_Species2) * ( New_Phases_Source_fraction_organic_carbon) -> 0 | E96: =(Contaminants_Organic_Carbon_Water_Partition_Coefficient_Koc Contaminants_Species3) * ( New_Phases_Source_fraction_organic_carbon) -> 0 | F96: =(Contaminants_Organic_Carbon_Water_Partition_Coefficient_Koc Contaminants_Species4) * ( New_Phases_Source_fraction_organic_carbon) -> 0 | G96: =(Contaminants_Organic_Carbon_Water_Partition_Coefficient_Koc Contaminants_Species5) * ( New_Phases_Source_fraction_organic_carbon) -> 0 | H96: =(Contaminants_Organic_Carbon_Water_Partition_Coefficient_Koc Contaminants_Species6) * ( New_Phases_Source_fraction_organic_carbon) -> 0 | I96: =(Contaminants_Organic_Carbon_Water_Partition_Coefficient_Koc Contaminants_Species7) * ( New_Phases_Source_fraction_organic_carbon) -> 0 | J96: =(Contaminants_Organic_Carbon_Water_Partition_Coefficient_Koc Contaminants_Species8) * ( New_Phases_Source_fraction_organic_carbon) -> 0
A97: Distribution | C97: constant | D97: constant | E97: constant | F97: constant | G97: constant | H97: constant | I97: constant | J97: constant
A98: New_Phases_Source_solid_water_partitioning_coefficient_Kd_param1
A99: New_Phases_Source_solid_water_partitioning_coefficient_Kd_param2
A100: New_Phases_Source_solid_water_partitioning_coefficient_Kd_param3
A103: New_Phases_Initial_inventory | B103: kg | C103: =0.001 * (New_Phases_Pore_water_concentration) * (New_Phases_Source_field_capacity) * (New_Phases_Source_volume) -> 6.457125 | D103: 445.818 | E103: 56.28 | F103: 27868.65 | G103: 1.005 | H103: 0.2839125 | I103: 0 | J103: 0
A104: Distribution | C104: constant | D104: constant | E104: constant | F104: constant | G104: constant | H104: constant | I104: constant | J104: constant
A105: New_Phases_Initial_inventory_param1
A106: New_Phases_Initial_inventory_param2
A107: New_Phases_Initial_inventory_param3
A110: New_Phases_Kappa_slope_value_m | B110: kg/L
A111: Distribution | C111: constant | D111: constant | E111: constant | F111: constant | G111: constant | H111: constant | I111: constant | J111: constant
A112: New_Phases_Kappa_slope_value_m_param1
A113: New_Phases_Kappa_slope_value_m_param2
A114: New_Phases_Kappa_slope_value_m_param3
A117: New_Phases_Kappa_intercept_value_c | B117: kg/L
A118: Distribution | C118: constant | D118: constant | E118: constant | F118: constant | G118: constant | H118: constant | I118: constant | J118: constant
A119: New_Phases_Kappa_intercept_value_c_param1
A120: New_Phases_Kappa_intercept_value_c_param2
A121: New_Phases_Kappa_intercept_value_c_param3
A124: New_Phases_Kappa_Value | B124: kg/L | C124: =IF(AND(ISNUMBER(New_Phases_Kappa_slope_value_m),ISNUMBER(New_Phases_Kappa_intercept_value_c),ISNUMBER(New_Phases_Input_concentration)), IF(New_Phases_Input_concentration>0,MAX(0,New_Phases_Kappa_slope_value_m * LN(1000 * New_Phases_Input_concentration) + New_Phases_Kappa_intercept_value_c),""),"Not-used") -> Not-used | D124: Not-used | E124: Not-used | F124: Not-used | G124: Not-used | H124: Not-used | I124: Not-used | J124: Not-used
A125: Distribution | C125: constant | D125: constant | E125: constant | F125: constant | G125: constant | H125: constant | I125: constant | J125: constant
A126: New_Phases_Kappa_Value_param1
A127: New_Phases_Kappa_Value_param2
A128: New_Phases_Kappa_Value_param3
A131: New_Phases_Input_concentration | B131: mg/L | C131: =(New_Phases_Pore_water_concentration) -> 0.01285 | D131: 0.8872 | E131: 0.112 | F131: 55.46 | G131: 0.002 | H131: 0.000565 | I131: 0 | J131: 0

Sheet Contaminants
A1: CONTAMINANT INFORMATION
D3: Species1 | E3: Species2 | F3: Species3 | G3: Species4 | H3: Species5 | I3: Species6 | J3: Species7 | K3: Species8
A4: Source determinand names | C4: 6 | D4: Lead | E4: AmmN | F4: Nickel | G4: Chloride | H4: Toluene | I4: Cadmium
A7: Receptor Target Concentrations
B8: Name | D8: Values in mg/L
A9: Quality Standard 1 | B9: Comp | D9: 0.1 | E9: 0.5 | F9: 0.05 | G9: 250 | H9: 0.004 | I9: 0.0001
A10: Quality Standard 2
A11: Quality Standard 3
A12: Quality Standard 4
B13: Not Specified
A15: Generic Contaminant Properties
A17: Contaminants_Solubility | B17: mg/L
A18: Distribution | D18: constant | E18: constant | F18: constant | G18: constant | H18: constant | I18: constant | J18: constant | K18: constant
A19: Contaminants_Solubility_param1
A20: Contaminants_Solubility_param2
A21: Contaminants_Solubility_param3
A24: Contaminants_Henrys_Law_Constant | B24: [-]
A25: Distribution | D25: constant | E25: constant | F25: constant | G25: constant | H25: constant | I25: constant | J25: constant | K25: constant
A26: Contaminants_Henrys_Law_Constant_param1
A27: Contaminants_Henrys_Law_Constant_param2
A28: Contaminants_Henrys_Law_Constant_param3
A31: Contaminants_Organic_Carbon_Water_Partition_Coefficient_Koc | B31: L/kg | H31: 190
A32: Distribution | D32: constant | E32: constant | F32: constant | G32: constant | H32: constant | I32: constant | J32: constant | K32: constant
A33: Contaminants_Organic_Carbon_Water_Partition_Coefficient_Koc_param1
A34: Contaminants_Organic_Carbon_Water_Partition_Coefficient_Koc_param2
A35: Contaminants_Organic_Carbon_Water_Partition_Coefficient_Koc_param3
A38: Contaminants_Free_Water_Diffusion_Coefficient | B38: m2/s | D38: 4.46e-10 | E38: 2e-09 | F38: 1e-09 | G38: 3.23e-10 | H38: 3.6e-10 | I38: 7.17e-10
A39: Distribution | D39: constant | E39: constant | F39: constant | G39: constant | H39: constant | I39: constant | J39: constant | K39: constant
A40: Contaminants_Free_Water_Diffusion_Coefficient_param1
A41: Contaminants_Free_Water_Diffusion_Coefficient_param2
A42: Contaminants_Free_Water_Diffusion_Coefficient_param3

Sheet Hydrogeology
A1: HYDROGEOLOGICAL UNITS
A3: Hydrogeological Units | C3: Base AGB | D3: Side AGB | E3: Highworth Grit | F3: Highworth Lstn | G3: Lower Calc Grit
A5: Hydrogeology_Unit_Thickness | B5: m | C5: 1 | D5: 1 | E5: 2 | F5: 5 | G5: 5.5
A6: Distribution | C6: constant | D6: constant | E6: constant | F6: constant | G6: constant | H6: constant | I6: constant | J6: constant | K6: constant | L6: constant | M6: constant | N6: constant | O6: constant | P6: constant | Q6: constant | R6: constant
A7: Hydrogeology_Unit_Thickness_param1
A8: Hydrogeology_Unit_Thickness_param2
A9: Hydrogeology_Unit_Thickness_param3
A12: Hydrogeology_Log_Hydraulic_Conductivity | B12: log(m/s)
A13: Distribution | C13: constant | D13: constant | E13: constant | F13: constant | G13: constant | H13: constant | I13: constant | J13: constant | K13: constant | L13: constant | M13: constant | N13: constant | O13: constant | P13: constant | Q13: constant | R13: constant
A14: Hydrogeology_Log_Hydraulic_Conductivity_param1
A15: Hydrogeology_Log_Hydraulic_Conductivity_param2
A16: Hydrogeology_Log_Hydraulic_Conductivity_param3
A19: Hydrogeology_Hydraulic_Conductivity | B19: m/s | C19: 1e-07 | D19: 1e-07 | E19: 6.5e-06 | F19: 2.1e-06 | G19: 1.6e-06 | H19: =POWER(10, (Hydrogeology_Log_Hydraulic_Conductivity)) -> 1 | I19: 1 | J19: 1 | K19: 1 | L19: 1 | M19: 1 | N19: 1 | O19: 1 | P19: 1 | Q19: 1 | R19: 1
A20: Distribution | C20: constant | D20: constant | E20: constant | F20: constant | G20: constant | H20: constant | I20: constant | J20: constant | K20: constant | L20: constant | M20: constant | N20: constant | O20: constant | P20: constant | Q20: constant | R20: constant
A21: Hydrogeology_Hydraulic_Conductivity_param1
A22: Hydrogeology_Hydraulic_Conductivity_param2
A23: Hydrogeology_Hydraulic_Conductivity_param3
A26: Hydrogeology_Head | B26: m
A27: Distribution | C27: constant | D27: constant | E27: constant | F27: constant | G27: constant | H27: constant | I27: constant | J27: constant | K27: constant | L27: constant | M27: constant | N27: constant | O27: constant | P27: constant | Q27: constant | R27: constant
A28: Hydrogeology_Head_param1
A29: Hydrogeology_Head_param2
A30: Hydrogeology_Head_param3
A33: Hydrogeology_Hydraulic_Gradient | B33: [-] | C33: 1 | D33: 0.0044 | E33: 0.0044 | F33: 0.0044 | G33: 0.0044
A34: Distribution | C34: constant | D34: constant | E34: constant | F34: constant | G34: constant | H34: constant | I34: constant | J34: constant | K34: constant | L34: constant | M34: constant | N34: constant | O34: constant | P34: constant | Q34: constant | R34: constant
A35: Hydrogeology_Hydraulic_Gradient_param1
A36: Hydrogeology_Hydraulic_Gradient_param2
A37: Hydrogeology_Hydraulic_Gradient_param3
A40: Hydrogeology_Porosity | B40: [-] | C40: 0.4 | D40: 0.4 | E40: 0.24 | F40: 0.24 | G40: 0.24
A41: Distribution | C41: constant | D41: constant | E41: constant | F41: constant | G41: constant | H41: constant | I41: constant | J41: constant | K41: constant | L41: constant | M41: constant | N41: constant | O41: constant | P41: constant | Q41: constant | R41: constant
A42: Hydrogeology_Porosity_param1
A43: Hydrogeology_Porosity_param2
A44: Hydrogeology_Porosity_param3
A47: Hydrogeology_Velocity | B47: m/s | C47: =(Hydrogeology_Hydraulic_Conductivity) * (Hydrogeology_Hydraulic_Gradient) / (Hydrogeology_Porosity) -> 2.5e-07 | D47: 1.1e-09 | E47: 1.191666667e-07 | F47: 3.85e-08 | G47: 2.933333333e-08
A48: Distribution | C48: constant | D48: constant | E48: constant | F48: constant | G48: constant | H48: constant | I48: constant | J48: constant | K48: constant | L48: constant | M48: constant | N48: constant | O48: constant | P48: constant | Q48: constant | R48: constant
A49: Hydrogeology_Velocity_param1
A50: Hydrogeology_Velocity_param2
A51: Hydrogeology_Velocity_param3
A54: Hydrogeology_Tortuosity | B54: [-] | C54: 5 | D54: 5 | E54: 5 | F54: 5 | G54: 5
A55: Distribution | C55: constant | D55: constant | E55: constant | F55: constant | G55: constant | H55: constant | I55: constant | J55: constant | K55: constant | L55: constant | M55: constant | N55: constant | O55: constant | P55: constant | Q55: constant | R55: constant
A56: Hydrogeology_Tortuosity_param1
A57: Hydrogeology_Tortuosity_param2
A58: Hydrogeology_Tortuosity_param3

Sheet Attenuation
A1: ATTENUATION PARAMETERS
A3: Hydrogeological Units | C3: Base AGB | D3: Side AGB | E3: Highworth Grit | F3: Highworth Lstn | G3: Lower Calc Grit
A5: General properties
A7: Attenuation_Dry_bulk_density | B7: kg/m3 | C7: 1850 | D7: 1850 | E7: 2000 | F7: 2200 | G7: 2000
A8: Distribution | C8: constant | D8: constant | E8: constant | F8: constant | G8: constant | H8: constant | I8: constant | J8: constant | K8: constant | L8: constant | M8: constant | N8: constant | O8: constant | P8: constant | Q8: constant | R8: constant
A9: Attenuation_Dry_bulk_density_param1
A10: Attenuation_Dry_bulk_density_param2
A11: Attenuation_Dry_bulk_density_param3
A14: Attenuation_Fraction_organic_carbon | B14: [-] | C14: 0.05 | D14: 0.05 | E14: 0.0004 | F14: 0.0004 | G14: 0.0004
A15: Distribution | C15: constant | D15: constant | E15: constant | F15: constant | G15: constant | H15: constant | I15: constant | J15: constant | K15: constant | L15: constant | M15: constant | N15: constant | O15: constant | P15: constant | Q15: constant | R15: constant
A16: Attenuation_Fraction_organic_carbon_param1
A17: Attenuation_Fraction_organic_carbon_param2
A18: Attenuation_Fraction_organic_carbon_param3
A22: Contaminant specific parameters
A24: =IF((Contaminants_Source_determinand_names Contaminants_Species1)=0,"Undefined",(Contaminants_Source_determinand_names Contaminants_Species1)) -> Lead
A26: Attenuation_Partition_Coefficient_Kd_Species_1 | B26: L/kg | C26: 2000 | D26: 2000 | E26: 2000 | F26: 2000 | G26: 2000 | H26: =(Attenuation_Fraction_organic_carbon) * (Contaminants_Organic_Carbon_Water_Partition_Coefficient_Koc Contaminants_Species1) -> 0 | I26: =(Attenuation_Fraction_organic_carbon) * (Contaminants_Organic_Carbon_Water_Partition_Coefficient_Koc Contaminants_Species1) -> 0 | J26: =(Attenuation_Fraction_organic_carbon) * (Contaminants_Organic_Carbon_Water_Partition_Coefficient_Koc Contaminants_Species1) -> 0 | K26: =(Attenuation_Fraction_organic_carbon) * (Contaminants_Organic_Carbon_Water_Partition_Coefficient_Koc Contaminants_Species1) -> 0 | L26: =(Attenuation_Fraction_organic_carbon) * (Contaminants_Organic_Carbon_Water_Partition_Coefficient_Koc Contaminants_Species1) -> 0 | M26: =(Attenuation_Fraction_organic_carbon) * (Contaminants_Organic_Carbon_Water_Partition_Coefficient_Koc Contaminants_Species1) -> 0 | N26: =(Attenuation_Fraction_organic_carbon) * (Contaminants_Organic_Carbon_Water_Partition_Coefficient_Koc Contaminants_Species1) -> 0 | O26: =(Attenuation_Fraction_organic_carbon) * (Contaminants_Organic_Carbon_Water_Partition_Coefficient_Koc Contaminants_Species1) -> 0 | P26: =(Attenuation_Fraction_organic_carbon) * (Contaminants_Organic_Carbon_Water_Partition_Coefficient_Koc Contaminants_Species1) -> 0 | Q26: =(Attenuation_Fraction_organic_carbon) * (Contaminants_Organic_Carbon_Water_Partition_Coefficient_Koc Contaminants_Species1) -> 0 | R26: =(Attenuation_Fraction_organic_carbon) * (Contaminants_Organic_Carbon_Water_Partition_Coefficient_Koc Contaminants_Species1) -> 0
A27: Distribution | C27: constant | D27: constant | E27: constant | F27: constant | G27: constant | H27: constant | I27: constant | J27: constant | K27: constant | L27: constant | M27: constant | N27: constant | O27: constant | P27: constant | Q27: constant | R27: constant
A28: Attenuation_Partition_Coefficient_Kd_Species_1_param1
A29: Attenuation_Partition_Coefficient_Kd_Species_1_param2
A30: Attenuation_Partition_Coefficient_Kd_Species_1_param3
A33: Attenuation_Retardation_Species_1 | B33: [-] | C33: =1 + 0.001 * (Attenuation_Partition_Coefficient_Kd_Species_1) * (Attenuation_Dry_bulk_density) / (Hydrogeology_Porosity Hydrogeology!$C:$C) -> 9251 | D33: =1 + 0.001 * (Attenuation_Partition_Coefficient_Kd_Species_1) * (Attenuation_Dry_bulk_density) / (Hydrogeology_Porosity Hydrogeology!$D:$D) -> 9251 | E33: =1 + 0.001 * (Attenuation_Partition_Coefficient_Kd_Species_1) * (Attenuation_Dry_bulk_density) / (Hydrogeology_Porosity Hydrogeology!$E:$E) -> 16667.66667 | F33: =1 + 0.001 * (Attenuation_Partition_Coefficient_Kd_Species_1) * (Attenuation_Dry_bulk_density) / (Hydrogeology_Porosity Hydrogeology!$F:$F) -> 18334.33333 | G33: =1 + 0.001 * (Attenuation_Partition_Coefficient_Kd_Species_1) * (Attenuation_Dry_bulk_density) / (Hydrogeology_Porosity Hydrogeology!$G:$G) -> 16667.66667 | H33: =1 + 0.001 * (Attenuation_Partition_Coefficient_Kd_Species_1) * (Attenuation_Dry_bulk_density) / (Hydrogeology_Porosity Hydrogeology!$H:$H) ->  | I33: =1 + 0.001 * (Attenuation_Partition_Coefficient_Kd_Species_1) * (Attenuation_Dry_bulk_density) / (Hydrogeology_Porosity Hydrogeology!$I:$I) ->  | J33: =1 + 0.001 * (Attenuation_Partition_Coefficient_Kd_Species_1) * (Attenuation_Dry_bulk_density) / (Hydrogeology_Porosity Hydrogeology!$J:$J) ->  | K33: =1 + 0.001 * (Attenuation_Partition_Coefficient_Kd_Species_1) * (Attenuation_Dry_bulk_density) / (Hydrogeology_Porosity Hydrogeology!$K:$K) ->  | L33: =1 + 0.001 * (Attenuation_Partition_Coefficient_Kd_Species_1) * (Attenuation_Dry_bulk_density) / (Hydrogeology_Porosity Hydrogeology!$L:$L) ->  | M33: =1 + 0.001 * (Attenuation_Partition_Coefficient_Kd_Species_1) * (Attenuation_Dry_bulk_density) / (Hydrogeology_Porosity Hydrogeology!$M:$M) ->  | N33: =1 + 0.001 * (Attenuation_Partition_Coefficient_Kd_Species_1) * (Attenuation_Dry_bulk_density) / (Hydrogeology_Porosity Hydrogeology!$N:$N) ->  | O33: =1 + 0.001 * (Attenuation_Partition_Coefficient_Kd_Species_1) * (Attenuation_Dry_bulk_density) / (Hydrogeology_Porosity Hydrogeology!$O:$O) ->  | P33: =1 + 0.001 * (Attenuation_Partition_Coefficient_Kd_Species_1) * (Attenuation_Dry_bulk_density) / (Hydrogeology_Porosity Hydrogeology!$P:$P) ->  | Q33: =1 + 0.001 * (Attenuation_Partition_Coefficient_Kd_Species_1) * (Attenuation_Dry_bulk_density) / (Hydrogeology_Porosity Hydrogeology!$Q:$Q) ->  | R33: =1 + 0.001 * (Attenuation_Partition_Coefficient_Kd_Species_1) * (Attenuation_Dry_bulk_density) / (Hydrogeology_Porosity Hydrogeology!$R:$R) -> 
A34: Distribution | C34: constant | D34: constant | E34: constant | F34: constant | G34: constant | H34: constant | I34: constant | J34: constant | K34: constant | L34: constant | M34: constant | N34: constant | O34: constant | P34: constant | Q34: constant | R34: constant
A35: Attenuation_Retardation_Species_1_param1
A36: Attenuation_Retardation_Species_1_param2
A37: Attenuation_Retardation_Species_1_param3
A40: Attenuation_Half_Life_Species_1 | B40: days | C40: No Decay | D40: No Decay | E40: No Decay | F40: No Decay | G40: No Decay | H40: No Decay | I40: No Decay | J40: No Decay | K40: No Decay | L40: No Decay | M40: No Decay | N40: No Decay | O40: No Decay | P40: No Decay | Q40: No Decay | R40: No Decay
A41: Distribution | C41: constant | D41: constant | E41: constant | F41: constant | G41: constant | H41: constant | I41: constant | J41: constant | K41: constant | L41: constant | M41: constant | N41: constant | O41: constant | P41: constant | Q41: constant | R41: constant
A42: Attenuation_Half_Life_Species_1_param1
A43: Attenuation_Half_Life_Species_1_param2
A44: Attenuation_Half_Life_Species_1_param3
A47: Attenuation_Decay_Coefficient_Species_1 | B47: 1/s | C47: =IF((Attenuation_Half_Life_Species_1)<>"No Decay", LN(2) / ((Attenuation_Half_Life_Species_1) * s_per_day),0) -> 0 | D47: 0 | E47: 0 | F47: 0 | G47: 0 | H47: 0 | I47: 0 | J47: 0 | K47: 0 | L47: 0 | M47: 0 | N47: 0 | O47: 0 | P47: 0 | Q47: 0 | R47: 0
A48: Distribution | C48: constant | D48: constant | E48: constant | F48: constant | G48: constant | H48: constant | I48: constant | J48: constant | K48: constant | L48: constant | M48: constant | N48: constant | O48: constant | P48: constant | Q48: constant | R48: constant
A49: Attenuation_Decay_Coefficient_Species_1_param1
A50: Attenuation_Decay_Coefficient_Species_1_param2
A51: Attenuation_Decay_Coefficient_Species_1_param3
A54: =IF((Contaminants_Source_determinand_names Contaminants_Species2)=0,"Undefined",(Contaminants_Source_determinand_names Contaminants_Species2)) -> AmmN
A56: Attenuation_Partition_Coefficient_Kd_Species_2 | B56: L/kg | C56: 0.5 | D56: 0.5 | E56: 0.5 | F56: 0.5 | G56: 0.5 | H56: =(Attenuation_Fraction_organic_carbon) * (Contaminants_Organic_Carbon_Water_Partition_Coefficient_Koc Contaminants_Species2) -> 0 | I56: =(Attenuation_Fraction_organic_carbon) * (Contaminants_Organic_Carbon_Water_Partition_Coefficient_Koc Contaminants_Species2) -> 0 | J56: =(Attenuation_Fraction_organic_carbon) * (Contaminants_Organic_Carbon_Water_Partition_Coefficient_Koc Contaminants_Species2) -> 0 | K56: =(Attenuation_Fraction_organic_carbon) * (Contaminants_Organic_Carbon_Water_Partition_Coefficient_Koc Contaminants_Species2) -> 0 | L56: =(Attenuation_Fraction_organic_carbon) * (Contaminants_Organic_Carbon_Water_Partition_Coefficient_Koc Contaminants_Species2) -> 0 | M56: =(Attenuation_Fraction_organic_carbon) * (Contaminants_Organic_Carbon_Water_Partition_Coefficient_Koc Contaminants_Species2) -> 0 | N56: =(Attenuation_Fraction_organic_carbon) * (Contaminants_Organic_Carbon_Water_Partition_Coefficient_Koc Contaminants_Species2) -> 0 | O56: =(Attenuation_Fraction_organic_carbon) * (Contaminants_Organic_Carbon_Water_Partition_Coefficient_Koc Contaminants_Species2) -> 0 | P56: =(Attenuation_Fraction_organic_carbon) * (Contaminants_Organic_Carbon_Water_Partition_Coefficient_Koc Contaminants_Species2) -> 0 | Q56: =(Attenuation_Fraction_organic_carbon) * (Contaminants_Organic_Carbon_Water_Partition_Coefficient_Koc Contaminants_Species2) -> 0 | R56: =(Attenuation_Fraction_organic_carbon) * (Contaminants_Organic_Carbon_Water_Partition_Coefficient_Koc Contaminants_Species2) -> 0
A57: Distribution | C57: constant | D57: constant | E57: constant | F57: constant | G57: constant | H57: constant | I57: constant | J57: constant | K57: constant | L57: constant | M57: constant | N57: constant | O57: constant | P57: constant | Q57: constant | R57: constant
A58: Attenuation_Partition_Coefficient_Kd_Species_2_param1
A59: Attenuation_Partition_Coefficient_Kd_Species_2_param2
A60: Attenuation_Partition_Coefficient_Kd_Species_2_param3
A63: Attenuation_Retardation_Species_2 | B63: [-] | C63: =1 + 0.001 * (Attenuation_Partition_Coefficient_Kd_Species_2) * (Attenuation_Dry_bulk_density) / (Hydrogeology_Porosity Hydrogeology!$C:$C) -> 3.3125 | D63: =1 + 0.001 * (Attenuation_Partition_Coefficient_Kd_Species_2) * (Attenuation_Dry_bulk_density) / (Hydrogeology_Porosity Hydrogeology!$D:$D) -> 3.3125 | E63: =1 + 0.001 * (Attenuation_Partition_Coefficient_Kd_Species_2) * (Attenuation_Dry_bulk_density) / (Hydrogeology_Porosity Hydrogeology!$E:$E) -> 5.166666667 | F63: =1 + 0.001 * (Attenuation_Partition_Coefficient_Kd_Species_2) * (Attenuation_Dry_bulk_density) / (Hydrogeology_Porosity Hydrogeology!$F:$F) -> 5.583333333 | G63: =1 + 0.001 * (Attenuation_Partition_Coefficient_Kd_Species_2) * (Attenuation_Dry_bulk_density) / (Hydrogeology_Porosity Hydrogeology!$G:$G) -> 5.166666667 | H63: =1 + 0.001 * (Attenuation_Partition_Coefficient_Kd_Species_2) * (Attenuation_Dry_bulk_density) / (Hydrogeology_Porosity Hydrogeology!$H:$H) ->  | I63: =1 + 0.001 * (Attenuation_Partition_Coefficient_Kd_Species_2) * (Attenuation_Dry_bulk_density) / (Hydrogeology_Porosity Hydrogeology!$I:$I) ->  | J63: =1 + 0.001 * (Attenuation_Partition_Coefficient_Kd_Species_2) * (Attenuation_Dry_bulk_density) / (Hydrogeology_Porosity Hydrogeology!$J:$J) ->  | K63: =1 + 0.001 * (Attenuation_Partition_Coefficient_Kd_Species_2) * (Attenuation_Dry_bulk_density) / (Hydrogeology_Porosity Hydrogeology!$K:$K) ->  | L63: =1 + 0.001 * (Attenuation_Partition_Coefficient_Kd_Species_2) * (Attenuation_Dry_bulk_density) / (Hydrogeology_Porosity Hydrogeology!$L:$L) ->  | M63: =1 + 0.001 * (Attenuation_Partition_Coefficient_Kd_Species_2) * (Attenuation_Dry_bulk_density) / (Hydrogeology_Porosity Hydrogeology!$M:$M) ->  | N63: =1 + 0.001 * (Attenuation_Partition_Coefficient_Kd_Species_2) * (Attenuation_Dry_bulk_density) / (Hydrogeology_Porosity Hydrogeology!$N:$N) ->  | O63: =1 + 0.001 * (Attenuation_Partition_Coefficient_Kd_Species_2) * (Attenuation_Dry_bulk_density) / (Hydrogeology_Porosity Hydrogeology!$O:$O) ->  | P63: =1 + 0.001 * (Attenuation_Partition_Coefficient_Kd_Species_2) * (Attenuation_Dry_bulk_density) / (Hydrogeology_Porosity Hydrogeology!$P:$P) ->  | Q63: =1 + 0.001 * (Attenuation_Partition_Coefficient_Kd_Species_2) * (Attenuation_Dry_bulk_density) / (Hydrogeology_Porosity Hydrogeology!$Q:$Q) ->  | R63: =1 + 0.001 * (Attenuation_Partition_Coefficient_Kd_Species_2) * (Attenuation_Dry_bulk_density) / (Hydrogeology_Porosity Hydrogeology!$R:$R) -> 
A64: Distribution | C64: constant | D64: constant | E64: constant | F64: constant | G64: constant | H64: constant | I64: constant | J64: constant | K64: constant | L64: constant | M64: constant | N64: constant | O64: constant | P64: constant | Q64: constant | R64: constant
A65: Attenuation_Retardation_Species_2_param1
A66: Attenuation_Retardation_Species_2_param2
A67: Attenuation_Retardation_Species_2_param3
A70: Attenuation_Half_Life_Species_2 | B70: days | C70: 2737 | D70: 2737 | E70: 2737 | F70: 2737 | G70: 2737 | H70: No Decay | I70: No Decay | J70: No Decay | K70: No Decay | L70: No Decay | M70: No Decay | N70: No Decay | O70: No Decay | P70: No Decay | Q70: No Decay | R70: No Decay
A71: Distribution | C71: constant | D71: constant | E71: constant | F71: constant | G71: constant | H71: constant | I71: constant | J71: constant | K71: constant | L71: constant | M71: constant | N71: constant | O71: constant | P71: constant | Q71: constant | R71: constant
A72: Attenuation_Half_Life_Species_2_param1
A73: Attenuation_Half_Life_Species_2_param2
A74: Attenuation_Half_Life_Species_2_param3
A77: Attenuation_Decay_Coefficient_Species_2 | B77: 1/s | C77: =IF((Attenuation_Half_Life_Species_2)<>"No Decay", LN(2) / ((Attenuation_Half_Life_Species_2) * s_per_day),0) -> 2.931142423e-09 | D77: 2.931142423e-09 | E77: 2.931142423e-09 | F77: 2.931142423e-09 | G77: 2.931142423e-09 | H77: 0 | I77: 0 | J77: 0 | K77: 0 | L77: 0 | M77: 0 | N77: 0 | O77: 0 | P77: 0 | Q77: 0 | R77: 0
A78: Distribution | C78: constant | D78: constant | E78: constant | F78: constant | G78: constant | H78: constant | I78: constant | J78: constant | K78: constant | L78: constant | M78: constant | N78: constant | O78: constant | P78: constant | Q78: constant | R78: constant
A79: Attenuation_Decay_Coefficient_Species_2_param1
A80: Attenuation_Decay_Coefficient_Species_2_param2
A81: Attenuation_Decay_Coefficient_Species_2_param3
A84: =IF((Contaminants_Source_determinand_names Contaminants_Species3)=0,"Undefined",(Contaminants_Source_determinand_names Contaminants_Species3)) -> Nickel
A86: Attenuation_Partition_Coefficient_Kd_Species_3 | B86: L/kg | C86: 20 | D86: 20 | E86: 20 | F86: 20 | G86: 20 | H86: =(Attenuation_Fraction_organic_carbon) * (Contaminants_Organic_Carbon_Water_Partition_Coefficient_Koc Contaminants_Species3) -> 0 | I86: =(Attenuation_Fraction_organic_carbon) * (Contaminants_Organic_Carbon_Water_Partition_Coefficient_Koc Contaminants_Species3) -> 0 | J86: =(Attenuation_Fraction_organic_carbon) * (Contaminants_Organic_Carbon_Water_Partition_Coefficient_Koc Contaminants_Species3) -> 0 | K86: =(Attenuation_Fraction_organic_carbon) * (Contaminants_Organic_Carbon_Water_Partition_Coefficient_Koc Contaminants_Species3) -> 0 | L86: =(Attenuation_Fraction_organic_carbon) * (Contaminants_Organic_Carbon_Water_Partition_Coefficient_Koc Contaminants_Species3) -> 0 | M86: =(Attenuation_Fraction_organic_carbon) * (Contaminants_Organic_Carbon_Water_Partition_Coefficient_Koc Contaminants_Species3) -> 0 | N86: =(Attenuation_Fraction_organic_carbon) * (Contaminants_Organic_Carbon_Water_Partition_Coefficient_Koc Contaminants_Species3) -> 0 | O86: =(Attenuation_Fraction_organic_carbon) * (Contaminants_Organic_Carbon_Water_Partition_Coefficient_Koc Contaminants_Species3) -> 0 | P86: =(Attenuation_Fraction_organic_carbon) * (Contaminants_Organic_Carbon_Water_Partition_Coefficient_Koc Contaminants_Species3) -> 0 | Q86: =(Attenuation_Fraction_organic_carbon) * (Contaminants_Organic_Carbon_Water_Partition_Coefficient_Koc Contaminants_Species3) -> 0 | R86: =(Attenuation_Fraction_organic_carbon) * (Contaminants_Organic_Carbon_Water_Partition_Coefficient_Koc Contaminants_Species3) -> 0
A87: Distribution | C87: constant | D87: constant | E87: constant | F87: constant | G87: constant | H87: constant | I87: constant | J87: constant | K87: constant | L87: constant | M87: constant | N87: constant | O87: constant | P87: constant | Q87: constant | R87: constant
A88: Attenuation_Partition_Coefficient_Kd_Species_3_param1
A89: Attenuation_Partition_Coefficient_Kd_Species_3_param2
A90: Attenuation_Partition_Coefficient_Kd_Species_3_param3
A93: Attenuation_Retardation_Species_3 | B93: [-] | C93: =1 + 0.001 * (Attenuation_Partition_Coefficient_Kd_Species_3) * (Attenuation_Dry_bulk_density) / (Hydrogeology_Porosity Hydrogeology!$C:$C) -> 93.5 | D93: =1 + 0.001 * (Attenuation_Partition_Coefficient_Kd_Species_3) * (Attenuation_Dry_bulk_density) / (Hydrogeology_Porosity Hydrogeology!$D:$D) -> 93.5 | E93: =1 + 0.001 * (Attenuation_Partition_Coefficient_Kd_Species_3) * (Attenuation_Dry_bulk_density) / (Hydrogeology_Porosity Hydrogeology!$E:$E) -> 167.6666667 | F93: =1 + 0.001 * (Attenuation_Partition_Coefficient_Kd_Species_3) * (Attenuation_Dry_bulk_density) / (Hydrogeology_Porosity Hydrogeology!$F:$F) -> 184.3333333 | G93: =1 + 0.001 * (Attenuation_Partition_Coefficient_Kd_Species_3) * (Attenuation_Dry_bulk_density) / (Hydrogeology_Porosity Hydrogeology!$G:$G) -> 167.6666667 | H93: =1 + 0.001 * (Attenuation_Partition_Coefficient_Kd_Species_3) * (Attenuation_Dry_bulk_density) / (Hydrogeology_Porosity Hydrogeology!$H:$H) ->  | I93: =1 + 0.001 * (Attenuation_Partition_Coefficient_Kd_Species_3) * (Attenuation_Dry_bulk_density) / (Hydrogeology_Porosity Hydrogeology!$I:$I) ->  | J93: =1 + 0.001 * (Attenuation_Partition_Coefficient_Kd_Species_3) * (Attenuation_Dry_bulk_density) / (Hydrogeology_Porosity Hydrogeology!$J:$J) ->  | K93: =1 + 0.001 * (Attenuation_Partition_Coefficient_Kd_Species_3) * (Attenuation_Dry_bulk_density) / (Hydrogeology_Porosity Hydrogeology!$K:$K) ->  | L93: =1 + 0.001 * (Attenuation_Partition_Coefficient_Kd_Species_3) * (Attenuation_Dry_bulk_density) / (Hydrogeology_Porosity Hydrogeology!$L:$L) ->  | M93: =1 + 0.001 * (Attenuation_Partition_Coefficient_Kd_Species_3) * (Attenuation_Dry_bulk_density) / (Hydrogeology_Porosity Hydrogeology!$M:$M) ->  | N93: =1 + 0.001 * (Attenuation_Partition_Coefficient_Kd_Species_3) * (Attenuation_Dry_bulk_density) / (Hydrogeology_Porosity Hydrogeology!$N:$N) ->  | O93: =1 + 0.001 * (Attenuation_Partition_Coefficient_Kd_Species_3) * (Attenuation_Dry_bulk_density) / (Hydrogeology_Porosity Hydrogeology!$O:$O) ->  | P93: =1 + 0.001 * (Attenuation_Partition_Coefficient_Kd_Species_3) * (Attenuation_Dry_bulk_density) / (Hydrogeology_Porosity Hydrogeology!$P:$P) ->  | Q93: =1 + 0.001 * (Attenuation_Partition_Coefficient_Kd_Species_3) * (Attenuation_Dry_bulk_density) / (Hydrogeology_Porosity Hydrogeology!$Q:$Q) ->  | R93: =1 + 0.001 * (Attenuation_Partition_Coefficient_Kd_Species_3) * (Attenuation_Dry_bulk_density) / (Hydrogeology_Porosity Hydrogeology!$R:$R) -> 
A94: Distribution | C94: constant | D94: constant | E94: constant | F94: constant | G94: constant | H94: constant | I94: constant | J94: constant | K94: constant | L94: constant | M94: constant | N94: constant | O94: constant | P94: constant | Q94: constant | R94: constant
A95: Attenuation_Retardation_Species_3_param1
A96: Attenuation_Retardation_Species_3_param2
A97: Attenuation_Retardation_Species_3_param3
A100: Attenuation_Half_Life_Species_3 | B100: days | C100: No Decay | D100: No Decay | E100: No Decay | F100: No Decay | G100: No Decay | H100: No Decay | I100: No Decay | J100: No Decay | K100: No Decay | L100: No Decay | M100: No Decay | N100: No Decay | O100: No Decay | P100: No Decay | Q100: No Decay | R100: No Decay
A101: Distribution | C101: constant | D101: constant | E101: constant | F101: constant | G101: constant | H101: constant | I101: constant | J101: constant | K101: constant | L101: constant | M101: constant | N101: constant | O101: constant | P101: constant | Q101: constant | R101: constant
A102: Attenuation_Half_Life_Species_3_param1
A103: Attenuation_Half_Life_Species_3_param2
A104: Attenuation_Half_Life_Species_3_param3
A107: Attenuation_Decay_Coefficient_Species_3 | B107: 1/s | C107: =IF((Attenuation_Half_Life_Species_3)<>"No Decay", LN(2) / ((Attenuation_Half_Life_Species_3) * s_per_day),0) -> 0 | D107: 0 | E107: 0 | F107: 0 | G107: 0 | H107: 0 | I107: 0 | J107: 0 | K107: 0 | L107: 0 | M107: 0 | N107: 0 | O107: 0 | P107: 0 | Q107: 0 | R107: 0
A108: Distribution | C108: constant | D108: constant | E108: constant | F108: constant | G108: constant | H108: constant | I108: constant | J108: constant | K108: constant | L108: constant | M108: constant | N108: constant | O108: constant | P108: constant | Q108: constant | R108: constant
A109: Attenuation_Decay_Coefficient_Species_3_param1
A110: Attenuation_Decay_Coefficient_Species_3_param2
A111: Attenuation_Decay_Coefficient_Species_3_param3
A114: =IF((Contaminants_Source_determinand_names Contaminants_Species4)=0,"Undefined",(Contaminants_Source_determinand_names Contaminants_Species4)) -> Chloride
A116: Attenuation_Partition_Coefficient_Kd_Species_4 | B116: L/kg | C116: =(Attenuation_Fraction_organic_carbon) * (Contaminants_Organic_Carbon_Water_Partition_Coefficient_Koc Contaminants_Species4) -> 0 | D116: =(Attenuation_Fraction_organic_carbon) * (Contaminants_Organic_Carbon_Water_Partition_Coefficient_Koc Contaminants_Species4) -> 0 | E116: =(Attenuation_Fraction_organic_carbon) * (Contaminants_Organic_Carbon_Water_Partition_Coefficient_Koc Contaminants_Species4) -> 0 | F116: =(Attenuation_Fraction_organic_carbon) * (Contaminants_Organic_Carbon_Water_Partition_Coefficient_Koc Contaminants_Species4) -> 0 | G116: =(Attenuation_Fraction_organic_carbon) * (Contaminants_Organic_Carbon_Water_Partition_Coefficient_Koc Contaminants_Species4) -> 0 | H116: =(Attenuation_Fraction_organic_carbon) * (Contaminants_Organic_Carbon_Water_Partition_Coefficient_Koc Contaminants_Species4) -> 0 | I116: =(Attenuation_Fraction_organic_carbon) * (Contaminants_Organic_Carbon_Water_Partition_Coefficient_Koc Contaminants_Species4) -> 0 | J116: =(Attenuation_Fraction_organic_carbon) * (Contaminants_Organic_Carbon_Water_Partition_Coefficient_Koc Contaminants_Species4) -> 0 | K116: =(Attenuation_Fraction_organic_carbon) * (Contaminants_Organic_Carbon_Water_Partition_Coefficient_Koc Contaminants_Species4) -> 0 | L116: =(Attenuation_Fraction_organic_carbon) * (Contaminants_Organic_Carbon_Water_Partition_Coefficient_Koc Contaminants_Species4) -> 0 | M116: =(Attenuation_Fraction_organic_carbon) * (Contaminants_Organic_Carbon_Water_Partition_Coefficient_Koc Contaminants_Species4) -> 0 | N116: =(Attenuation_Fraction_organic_carbon) * (Contaminants_Organic_Carbon_Water_Partition_Coefficient_Koc Contaminants_Species4) -> 0 | O116: =(Attenuation_Fraction_organic_carbon) * (Contaminants_Organic_Carbon_Water_Partition_Coefficient_Koc Contaminants_Species4) -> 0 | P116: =(Attenuation_Fraction_organic_carbon) * (Contaminants_Organic_Carbon_Water_Partition_Coefficient_Koc Contaminants_Species4) -> 0 | Q116: =(Attenuation_Fraction_organic_carbon) * (Contaminants_Organic_Carbon_Water_Partition_Coefficient_Koc Contaminants_Species4) -> 0 | R116: =(Attenuation_Fraction_organic_carbon) * (Contaminants_Organic_Carbon_Water_Partition_Coefficient_Koc Contaminants_Species4) -> 0
A117: Distribution | C117: constant | D117: constant | E117: constant | F117: constant | G117: constant | H117: constant | I117: constant | J117: constant | K117: constant | L117: constant | M117: constant | N117: constant | O117: constant | P117: constant | Q117: constant | R117: constant
A118: Attenuation_Partition_Coefficient_Kd_Species_4_param1
A119: Attenuation_Partition_Coefficient_Kd_Species_4_param2
A120: Attenuation_Partition_Coefficient_Kd_Species_4_param3
A123: Attenuation_Retardation_Species_4 | B123: [-] | C123: =1 + 0.001 * (Attenuation_Partition_Coefficient_Kd_Species_4) * (Attenuation_Dry_bulk_density) / (Hydrogeology_Porosity Hydrogeology!$C:$C) -> 1 | D123: =1 + 0.001 * (Attenuation_Partition_Coefficient_Kd_Species_4) * (Attenuation_Dry_bulk_density) / (Hydrogeology_Porosity Hydrogeology!$D:$D) -> 1 | E123: =1 + 0.001 * (Attenuation_Partition_Coefficient_Kd_Species_4) * (Attenuation_Dry_bulk_density) / (Hydrogeology_Porosity Hydrogeology!$E:$E) -> 1 | F123: =1 + 0.001 * (Attenuation_Partition_Coefficient_Kd_Species_4) * (Attenuation_Dry_bulk_density) / (Hydrogeology_Porosity Hydrogeology!$F:$F) -> 1 | G123: =1 + 0.001 * (Attenuation_Partition_Coefficient_Kd_Species_4) * (Attenuation_Dry_bulk_density) / (Hydrogeology_Porosity Hydrogeology!$G:$G) -> 1 | H123: =1 + 0.001 * (Attenuation_Partition_Coefficient_Kd_Species_4) * (Attenuation_Dry_bulk_density) / (Hydrogeology_Porosity Hydrogeology!$H:$H) ->  | I123: =1 + 0.001 * (Attenuation_Partition_Coefficient_Kd_Species_4) * (Attenuation_Dry_bulk_density) / (Hydrogeology_Porosity Hydrogeology!$I:$I) ->  | J123: =1 + 0.001 * (Attenuation_Partition_Coefficient_Kd_Species_4) * (Attenuation_Dry_bulk_density) / (Hydrogeology_Porosity Hydrogeology!$J:$J) ->  | K123: =1 + 0.001 * (Attenuation_Partition_Coefficient_Kd_Species_4) * (Attenuation_Dry_bulk_density) / (Hydrogeology_Porosity Hydrogeology!$K:$K) ->  | L123: =1 + 0.001 * (Attenuation_Partition_Coefficient_Kd_Species_4) * (Attenuation_Dry_bulk_density) / (Hydrogeology_Porosity Hydrogeology!$L:$L) ->  | M123: =1 + 0.001 * (Attenuation_Partition_Coefficient_Kd_Species_4) * (Attenuation_Dry_bulk_density) / (Hydrogeology_Porosity Hydrogeology!$M:$M) ->  | N123: =1 + 0.001 * (Attenuation_Partition_Coefficient_Kd_Species_4) * (Attenuation_Dry_bulk_density) / (Hydrogeology_Porosity Hydrogeology!$N:$N) ->  | O123: =1 + 0.001 * (Attenuation_Partition_Coefficient_Kd_Species_4) * (Attenuation_Dry_bulk_density) / (Hydrogeology_Porosity Hydrogeology!$O:$O) ->  | P123: =1 + 0.001 * (Attenuation_Partition_Coefficient_Kd_Species_4) * (Attenuation_Dry_bulk_density) / (Hydrogeology_Porosity Hydrogeology!$P:$P) ->  | Q123: =1 + 0.001 * (Attenuation_Partition_Coefficient_Kd_Species_4) * (Attenuation_Dry_bulk_density) / (Hydrogeology_Porosity Hydrogeology!$Q:$Q) ->  | R123: =1 + 0.001 * (Attenuation_Partition_Coefficient_Kd_Species_4) * (Attenuation_Dry_bulk_density) / (Hydrogeology_Porosity Hydrogeology!$R:$R) -> 
A124: Distribution | C124: constant | D124: constant | E124: constant | F124: constant | G124: constant | H124: constant | I124: constant | J124: constant | K124: constant | L124: constant | M124: constant | N124: constant | O124: constant | P124: constant | Q124: constant | R124: constant
A125: Attenuation_Retardation_Species_4_param1
A126: Attenuation_Retardation_Species_4_param2
A127: Attenuation_Retardation_Species_4_param3
A130: Attenuation_Half_Life_Species_4 | B130: days | C130: No Decay | D130: No Decay | E130: No Decay | F130: No Decay | G130: No Decay | H130: No Decay | I130: No Decay | J130: No Decay | K130: No Decay | L130: No Decay | M130: No Decay | N130: No Decay | O130: No Decay | P130: No Decay | Q130: No Decay | R130: No Decay
A131: Distribution | C131: constant | D131: constant | E131: constant | F131: constant | G131: constant | H131: constant | I131: constant | J131: constant | K131: constant | L131: constant | M131: constant | N131: constant | O131: constant | P131: constant | Q131: constant | R131: constant
A132: Attenuation_Half_Life_Species_4_param1
A133: Attenuation_Half_Life_Species_4_param2
A134: Attenuation_Half_Life_Species_4_param3
A137: Attenuation_Decay_Coefficient_Species_4 | B137: 1/s | C137: =IF((Attenuation_Half_Life_Species_4)<>"No Decay", LN(2) / ((Attenuation_Half_Life_Species_4) * s_per_day),0) -> 0 | D137: 0 | E137: 0 | F137: 0 | G137: 0 | H137: 0 | I137: 0 | J137: 0 | K137: 0 | L137: 0 | M137: 0 | N137: 0 | O137: 0 | P137: 0 | Q137: 0 | R137: 0
A138: Distribution | C138: constant | D138: constant | E138: constant | F138: constant | G138: constant | H138: constant | I138: constant | J138: constant | K138: constant | L138: constant | M138: constant | N138: constant | O138: constant | P138: constant | Q138: constant | R138: constant
A139: Attenuation_Decay_Coefficient_Species_4_param1
A140: Attenuation_Decay_Coefficient_Species_4_param2
A141: Attenuation_Decay_Coefficient_Species_4_param3
A144: =IF((Contaminants_Source_determinand_names Contaminants_Species5)=0,"Undefined",(Contaminants_Source_determinand_names Contaminants_Species5)) -> Toluene
A146: Attenuation_Partition_Coefficient_Kd_Species_5 | B146: L/kg | C146: =(Attenuation_Fraction_organic_carbon) * (Contaminants_Organic_Carbon_Water_Partition_Coefficient_Koc Contaminants_Species5) -> 9.5 | D146: =(Attenuation_Fraction_organic_carbon) * (Contaminants_Organic_Carbon_Water_Partition_Coefficient_Koc Contaminants_Species5) -> 9.5 | E146: =(Attenuation_Fraction_organic_carbon) * (Contaminants_Organic_Carbon_Water_Partition_Coefficient_Koc Contaminants_Species5) -> 0.076 | F146: =(Attenuation_Fraction_organic_carbon) * (Contaminants_Organic_Carbon_Water_Partition_Coefficient_Koc Contaminants_Species5) -> 0.076 | G146: =(Attenuation_Fraction_organic_carbon) * (Contaminants_Organic_Carbon_Water_Partition_Coefficient_Koc Contaminants_Species5) -> 0.076 | H146: =(Attenuation_Fraction_organic_carbon) * (Contaminants_Organic_Carbon_Water_Partition_Coefficient_Koc Contaminants_Species5) -> 0 | I146: =(Attenuation_Fraction_organic_carbon) * (Contaminants_Organic_Carbon_Water_Partition_Coefficient_Koc Contaminants_Species5) -> 0 | J146: =(Attenuation_Fraction_organic_carbon) * (Contaminants_Organic_Carbon_Water_Partition_Coefficient_Koc Contaminants_Species5) -> 0 | K146: =(Attenuation_Fraction_organic_carbon) * (Contaminants_Organic_Carbon_Water_Partition_Coefficient_Koc Contaminants_Species5) -> 0 | L146: =(Attenuation_Fraction_organic_carbon) * (Contaminants_Organic_Carbon_Water_Partition_Coefficient_Koc Contaminants_Species5) -> 0 | M146: =(Attenuation_Fraction_organic_carbon) * (Contaminants_Organic_Carbon_Water_Partition_Coefficient_Koc Contaminants_Species5) -> 0 | N146: =(Attenuation_Fraction_organic_carbon) * (Contaminants_Organic_Carbon_Water_Partition_Coefficient_Koc Contaminants_Species5) -> 0 | O146: =(Attenuation_Fraction_organic_carbon) * (Contaminants_Organic_Carbon_Water_Partition_Coefficient_Koc Contaminants_Species5) -> 0 | P146: =(Attenuation_Fraction_organic_carbon) * (Contaminants_Organic_Carbon_Water_Partition_Coefficient_Koc Contaminants_Species5) -> 0 | Q146: =(Attenuation_Fraction_organic_carbon) * (Contaminants_Organic_Carbon_Water_Partition_Coefficient_Koc Contaminants_Species5) -> 0 | R146: =(Attenuation_Fraction_organic_carbon) * (Contaminants_Organic_Carbon_Water_Partition_Coefficient_Koc Contaminants_Species5) -> 0
A147: Distribution | C147: constant | D147: constant | E147: constant | F147: constant | G147: constant | H147: constant | I147: constant | J147: constant | K147: constant | L147: constant | M147: constant | N147: constant | O147: constant | P147: constant | Q147: constant | R147: constant
A148: Attenuation_Partition_Coefficient_Kd_Species_5_param1
A149: Attenuation_Partition_Coefficient_Kd_Species_5_param2
A150: Attenuation_Partition_Coefficient_Kd_Species_5_param3
A153: Attenuation_Retardation_Species_5 | B153: [-] | C153: =1 + 0.001 * (Attenuation_Partition_Coefficient_Kd_Species_5) * (Attenuation_Dry_bulk_density) / (Hydrogeology_Porosity Hydrogeology!$C:$C) -> 44.9375 | D153: =1 + 0.001 * (Attenuation_Partition_Coefficient_Kd_Species_5) * (Attenuation_Dry_bulk_density) / (Hydrogeology_Porosity Hydrogeology!$D:$D) -> 44.9375 | E153: =1 + 0.001 * (Attenuation_Partition_Coefficient_Kd_Species_5) * (Attenuation_Dry_bulk_density) / (Hydrogeology_Porosity Hydrogeology!$E:$E) -> 1.633333333 | F153: =1 + 0.001 * (Attenuation_Partition_Coefficient_Kd_Species_5) * (Attenuation_Dry_bulk_density) / (Hydrogeology_Porosity Hydrogeology!$F:$F) -> 1.696666667 | G153: =1 + 0.001 * (Attenuation_Partition_Coefficient_Kd_Species_5) * (Attenuation_Dry_bulk_density) / (Hydrogeology_Porosity Hydrogeology!$G:$G) -> 1.633333333 | H153: =1 + 0.001 * (Attenuation_Partition_Coefficient_Kd_Species_5) * (Attenuation_Dry_bulk_density) / (Hydrogeology_Porosity Hydrogeology!$H:$H) ->  | I153: =1 + 0.001 * (Attenuation_Partition_Coefficient_Kd_Species_5) * (Attenuation_Dry_bulk_density) / (Hydrogeology_Porosity Hydrogeology!$I:$I) ->  | J153: =1 + 0.001 * (Attenuation_Partition_Coefficient_Kd_Species_5) * (Attenuation_Dry_bulk_density) / (Hydrogeology_Porosity Hydrogeology!$J:$J) ->  | K153: =1 + 0.001 * (Attenuation_Partition_Coefficient_Kd_Species_5) * (Attenuation_Dry_bulk_density) / (Hydrogeology_Porosity Hydrogeology!$K:$K) ->  | L153: =1 + 0.001 * (Attenuation_Partition_Coefficient_Kd_Species_5) * (Attenuation_Dry_bulk_density) / (Hydrogeology_Porosity Hydrogeology!$L:$L) ->  | M153: =1 + 0.001 * (Attenuation_Partition_Coefficient_Kd_Species_5) * (Attenuation_Dry_bulk_density) / (Hydrogeology_Porosity Hydrogeology!$M:$M) ->  | N153: =1 + 0.001 * (Attenuation_Partition_Coefficient_Kd_Species_5) * (Attenuation_Dry_bulk_density) / (Hydrogeology_Porosity Hydrogeology!$N:$N) ->  | O153: =1 + 0.001 * (Attenuation_Partition_Coefficient_Kd_Species_5) * (Attenuation_Dry_bulk_density) / (Hydrogeology_Porosity Hydrogeology!$O:$O) ->  | P153: =1 + 0.001 * (Attenuation_Partition_Coefficient_Kd_Species_5) * (Attenuation_Dry_bulk_density) / (Hydrogeology_Porosity Hydrogeology!$P:$P) ->  | Q153: =1 + 0.001 * (Attenuation_Partition_Coefficient_Kd_Species_5) * (Attenuation_Dry_bulk_density) / (Hydrogeology_Porosity Hydrogeology!$Q:$Q) ->  | R153: =1 + 0.001 * (Attenuation_Partition_Coefficient_Kd_Species_5) * (Attenuation_Dry_bulk_density) / (Hydrogeology_Porosity Hydrogeology!$R:$R) -> 
A154: Distribution | C154: constant | D154: constant | E154: constant | F154: constant | G154: constant | H154: constant | I154: constant | J154: constant | K154: constant | L154: constant | M154: constant | N154: constant | O154: constant | P154: constant | Q154: constant | R154: constant
A155: Attenuation_Retardation_Species_5_param1
A156: Attenuation_Retardation_Species_5_param2
A157: Attenuation_Retardation_Species_5_param3
A160: Attenuation_Half_Life_Species_5 | B160: days | C160: 173 | D160: 173 | E160: 173 | F160: 173 | G160: 173 | H160: No Decay | I160: No Decay | J160: No Decay | K160: No Decay | L160: No Decay | M160: No Decay | N160: No Decay | O160: No Decay | P160: No Decay | Q160: No Decay | R160: No Decay
A161: Distribution | C161: constant | D161: constant | E161: constant | F161: constant | G161: constant | H161: constant | I161: constant | J161: constant | K161: constant | L161: constant | M161: constant | N161: constant | O161: constant | P161: constant | Q161: constant | R161: constant
A162: Attenuation_Half_Life_Species_5_param1
A163: Attenuation_Half_Life_Species_5_param2
A164: Attenuation_Half_Life_Species_5_param3
A167: Attenuation_Decay_Coefficient_Species_5 | B167: 1/s | C167: =IF((Attenuation_Half_Life_Species_5)<>"No Decay", LN(2) / ((Attenuation_Half_Life_Species_5) * s_per_day),0) -> 4.637304516e-08 | D167: 4.637304516e-08 | E167: 4.637304516e-08 | F167: 4.637304516e-08 | G167: 4.637304516e-08 | H167: 0 | I167: 0 | J167: 0 | K167: 0 | L167: 0 | M167: 0 | N167: 0 | O167: 0 | P167: 0 | Q167: 0 | R167: 0
A168: Distribution | C168: constant | D168: constant | E168: constant | F168: constant | G168: constant | H168: constant | I168: constant | J168: constant | K168: constant | L168: constant | M168: constant | N168: constant | O168: constant | P168: constant | Q168: constant | R168: constant
A169: Attenuation_Decay_Coefficient_Species_5_param1
A170: Attenuation_Decay_Coefficient_Species_5_param2
A171: Attenuation_Decay_Coefficient_Species_5_param3
A174: =IF((Contaminants_Source_determinand_names Contaminants_Species6)=0,"Undefined",(Contaminants_Source_determinand_names Contaminants_Species6)) -> Cadmium
A176: Attenuation_Partition_Coefficient_Kd_Species_6 | B176: L/kg | C176: 5 | D176: 5 | E176: 5 | F176: 5 | G176: 5 | H176: =(Attenuation_Fraction_organic_carbon) * (Contaminants_Organic_Carbon_Water_Partition_Coefficient_Koc Contaminants_Species6) -> 0 | I176: =(Attenuation_Fraction_organic_carbon) * (Contaminants_Organic_Carbon_Water_Partition_Coefficient_Koc Contaminants_Species6) -> 0 | J176: =(Attenuation_Fraction_organic_carbon) * (Contaminants_Organic_Carbon_Water_Partition_Coefficient_Koc Contaminants_Species6) -> 0 | K176: =(Attenuation_Fraction_organic_carbon) * (Contaminants_Organic_Carbon_Water_Partition_Coefficient_Koc Contaminants_Species6) -> 0 | L176: =(Attenuation_Fraction_organic_carbon) * (Contaminants_Organic_Carbon_Water_Partition_Coefficient_Koc Contaminants_Species6) -> 0 | M176: =(Attenuation_Fraction_organic_carbon) * (Contaminants_Organic_Carbon_Water_Partition_Coefficient_Koc Contaminants_Species6) -> 0 | N176: =(Attenuation_Fraction_organic_carbon) * (Contaminants_Organic_Carbon_Water_Partition_Coefficient_Koc Contaminants_Species6) -> 0 | O176: =(Attenuation_Fraction_organic_carbon) * (Contaminants_Organic_Carbon_Water_Partition_Coefficient_Koc Contaminants_Species6) -> 0 | P176: =(Attenuation_Fraction_organic_carbon) * (Contaminants_Organic_Carbon_Water_Partition_Coefficient_Koc Contaminants_Species6) -> 0 | Q176: =(Attenuation_Fraction_organic_carbon) * (Contaminants_Organic_Carbon_Water_Partition_Coefficient_Koc Contaminants_Species6) -> 0 | R176: =(Attenuation_Fraction_organic_carbon) * (Contaminants_Organic_Carbon_Water_Partition_Coefficient_Koc Contaminants_Species6) -> 0
A177: Distribution | C177: constant | D177: constant | E177: constant | F177: constant | G177: constant | H177: constant | I177: constant | J177: constant | K177: constant | L177: constant | M177: constant | N177: constant | O177: constant | P177: constant | Q177: constant | R177: constant
A178: Attenuation_Partition_Coefficient_Kd_Species_6_param1
A179: Attenuation_Partition_Coefficient_Kd_Species_6_param2
A180: Attenuation_Partition_Coefficient_Kd_Species_6_param3
A183: Attenuation_Retardation_Species_6 | B183: [-] | C183: =1 + 0.001 * (Attenuation_Partition_Coefficient_Kd_Species_6) * (Attenuation_Dry_bulk_density) / (Hydrogeology_Porosity Hydrogeology!$C:$C) -> 24.125 | D183: =1 + 0.001 * (Attenuation_Partition_Coefficient_Kd_Species_6) * (Attenuation_Dry_bulk_density) / (Hydrogeology_Porosity Hydrogeology!$D:$D) -> 24.125 | E183: =1 + 0.001 * (Attenuation_Partition_Coefficient_Kd_Species_6) * (Attenuation_Dry_bulk_density) / (Hydrogeology_Porosity Hydrogeology!$E:$E) -> 42.66666667 | F183: =1 + 0.001 * (Attenuation_Partition_Coefficient_Kd_Species_6) * (Attenuation_Dry_bulk_density) / (Hydrogeology_Porosity Hydrogeology!$F:$F) -> 46.83333333 | G183: =1 + 0.001 * (Attenuation_Partition_Coefficient_Kd_Species_6) * (Attenuation_Dry_bulk_density) / (Hydrogeology_Porosity Hydrogeology!$G:$G) -> 42.66666667 | H183: =1 + 0.001 * (Attenuation_Partition_Coefficient_Kd_Species_6) * (Attenuation_Dry_bulk_density) / (Hydrogeology_Porosity Hydrogeology!$H:$H) ->  | I183: =1 + 0.001 * (Attenuation_Partition_Coefficient_Kd_Species_6) * (Attenuation_Dry_bulk_density) / (Hydrogeology_Porosity Hydrogeology!$I:$I) ->  | J183: =1 + 0.001 * (Attenuation_Partition_Coefficient_Kd_Species_6) * (Attenuation_Dry_bulk_density) / (Hydrogeology_Porosity Hydrogeology!$J:$J) ->  | K183: =1 + 0.001 * (Attenuation_Partition_Coefficient_Kd_Species_6) * (Attenuation_Dry_bulk_density) / (Hydrogeology_Porosity Hydrogeology!$K:$K) ->  | L183: =1 + 0.001 * (Attenuation_Partition_Coefficient_Kd_Species_6) * (Attenuation_Dry_bulk_density) / (Hydrogeology_Porosity Hydrogeology!$L:$L) ->  | M183: =1 + 0.001 * (Attenuation_Partition_Coefficient_Kd_Species_6) * (Attenuation_Dry_bulk_density) / (Hydrogeology_Porosity Hydrogeology!$M:$M) ->  | N183: =1 + 0.001 * (Attenuation_Partition_Coefficient_Kd_Species_6) * (Attenuation_Dry_bulk_density) / (Hydrogeology_Porosity Hydrogeology!$N:$N) ->  | O183: =1 + 0.001 * (Attenuation_Partition_Coefficient_Kd_Species_6) * (Attenuation_Dry_bulk_density) / (Hydrogeology_Porosity Hydrogeology!$O:$O) ->  | P183: =1 + 0.001 * (Attenuation_Partition_Coefficient_Kd_Species_6) * (Attenuation_Dry_bulk_density) / (Hydrogeology_Porosity Hydrogeology!$P:$P) ->  | Q183: =1 + 0.001 * (Attenuation_Partition_Coefficient_Kd_Species_6) * (Attenuation_Dry_bulk_density) / (Hydrogeology_Porosity Hydrogeology!$Q:$Q) ->  | R183: =1 + 0.001 * (Attenuation_Partition_Coefficient_Kd_Species_6) * (Attenuation_Dry_bulk_density) / (Hydrogeology_Porosity Hydrogeology!$R:$R) -> 
A184: Distribution | C184: constant | D184: constant | E184: constant | F184: constant | G184: constant | H184: constant | I184: constant | J184: constant | K184: constant | L184: constant | M184: constant | N184: constant | O184: constant | P184: constant | Q184: constant | R184: constant
A185: Attenuation_Retardation_Species_6_param1
A186: Attenuation_Retardation_Species_6_param2
A187: Attenuation_Retardation_Species_6_param3
A190: Attenuation_Half_Life_Species_6 | B190: days | C190: No Decay | D190: No Decay | E190: No Decay | F190: No Decay | G190: No Decay | H190: No Decay | I190: No Decay | J190: No Decay | K190: No Decay | L190: No Decay | M190: No Decay | N190: No Decay | O190: No Decay | P190: No Decay | Q190: No Decay | R190: No Decay
A191: Distribution | C191: constant | D191: constant | E191: constant | F191: constant | G191: constant | H191: constant | I191: constant | J191: constant | K191: constant | L191: constant | M191: constant | N191: constant | O191: constant | P191: constant | Q191: constant | R191: constant
A192: Attenuation_Half_Life_Species_6_param1
A193: Attenuation_Half_Life_Species_6_param2
A194: Attenuation_Half_Life_Species_6_param3
A197: Attenuation_Decay_Coefficient_Species_6 | B197: 1/s | C197: =IF((Attenuation_Half_Life_Species_6)<>"No Decay", LN(2) / ((Attenuation_Half_Life_Species_6) * s_per_day),0) -> 0 | D197: 0 | E197: 0 | F197: 0 | G197: 0 | H197: 0 | I197: 0 | J197: 0 | K197: 0 | L197: 0 | M197: 0 | N197: 0 | O197: 0 | P197: 0 | Q197: 0 | R197: 0
A198: Distribution | C198: constant | D198: constant | E198: constant | F198: constant | G198: constant | H198: constant | I198: constant | J198: constant | K198: constant | L198: constant | M198: constant | N198: constant | O198: constant | P198: constant | Q198: constant | R198: constant
A199: Attenuation_Decay_Coefficient_Species_6_param1
A200: Attenuation_Decay_Coefficient_Species_6_param2
A201: Attenuation_Decay_Coefficient_Species_6_param3
A204: =IF((Contaminants_Source_determinand_names Contaminants_Species7)=0,"Undefined",(Contaminants_Source_determinand_names Contaminants_Species7)) -> Undefined
A206: Attenuation_Partition_Coefficient_Kd_Species_7 | B206: L/kg | C206: =(Attenuation_Fraction_organic_carbon) * (Contaminants_Organic_Carbon_Water_Partition_Coefficient_Koc Contaminants_Species7) -> 0 | D206: =(Attenuation_Fraction_organic_carbon) * (Contaminants_Organic_Carbon_Water_Partition_Coefficient_Koc Contaminants_Species7) -> 0 | E206: =(Attenuation_Fraction_organic_carbon) * (Contaminants_Organic_Carbon_Water_Partition_Coefficient_Koc Contaminants_Species7) -> 0 | F206: =(Attenuation_Fraction_organic_carbon) * (Contaminants_Organic_Carbon_Water_Partition_Coefficient_Koc Contaminants_Species7) -> 0 | G206: =(Attenuation_Fraction_organic_carbon) * (Contaminants_Organic_Carbon_Water_Partition_Coefficient_Koc Contaminants_Species7) -> 0 | H206: =(Attenuation_Fraction_organic_carbon) * (Contaminants_Organic_Carbon_Water_Partition_Coefficient_Koc Contaminants_Species7) -> 0 | I206: =(Attenuation_Fraction_organic_carbon) * (Contaminants_Organic_Carbon_Water_Partition_Coefficient_Koc Contaminants_Species7) -> 0 | J206: =(Attenuation_Fraction_organic_carbon) * (Contaminants_Organic_Carbon_Water_Partition_Coefficient_Koc Contaminants_Species7) -> 0 | K206: =(Attenuation_Fraction_organic_carbon) * (Contaminants_Organic_Carbon_Water_Partition_Coefficient_Koc Contaminants_Species7) -> 0 | L206: =(Attenuation_Fraction_organic_carbon) * (Contaminants_Organic_Carbon_Water_Partition_Coefficient_Koc Contaminants_Species7) -> 0 | M206: =(Attenuation_Fraction_organic_carbon) * (Contaminants_Organic_Carbon_Water_Partition_Coefficient_Koc Contaminants_Species7) -> 0 | N206: =(Attenuation_Fraction_organic_carbon) * (Contaminants_Organic_Carbon_Water_Partition_Coefficient_Koc Contaminants_Species7) -> 0 | O206: =(Attenuation_Fraction_organic_carbon) * (Contaminants_Organic_Carbon_Water_Partition_Coefficient_Koc Contaminants_Species7) -> 0 | P206: =(Attenuation_Fraction_organic_carbon) * (Contaminants_Organic_Carbon_Water_Partition_Coefficient_Koc Contaminants_Species7) -> 0 | Q206: =(Attenuation_Fraction_organic_carbon) * (Contaminants_Organic_Carbon_Water_Partition_Coefficient_Koc Contaminants_Species7) -> 0 | R206: =(Attenuation_Fraction_organic_carbon) * (Contaminants_Organic_Carbon_Water_Partition_Coefficient_Koc Contaminants_Species7) -> 0
A207: Distribution | C207: constant | D207: constant | E207: constant | F207: constant | G207: constant | H207: constant | I207: constant | J207: constant | K207: constant | L207: constant | M207: constant | N207: constant | O207: constant | P207: constant | Q207: constant | R207: constant
A208: Attenuation_Partition_Coefficient_Kd_Species_7_param1
A209: Attenuation_Partition_Coefficient_Kd_Species_7_param2
A210: Attenuation_Partition_Coefficient_Kd_Species_7_param3
A213: Attenuation_Retardation_Species_7 | B213: [-] | C213: =1 + 0.001 * (Attenuation_Partition_Coefficient_Kd_Species_7) * (Attenuation_Dry_bulk_density) / (Hydrogeology_Porosity Hydrogeology!$C:$C) -> 1 | D213: =1 + 0.001 * (Attenuation_Partition_Coefficient_Kd_Species_7) * (Attenuation_Dry_bulk_density) / (Hydrogeology_Porosity Hydrogeology!$D:$D) -> 1 | E213: =1 + 0.001 * (Attenuation_Partition_Coefficient_Kd_Species_7) * (Attenuation_Dry_bulk_density) / (Hydrogeology_Porosity Hydrogeology!$E:$E) -> 1 | F213: =1 + 0.001 * (Attenuation_Partition_Coefficient_Kd_Species_7) * (Attenuation_Dry_bulk_density) / (Hydrogeology_Porosity Hydrogeology!$F:$F) -> 1 | G213: =1 + 0.001 * (Attenuation_Partition_Coefficient_Kd_Species_7) * (Attenuation_Dry_bulk_density) / (Hydrogeology_Porosity Hydrogeology!$G:$G) -> 1 | H213: =1 + 0.001 * (Attenuation_Partition_Coefficient_Kd_Species_7) * (Attenuation_Dry_bulk_density) / (Hydrogeology_Porosity Hydrogeology!$H:$H) ->  | I213: =1 + 0.001 * (Attenuation_Partition_Coefficient_Kd_Species_7) * (Attenuation_Dry_bulk_density) / (Hydrogeology_Porosity Hydrogeology!$I:$I) ->  | J213: =1 + 0.001 * (Attenuation_Partition_Coefficient_Kd_Species_7) * (Attenuation_Dry_bulk_density) / (Hydrogeology_Porosity Hydrogeology!$J:$J) ->  | K213: =1 + 0.001 * (Attenuation_Partition_Coefficient_Kd_Species_7) * (Attenuation_Dry_bulk_density) / (Hydrogeology_Porosity Hydrogeology!$K:$K) ->  | L213: =1 + 0.001 * (Attenuation_Partition_Coefficient_Kd_Species_7) * (Attenuation_Dry_bulk_density) / (Hydrogeology_Porosity Hydrogeology!$L:$L) ->  | M213: =1 + 0.001 * (Attenuation_Partition_Coefficient_Kd_Species_7) * (Attenuation_Dry_bulk_density) / (Hydrogeology_Porosity Hydrogeology!$M:$M) ->  | N213: =1 + 0.001 * (Attenuation_Partition_Coefficient_Kd_Species_7) * (Attenuation_Dry_bulk_density) / (Hydrogeology_Porosity Hydrogeology!$N:$N) ->  | O213: =1 + 0.001 * (Attenuation_Partition_Coefficient_Kd_Species_7) * (Attenuation_Dry_bulk_density) / (Hydrogeology_Porosity Hydrogeology!$O:$O) ->  | P213: =1 + 0.001 * (Attenuation_Partition_Coefficient_Kd_Species_7) * (Attenuation_Dry_bulk_density) / (Hydrogeology_Porosity Hydrogeology!$P:$P) ->  | Q213: =1 + 0.001 * (Attenuation_Partition_Coefficient_Kd_Species_7) * (Attenuation_Dry_bulk_density) / (Hydrogeology_Porosity Hydrogeology!$Q:$Q) ->  | R213: =1 + 0.001 * (Attenuation_Partition_Coefficient_Kd_Species_7) * (Attenuation_Dry_bulk_density) / (Hydrogeology_Porosity Hydrogeology!$R:$R) -> 
A214: Distribution | C214: constant | D214: constant | E214: constant | F214: constant | G214: constant | H214: constant | I214: constant | J214: constant | K214: constant | L214: constant | M214: constant | N214: constant | O214: constant | P214: constant | Q214: constant | R214: constant
A215: Attenuation_Retardation_Species_7_param1
A216: Attenuation_Retardation_Species_7_param2
A217: Attenuation_Retardation_Species_7_param3
A220: Attenuation_Half_Life_Species_7 | B220: days | C220: No Decay | D220: No Decay | E220: No Decay | F220: No Decay | G220: No Decay | H220: No Decay | I220: No Decay | J220: No Decay | K220: No Decay | L220: No Decay | M220: No Decay | N220: No Decay | O220: No Decay | P220: No Decay | Q220: No Decay | R220: No Decay
A221: Distribution | C221: constant | D221: constant | E221: constant | F221: constant | G221: constant | H221: constant | I221: constant | J221: constant | K221: constant | L221: constant | M221: constant | N221: constant | O221: constant | P221: constant | Q221: constant | R221: constant
A222: Attenuation_Half_Life_Species_7_param1
A223: Attenuation_Half_Life_Species_7_param2
A224: Attenuation_Half_Life_Species_7_param3
A227: Attenuation_Decay_Coefficient_Species_7 | B227: 1/s | C227: =IF((Attenuation_Half_Life_Species_7)<>"No Decay", LN(2) / ((Attenuation_Half_Life_Species_7) * s_per_day),0) -> 0 | D227: 0 | E227: 0 | F227: 0 | G227: 0 | H227: 0 | I227: 0 | J227: 0 | K227: 0 | L227: 0 | M227: 0 | N227: 0 | O227: 0 | P227: 0 | Q227: 0 | R227: 0
A228: Distribution | C228: constant | D228: constant | E228: constant | F228: constant | G228: constant | H228: constant | I228: constant | J228: constant | K228: constant | L228: constant | M228: constant | N228: constant | O228: constant | P228: constant | Q228: constant | R228: constant
A229: Attenuation_Decay_Coefficient_Species_7_param1
A230: Attenuation_Decay_Coefficient_Species_7_param2
A231: Attenuation_Decay_Coefficient_Species_7_param3
A234: =IF((Contaminants_Source_determinand_names Contaminants_Species8)=0,"Undefined",(Contaminants_Source_determinand_names Contaminants_Species8)) -> Undefined
A236: Attenuation_Partition_Coefficient_Kd_Species_8 | B236: L/kg | C236: =(Attenuation_Fraction_organic_carbon) * (Contaminants_Organic_Carbon_Water_Partition_Coefficient_Koc Contaminants_Species8) -> 0 | D236: =(Attenuation_Fraction_organic_carbon) * (Contaminants_Organic_Carbon_Water_Partition_Coefficient_Koc Contaminants_Species8) -> 0 | E236: =(Attenuation_Fraction_organic_carbon) * (Contaminants_Organic_Carbon_Water_Partition_Coefficient_Koc Contaminants_Species8) -> 0 | F236: =(Attenuation_Fraction_organic_carbon) * (Contaminants_Organic_Carbon_Water_Partition_Coefficient_Koc Contaminants_Species8) -> 0 | G236: =(Attenuation_Fraction_organic_carbon) * (Contaminants_Organic_Carbon_Water_Partition_Coefficient_Koc Contaminants_Species8) -> 0 | H236: =(Attenuation_Fraction_organic_carbon) * (Contaminants_Organic_Carbon_Water_Partition_Coefficient_Koc Contaminants_Species8) -> 0 | I236: =(Attenuation_Fraction_organic_carbon) * (Contaminants_Organic_Carbon_Water_Partition_Coefficient_Koc Contaminants_Species8) -> 0 | J236: =(Attenuation_Fraction_organic_carbon) * (Contaminants_Organic_Carbon_Water_Partition_Coefficient_Koc Contaminants_Species8) -> 0 | K236: =(Attenuation_Fraction_organic_carbon) * (Contaminants_Organic_Carbon_Water_Partition_Coefficient_Koc Contaminants_Species8) -> 0 | L236: =(Attenuation_Fraction_organic_carbon) * (Contaminants_Organic_Carbon_Water_Partition_Coefficient_Koc Contaminants_Species8) -> 0 | M236: =(Attenuation_Fraction_organic_carbon) * (Contaminants_Organic_Carbon_Water_Partition_Coefficient_Koc Contaminants_Species8) -> 0 | N236: =(Attenuation_Fraction_organic_carbon) * (Contaminants_Organic_Carbon_Water_Partition_Coefficient_Koc Contaminants_Species8) -> 0 | O236: =(Attenuation_Fraction_organic_carbon) * (Contaminants_Organic_Carbon_Water_Partition_Coefficient_Koc Contaminants_Species8) -> 0 | P236: =(Attenuation_Fraction_organic_carbon) * (Contaminants_Organic_Carbon_Water_Partition_Coefficient_Koc Contaminants_Species8) -> 0 | Q236: =(Attenuation_Fraction_organic_carbon) * (Contaminants_Organic_Carbon_Water_Partition_Coefficient_Koc Contaminants_Species8) -> 0 | R236: =(Attenuation_Fraction_organic_carbon) * (Contaminants_Organic_Carbon_Water_Partition_Coefficient_Koc Contaminants_Species8) -> 0
A237: Distribution | C237: constant | D237: constant | E237: constant | F237: constant | G237: constant | H237: constant | I237: constant | J237: constant | K237: constant | L237: constant | M237: constant | N237: constant | O237: constant | P237: constant | Q237: constant | R237: constant
A238: Attenuation_Partition_Coefficient_Kd_Species_8_param1
A239: Attenuation_Partition_Coefficient_Kd_Species_8_param2
A240: Attenuation_Partition_Coefficient_Kd_Species_8_param3
A243: Attenuation_Retardation_Species_8 | B243: [-] | C243: =1 + 0.001 * (Attenuation_Partition_Coefficient_Kd_Species_8) * (Attenuation_Dry_bulk_density) / (Hydrogeology_Porosity Hydrogeology!$C:$C) -> 1 | D243: =1 + 0.001 * (Attenuation_Partition_Coefficient_Kd_Species_8) * (Attenuation_Dry_bulk_density) / (Hydrogeology_Porosity Hydrogeology!$D:$D) -> 1 | E243: =1 + 0.001 * (Attenuation_Partition_Coefficient_Kd_Species_8) * (Attenuation_Dry_bulk_density) / (Hydrogeology_Porosity Hydrogeology!$E:$E) -> 1 | F243: =1 + 0.001 * (Attenuation_Partition_Coefficient_Kd_Species_8) * (Attenuation_Dry_bulk_density) / (Hydrogeology_Porosity Hydrogeology!$F:$F) -> 1 | G243: =1 + 0.001 * (Attenuation_Partition_Coefficient_Kd_Species_8) * (Attenuation_Dry_bulk_density) / (Hydrogeology_Porosity Hydrogeology!$G:$G) -> 1 | H243: =1 + 0.001 * (Attenuation_Partition_Coefficient_Kd_Species_8) * (Attenuation_Dry_bulk_density) / (Hydrogeology_Porosity Hydrogeology!$H:$H) ->  | I243: =1 + 0.001 * (Attenuation_Partition_Coefficient_Kd_Species_8) * (Attenuation_Dry_bulk_density) / (Hydrogeology_Porosity Hydrogeology!$I:$I) ->  | J243: =1 + 0.001 * (Attenuation_Partition_Coefficient_Kd_Species_8) * (Attenuation_Dry_bulk_density) / (Hydrogeology_Porosity Hydrogeology!$J:$J) ->  | K243: =1 + 0.001 * (Attenuation_Partition_Coefficient_Kd_Species_8) * (Attenuation_Dry_bulk_density) / (Hydrogeology_Porosity Hydrogeology!$K:$K) ->  | L243: =1 + 0.001 * (Attenuation_Partition_Coefficient_Kd_Species_8) * (Attenuation_Dry_bulk_density) / (Hydrogeology_Porosity Hydrogeology!$L:$L) ->  | M243: =1 + 0.001 * (Attenuation_Partition_Coefficient_Kd_Species_8) * (Attenuation_Dry_bulk_density) / (Hydrogeology_Porosity Hydrogeology!$M:$M) ->  | N243: =1 + 0.001 * (Attenuation_Partition_Coefficient_Kd_Species_8) * (Attenuation_Dry_bulk_density) / (Hydrogeology_Porosity Hydrogeology!$N:$N) ->  | O243: =1 + 0.001 * (Attenuation_Partition_Coefficient_Kd_Species_8) * (Attenuation_Dry_bulk_density) / (Hydrogeology_Porosity Hydrogeology!$O:$O) ->  | P243: =1 + 0.001 * (Attenuation_Partition_Coefficient_Kd_Species_8) * (Attenuation_Dry_bulk_density) / (Hydrogeology_Porosity Hydrogeology!$P:$P) ->  | Q243: =1 + 0.001 * (Attenuation_Partition_Coefficient_Kd_Species_8) * (Attenuation_Dry_bulk_density) / (Hydrogeology_Porosity Hydrogeology!$Q:$Q) ->  | R243: =1 + 0.001 * (Attenuation_Partition_Coefficient_Kd_Species_8) * (Attenuation_Dry_bulk_density) / (Hydrogeology_Porosity Hydrogeology!$R:$R) -> 
A244: Distribution | C244: constant | D244: constant | E244: constant | F244: constant | G244: constant | H244: constant | I244: constant | J244: constant | K244: constant | L244: constant | M244: constant | N244: constant | O244: constant | P244: constant | Q244: constant | R244: constant
A245: Attenuation_Retardation_Species_8_param1
A246: Attenuation_Retardation_Species_8_param2
A247: Attenuation_Retardation_Species_8_param3
A250: Attenuation_Half_Life_Species_8 | B250: days | C250: No Decay | D250: No Decay | E250: No Decay | F250: No Decay | G250: No Decay | H250: No Decay | I250: No Decay | J250: No Decay | K250: No Decay | L250: No Decay | M250: No Decay | N250: No Decay | O250: No Decay | P250: No Decay | Q250: No Decay | R250: No Decay
A251: Distribution | C251: constant | D251: constant | E251: constant | F251: constant | G251: constant | H251: constant | I251: constant | J251: constant | K251: constant | L251: constant | M251: constant | N251: constant | O251: constant | P251: constant | Q251: constant | R251: constant
A252: Attenuation_Half_Life_Species_8_param1
A253: Attenuation_Half_Life_Species_8_param2
A254: Attenuation_Half_Life_Species_8_param3
A257: Attenuation_Decay_Coefficient_Species_8 | B257: 1/s | C257: =IF((Attenuation_Half_Life_Species_8)<>"No Decay", LN(2) / ((Attenuation_Half_Life_Species_8) * s_per_day),0) -> 0 | D257: 0 | E257: 0 | F257: 0 | G257: 0 | H257: 0 | I257: 0 | J257: 0 | K257: 0 | L257: 0 | M257: 0 | N257: 0 | O257: 0 | P257: 0 | Q257: 0 | R257: 0
A258: Distribution | C258: constant | D258: constant | E258: constant | F258: constant | G258: constant | H258: constant | I258: constant | J258: constant | K258: constant | L258: constant | M258: constant | N258: constant | O258: constant | P258: constant | Q258: constant | R258: constant
A259: Attenuation_Decay_Coefficient_Species_8_param1
A260: Attenuation_Decay_Coefficient_Species_8_param2
A261: Attenuation_Decay_Coefficient_Species_8_param3

Sheet WaterBalance
A1: WATER BALANCE
A3: Vertical path
A4: Average yearly rainfall (1994 to 2022) (mm/yr) | B4: 607
A5: Average daily evaporation (2007 to 2017) (mm/yr) | B5: 499
A6: Effective rainfall (mm/yr) | B6: 108
A7: Infiltration to covered waste (mm/yr) | B7: 46
A8: Infiltration to covered waste (m/s) | B8: =(B7/1000)/s_per_year -> 1.457652039e-09
A9: Q_Path New (m3/s) | B9: =B8*New_Phases_Source_area -> 0.0003689317312
A10: Q_Path Existing | B10: =B8*Existing_Phases_Source_area -> 0.0001066447385
A12: Horizontal flow through Highworth Grit | I12: Water Balance Check | N12: K weighting by strata thickness
A13: K (m/s) | B13: =Hydrogeology!E19 -> 6.5e-06 | I13: K (weighted) (m/s) | J13: =(B13*N13)+(B21*O13) -> 3.357142857e-06 | N13: =2/(5+2) -> 0.2857142857 | O13: =5/(5+2) -> 0.7142857143
A14: i | B14: =Hydrogeology!E33 -> 0.0044 | I14: i | J14: =B14 -> 0.0044
A15: A (m2) (new phases) | B15: =New_Phases_Source_width*Hydrogeology!E5 -> 1280 | I15: A (m2) (both phases) | J15: =645*(Hydrogeology!E5+Hydrogeology!F5) -> 4515
A16: A (m2) (existing phases) | B16: =Existing_Phases_Source_width*Hydrogeology!E5 -> 846 | I16: Q (m3/s) | J16: =J13+J146+J15 -> 4515.000003
A17: Q (new phases) | B17: =B13*B14*B15 -> 3.6608e-05
A18: Q (existing phases) | B18: =B13*B14*B16 -> 2.41956e-05 | I18: Difference between combined horizontal Q and sum of individual Q's | J18: =(B17+B18+B25+B26)/J16 -> 2.434423033e-08
A20: Horizontal flow through Highworth Limestone
A21: K (m/s) | B21: =Hydrogeology!F19 -> 2.1e-06
A22: i | B22: =Hydrogeology!F33 -> 0.0044
A23: A (m2) (new phases) | B23: =New_Phases_Source_width*Hydrogeology!F5 -> 3200
A24: A (m2) (existing phases) | B24: =Existing_Phases_Source_width*Hydrogeology!F5 -> 2115
A25: Q (new phases) | B25: =B21*B22*B23 -> 2.9568e-05
A26: Q (existing phases) | B26: =B21*B22*B24 -> 1.95426e-05
A32: Time slices
A33: 1 | B33: 2 | C33: 3 | D33: 4 | E33: 5 | F33: 6
A34: Lead | B34: AmmN | C34: Nickel | D34: Chloride | E34: Toluene | F34: Cadmium
A35: 2 | B35: 2 | C35: 2 | D35: 0.1 | E35: 0.01 | F35: 2
A36: 3 | B36: 3 | C36: 3 | D36: 0.5 | E36: 0.05 | F36: 3
A37: 5 | B37: 5 | C37: 5 | D37: 1 | E37: 0.75 | F37: 5
A38: 10 | B38: 10 | C38: 10 | D38: 2 | E38: 0.1 | F38: 10
A39: 50 | B39: 50 | C39: 50 | D39: 3 | E39: 0.5 | F39: 50
A40: 75 | B40: 75 | C40: 75 | D40: 5 | E40: 1 | F40: 75
A41: 100 | B41: 100 | C41: 100 | D41: 10 | E41: 2 | F41: 100
A42: 110 | B42: 110 | C42: 110 | D42: 50 | E42: 5 | F42: 110
A43: 120 | B43: 120 | C43: 120 | D43: 75 | E43: 10 | F43: 120
A44: 130 | B44: 130 | C44: 130 | D44: 100 | E44: 50 | F44: 130
A45: 140 | B45: 140 | C45: 140 | D45: 110 | E45: 100 | F45: 140
A46: 150 | B46: 150 | C46: 150 | D46: 120 | E46: 120 | F46: 150
A47: 160 | B47: 160 | C47: 160 | D47: 130 | E47: 130 | F47: 160
A48: 170 | B48: 170 | C48: 170 | D48: 140 | E48: 140 | F48: 170
A49: 180 | B49: 180 | C49: 180 | D49: 150 | E49: 150 | F49: 180
A50: 190 | B50: 190 | C50: 190 | D50: 160 | E50: 160 | F50: 190
A51: 200 | B51: 200 | C51: 200 | D51: 170 | E51: 170 | F51: 200
A52: 300 | B52: 300 | C52: 300 | D52: 180 | E52: 180 | F52: 300
A53: 400 | B53: 400 | C53: 400 | D53: 190 | E53: 190 | F53: 400
A54: 500 | B54: 500 | C54: 500 | D54: 200 | E54: 200 | F54: 500
A55: 750 | B55: 750 | C55: 750 | D55: 300 | E55: 300 | F55: 750
A56: 1000 | B56: 1000 | C56: 1000 | D56: 400 | E56: 400 | F56: 1000
A57: 1250 | B57: 1250 | C57: 1250 | D57: 500 | E57: 500 | F57: 1250
A58: 1500 | B58: 1500 | C58: 1500 | D58: 1000 | E58: 1000 | F58: 1500
A59: 2000 | B59: 2000 | C59: 2000 | D59: 2000 | E59: 2000 | F59: 2000

Sheet Pathways
A1: PATHWAY SUMMARY
A3: Path 1 | C3: Section 1 | E3: Section 2 | G3: Section 3
A4: Path 1 Type | C4: Source | E4: Unit | G4: Receptor
A5: Path 1 Name | C5: New Phases | E5: Base AGB: Node 1 | G5: Haz Compliance
A6: Path 1 Process | C6: Declining source | E6: ADRD (1D) + Dilution | G6: Monitoring Borehole
A7: Path 1 Standards | F7: Target Standard | G7: Comp
A8: Path 1 Parameter1 | B8: Q_managed [m3/s] | C8: 0 | D8: Velocity [m/s] | E8: =(Base_AGB Hydrogeology_Velocity) -> 2.5e-07
A9: Path 1 Parameter2 | B9: Managed time [years] | C9: 0 | D9: Dispersivity [m] | E9: =E10/10 -> 0.1
A10: Path 1 Parameter3 | B10: Q_path [m3/s] | C10: =WaterBalance!B9 -> 0.0003689317312 | D10: Travel Distance [m] | E10: =Hydrogeology!C5 -> 1
A11: Path 1 Parameter4 | B11: Q_decline [m3/s] | C11: =C10 -> 0.0003689317312 | D11: Mixing Depth [m]
A12: Path 1 Parameter5 | D12: Mixing Width [m]
A13: Path 1 Parameter6 | D13: Q_Dilute [m3/s] | E13: =Path1_Param5*Path1_Param4*(Base_AGB Hydrogeology_Hydraulic_Conductivity)*(Base_AGB Hydrogeology_Hydraulic_Gradient) -> 0 | F13: Q_dilute [m3/s] | G13: 0
A16: Path 2 | C16: Section 1 | E16: Section 2 | G16: Section 3 | I16: Section 4
A17: Path 2 Type | C17: Source | E17: Unit | G17: Unit | I17: Receptor
A18: Path 2 Name | C18: New Phases | E18: Base AGB: Node 3 | G18: Lower Calc Grit: Node 1 | I18: Nonhaz Compliance
A19: Path 2 Process | C19: Declining source | E19: ADRD (1D) + Dilution | G19: ADRD (1D) + Dilution | I19: Monitoring Borehole
A20: Path 2 Standards | H20: Target Standard | I20: Comp
A21: Path 2 Parameter1 | B21: Q_managed [m3/s] | C21: 0 | D21: Velocity [m/s] | E21: =(Base_AGB Hydrogeology_Velocity) -> 2.5e-07 | F21: Velocity [m/s] | G21: =(Lower_Calc_Grit Hydrogeology_Velocity) -> 2.933333333e-08
A22: Path 2 Parameter2 | B22: Managed time [years] | C22: 0 | D22: Dispersivity [m] | E22: =E23/10 -> 0.1 | F22: Dispersivity [m] | G22: =G23/10 -> 17
A23: Path 2 Parameter3 | B23: Q_path [m3/s] | C23: =WaterBalance!B9 -> 0.0003689317312 | D23: Travel Distance [m] | E23: =Hydrogeology!C5 -> 1 | F23: Travel Distance [m] | G23: 170
A24: Path 2 Parameter4 | B24: Q_decline [m3/s] | C24: =C23 -> 0.0003689317312 | D24: Mixing Depth [m] | F24: Mixing Depth [m] | G24: =Hydrogeology!G5 -> 5.5
A25: Path 2 Parameter5 | D25: Mixing Width [m] | F25: Mixing Width [m] | G25: =New_Phases_Source_width -> 640
A26: Path 2 Parameter6 | D26: Q_Dilute [m3/s] | E26: =Path2_Param5*Path2_Param4*(Base_AGB Hydrogeology_Hydraulic_Conductivity)*(Base_AGB Hydrogeology_Hydraulic_Gradient) -> 0 | F26: Q_Dilute [m3/s] | G26: =Path2_Param5*Path2_Param4*(Lower_Calc_Grit Hydrogeology_Hydraulic_Conductivity)*(Lower_Calc_Grit Hydrogeology_Hydraulic_Gradient) -> 2.47808e-05 | H26: Q_dilute [m3/s] | I26: 0
A29: Path 3 | C29: Section 1 | E29: Section 2 | G29: Section 3 | I29: Section 4
A30: Path 3 Type | C30: Source | E30: Unit | G30: Unit | I30: Receptor
A31: Path 3 Name | C31: New Phases | E31: Side AGB: Node 1 | G31: Highworth Lstn: Node 1 | I31: Nonhaz Compliance
A32: Path 3 Process | C32: Declining source | E32: ADRD (1D) + Dilution | G32: ADRD (1D) + Dilution | I32: Monitoring Borehole
A33: Path 3 Standards | H33: Target Standard | I33: Comp
A34: Path 3 Parameter1 | B34: Q_managed [m3/s] | C34: 0 | D34: Velocity [m/s] | E34: =(Side_AGB Hydrogeology_Velocity) -> 1.1e-09 | F34: Velocity [m/s] | G34: =(Highworth_Lstn Hydrogeology_Velocity) -> 3.85e-08
A35: Path 3 Parameter2 | B35: Managed time [years] | C35: 0 | D35: Dispersivity [m] | E35: =E36/10 -> 0.1 | F35: Dispersivity [m] | G35: =G36/10 -> 17
A36: Path 3 Parameter3 | B36: Q_path [m3/s] | C36: =WaterBalance!B25 -> 2.9568e-05 | D36: Travel Distance [m] | E36: =Hydrogeology!D5 -> 1 | F36: Travel Distance [m] | G36: 170
A37: Path 3 Parameter4 | B37: Q_decline [m3/s] | C37: =C36 -> 2.9568e-05 | D37: Mixing Depth [m] | E37: =Hydrogeology!F5 -> 5 | F37: Mixing Depth [m] | G37: =Hydrogeology!F5 -> 5
A38: Path 3 Parameter5 | D38: Mixing Width [m] | E38: =New_Phases_Source_width -> 640 | F38: Mixing Width [m] | G38: =New_Phases_Source_width -> 640
A39: Path 3 Parameter6 | D39: Q_Dilute [m3/s] | E39: =Path3_Param5*Path3_Param4*(Side_AGB Hydrogeology_Hydraulic_Conductivity)*(Side_AGB Hydrogeology_Hydraulic_Gradient) -> 1.408e-06 | F39: Q_Dilute [m3/s] | G39: =Path3_Param5*Path3_Param4*(Highworth_Lstn Hydrogeology_Hydraulic_Conductivity)*(Highworth_Lstn Hydrogeology_Hydraulic_Gradient) -> 2.9568e-05 | H39: Q_dilute [m3/s] | I39: 0
A42: Path 4 | C42: Section 1 | E42: Section 2 | G42: Section 3 | I42: Section 4
A43: Path 4 Type | C43: Source | E43: Unit | G43: Unit | I43: Receptor
A44: Path 4 Name | C44: New Phases | E44: Side AGB: Node 2 | G44: Highworth Grit: Node 1 | I44: Nonhaz Compliance
A45: Path 4 Process | C45: Declining source | E45: ADRD (1D) + Dilution | G45: ADRD (1D) + Dilution | I45: Monitoring Borehole
A46: Path 4 Standards | H46: Target Standard | I46: Comp
A47: Path 4 Parameter1 | B47: Q_managed [m3/s] | C47: 0 | D47: Velocity [m/s] | E47: =(Side_AGB Hydrogeology_Velocity) -> 1.1e-09 | F47: Velocity [m/s] | G47: =(Highworth_Grit Hydrogeology_Velocity) -> 1.191666667e-07
A48: Path 4 Parameter2 | B48: Managed time [years] | C48: 0 | D48: Dispersivity [m] | E48: =E49/10 -> 0.1 | F48: Dispersivity [m] | G48: =G49/10 -> 17
A49: Path 4 Parameter3 | B49: Q_path [m3/s] | C49: =WaterBalance!B17 -> 3.6608e-05 | D49: Travel Distance [m] | E49: =Hydrogeology!D5 -> 1 | F49: Travel Distance [m] | G49: 170
A50: Path 4 Parameter4 | B50: Q_decline [m3/s] | C50: =C49 -> 3.6608e-05 | D50: Mixing Depth [m] | E50: =Hydrogeology!E5 -> 2 | F50: Mixing Depth [m] | G50: =Hydrogeology!E5 -> 2
A51: Path 4 Parameter5 | D51: Mixing Width [m] | E51: =New_Phases_Source_width -> 640 | F51: Mixing Width [m] | G51: =New_Phases_Source_width -> 640
A52: Path 4 Parameter6 | D52: Q_Dilute [m3/s] | E52: =Path4_Param5*Path4_Param4*(Side_AGB Hydrogeology_Hydraulic_Conductivity)*(Side_AGB Hydrogeology_Hydraulic_Gradient) -> 5.632e-07 | F52: Q_Dilute [m3/s] | G52: =Path4_Param5*Path4_Param4*(Highworth_Grit Hydrogeology_Hydraulic_Conductivity)*(Highworth_Grit Hydrogeology_Hydraulic_Gradient) -> 3.6608e-05 | H52: Q_dilute [m3/s] | I52: 0
A55: Path 5 | C55: Section 1 | E55: Section 2 | G55: Section 3
A56: Path 5 Type | C56: Source | E56: Unit | G56: Receptor
A57: Path 5 Name | C57: Existing Phases | E57: Base AGB: Node 2 | G57: Haz Compliance
A58: Path 5 Process | C58: Declining source | E58: ADRD (1D) + Dilution | G58: Monitoring Borehole
A59: Path 5 Standards | F59: Target Standard | G59: Comp
A60: Path 5 Parameter1 | B60: Q_managed [m3/s] | C60: 0 | D60: Velocity [m/s] | E60: =(Base_AGB Hydrogeology_Velocity) -> 2.5e-07
A61: Path 5 Parameter2 | B61: Managed time [years] | C61: 0 | D61: Dispersivity [m] | E61: =E62/10 -> 0.1
A62: Path 5 Parameter3 | B62: Q_path [m3/s] | C62: =WaterBalance!B10 -> 0.0001066447385 | D62: Travel Distance [m] | E62: =Hydrogeology!C5 -> 1
A63: Path 5 Parameter4 | B63: Q_decline [m3/s] | C63: =C62 -> 0.0001066447385 | D63: Mixing Depth [m]
A64: Path 5 Parameter5 | D64: Mixing Width [m]
A65: Path 5 Parameter6 | D65: Q_Dilute [m3/s] | E65: =Path5_Param5*Path5_Param4*(Base_AGB Hydrogeology_Hydraulic_Conductivity)*(Base_AGB Hydrogeology_Hydraulic_Gradient) -> 0 | F65: Q_dilute [m3/s] | G65: 0
A68: Path 6 | C68: Section 1 | E68: Section 2 | G68: Section 3 | I68: Section 4
A69: Path 6 Type | C69: Source | E69: Unit | G69: Unit | I69: Receptor
A70: Path 6 Name | C70: Existing Phases | E70: Base AGB: Node 4 | G70: Lower Calc Grit: Node 2 | I70: Nonhaz Compliance
A71: Path 6 Process | C71: Declining source | E71: ADRD (1D) + Dilution | G71: ADRD (1D) + Dilution | I71: Monitoring Borehole
A72: Path 6 Standards | H72: Target Standard | I72: Comp
A73: Path 6 Parameter1 | B73: Q_managed [m3/s] | C73: 0 | D73: Velocity [m/s] | E73: =(Base_AGB Hydrogeology_Velocity) -> 2.5e-07 | F73: Velocity [m/s] | G73: =(Lower_Calc_Grit Hydrogeology_Velocity) -> 2.933333333e-08
A74: Path 6 Parameter2 | B74: Managed time [years] | C74: 0 | D74: Dispersivity [m] | E74: =E75/10 -> 0.1 | F74: Dispersivity [m] | G74: =G75/10 -> 95.6
A75: Path 6 Parameter3 | B75: Q_path [m3/s] | C75: =WaterBalance!B10 -> 0.0001066447385 | D75: Travel Distance [m] | E75: =Hydrogeology!C5 -> 1 | F75: Travel Distance [m] | G75: 956
A76: Path 6 Parameter4 | B76: Q_decline [m3/s] | C76: =C75 -> 0.0001066447385 | D76: Mixing Depth [m] | F76: Mixing Depth [m] | G76: =Hydrogeology!G5 -> 5.5
A77: Path 6 Parameter5 | D77: Mixing Width [m] | F77: Mixing Width [m] | G77: =Existing_Phases_Source_width -> 423
A78: Path 6 Parameter6 | D78: Q_Dilute [m3/s] | E78: =Path6_Param5*Path6_Param4*(Base_AGB Hydrogeology_Hydraulic_Conductivity)*(Base_AGB Hydrogeology_Hydraulic_Gradient) -> 0 | F78: Q_Dilute [m3/s] | G78: =Path6_Param5*Path6_Param4*(Lower_Calc_Grit Hydrogeology_Hydraulic_Conductivity)*(Lower_Calc_Grit Hydrogeology_Hydraulic_Gradient) -> 1.637856e-05 | H78: Q_dilute [m3/s] | I78: 0
A81: Path 7 | C81: Section 1 | E81: Section 2 | G81: Section 3 | I81: Section 4
A82: Path 7 Type | C82: Source | E82: Unit | G82: Unit | I82: Receptor
A83: Path 7 Name | C83: Existing Phases | E83: Side AGB: Node 3 | G83: Highworth Lstn: Node 2 | I83: Nonhaz Compliance
A84: Path 7 Process | C84: Declining source | E84: ADRD (1D) + Dilution | G84: ADRD (1D) + Dilution | I84: Monitoring Borehole
A85: Path 7 Standards | H85: Target Standard | I85: Comp
A86: Path 7 Parameter1 | B86: Q_managed [m3/s] | C86: 0 | D86: Velocity [m/s] | E86: =(Side_AGB Hydrogeology_Velocity) -> 1.1e-09 | F86: Velocity [m/s] | G86: =(Highworth_Lstn Hydrogeology_Velocity) -> 3.85e-08
A87: Path 7 Parameter2 | B87: Managed time [years] | C87: 0 | D87: Dispersivity [m] | E87: =E88/10 -> 0.1 | F87: Dispersivity [m] | G87: =G88/10 -> 95.6
A88: Path 7 Parameter3 | B88: Q_path [m3/s] | C88: =WaterBalance!B26 -> 1.95426e-05 | D88: Travel Distance [m] | E88: =Hydrogeology!D5 -> 1 | F88: Travel Distance [m] | G88: 956
A89: Path 7 Parameter4 | B89: Q_decline [m3/s] | C89: =C88 -> 1.95426e-05 | D89: Mixing Depth [m] | E89: =Hydrogeology!F5 -> 5 | F89: Mixing Depth [m] | G89: =Hydrogeology!F5 -> 5
A90: Path 7 Parameter5 | D90: Mixing Width [m] | E90: =Existing_Phases_Source_width -> 423 | F90: Mixing Width [m] | G90: =Existing_Phases_Source_width -> 423
A91: Path 7 Parameter6 | D91: Q_Dilute [m3/s] | E91: =Path7_Param5*Path7_Param4*(Side_AGB Hydrogeology_Hydraulic_Conductivity)*(Side_AGB Hydrogeology_Hydraulic_Gradient) -> 9.306e-07 | F91: Q_Dilute [m3/s] | G91: =Path7_Param5*Path7_Param4*(Highworth_Lstn Hydrogeology_Hydraulic_Conductivity)*(Highworth_Lstn Hydrogeology_Hydraulic_Gradient) -> 1.95426e-05 | H91: Q_dilute [m3/s] | I91: 0
A94: Path 8 | C94: Section 1 | E94: Section 2 | G94: Section 3 | I94: Section 4
A95: Path 8 Type | C95: Source | E95: Unit | G95: Unit | I95: Receptor
A96: Path 8 Name | C96: Existing Phases | E96: Side AGB: Node 4 | G96: Highworth Grit: Node 2 | I96: Nonhaz Compliance
A97: Path 8 Process | C97: Declining source | E97: ADRD (1D) + Dilution | G97: ADRD (1D) + Dilution | I97: Monitoring Borehole
A98: Path 8 Standards | H98: Target Standard | I98: Comp
A99: Path 8 Parameter1 | B99: Q_managed [m3/s] | C99: 0 | D99: Velocity [m/s] | E99: =(Side_AGB Hydrogeology_Velocity) -> 1.1e-09 | F99: Velocity [m/s] | G99: =(Highworth_Grit Hydrogeology_Velocity) -> 1.191666667e-07
A100: Path 8 Parameter2 | B100: Managed time [years] | C100: 0 | D100: Dispersivity [m] | E100: =E101/10 -> 0.1 | F100: Dispersivity [m] | G100: =G101/10 -> 95.6
A101: Path 8 Parameter3 | B101: Q_path [m3/s] | C101: =WaterBalance!B18 -> 2.41956e-05 | D101: Travel Distance [m] | E101: =Hydrogeology!D5 -> 1 | F101: Travel Distance [m] | G101: 956
A102: Path 8 Parameter4 | B102: Q_decline [m3/s] | C102: =C101 -> 2.41956e-05 | D102: Mixing Depth [m] | E102: =Hydrogeology!E5 -> 2 | F102: Mixing Depth [m] | G102: =Hydrogeology!E5 -> 2
A103: Path 8 Parameter5 | D103: Mixing Width [m] | E103: =Existing_Phases_Source_width -> 423 | F103: Mixing Width [m] | G103: =Existing_Phases_Source_width -> 423
A104: Path 8 Parameter6 | D104: Q_Dilute [m3/s] | E104: =Path8_Param5*Path8_Param4*(Side_AGB Hydrogeology_Hydraulic_Conductivity)*(Side_AGB Hydrogeology_Hydraulic_Gradient) -> 3.7224e-07 | F104: Q_Dilute [m3/s] | G104: =Path8_Param5*Path8_Param4*(Highworth_Grit Hydrogeology_Hydraulic_Conductivity)*(Highworth_Grit Hydrogeology_Hydraulic_Gradient) -> 2.41956e-05 | H104: Q_dilute [m3/s] | I104: 0

Sheet Simulation
A1: SIMULATION PARAMETERS
B3: Monte Carlo Analysis with Crystal Ball | J3: Named Constants
C5: Reported Percentile | F5: 95 | K5: s_per_year | L5: =365.25*60*60*24 -> 31557600
C6: Number of simulations | F6: 10000 | K6: s_per_day | L6: =60*60*24 -> 86400
J9: Laplace Transform Solution Parameters
C11: Minimise while running: | K11: sigma | L11: 0
K12: nu | L12: 1
K13: nsum | L13: 16
K14: omega | L14: 11
B17: Reporting Options
C22: Number of timeslices for breakthrough curves | G22: 25
B24: The timeslices specified on the results sheets are saved below.
C25: Path1 timeslices in years
C26: TS_Path1_Spec1 | E26: TS_Path1_Spec2 | G26: TS_Path1_Spec3 | I26: TS_Path1_Spec4 | K26: TS_Path1_Spec5 | M26: TS_Path1_Spec6
C27: 2 | E27: 2 | G27: 2 | I27: 0.1 | K27: 0.01 | M27: 2
C28: 3 | E28: 3 | G28: 3 | I28: 0.5 | K28: 0.05 | M28: 3
C29: 5 | E29: 5 | G29: 5 | I29: 1 | K29: 0.75 | M29: 5
C30: 10 | E30: 10 | G30: 10 | I30: 2 | K30: 0.1 | M30: 10
C31: 50 | E31: 50 | G31: 50 | I31: 3 | K31: 0.5 | M31: 50
C32: 75 | E32: 75 | G32: 75 | I32: 5 | K32: 1 | M32: 75
C33: 100 | E33: 100 | G33: 100 | I33: 10 | K33: 2 | M33: 100
C34: 110 | E34: 110 | G34: 110 | I34: 50 | K34: 5 | M34: 110
C35: 120 | E35: 120 | G35: 120 | I35: 75 | K35: 10 | M35: 120
C36: 130 | E36: 130 | G36: 130 | I36: 100 | K36: 50 | M36: 130
C37: 140 | E37: 140 | G37: 140 | I37: 110 | K37: 100 | M37: 140
C38: 150 | E38: 150 | G38: 150 | I38: 120 | K38: 120 | M38: 150
C39: 160 | E39: 160 | G39: 160 | I39: 130 | K39: 130 | M39: 160
C40: 170 | E40: 170 | G40: 170 | I40: 140 | K40: 140 | M40: 170
C41: 180 | E41: 180 | G41: 180 | I41: 150 | K41: 150 | M41: 180
C42: 190 | E42: 190 | G42: 190 | I42: 160 | K42: 160 | M42: 190
C43: 200 | E43: 200 | G43: 200 | I43: 170 | K43: 170 | M43: 200
C44: 300 | E44: 300 | G44: 300 | I44: 180 | K44: 180 | M44: 300
C45: 400 | E45: 400 | G45: 400 | I45: 190 | K45: 190 | M45: 400
C46: 500 | E46: 500 | G46: 500 | I46: 200 | K46: 200 | M46: 500
C47: 750 | E47: 750 | G47: 750 | I47: 300 | K47: 300 | M47: 750
C48: 1000 | E48: 1000 | G48: 1000 | I48: 400 | K48: 400 | M48: 1000
C49: 1250 | E49: 1250 | G49: 1250 | I49: 500 | K49: 500 | M49: 1250
C50: 1500 | E50: 1500 | G50: 1500 | I50: 1000 | K50: 1000 | M50: 1500
C51: 2000 | E51: 2000 | G51: 2000 | I51: 2000 | K51: 2000 | M51: 2000
C52: Path2 timeslices in years
C53: TS_Path2_Spec1 | E53: TS_Path2_Spec2 | G53: TS_Path2_Spec3 | I53: TS_Path2_Spec4 | K53: TS_Path2_Spec5 | M53: TS_Path2_Spec6
C54: 2 | E54: 2 | G54: 2 | I54: 0.1 | K54: 0.01 | M54: 2
C55: 3 | E55: 3 | G55: 3 | I55: 0.5 | K55: 0.05 | M55: 3
C56: 5 | E56: 5 | G56: 5 | I56: 1 | K56: 0.75 | M56: 5
C57: 10 | E57: 10 | G57: 10 | I57: 2 | K57: 0.1 | M57: 10
C58: 50 | E58: 50 | G58: 50 | I58: 3 | K58: 0.5 | M58: 50
C59: 75 | E59: 75 | G59: 75 | I59: 5 | K59: 1 | M59: 75
C60: 100 | E60: 100 | G60: 100 | I60: 10 | K60: 2 | M60: 100
C61: 110 | E61: 110 | G61: 110 | I61: 50 | K61: 5 | M61: 110
C62: 120 | E62: 120 | G62: 120 | I62: 75 | K62: 10 | M62: 120
C63: 130 | E63: 130 | G63: 130 | I63: 100 | K63: 50 | M63: 130
C64: 140 | E64: 140 | G64: 140 | I64: 110 | K64: 100 | M64: 140
C65: 150 | E65: 150 | G65: 150 | I65: 120 | K65: 120 | M65: 150
C66: 160 | E66: 160 | G66: 160 | I66: 130 | K66: 130 | M66: 160
C67: 170 | E67: 170 | G67: 170 | I67: 140 | K67: 140 | M67: 170
C68: 180 | E68: 180 | G68: 180 | I68: 150 | K68: 150 | M68: 180
C69: 190 | E69: 190 | G69: 190 | I69: 160 | K69: 160 | M69: 190
C70: 200 | E70: 200 | G70: 200 | I70: 170 | K70: 170 | M70: 200
C71: 300 | E71: 300 | G71: 300 | I71: 180 | K71: 180 | M71: 300
C72: 400 | E72: 400 | G72: 400 | I72: 190 | K72: 190 | M72: 400
C73: 500 | E73: 500 | G73: 500 | I73: 200 | K73: 200 | M73: 500
C74: 750 | E74: 750 | G74: 750 | I74: 300 | K74: 300 | M74: 750
C75: 1000 | E75: 1000 | G75: 1000 | I75: 400 | K75: 400 | M75: 1000
C76: 1250 | E76: 1250 | G76: 1250 | I76: 500 | K76: 500 | M76: 1250
C77: 1500 | E77: 1500 | G77: 1500 | I77: 1000 | K77: 1000 | M77: 1500
C78: 2000 | E78: 2000 | G78: 2000 | I78: 2000 | K78: 2000 | M78: 2000
C79: Path3 timeslices in years
C80: TS_Path3_Spec1 | E80: TS_Path3_Spec2 | G80: TS_Path3_Spec3 | I80: TS_Path3_Spec4 | K80: TS_Path3_Spec5 | M80: TS_Path3_Spec6
C81: 2 | E81: 2 | G81: 2 | I81: 0.1 | K81: 0.01 | M81: 2
C82: 3 | E82: 3 | G82: 3 | I82: 0.5 | K82: 0.05 | M82: 3
C83: 5 | E83: 5 | G83: 5 | I83: 1 | K83: 0.75 | M83: 5
C84: 10 | E84: 10 | G84: 10 | I84: 2 | K84: 0.1 | M84: 10
C85: 50 | E85: 50 | G85: 50 | I85: 3 | K85: 0.5 | M85: 50
C86: 75 | E86: 75 | G86: 75 | I86: 5 | K86: 1 | M86: 75
C87: 100 | E87: 100 | G87: 100 | I87: 10 | K87: 2 | M87: 100
C88: 110 | E88: 110 | G88: 110 | I88: 50 | K88: 5 | M88: 110
C89: 120 | E89: 120 | G89: 120 | I89: 75 | K89: 10 | M89: 120
C90: 130 | E90: 130 | G90: 130 | I90: 100 | K90: 50 | M90: 130
C91: 140 | E91: 140 | G91: 140 | I91: 110 | K91: 100 | M91: 140
C92: 150 | E92: 150 | G92: 150 | I92: 120 | K92: 120 | M92: 150
C93: 160 | E93: 160 | G93: 160 | I93: 130 | K93: 130 | M93: 160
C94: 170 | E94: 170 | G94: 170 | I94: 140 | K94: 140 | M94: 170
C95: 180 | E95: 180 | G95: 180 | I95: 150 | K95: 150 | M95: 180
C96: 190 | E96: 190 | G96: 190 | I96: 160 | K96: 160 | M96: 190
C97: 200 | E97: 200 | G97: 200 | I97: 170 | K97: 170 | M97: 200
C98: 300 | E98: 300 | G98: 300 | I98: 180 | K98: 180 | M98: 300
C99: 400 | E99: 400 | G99: 400 | I99: 190 | K99: 190 | M99: 400
C100: 500 | E100: 500 | G100: 500 | I100: 200 | K100: 200 | M100: 500
C101: 750 | E101: 750 | G101: 750 | I101: 300 | K101: 300 | M101: 750
C102: 1000 | E102: 1000 | G102: 1000 | I102: 400 | K102: 400 | M102: 1000
C103: 1250 | E103: 1250 | G103: 1250 | I103: 500 | K103: 500 | M103: 1250
C104: 1500 | E104: 1500 | G104: 1500 | I104: 1000 | K104: 1000 | M104: 1500
C105: 2000 | E105: 2000 | G105: 2000 | I105: 2000 | K105: 2000 | M105: 2000
C106: Path4 timeslices in years
C107: TS_Path4_Spec1 | E107: TS_Path4_Spec2 | G107: TS_Path4_Spec3 | I107: TS_Path4_Spec4 | K107: TS_Path4_Spec5 | M107: TS_Path4_Spec6
C108: 2 | E108: 2 | G108: 2 | I108: 0.1 | K108: 0.01 | M108: 2
C109: 3 | E109: 3 | G109: 3 | I109: 0.5 | K109: 0.05 | M109: 3
C110: 5 | E110: 5 | G110: 5 | I110: 1 | K110: 0.75 | M110: 5
C111: 10 | E111: 10 | G111: 10 | I111: 2 | K111: 0.1 | M111: 10
C112: 50 | E112: 50 | G112: 50 | I112: 3 | K112: 0.5 | M112: 50
C113: 75 | E113: 75 | G113: 75 | I113: 5 | K113: 1 | M113: 75
C114: 100 | E114: 100 | G114: 100 | I114: 10 | K114: 2 | M114: 100
C115: 110 | E115: 110 | G115: 110 | I115: 50 | K115: 5 | M115: 110
C116: 120 | E116: 120 | G116: 120 | I116: 75 | K116: 10 | M116: 120
C117: 130 | E117: 130 | G117: 130 | I117: 100 | K117: 50 | M117: 130
C118: 140 | E118: 140 | G118: 140 | I118: 110 | K118: 100 | M118: 140
C119: 150 | E119: 150 | G119: 150 | I119: 120 | K119: 120 | M119: 150
C120: 160 | E120: 160 | G120: 160 | I120: 130 | K120: 130 | M120: 160
C121: 170 | E121: 170 | G121: 170 | I121: 140 | K121: 140 | M121: 170
C122: 180 | E122: 180 | G122: 180 | I122: 150 | K122: 150 | M122: 180
C123: 190 | E123: 190 | G123: 190 | I123: 160 | K123: 160 | M123: 190
C124: 200 | E124: 200 | G124: 200 | I124: 170 | K124: 170 | M124: 200
C125: 300 | E125: 300 | G125: 300 | I125: 180 | K125: 180 | M125: 300
C126: 400 | E126: 400 | G126: 400 | I126: 190 | K126: 190 | M126: 400
C127: 500 | E127: 500 | G127: 500 | I127: 200 | K127: 200 | M127: 500
C128: 750 | E128: 750 | G128: 750 | I128: 300 | K128: 300 | M128: 750
C129: 1000 | E129: 1000 | G129: 1000 | I129: 400 | K129: 400 | M129: 1000
C130: 1250 | E130: 1250 | G130: 1250 | I130: 500 | K130: 500 | M130: 1250
C131: 1500 | E131: 1500 | G131: 1500 | I131: 1000 | K131: 1000 | M131: 1500
C132: 2000 | E132: 2000 | G132: 2000 | I132: 2000 | K132: 2000 | M132: 2000
C133: Path5 timeslices in years
C134: TS_Path5_Spec1 | E134: TS_Path5_Spec2 | G134: TS_Path5_Spec3 | I134: TS_Path5_Spec4 | K134: TS_Path5_Spec5 | M134: TS_Path5_Spec6
C135: 2 | E135: 2 | G135: 2 | I135: 0.1 | K135: 0.01 | M135: 2
C136: 3 | E136: 3 | G136: 3 | I136: 0.5 | K136: 0.05 | M136: 3
C137: 5 | E137: 5 | G137: 5 | I137: 1 | K137: 0.75 | M137: 5
C138: 10 | E138: 10 | G138: 10 | I138: 2 | K138: 0.1 | M138: 10
C139: 50 | E139: 50 | G139: 50 | I139: 3 | K139: 0.5 | M139: 50
C140: 75 | E140: 75 | G140: 75 | I140: 5 | K140: 1 | M140: 75
C141: 100 | E141: 100 | G141: 100 | I141: 10 | K141: 2 | M141: 100
C142: 110 | E142: 110 | G142: 110 | I142: 50 | K142: 5 | M142: 110
C143: 120 | E143: 120 | G143: 120 | I143: 75 | K143: 10 | M143: 120
C144: 130 | E144: 130 | G144: 130 | I144: 100 | K144: 50 | M144: 130
C145: 140 | E145: 140 | G145: 140 | I145: 110 | K145: 100 | M145: 140
C146: 150 | E146: 150 | G146: 150 | I146: 120 | K146: 120 | M146: 150
C147: 160 | E147: 160 | G147: 160 | I147: 130 | K147: 130 | M147: 160
C148: 170 | E148: 170 | G148: 170 | I148: 140 | K148: 140 | M148: 170
C149: 180 | E149: 180 | G149: 180 | I149: 150 | K149: 150 | M149: 180
C150: 190 | E150: 190 | G150: 190 | I150: 160 | K150: 160 | M150: 190
C151: 200 | E151: 200 | G151: 200 | I151: 170 | K151: 170 | M151: 200
C152: 300 | E152: 300 | G152: 300 | I152: 180 | K152: 180 | M152: 300
C153: 400 | E153: 400 | G153: 400 | I153: 190 | K153: 190 | M153: 400
C154: 500 | E154: 500 | G154: 500 | I154: 200 | K154: 200 | M154: 500
C155: 750 | E155: 750 | G155: 750 | I155: 300 | K155: 300 | M155: 750
C156: 1000 | E156: 1000 | G156: 1000 | I156: 400 | K156: 400 | M156: 1000
C157: 1250 | E157: 1250 | G157: 1250 | I157: 500 | K157: 500 | M157: 1250
C158: 1500 | E158: 1500 | G158: 1500 | I158: 1000 | K158: 1000 | M158: 1500
C159: 2000 | E159: 2000 | G159: 2000 | I159: 2000 | K159: 2000 | M159: 2000
C160: Path6 timeslices in years
C161: TS_Path6_Spec1 | E161: TS_Path6_Spec2 | G161: TS_Path6_Spec3 | I161: TS_Path6_Spec4 | K161: TS_Path6_Spec5 | M161: TS_Path6_Spec6
C162: 2 | E162: 2 | G162: 2 | I162: 0.1 | K162: 0.01 | M162: 2
C163: 3 | E163: 3 | G163: 3 | I163: 0.5 | K163: 0.05 | M163: 3
C164: 5 | E164: 5 | G164: 5 | I164: 1 | K164: 0.75 | M164: 5
C165: 10 | E165: 10 | G165: 10 | I165: 2 | K165: 0.1 | M165: 10
C166: 50 | E166: 50 | G166: 50 | I166: 3 | K166: 0.5 | M166: 50
C167: 75 | E167: 75 | G167: 75 | I167: 5 | K167: 1 | M167: 75
C168: 100 | E168: 100 | G168: 100 | I168: 10 | K168: 2 | M168: 100
C169: 110 | E169: 110 | G169: 110 | I169: 50 | K169: 5 | M169: 110
C170: 120 | E170: 120 | G170: 120 | I170: 75 | K170: 10 | M170: 120
C171: 130 | E171: 130 | G171: 130 | I171: 100 | K171: 50 | M171: 130
C172: 140 | E172: 140 | G172: 140 | I172: 110 | K172: 100 | M172: 140
C173: 150 | E173: 150 | G173: 150 | I173: 120 | K173: 120 | M173: 150
C174: 160 | E174: 160 | G174: 160 | I174: 130 | K174: 130 | M174: 160
C175: 170 | E175: 170 | G175: 170 | I175: 140 | K175: 140 | M175: 170
C176: 180 | E176: 180 | G176: 180 | I176: 150 | K176: 150 | M176: 180
C177: 190 | E177: 190 | G177: 190 | I177: 160 | K177: 160 | M177: 190
C178: 200 | E178: 200 | G178: 200 | I178: 170 | K178: 170 | M178: 200
C179: 300 | E179: 300 | G179: 300 | I179: 180 | K179: 180 | M179: 300
C180: 400 | E180: 400 | G180: 400 | I180: 190 | K180: 190 | M180: 400
C181: 500 | E181: 500 | G181: 500 | I181: 200 | K181: 200 | M181: 500
C182: 750 | E182: 750 | G182: 750 | I182: 300 | K182: 300 | M182: 750
C183: 1000 | E183: 1000 | G183: 1000 | I183: 400 | K183: 400 | M183: 1000
C184: 1250 | E184: 1250 | G184: 1250 | I184: 500 | K184: 500 | M184: 1250
C185: 1500 | E185: 1500 | G185: 1500 | I185: 1000 | K185: 1000 | M185: 1500
C186: 2000 | E186: 2000 | G186: 2000 | I186: 2000 | K186: 2000 | M186: 2000
C187: Path7 timeslices in years
C188: TS_Path7_Spec1 | E188: TS_Path7_Spec2 | G188: TS_Path7_Spec3 | I188: TS_Path7_Spec4 | K188: TS_Path7_Spec5 | M188: TS_Path7_Spec6
C189: 2 | E189: 2 | G189: 2 | I189: 0.1 | K189: 0.01 | M189: 2
C190: 3 | E190: 3 | G190: 3 | I190: 0.5 | K190: 0.05 | M190: 3
C191: 5 | E191: 5 | G191: 5 | I191: 1 | K191: 0.75 | M191: 5
C192: 10 | E192: 10 | G192: 10 | I192: 2 | K192: 0.1 | M192: 10
C193: 50 | E193: 50 | G193: 50 | I193: 3 | K193: 0.5 | M193: 50
C194: 75 | E194: 75 | G194: 75 | I194: 5 | K194: 1 | M194: 75
C195: 100 | E195: 100 | G195: 100 | I195: 10 | K195: 2 | M195: 100
C196: 110 | E196: 110 | G196: 110 | I196: 50 | K196: 5 | M196: 110
C197: 120 | E197: 120 | G197: 120 | I197: 75 | K197: 10 | M197: 120
C198: 130 | E198: 130 | G198: 130 | I198: 100 | K198: 50 | M198: 130
C199: 140 | E199: 140 | G199: 140 | I199: 110 | K199: 100 | M199: 140
C200: 150 | E200: 150 | G200: 150 | I200: 120 | K200: 120 | M200: 150
C201: 160 | E201: 160 | G201: 160 | I201: 130 | K201: 130 | M201: 160
C202: 170 | E202: 170 | G202: 170 | I202: 140 | K202: 140 | M202: 170
C203: 180 | E203: 180 | G203: 180 | I203: 150 | K203: 150 | M203: 180
C204: 190 | E204: 190 | G204: 190 | I204: 160 | K204: 160 | M204: 190
C205: 200 | E205: 200 | G205: 200 | I205: 170 | K205: 170 | M205: 200
C206: 300 | E206: 300 | G206: 300 | I206: 180 | K206: 180 | M206: 300
C207: 400 | E207: 400 | G207: 400 | I207: 190 | K207: 190 | M207: 400
C208: 500 | E208: 500 | G208: 500 | I208: 200 | K208: 200 | M208: 500
C209: 750 | E209: 750 | G209: 750 | I209: 300 | K209: 300 | M209: 750
C210: 1000 | E210: 1000 | G210: 1000 | I210: 400 | K210: 400 | M210: 1000
C211: 1250 | E211: 1250 | G211: 1250 | I211: 500 | K211: 500 | M211: 1250
C212: 1500 | E212: 1500 | G212: 1500 | I212: 1000 | K212: 1000 | M212: 1500
... 28 more rows

Sheet Audit
A1: AUDIT TRAIL SHEET
A3: Author | B3: Date | C3: Time | E3: Cell Address | G3: New Value | H3: Old Value | I3: Cell Name
A6: Saved 20/05/2025: 10:34:40 Level Number: 5
A8: BREAKTHROUGH RESULTS
A10: Advanced
A11: Pollutant Linkage: New Phases, Base AGB, Haz Compliance | O11: Pollutant Linkage: New Phases, Base AGB, Lower Calc Grit, Nonhaz Compliance | AC11: Pollutant Linkage: New Phases, Side AGB, Highworth Lstn, Nonhaz Compliance | AQ11: Pollutant Linkage: New Phases, Side AGB, Highworth Grit, Nonhaz Compliance | BE11: Pollutant Linkage: Existing Phases, Base AGB, Haz Compliance | BS11: Pollutant Linkage: Existing Phases, Base AGB, Lower Calc Grit, Nonhaz Compliance | CG11: Pollutant Linkage: Existing Phases, Side AGB, Highworth Lstn, Nonhaz Compliance | CU11: Pollutant Linkage: Existing Phases, Side AGB, Highworth Grit, Nonhaz Compliance
A12: Concentrations in mg/L in Haz Compliance | O12: Concentrations in mg/L in Nonhaz Compliance | AC12: Concentrations in mg/L in Nonhaz Compliance | AQ12: Concentrations in mg/L in Nonhaz Compliance | BE12: Concentrations in mg/L in Haz Compliance | BS12: Concentrations in mg/L in Nonhaz Compliance | CG12: Concentrations in mg/L in Nonhaz Compliance | CU12: Concentrations in mg/L in Nonhaz Compliance
A14: Compared with Comp target concentration in mg/L | O14: Compared with Comp target concentration in mg/L | AC14: Compared with Comp target concentration in mg/L | AQ14: Compared with Comp target concentration in mg/L | BE14: Compared with Comp target concentration in mg/L | BS14: Compared with Comp target concentration in mg/L | CG14: Compared with Comp target concentration in mg/L | CU14: Compared with Comp target concentration in mg/L
B15: 0.1 | D15: 0.5 | F15: 0.05 | H15: 250 | J15: 0.004 | L15: 0.0001 | P15: 0.1 | R15: 0.5 | T15: 0.05 | V15: 250 | X15: 0.004 | Z15: 0.0001 | AD15: 0.1 | AF15: 0.5 | AH15: 0.05 | AJ15: 250 | AL15: 0.004 | AN15: 0.0001 | AR15: 0.1 | AT15: 0.5 | AV15: 0.05 | AX15: 250 | AZ15: 0.004 | BB15: 0.0001 | BF15: 0.1 | BH15: 0.5 | BJ15: 0.05 | BL15: 250 | BN15: 0.004 | BP15: 0.0001 | BT15: 0.1 | BV15: 0.5 | BX15: 0.05 | BZ15: 250 | CB15: 0.004 | CD15: 0.0001 | CH15: 0.1 | CJ15: 0.5 | CL15: 0.05 | CN15: 250 | CP15: 0.004 | CR15: 0.0001 | CV15: 0.1 | CX15: 0.5 | CZ15: 0.05 | DB15: 250 | DD15: 0.004 | DF15: 0.0001
B17: Species1 | D17: Species2 | F17: Species3 | H17: Species4 | J17: Species5 | L17: Species6 | P17: Species1 | R17: Species2 | T17: Species3 | V17: Species4 | X17: Species5 | Z17: Species6 | AD17: Species1 | AF17: Species2 | AH17: Species3 | AJ17: Species4 | AL17: Species5 | AN17: Species6 | AR17: Species1 | AT17: Species2 | AV17: Species3 | AX17: Species4 | AZ17: Species5 | BB17: Species6 | BF17: Species1 | BH17: Species2 | BJ17: Species3 | BL17: Species4 | BN17: Species5 | BP17: Species6 | BT17: Species1 | BV17: Species2 | BX17: Species3 | BZ17: Species4 | CB17: Species5 | CD17: Species6 | CH17: Species1 | CJ17: Species2 | CL17: Species3 | CN17: Species4 | CP17: Species5 | CR17: Species6 | CV17: Species1 | CX17: Species2 | CZ17: Species3 | DB17: Species4 | DD17: Species5 | DF17: Species6
A18: Time(years) | B18: Lead | C18: Time(years) | D18: AmmN | E18: Time(years) | F18: Nickel | G18: Time(years) | H18: Chloride | I18: Time(years) | J18: Toluene | K18: Time(years) | L18: Cadmium | O18: Time(years) | P18: Lead | Q18: Time(years) | R18: AmmN | S18: Time(years) | T18: Nickel | U18: Time(years) | V18: Chloride | W18: Time(years) | X18: Toluene | Y18: Time(years) | Z18: Cadmium | AC18: Time(years) | AD18: Lead | AE18: Time(years) | AF18: AmmN | AG18: Time(years) | AH18: Nickel | AI18: Time(years) | AJ18: Chloride | AK18: Time(years) | AL18: Toluene | AM18: Time(years) | AN18: Cadmium | AQ18: Time(years) | AR18: Lead | AS18: Time(years) | AT18: AmmN | AU18: Time(years) | AV18: Nickel | AW18: Time(years) | AX18: Chloride | AY18: Time(years) | AZ18: Toluene | BA18: Time(years) | BB18: Cadmium | BE18: Time(years) | BF18: Lead | BG18: Time(years) | BH18: AmmN | BI18: Time(years) | BJ18: Nickel | BK18: Time(years) | BL18: Chloride | BM18: Time(years) | BN18: Toluene | BO18: Time(years) | BP18: Cadmium | BS18: Time(years) | BT18: Lead | BU18: Time(years) | BV18: AmmN | BW18: Time(years) | BX18: Nickel | BY18: Time(years) | BZ18: Chloride | CA18: Time(years) | CB18: Toluene | CC18: Time(years) | CD18: Cadmium | CG18: Time(years) | CH18: Lead | CI18: Time(years) | CJ18: AmmN | CK18: Time(years) | CL18: Nickel | CM18: Time(years) | CN18: Chloride | CO18: Time(years) | CP18: Toluene | CQ18: Time(years) | CR18: Cadmium | CU18: Time(years) | CV18: Lead | CW18: Time(years) | CX18: AmmN | CY18: Time(years) | CZ18: Nickel | DA18: Time(years) | DB18: Chloride | DC18: Time(years) | DD18: Toluene | DE18: Time(years) | DF18: Cadmium
A19: 0.1 | B19: 0 | C19: 0.1 | D19: 0.001511185047 | E19: 0.1 | F19: 1.107772733e-38 | G19: 0.1 | H19: 29.71319599 | I19: 0.1 | J19: 0.2288949391 | K19: 0.1 | L19: 9.236724572e-11 | O19: 0.1 | P19: 0 | Q19: 0.1 | R19: 0 | S19: 0.1 | T19: 0 | U19: 0.1 | V19: 0 | W19: 0.1 | X19: 0 | Y19: 0.1 | Z19: 0 | AC19: 0.1 | AD19: 0 | AE19: 0.1 | AF19: 0 | AG19: 0.1 | AH19: 0 | AI19: 0.1 | AJ19: 0 | AK19: 0.1 | AL19: 0 | AM19: 0.1 | AN19: 0 | AQ19: 0.1 | AR19: 0 | AS19: 0.1 | AT19: 0 | AU19: 0.1 | AV19: 0 | AW19: 0.1 | AX19: 0 | AY19: 0.1 | AZ19: 0 | BA19: 0.1 | BB19: 0 | BE19: 0.1 | BF19: 0 | BG19: 0.1 | BH19: 0.0005636720226 | BI19: 0.1 | BJ19: 9.042194935e-40 | BK19: 0.1 | BL19: 14.25861993 | BM19: 0.1 | BN19: 0.0007629831305 | BO19: 0.1 | BP19: 1.043749877e-10 | BS19: 0.1 | BT19: 0 | BU19: 0.1 | BV19: 0 | BW19: 0.1 | BX19: 0 | BY19: 0.1 | BZ19: 0 | CA19: 0.1 | CB19: 0 | CC19: 0.1 | CD19: 0 | CG19: 0.1 | CH19: 0 | CI19: 0.1 | CJ19: 0 | CK19: 0.1 | CL19: 0 | CM19: 0.1 | CN19: 0 | CO19: 0.1 | CP19: 0 | CQ19: 0.1 | CR19: 0 | CU19: 0.1 | CV19: 0 | CW19: 0.1 | CX19: 0 | CY19: 0.1 | CZ19: 0 | DA19: 0.1 | DB19: 0 | DC19: 0.1 | DD19: 0 | DE19: 0.1 | DF19: 0
A20: 0.5 | B20: 0 | C20: 0.5 | D20: 0.4301840729 | E20: 0.5 | F20: 1.081346618e-19 | G20: 0.5 | H20: 79.5945387 | I20: 0.5 | J20: 0.3753702312 | K20: 0.5 | L20: 0.0007348630814 | O20: 0.5 | P20: 0 | Q20: 0.5 | R20: 0 | S20: 0.5 | T20: 0 | U20: 0.5 | V20: 0 | W20: 0.5 | X20: 0 | Y20: 0.5 | Z20: 0 | AC20: 0.5 | AD20: 0 | AE20: 0.5 | AF20: 0 | AG20: 0.5 | AH20: 0 | AI20: 0.5 | AJ20: 0 | AK20: 0.5 | AL20: 1.953114762e-28 | AM20: 0.5 | AN20: 0 | AQ20: 0.5 | AR20: 0 | AS20: 0.5 | AT20: 0 | AU20: 0.5 | AV20: 0 | AW20: 0.5 | AX20: 0 | AY20: 0.5 | AZ20: 2.482626602e-25 | BA20: 0.5 | BB20: 0 | BE20: 0.5 | BF20: 0 | BG20: 0.5 | BH20: 0.1604586592 | BI20: 0.5 | BJ20: 8.82649177e-21 | BK20: 0.5 | BL20: 38.19542926 | BM20: 0.5 | BN20: 0.001251234104 | BO20: 0.5 | BP20: 0.000830395282 | BS20: 0.5 | BT20: 0 | BU20: 0.5 | BV20: 0 | BW20: 0.5 | BX20: 0 | BY20: 0.5 | BZ20: 0 | CA20: 0.5 | CB20: 0 | CC20: 0.5 | CD20: 0 | CG20: 0.5 | CH20: 0 | CI20: 0.5 | CJ20: 0 | CK20: 0.5 | CL20: 0 | CM20: 0.5 | CN20: 0 | CO20: 0.5 | CP20: 0 | CQ20: 0.5 | CR20: 0 | CU20: 0.5 | CV20: 0 | CW20: 0.5 | CX20: 0 | CY20: 0.5 | CZ20: 0 | DA20: 0.5 | DB20: 0 | DC20: 0.5 | DD20: 0 | DE20: 0.5 | DF20: 0
A21: 1 | B21: 0 | C21: 1 | D21: 0.4942678484 | E21: 1 | F21: 2.292946852e-10 | G21: 1 | H21: 79.08711285 | I21: 1 | J21: 0.3972899956 | K21: 1 | L21: 0.003010662006 | O21: 1 | P21: 0 | Q21: 1 | R21: 0 | S21: 1 | T21: 0 | U21: 1 | V21: 0 | W21: 1 | X21: 1.376369287e-21 | Y21: 1 | Z21: 0 | AC21: 1 | AD21: 0 | AE21: 1 | AF21: 0 | AG21: 1 | AH21: 0 | AI21: 1 | AJ21: 0 | AK21: 1 | AL21: 3.904452359e-22 | AM21: 1 | AN21: 0 | AQ21: 1 | AR21: 0 | AS21: 1 | AT21: 0 | AU21: 1 | AV21: 0 | AW21: 1 | AX21: 0 | AY21: 1 | AZ21: 0 | BA21: 1 | BB21: 0 | BE21: 1 | BF21: 0 | BG21: 1 | BH21: 0.1843619075 | BI21: 1 | BJ21: 1.871617868e-11 | BK21: 1 | BL21: 37.95192828 | BM21: 1 | BN21: 0.001324299985 | BO21: 1 | BP21: 0.003402048067 | BS21: 1 | BT21: 0 | BU21: 1 | BV21: 0 | BW21: 1 | BX21: 0 | BY21: 1 | BZ21: 0 | CA21: 1 | CB21: 0 | CC21: 1 | CD21: 0 | CG21: 1 | CH21: 0 | CI21: 1 | CJ21: 0 | CK21: 1 | CL21: 0 | CM21: 1 | CN21: 0 | CO21: 1 | CP21: 0 | CQ21: 1 | CR21: 0 | CU21: 1 | CV21: 0 | CW21: 1 | CX21: 0 | CY21: 1 | CZ21: 0 | DA21: 1 | DB21: 0 | DC21: 1 | DD21: 0 | DE21: 1 | DF21: 0
A22: 2 | B22: 0 | C22: 2 | D22: 0.4892141548 | E22: 2 | F22: 1.16862635e-05 | G22: 2 | H22: 78.05448332 | I22: 2 | J22: 0.4006721243 | K22: 2 | L22: 0.003898831419 | O22: 2 | P22: 0 | Q22: 2 | R22: 0 | S22: 2 | T22: 0 | U22: 2 | V22: 1.586359823e-37 | W22: 2 | X22: 8.215389953e-14 | Y22: 2 | Z22: 0 | AC22: 2 | AD22: 0 | AE22: 2 | AF22: 0 | AG22: 2 | AH22: 0 | AI22: 2 | AJ22: 0 | AK22: 2 | AL22: 2.900710776e-14 | AM22: 2 | AN22: 0 | AQ22: 2 | AR22: 0 | AS22: 2 | AT22: 0 | AU22: 2 | AV22: 0 | AW22: 2 | AX22: 6.089890482e-27 | AY22: 2 | AZ22: 6.306445369e-12 | BA22: 2 | BB22: 0 | BE22: 2 | BF22: 0 | BG22: 2 | BH22: 0.1824768797 | BI22: 2 | BJ22: 9.53891258e-07 | BK22: 2 | BL22: 37.45639518 | BM22: 2 | BN22: 0.001335573748 | BO22: 2 | BP22: 0.004405679504 | BS22: 2 | BT22: 0 | BU22: 2 | BV22: 0 | BW22: 2 | BX22: 0 | BY22: 2 | BZ22: 0 | CA22: 2 | CB22: 0 | CC22: 2 | CD22: 0 | CG22: 2 | CH22: 0 | CI22: 2 | CJ22: 0 | CK22: 2 | CL22: 0 | CM22: 2 | CN22: 0 | CO22: 2 | CP22: 0 | CQ22: 2 | CR22: 0 | CU22: 2 | CV22: 0 | CW22: 2 | CX22: 0 | CY22: 2 | CZ22: 0 | DA22: 2 | DB22: 0 | DC22: 2 | DD22: 0 | DE22: 2 | DF22: 0
A23: 3 | B23: 0 | C23: 3 | D23: 0.4828271099 | E23: 3 | F23: 0.0004007439228 | G23: 3 | H23: 77.03533626 | I23: 3 | J23: 0.39671849 | K23: 3 | L23: 0.003885223653 | O23: 3 | P23: 0 | Q23: 3 | R23: 0 | S23: 3 | T23: 0 | U23: 3 | V23: 2.447437389e-28 | W23: 3 | X23: 1.94555792e-10 | Y23: 3 | Z23: 0 | AC23: 3 | AD23: 0 | AE23: 3 | AF23: 0 | AG23: 3 | AH23: 0 | AI23: 3 | AJ23: 2.362000497e-34 | AK23: 3 | AL23: 7.992377395e-11 | AM23: 3 | AN23: 0 | AQ23: 3 | AR23: 0 | AS23: 3 | AT23: 0 | AU23: 3 | AV23: 0 | AW23: 3 | AX23: 9.510598155e-23 | AY23: 3 | AZ23: 3.808675484e-09 | BA23: 3 | BB23: 0 | BE23: 3 | BF23: 0 | BG23: 3 | BH23: 0.180094512 | BI23: 3 | BJ23: 3.271072269e-05 | BK23: 3 | BL23: 36.96733199 | BM23: 3 | BN23: 0.001322394967 | BO23: 3 | BP23: 0.004390302727 | BS23: 3 | BT23: 0 | BU23: 3 | BV23: 0 | BW23: 3 | BX23: 0 | BY23: 3 | BZ23: 0 | CA23: 3 | CB23: 0 | CC23: 3 | CD23: 0 | CG23: 3 | CH23: 0 | CI23: 3 | CJ23: 0 | CK23: 3 | CL23: 0 | CM23: 3 | CN23: 0 | CO23: 3 | CP23: 0 | CQ23: 3 | CR23: 0 | CU23: 3 | CV23: 0 | CW23: 3 | CX23: 0 | CY23: 3 | CZ23: 0 | DA23: 3 | DB23: 0 | DC23: 3 | DD23: 3.109103235e-31 | DE23: 3 | DF23: 0
A24: 5 | B24: 0 | C24: 5 | D24: 0.4703010048 | E24: 5 | F24: 0.005721335972 | G24: 5 | H24: 75.03678899 | I24: 5 | J24: 0.3867433715 | K24: 5 | L24: 0.003785782942 | O24: 5 | P24: 0 | Q24: 5 | R24: 0 | S24: 5 | T24: 0 | U24: 5 | V24: 0 | W24: 5 | X24: 3.778564563e-08 | Y24: 5 | Z24: 0 | AC24: 5 | AD24: 0 | AE24: 5 | AF24: 0 | AG24: 5 | AH24: 0 | AI24: 5 | AJ24: 0 | AK24: 5 | AL24: 1.751301734e-08 | AM24: 5 | AN24: 0 | AQ24: 5 | AR24: 0 | AS24: 5 | AT24: 1.204850583e-34 | AU24: 5 | AV24: 0 | AW24: 5 | AX24: 5.124430106e-17 | AY24: 5 | AZ24: 2.583378229e-07 | BA24: 5 | BB24: 0 | BE24: 5 | BF24: 0 | BG24: 5 | BH24: 0.1754222748 | BI24: 5 | BJ24: 0.0004670040487 | BK24: 5 | BL24: 36.00827912 | BM24: 5 | BN24: 0.001289144572 | BO24: 5 | BP24: 0.004277934725 | BS24: 5 | BT24: 0 | BU24: 5 | BV24: 0 | BW24: 5 | BX24: 0 | BY24: 5 | BZ24: 0 | CA24: 5 | CB24: 3.476889578e-32 | CC24: 5 | CD24: 0 | CG24: 5 | CH24: 0 | CI24: 5 | CJ24: 0 | CK24: 5 | CL24: 0 | CM24: 5 | CN24: 0 | CO24: 5 | CP24: 4.625440639e-32 | CQ24: 5 | CR24: 0 | CU24: 5 | CV24: 0 | CW24: 5 | CX24: 0 | CY24: 5 | CZ24: 0 | DA24: 5 | DB24: 0 | DC24: 5 | DD24: 0 | DE24: 5 | DF24: 0
A25: 10 | B25: 3.494101947e-38 | C25: 10 | D25: 0.4403890929 | E25: 10 | F25: 0.02699824463 | G25: 10 | H25: 70.26432666 | I25: 10 | J25: 0.3621659235 | K25: 10 | L25: 0.003545002731 | O25: 10 | P25: 0 | Q25: 10 | R25: 3.32401076e-39 | S25: 10 | T25: 0 | U25: 10 | V25: 2.975379807e-16 | W25: 10 | X25: 2.730240483e-07 | Y25: 10 | Z25: 0 | AC25: 10 | AD25: 0 | AE25: 10 | AF25: 0 | AG25: 10 | AH25: 0 | AI25: 10 | AJ25: 1.351452827e-17 | AK25: 10 | AL25: 1.395318026e-07 | AM25: 10 | AN25: 0 | AQ25: 10 | AR25: 0 | AS25: 10 | AT25: 0 | AU25: 10 | AV25: 0 | AW25: 10 | AX25: 6.500585687e-10 | AY25: 10 | AZ25: 1.098913095e-06 | BA25: 10 | BB25: 0 | BE25: 10 | BF25: 5.590563115e-39 | BG25: 10 | BH25: 0.1642651316 | BI25: 10 | BJ25: 0.002203731718 | BK25: 10 | BL25: 33.71809375 | BM25: 10 | BN25: 0.001207219745 | BO25: 10 | BP25: 0.004005853086 | BS25: 10 | BT25: 0 | BU25: 10 | BV25: 0 | BW25: 10 | BX25: 0 | BY25: 10 | BZ25: 4.743083123e-28 | CA25: 10 | CB25: 0 | CC25: 10 | CD25: 0 | CG25: 10 | CH25: 0 | CI25: 10 | CJ25: 0 | CK25: 10 | CL25: 0 | CM25: 10 | CN25: 9.829346873e-29 | CO25: 10 | CP25: 0 | CQ25: 10 | CR25: 0 | CU25: 10 | CV25: 0 | CW25: 10 | CX25: 1.308616483e-40 | CY25: 10 | CZ25: 0 | DA25: 10 | DB25: 0 | DC25: 10 | DD25: 8.636623643e-21 | DE25: 10 | DF25: 0
A26: 50 | B26: 9.339986607e-20 | C26: 50 | D26: 0.2603285133 | E26: 50 | F26: 0.02327060788 | G26: 50 | H26: 41.53556035 | I26: 50 | J26: 0.2140882433 | K26: 50 | L26: 0.002095568 | O26: 50 | P26: 0 | Q26: 50 | R26: 1.02827518e-18 | S26: 50 | T26: 0 | U26: 50 | V26: 0.1007119723 | W26: 50 | X26: 1.724160745e-07 | Y26: 50 | Z26: 0 | AC26: 50 | AD26: 0 | AE26: 50 | AF26: 0 | AG26: 50 | AH26: 0 | AI26: 50 | AJ26: 0.01363332047 | AK26: 50 | AL26: 1.44764768e-07 | AM26: 50 | AN26: 3.654171329e-32 | AQ26: 50 | AR26: 0 | AS26: 50 | AT26: 6.125043785e-08 | AU26: 50 | AV26: 0 | AW26: 50 | AX26: 6.526534015 | AY26: 50 | AZ26: 1.106880314e-06 | BA26: 50 | BB26: 9.322915139e-22 | BE26: 50 | BF26: 1.494397857e-20 | BG26: 50 | BH26: 0.09710253547 | BI26: 50 | BJ26: 0.001899463368 | BK26: 50 | BL26: 19.93187702 | BM26: 50 | BN26: 0.0007136274777 | BO26: 50 | BP26: 0.00236799184 | BS26: 50 | BT26: 0 | BU26: 50 | BV26: 6.833832574e-31 | BW26: 50 | BX26: 0 | BY26: 50 | BZ26: 5.051662131e-11 | CA26: 50 | CB26: 2.857999398e-22 | CC26: 50 | CD26: 0 | CG26: 50 | CH26: 0 | CI26: 50 | CJ26: 4.128532959e-30 | CK26: 50 | CL26: 0 | CM26: 50 | CN26: 2.254937395e-11 | CO26: 50 | CP26: 3.82391641e-22 | CQ26: 50 | CR26: 0 | CU26: 50 | CV26: 0 | CW26: 50 | CX26: 1.286704106e-20 | CY26: 50 | CZ26: 0 | DA26: 50 | DB26: 0.004396638102 | DC26: 50 | DD26: 5.04855954e-18 | DE26: 50 | DF26: 1.721304805e-31
A27: 75 | B27: 2.697089505e-13 | C27: 75 | D27: 0.1874239034 | E27: 75 | F27: 0.01675375136 | G27: 75 | H27: 29.90358895 | I27: 75 | J27: 0.1541331517 | K27: 75 | L27: 0.001508707322 | O27: 75 | P27: 0 | Q27: 75 | R27: 8.966165346e-14 | S27: 75 | T27: 0 | U27: 75 | V27: 1.862608386 | W27: 75 | X27: 1.241312118e-07 | Y27: 75 | Z27: 0 | AC27: 75 | AD27: 0 | AE27: 75 | AF27: 1.093788766e-14 | AG27: 75 | AH27: 0 | AI27: 75 | AJ27: 0.6974326608 | AK27: 75 | AL27: 1.421207156e-07 | AM27: 75 | AN27: 1.206820367e-26 | AQ27: 75 | AR27: 0 | AS27: 75 | AT27: 3.081617346e-05 | AU27: 75 | AV27: 0 | AW27: 75 | AX27: 22.86701818 | AY27: 75 | AZ27: 1.088982689e-06 | BA27: 75 | BB27: 9.841492178e-19 | BE27: 75 | BF27: 4.315343207e-14 | BG27: 75 | BH27: 0.06990911598 | BI27: 75 | BJ27: 0.001367524955 | BK27: 75 | BL27: 14.34998475 | BM27: 75 | BN27: 0.0005137771724 | BO27: 75 | BP27: 0.001704839274 | BS27: 75 | BT27: 0 | BU27: 75 | BV27: 1.676576848e-25 | BW27: 75 | BX27: 0 | BY27: 75 | BZ27: 1.133053828e-06 | CA27: 75 | CB27: 2.057620959e-22 | CC27: 75 | CD27: 0 | CG27: 75 | CH27: 0 | CI27: 75 | CJ27: 0 | CK27: 75 | CL27: 0 | CM27: 75 | CN27: 1.056784981e-06 | CO27: 75 | CP27: 3.75321475e-22 | CQ27: 75 | CR27: 0 | CU27: 75 | CV27: 0 | CW27: 75 | CX27: 1.092729916e-14 | CY27: 75 | CZ27: 0 | DA27: 75 | DB27: 0.2630537649 | DC27: 75 | DD27: 4.96592112e-18 | DE27: 75 | DF27: 0
A28: 100 | B28: 3.448489198e-10 | C28: 100 | D28: 0.1349361201 | E28: 100 | F28: 0.01206188847 | G28: 100 | H28: 21.52913367 | I28: 100 | J28: 0.1109683935 | K28: 100 | L28: 0.001086196097 | O28: 100 | P28: 0 | Q28: 100 | R28: 2.725544878e-10 | S28: 100 | T28: 0 | U28: 100 | V28: 6.986141306 | W28: 100 | X28: 8.936845245e-08 | Y28: 100 | Z28: 7.27351336e-25 | AC28: 100 | AD28: 0 | AE28: 100 | AF28: 5.920036617e-11 | AG28: 100 | AH28: 0 | AI28: 100 | AJ28: 4.08992853 | AK28: 100 | AL28: 1.395249555e-07 | AM28: 100 | AN28: 6.64662425e-24 | AQ28: 100 | AR28: 0 | AS28: 100 | AT28: 0.0006476152192 | AU28: 100 | AV28: 0 | AW28: 100 | AX28: 33.08228207 | AY28: 100 | AZ28: 1.071374458e-06 | BA28: 100 | BB28: 2.437594132e-14 | BE28: 100 | BF28: 5.517582717e-11 | BG28: 100 | BH28: 0.05033117281 | BI28: 100 | BJ28: 0.0009845516467 | BK28: 100 | BL28: 10.33129302 | BM28: 100 | BN28: 0.0003698946451 | BO28: 100 | BP28: 0.00122740159 | BS28: 100 | BT28: 0 | BU28: 100 | BV28: 7.376866249e-23 | BW28: 100 | BX28: 0 | BY28: 100 | BZ28: 0.000164189865 | CA28: 100 | CB28: 1.481387299e-22 | CC28: 100 | CD28: 3.182655767e-39 | CG28: 100 | CH28: 0 | CI28: 100 | CJ28: 0 | CK28: 100 | CL28: 0 | CM28: 100 | CN28: 0.0002072857755 | CO28: 100 | CP28: 3.683820316e-22 | CQ28: 100 | CR28: 2.436069025e-39 | CU28: 100 | CV28: 0 | CW28: 100 | CX28: 4.650078729e-11 | CY28: 100 | CZ28: 0 | DA28: 100 | DB28: 1.676154171 | DC28: 100 | DD28: 4.884635384e-18 | DE28: 100 | DF28: 0
A29: 110 | B29: 2.414320034e-09 | C29: 110 | D29: 0.1183176443 | E29: 110 | F29: 0.01057636926 | G29: 110 | H29: 18.87764654 | I29: 110 | J29: 0.09730173734 | K29: 110 | L29: 0.0009524222524 | O29: 110 | P29: 0 | Q29: 110 | R29: 2.412212765e-09 | S29: 110 | T29: 0 | U29: 110 | V29: 9.657839184 | W29: 110 | X29: 7.836200408e-08 | Y29: 110 | Z29: 3.385102357e-22 | AC29: 110 | AD29: 0 | AE29: 110 | AF29: 6.161964872e-10 | AG29: 110 | AH29: 0 | AI29: 110 | AJ29: 6.330361727 | AK29: 110 | AL29: 1.384999752e-07 | AM29: 110 | AN29: 0 | AQ29: 110 | AR29: 0 | AS29: 110 | AT29: 0.00145989166 | AU29: 110 | AV29: 0 | AW29: 110 | AX29: 35.05697108 | AY29: 110 | AZ29: 1.064411145e-06 | BA29: 110 | BB29: 3.606106374e-13 | BE29: 110 | BF29: 3.862912054e-10 | BG29: 110 | BH29: 0.04413248133 | BI29: 110 | BJ29: 0.0008632961412 | BK29: 110 | BL29: 9.058910631 | BM29: 110 | BN29: 0.0003243391245 | BO29: 110 | BP29: 0.001076237145 | BS29: 110 | BT29: 0 | BU29: 110 | BV29: 0 | BW29: 110 | BX29: 0 | BY29: 110 | BZ29: 0.0006312139438 | CA29: 110 | CB29: 1.29894246e-22 | CC29: 110 | CD29: 0 | CG29: 110 | CH29: 0 | CI29: 110 | CJ29: 0 | CK29: 110 | CL29: 0 | CM29: 110 | CN29: 0.0008531929861 | CO29: 110 | CP29: 3.656423137e-22 | CQ29: 110 | CR29: 0 | CU29: 110 | CV29: 0 | CW29: 110 | CX29: 4.528735916e-10 | CY29: 110 | CZ29: 0 | DA29: 110 | DB29: 2.656172451 | DC29: 110 | DD29: 4.852494868e-18 | DE29: 110 | DF29: 0
A30: 120 | B30: 1.217968624e-08 | C30: 120 | D30: 0.1037458683 | E30: 120 | F30: 0.009273803769 | G30: 120 | H30: 16.5527115 | I30: 120 | J30: 0.08531824049 | K30: 120 | L30: 0.0008351237397 | O30: 120 | P30: 0 | Q30: 120 | R30: 1.478838778e-08 | S30: 120 | T30: 0 | U30: 120 | V30: 12.40282996 | W30: 120 | X30: 6.87110889e-08 | Y30: 120 | Z30: 0 | AC30: 120 | AD30: 0 | AE30: 120 | AF30: 4.331600446e-09 | AG30: 120 | AH30: 0 | AI30: 120 | AJ30: 8.914139609 | AK30: 120 | AL30: 1.374825245e-07 | AM30: 120 | AN30: 2.323671067e-22 | AQ30: 120 | AR30: 0 | AS30: 120 | AT30: 0.002847086141 | AU30: 120 | AV30: 0 | AW30: 120 | AX30: 36.24552792 | AY30: 120 | AZ30: 1.05749309e-06 | BA30: 120 | BB30: 3.393823424e-12 | BE30: 120 | BF30: 1.948749799e-09 | BG30: 120 | BH30: 0.03869720889 | BI30: 120 | BJ30: 0.0007569742327 | BK30: 120 | BL30: 7.943232432 | BM30: 120 | BN30: 0.000284394135 | BO30: 120 | BP30: 0.0009436898259 | BS30: 120 | BT30: 0 | BU30: 120 | BV30: 4.424664002e-21 | BW30: 120 | BX30: 0 | BY30: 120 | BZ30: 0.001926866076 | CA30: 120 | CB30: 1.138967181e-22 | CC30: 120 | CD30: 1.077785458e-35 | CG30: 120 | CH30: 0 | CI30: 120 | CJ30: 1.61410956e-20 | CK30: 120 | CL30: 0 | CM30: 120 | CN30: 0.002739372948 | CO30: 120 | CP30: 3.629229715e-22 | CQ30: 120 | CR30: 1.96131862e-35 | CU30: 120 | CV30: 0 | CW30: 120 | CX30: 3.011507602e-09 | CY30: 120 | CZ30: 0 | DA30: 120 | DB30: 3.815847936 | DC30: 120 | DD30: 4.820565835e-18 | DE30: 120 | DF30: 8.677779419e-22
A31: 130 | B31: 4.773345065e-08 | C31: 130 | D31: 0.09096872455 | E31: 130 | F31: 0.008131659759 | G31: 130 | H31: 14.51411104 | I31: 130 | J31: 0.07481060829 | K31: 130 | L31: 0.0007322714885 | O31: 130 | P31: 0 | Q31: 130 | R31: 6.834126543e-08 | S31: 130 | T31: 0 | U31: 130 | V31: 15.04679926 | W31: 130 | X31: 6.024876204e-08 | Y31: 130 | Z31: 0 | AC31: 130 | AD31: 0 | AE31: 130 | AF31: 2.250823864e-08 | AG31: 130 | AH31: 0 | AI31: 130 | AJ31: 11.68747145 | AK31: 130 | AL31: 1.364725483e-07 | AM31: 130 | AN31: 9.680177314e-22 | AQ31: 130 | AR31: 0 | AS31: 130 | AT31: 0.004966780672 | AU31: 130 | AV31: 1.057733728e-40 | AW31: 130 | AX31: 36.90000809 | AY31: 130 | AZ31: 1.050619997e-06 | BA31: 130 | BB31: 2.255138925e-11 | BE31: 130 | BF31: 7.637352105e-09 | BG31: 130 | BH31: 0.03393133426 | BI31: 130 | BJ31: 0.0006637467278 | BK31: 130 | BL31: 6.964959036 | BM31: 130 | BN31: 0.0002493686943 | BO31: 130 | BP31: 0.000827466782 | BS31: 130 | BT31: 0 | BU31: 130 | BV31: 1.266835735e-20 | BW31: 130 | BX31: 0 | BY31: 130 | BZ31: 0.004924147737 | CA31: 130 | CB31: 9.986941514e-23 | CC31: 130 | CD31: 8.617784257e-34 | CG31: 130 | CH31: 0 | CI31: 130 | CJ31: 0 | CK31: 130 | CL31: 0 | CM31: 130 | CN31: 0.007268022841 | CO31: 130 | CP31: 3.602238534e-22 | CQ31: 130 | CR31: 1.380705908e-33 | CU31: 130 | CV31: 0 | CW31: 130 | CX31: 1.492844163e-08 | CY31: 130 | CZ31: 0 | DA31: 130 | DB31: 5.089772704 | DC31: 130 | DD31: 4.788846893e-18 | DE31: 130 | DF31: 0
A32: 140 | B32: 1.533600015e-07 | C32: 140 | D32: 0.07976518945 | E32: 140 | F32: 0.007130180029 | G32: 140 | H32: 12.72658073 | I32: 140 | J32: 0.06559707606 | K32: 140 | L32: 0.0006420863247 | O32: 140 | P32: 0 | Q32: 140 | R32: 2.528858915e-07 | S32: 140 | T32: 0 | U32: 140 | V32: 17.4529206 | W32: 140 | X32: 5.282863922e-08 | Y32: 140 | Z32: 1.091054769e-20 | AC32: 140 | AD32: 0 | AE32: 140 | AF32: 9.222267582e-08 | AG32: 140 | AH32: 0 | AI32: 140 | AJ32: 14.50521702 | AK32: 140 | AL32: 1.354699916e-07 | AM32: 140 | AN32: 0 | AQ32: 140 | AR32: 0 | AS32: 140 | AT32: 0.007938348367 | AU32: 140 | AV32: 0 | AW32: 140 | AX32: 37.20745943 | AY32: 140 | AZ32: 1.043791576e-06 | BA32: 140 | BB32: 1.139738765e-10 | BE32: 140 | BF32: 2.453760024e-08 | BG32: 140 | BH32: 0.02975241567 | BI32: 140 | BJ32: 0.0005820009449 | BK32: 140 | BL32: 6.107167929 | BM32: 140 | BN32: 0.0002186569202 | BO32: 140 | BP32: 0.0007255575469 | BS32: 140 | BT32: 0 | BU32: 140 | BV32: 0 | BW32: 140 | BX32: 0 | BY32: 140 | BZ32: 0.01094035047 | CA32: 140 | CB32: 8.756968812e-23 | CC32: 140 | CD32: 2.17227374e-32 | CG32: 140 | CH32: 0 | CI32: 140 | CJ32: 0 | CK32: 140 | CL32: 0 | CM32: 140 | CN32: 0.01660484256 | CO32: 140 | CP32: 3.575448091e-22 | CQ32: 140 | CR32: 4.232548983e-32 | CU32: 140 | CV32: 0 | CW32: 140 | CX32: 5.873878407e-08 | CY32: 140 | CZ32: 0 | DA32: 140 | DB32: 6.411885417 | DC32: 140 | DD32: 4.757336659e-18 | DE32: 140 | DF32: 0
A33: 150 | B33: 4.201926604e-07 | C33: 150 | D33: 0.0699414604 | E33: 150 | F33: 0.006252040634 | G33: 150 | H33: 11.15919925 | I33: 150 | J33: 0.05751826491 | K33: 150 | L33: 0.0005630081939 | O33: 150 | P33: 0 | Q33: 150 | R33: 7.832070233e-07 | S33: 150 | T33: 0 | U33: 150 | V33: 19.52677327 | W33: 150 | X33: 4.632236458e-08 | Y33: 150 | Z33: 1.208637013e-20 | AC33: 150 | AD33: 0 | AE33: 150 | AF33: 3.124009775e-07 | AG33: 150 | AH33: 0 | AI33: 150 | AJ33: 17.24794849 | AK33: 150 | AL33: 1.344747998e-07 | AM33: 150 | AN33: 0 | AQ33: 150 | AR33: 0 | AS33: 150 | AT33: 0.01183027101 | AU33: 150 | AV33: 4.557767937e-38 | AW33: 150 | AX33: 37.29660463 | AY33: 150 | AZ33: 1.037007536e-06 | BA33: 150 | BB33: 4.626927768e-10 | BE33: 150 | BF33: 6.723082566e-08 | BG33: 150 | BH33: 0.02608816473 | BI33: 150 | BJ33: 0.0005103228167 | BK33: 150 | BL33: 5.35502074 | BM33: 150 | BN33: 0.0001917275497 | BO33: 150 | BP33: 0.0006361992591 | BS33: 150 | BT33: 0 | BU33: 150 | BV33: 0 | BW33: 150 | BX33: 0 | BY33: 150 | BZ33: 0.02172718006 | CA33: 150 | CB33: 7.678477206e-23 | CC33: 150 | CD33: 1.619861055e-31 | CG33: 150 | CH33: 0 | CI33: 150 | CJ33: 1.298941572e-19 | CK33: 150 | CL33: 0 | CM33: 150 | CN33: 0.03366914257 | CO33: 150 | CP33: 3.548856894e-22 | CQ33: 150 | CR33: 4.199694721e-31 | CU33: 150 | CV33: 0 | CW33: 150 | CX33: 1.920952552e-07 | CY33: 150 | CZ33: 0 | DA33: 150 | DB33: 7.724561079 | DC33: 150 | DD33: 4.72603376e-18 | DE33: 150 | DF33: 4.021589188e-21
A34: 160 | B34: 1.011352869e-06 | C34: 160 | D34: 0.06132760311 | E34: 160 | F34: 0.005482051213 | G34: 160 | H34: 9.784853486 | I34: 160 | J34: 0.05043442476 | K34: 160 | L34: 0.000493669175 | O34: 160 | P34: 0 | Q34: 160 | R34: 2.098770075e-06 | S34: 160 | T34: 0 | U34: 160 | V34: 21.21377167 | W34: 160 | X34: 4.061739032e-08 | Y34: 160 | Z34: 3.324108453e-21 | AC34: 160 | AD34: 0 | AE34: 160 | AF34: 9.065814325e-07 | AG34: 160 | AH34: 0 | AI34: 160 | AJ34: 19.82804119 | AK34: 160 | AL34: 1.334869189e-07 | AM34: 160 | AN34: 1.858737869e-20 | AQ34: 160 | AR34: 0 | AS34: 160 | AT34: 0.0166570782 | AU34: 160 | AV34: 0 | AW34: 160 | AX34: 37.25179439 | AY34: 160 | AZ34: 1.030267588e-06 | BA34: 160 | BB34: 1.571905094e-09 | BE34: 160 | BF34: 1.61816459e-07 | BG34: 160 | BH34: 0.02287519596 | BI34: 160 | BJ34: 0.0004474724302 | BK34: 160 | BL34: 4.695506567 | BM34: 160 | BN34: 0.0001681147492 | BO34: 160 | BP34: 0.0005578461678 | BS34: 160 | BT34: 0 | BU34: 160 | BV34: 3.203407958e-19 | BW34: 160 | BX34: 0 | BY34: 160 | BZ34: 0.03938188105 | CA34: 160 | CB34: 6.732810574e-23 | CC34: 160 | CD34: 0 | CG34: 160 | CH34: 0 | CI34: 160 | CJ34: 8.256000141e-19 | CK34: 160 | CL34: 0 | CM34: 160 | CN34: 0.06198025668 | CO34: 160 | CP34: 3.522463459e-22 | CQ34: 160 | CR34: 0 | CU34: 160 | CV34: 0 | CW34: 160 | CX34: 5.405056117e-07 | CY34: 160 | CZ34: 0 | DA34: 160 | DB34: 8.982841953 | DC34: 160 | DD34: 4.694936832e-18 | DE34: 160 | DF34: 4.7627617e-20
A35: 170 | B35: 2.187394071e-06 | C35: 170 | D35: 0.05377461207 | E35: 170 | F35: 0.004806892222 | G35: 170 | H35: 8.579769529 | I35: 170 | J35: 0.04422301687 | K35: 170 | L35: 0.0004328698177 | O35: 170 | P35: 0 | Q35: 170 | R35: 4.991422503e-06 | S35: 170 | T35: 0 | U35: 170 | V35: 22.49283263 | W35: 170 | X35: 3.561502982e-08 | Y35: 170 | Z35: 4.51503996e-19 | AC35: 170 | AD35: 0 | AE35: 170 | AF35: 2.315989144e-06 | AG35: 170 | AH35: 0 | AI35: 170 | AJ35: 22.18867314 | AK35: 170 | AL35: 1.325062953e-07 | AM35: 170 | AN35: 4.793932444e-20 | AQ35: 170 | AR35: 0 | AS35: 170 | AT35: 0.02238366024 | AU35: 170 | AV35: 7.757376221e-36 | AW35: 170 | AX35: 37.1264591 | AY35: 170 | AZ35: 1.023571446e-06 | BA35: 170 | BB35: 4.611247923e-09 | BE35: 170 | BF35: 3.499830514e-07 | BG35: 170 | BH35: 0.0200579303 | BI35: 170 | BJ35: 0.0003923625776 | BK35: 170 | BL35: 4.117216903 | BM35: 170 | BN35: 0.0001474100562 | BO35: 170 | BP35: 0.000489142894 | BS35: 170 | BT35: 0 | BU35: 170 | BV35: 7.06970882e-19 | BW35: 170 | BX35: 0 | BY35: 170 | BZ35: 0.06619709066 | CA35: 170 | CB35: 5.903610445e-23 | CC35: 170 | CD35: 0 | CG35: 170 | CH35: 0 | CI35: 170 | CJ35: 5.117674344e-19 | CK35: 170 | CL35: 0 | CM35: 170 | CN35: 0.1053965213 | CO35: 170 | CP35: 3.496266317e-22 | CQ35: 170 | CR35: 0 | CU35: 170 | CV35: 0 | CW35: 170 | CX35: 1.343574724e-06 | CY35: 170 | CZ35: 0 | DA35: 170 | DB35: 10.15518219 | DC35: 170 | DD35: 4.66404452e-18 | DE35: 170 | DF35: 3.504468493e-20
A36: 180 | B36: 4.327051971e-06 | C36: 180 | D36: 0.04715183304 | E36: 180 | F36: 0.004214884525 | G36: 180 | H36: 7.523101418 | I36: 180 | J36: 0.03877659415 | K36: 180 | L36: 0.0003795583935 | O36: 180 | P36: 0 | Q36: 180 | R36: 1.074585642e-05 | S36: 180 | T36: 0 | U36: 180 | V36: 23.36878214 | W36: 180 | X36: 3.12287505e-08 | Y36: 180 | Z36: 4.682853064e-18 | AC36: 180 | AD36: 0 | AE36: 180 | AF36: 5.319821548e-06 | AG36: 180 | AH36: 0 | AI36: 180 | AJ36: 24.29918172 | AK36: 180 | AL36: 1.315328755e-07 | AM36: 180 | AN36: 7.882651885e-21 | AQ36: 180 | AR36: 0 | AS36: 180 | AT36: 0.02893409627 | AU36: 180 | AV36: 2.14555263e-34 | AW36: 180 | AX36: 36.95362266 | AY36: 180 | AZ36: 1.016918824e-06 | BA36: 180 | BB36: 1.196912336e-08 | BE36: 180 | BF36: 6.923283153e-07 | BG36: 180 | BH36: 0.01758763372 | BI36: 180 | BJ36: 0.0003440399494 | BK36: 180 | BL36: 3.610148293 | BM36: 180 | BN36: 0.0001292553138 | BO36: 180 | BP36: 0.0004289009847 | BS36: 180 | BT36: 0 | BU36: 180 | BV36: 7.155574744e-20 | BW36: 180 | BX36: 0 | BY36: 180 | BZ36: 0.1044784038 | CA36: 180 | CB36: 5.176533026e-23 | CC36: 180 | CD36: 0 | CG36: 180 | CH36: 0 | CI36: 180 | CJ36: 1.41501059e-18 | CK36: 180 | CL36: 0 | CM36: 180 | CN36: 0.1678042873 | CO36: 180 | CP36: 3.470264008e-22 | CQ36: 180 | CR36: 0 | CU36: 180 | CV36: 0 | CW36: 180 | CX36: 3.011902554e-06 | CY36: 180 | CZ36: 0 | DA36: 180 | DB36: 11.22215715 | DC36: 180 | DD36: 4.633355477e-18 | DE36: 180 | DF36: 9.900052408e-21
A37: 190 | B37: 7.938897606e-06 | C37: 190 | D37: 0.04134470285 | E37: 190 | F37: 0.003695787368 | G37: 190 | H37: 6.596570539 | I37: 190 | J37: 0.03400094248 | K37: 190 | L37: 0.0003328127028 | O37: 190 | P37: 0 | Q37: 190 | R37: 2.127143037e-05 | S37: 190 | T37: 0 | U37: 190 | V37: 23.86496713 | W37: 190 | X37: 2.738267698e-08 | Y37: 190 | Z37: 3.291372793e-17 | AC37: 190 | AD37: 0 | AE37: 190 | AF37: 1.117255882e-05 | AG37: 190 | AH37: 0 | AI37: 190 | AJ37: 26.14917192 | AK37: 190 | AL37: 1.305666066e-07 | AM37: 190 | AN37: 9.214857471e-20 | AQ37: 190 | AR37: 0 | AS37: 190 | AT37: 0.03620244597 | AU37: 190 | AV37: 3.940040174e-33 | AW37: 190 | AX37: 36.75332544 | AY37: 190 | AZ37: 1.010309441e-06 | BA37: 190 | BB37: 2.802370172e-08 | BE37: 190 | BF37: 1.270223617e-06 | BG37: 190 | BH37: 0.01542157416 | BI37: 190 | BJ37: 0.0003016686439 | BK37: 190 | BL37: 3.165529288 | BM37: 190 | BN37: 0.0001133364749 | BO37: 190 | BP37: 0.0003760783541 | BS37: 190 | BT37: 0 | BU37: 190 | BV37: 2.233222504e-18 | BW37: 190 | BX37: 0 | BY37: 190 | BZ37: 0.1563597963 | CA37: 190 | CB37: 4.53900108e-23 | CC37: 190 | CD37: 3.610187554e-28 | CG37: 190 | CH37: 0 | CI37: 190 | CJ37: 3.145853745e-17 | CK37: 190 | CL37: 0 | CM37: 190 | CN37: 0.2528136925 | CO37: 190 | CP37: 3.444455083e-22 | CQ37: 190 | CR37: 4.472004085e-28 | CU37: 190 | CV37: 0 | CW37: 190 | CX37: 6.188700062e-06 | CY37: 190 | CZ37: 0 | DA37: 190 | DB37: 12.17425515 | DC37: 190 | DD37: 4.602868365e-18 | DE37: 190 | DF37: 1.115584278e-18
A38: 200 | B38: 1.366112387e-05 | C38: 200 | D38: 0.03625276776 | E38: 200 | F38: 0.003240621228 | G38: 200 | H38: 5.784149439 | I38: 200 | J38: 0.02981345097 | K38: 200 | L38: 0.0002918241223 | O38: 200 | P38: 0 | Q38: 200 | R38: 3.920304016e-05 | S38: 200 | T38: 0 | U38: 200 | V38: 24.01680696 | W38: 200 | X38: 2.401027855e-08 | Y38: 200 | Z38: 1.891624534e-16 | AC38: 200 | AD38: 0 | AE38: 200 | AF38: 2.174293839e-05 | AG38: 200 | AH38: 0 | AI38: 200 | AJ38: 27.74277249 | AK38: 200 | AL38: 1.296074362e-07 | AM38: 200 | AN38: 1.861334397e-18 | AQ38: 200 | AR38: 0 | AS38: 200 | AT38: 0.04406362635 | AU38: 200 | AV38: 5.700840599e-32 | AW38: 200 | AX38: 36.53755903 | AY38: 200 | AZ38: 1.003743016e-06 | BA38: 200 | BB38: 6.010431144e-08 | BE38: 200 | BF38: 2.185779819e-06 | BG38: 200 | BH38: 0.01352228238 | BI38: 200 | BJ38: 0.0002645157077 | BK38: 200 | BL38: 2.775668712 | BM38: 200 | BN38: 9.93781699e-05 | BO38: 200 | BP38: 0.0003297612582 | BS38: 200 | BT38: 0 | BU38: 200 | BV38: 3.532305932e-17 | BW38: 200 | BX38: 0 | BY38: 200 | BZ38: 0.2236413851 | CA38: 200 | CB38: 3.979986356e-23 | CC38: 200 | CD38: 2.280650758e-27 | CG38: 200 | CH38: 0 | CI38: 200 | CJ38: 2.512687791e-16 | CK38: 200 | CL38: 0 | CM38: 200 | CN38: 0.3635035456 | CO38: 200 | CP38: 3.418838102e-22 | CQ38: 200 | CR38: 5.157990999e-27 | CU38: 200 | CV38: 0 | CW38: 200 | CX38: 1.180838582e-05 | CY38: 200 | CZ38: 0 | DA38: 200 | DB38: 13.00947066 | DC38: 200 | DD38: 4.572581856e-18 | DE38: 200 | DF38: 9.903538741e-18
A39: 300 | B39: 0.0003703242285 | C39: 300 | D39: 0.009739890552 | E39: 300 | F39: 0.0008706451975 | G39: 300 | H39: 1.554005004 | I39: 300 | J39: 0.008009864283 | K39: 300 | L39: 7.840325533e-05 | O39: 300 | P39: 0 | Q39: 300 | R39: 0.00165871897 | S39: 300 | T39: 0 | U39: 300 | V39: 15.68237021 | W39: 300 | X39: 6.450748696e-09 | Y39: 300 | Z39: 1.206965278e-11 | AC39: 300 | AD39: 0 | AE39: 300 | AF39: 0.001364898493 | AG39: 300 | AH39: 0 | AI39: 300 | AJ39: 33.79522457 | AK39: 300 | AL39: 1.203948601e-07 | AM39: 300 | AN39: 8.848166098e-13 | AQ39: 300 | AR39: 0 | AS39: 300 | AT39: 0.1285523485 | AU39: 300 | AV39: 4.96287268e-26 | AW39: 300 | AX39: 34.26070288 | AY39: 300 | AZ39: 9.403808673e-07 | BA39: 300 | BB39: 6.827696815e-06 | BE39: 300 | BF39: 5.925187656e-05 | BG39: 300 | BH39: 0.003632979176 | BI39: 300 | BJ39: 7.106641425e-05 | BK39: 300 | BL39: 0.7457281515 | BM39: 300 | BN39: 2.669954761e-05 | BO39: 300 | BP39: 8.859567852e-05 | BS39: 300 | BT39: 0 | BU39: 300 | BV39: 1.486959336e-11 | BW39: 300 | BX39: 0 | BY39: 300 | BZ39: 1.77712775 | CA39: 300 | CB39: 1.069287691e-23 | CC39: 300 | CD39: 0 | CG39: 300 | CH39: 0 | CI39: 300 | CJ39: 5.889409077e-11 | CK39: 300 | CL39: 0 | CM39: 300 | CN39: 3.017506804 | CO39: 300 | CP39: 3.172916424e-22 | CQ39: 300 | CR39: 0 | CU39: 300 | CV39: 0 | CW39: 300 | CX39: 0.0006528210975 | CY39: 300 | CZ39: 0 | DA39: 300 | DB39: 16.52425584 | DC39: 300 | DD39: 4.280463776e-18 | DE39: 300 | DF39: 2.631688135e-12
A40: 400 | B40: 0.001569012953 | C40: 400 | D40: 0.002616777698 | E40: 400 | F40: 0.0002339128223 | G40: 400 | H40: 0.4175083518 | I40: 400 | J40: 0.00215197842 | K40: 400 | L40: 2.106429102e-05 | O40: 400 | P40: 0 | Q40: 400 | R40: 0.008921225206 | S40: 400 | T40: 0 | U40: 400 | V40: 6.654438359 | W40: 400 | X40: 1.733097169e-09 | Y40: 400 | Z40: 2.830488984e-09 | AC40: 400 | AD40: 0 | AE40: 400 | AF40: 0.009688694736 | AG40: 400 | AH40: 0 | AI40: 400 | AJ40: 32.73304 | AK40: 400 | AL40: 1.118371197e-07 | AM40: 400 | AN40: 5.528188105e-10 | AQ40: 400 | AR40: 0 | AS40: 400 | AT40: 0.1806041207 | AU40: 400 | AV40: 5.024190692e-23 | AW40: 400 | AX40: 32.09807229 | AY40: 400 | AZ40: 8.810185101e-07 | BA40: 400 | BB40: 6.330966698e-05 | BE40: 400 | BF40: 0.0002510420724 | BG40: 400 | BH40: 0.0009760580815 | BI40: 400 | BJ40: 1.909313412e-05 | BK40: 400 | BL40: 0.2003518203 | BM40: 400 | BN40: 7.1732614e-06 | BO40: 400 | BP40: 2.380264886e-05 | BS40: 400 | BT40: 0 | BU40: 400 | BV40: 8.766186134e-09 | BW40: 400 | BX40: 0 | BY40: 400 | BZ40: 3.783874623 | CA40: 400 | CB40: 2.872814343e-24 | CC40: 400 | CD40: 0 | CG40: 400 | CH40: 0 | CI40: 400 | CJ40: 2.780440807e-08 | CK40: 400 | CL40: 0 | CM40: 400 | CN40: 7.099217007 | CO40: 400 | CP40: 2.944684223e-22 | CQ40: 400 | CR40: 0 | CU40: 400 | CV40: 0 | CW40: 400 | CX40: 0.004339678583 | CY40: 400 | CZ40: 1.439995452e-38 | DA40: 400 | DB40: 16.27151618 | DC40: 400 | DD40: 4.007007571e-18 | DE40: 400 | DF40: 1.291290649e-09
A41: 500 | B41: 0.003133730857 | C41: 500 | D41: 0.0007030383646 | E41: 500 | F41: 6.284437145e-05 | G41: 500 | H41: 0.112170167 | I41: 500 | J41: 0.0005781627526 | K41: 500 | L41: 5.659252009e-06 | O41: 500 | P41: 0 | Q41: 500 | R41: 0.0208279018 | S41: 500 | T41: 8.073167572e-32 | U41: 500 | V41: 2.364324462 | W41: 500 | X41: 4.656238167e-10 | Y41: 500 | Z41: 6.980393452e-08 | AC41: 500 | AD41: 0 | AE41: 500 | AF41: 0.02875828378 | AG41: 500 | AH41: 6.288280513e-34 | AI41: 500 | AJ41: 30.60257722 | AK41: 500 | AL41: 1.038876688e-07 | AM41: 500 | AN41: 2.515878773e-08 | AQ41: 500 | AR41: 0 | AS41: 500 | AT41: 0.1980936102 | AU41: 500 | AV41: 2.014887599e-21 | AW41: 500 | AX41: 30.07185405 | AY41: 500 | AZ41: 8.254034534e-07 | BA41: 500 | BB41: 0.0002158385268 | BE41: 500 | BF41: 0.0005013969371 | BG41: 500 | BH41: 0.00026223331 | BI41: 500 | BJ41: 5.12967182e-06 | BK41: 500 | BL41: 0.05382765889 | BM41: 500 | BN41: 1.927209176e-06 | BO41: 500 | BP41: 6.394954771e-06 | BS41: 500 | BT41: 0 | BU41: 500 | BV41: 3.802513743e-07 | BW41: 500 | BX41: 0 | BY41: 500 | BZ41: 4.72059741 | CA41: 500 | CB41: 7.7182786e-25 | CC41: 500 | CD41: 0 | CG41: 500 | CH41: 0 | CI41: 500 | CJ41: 1.086471763e-06 | CK41: 500 | CL41: 0 | CM41: 500 | CN41: 10.46343003 | CO41: 500 | CP41: 2.732869072e-22 | CQ41: 500 | CR41: 0 | CU41: 500 | CV41: 0 | CW41: 500 | CX41: 0.01237181651 | CY41: 500 | CZ41: 6.096578492e-34 | DA41: 500 | DB41: 15.3606792 | DC41: 500 | DD41: 3.751021036e-18 | DE41: 500 | DF41: 5.076274323e-08
A42: 1000 | B42: 0.003458402284 | C42: 1000 | D42: 9.826066953e-07 | E42: 1000 | F42: 8.783974181e-08 | G42: 1000 | H42: 0.0001567762049 | I42: 1000 | J42: 8.080766194e-07 | K42: 1000 | L42: 7.909606553e-09 | O42: 1000 | P42: 0 | Q42: 1000 | R42: 0.03439993706 | S42: 1000 | T42: 0 | U42: 1000 | V42: 0.005841141834 | W42: 1000 | X42: 6.507776351e-13 | Y42: 1000 | Z42: 2.389554684e-05 | AC42: 1000 | AD42: 0 | AE42: 1000 | AF42: 0.1399685916 | AG42: 1000 | AH42: 0 | AI42: 1000 | AJ42: 21.19116052 | AK42: 1000 | AL42: 7.185452746e-08 | AM42: 1000 | AN42: 3.63595861e-05 | AQ42: 1000 | AR42: 0 | AS42: 1000 | AT42: 0.158683791 | AU42: 1000 | AV42: 1.203722727e-14 | AW42: 1000 | AX42: 21.70533285 | AY42: 1000 | AZ42: 5.957616246e-07 | BA42: 1000 | BB42: 0.001226176456 | BE42: 1000 | BF42: 0.0005533443654 | BG42: 1000 | BH42: 3.665123618e-07 | BI42: 1000 | BJ42: 7.169918082e-09 | BK42: 1000 | BL42: 7.52329812e-05 | BM42: 1000 | BN42: 2.693588711e-09 | BO42: 1000 | BP42: 8.937855603e-09 | BS42: 1000 | BT42: 0 | BU42: 1000 | BV42: 0.0004309599727 | BW42: 1000 | BX42: 0 | BY42: 1000 | BZ42: 1.345910819 | CA42: 1000 | CB42: 1.079322968e-27 | CC42: 1000 | CD42: 2.007611048e-11 | CG42: 1000 | CH42: 0 | CI42: 1000 | CJ42: 0.00128492996 | CK42: 1000 | CL42: 0 | CM42: 1000 | CN42: 12.39707074 | CO42: 1000 | CP42: 1.881565353e-22 | CQ42: 1000 | CR42: 5.469801919e-11 | CU42: 1000 | CV42: 0 | CW42: 1000 | CX42: 0.0557965575 | CY42: 1000 | CZ42: 1.418193618e-24 | DA42: 1000 | DB42: 11.06069151 | DC42: 1000 | DD42: 2.696473671e-18 | DE42: 1000 | DF42: 5.434304534e-05
A43: 2000 | B43: 0.0002157265733 | C43: 2000 | D43: 0 | E43: 2000 | F43: 0 | G43: 2000 | H43: 0 | I43: 2000 | J43: 0 | K43: 2000 | L43: 0 | O43: 2000 | P43: 0 | Q43: 2000 | R43: 0.003240134103 | S43: 2000 | T43: 4.650483061e-18 | U43: 2000 | V43: 3.470110086e-08 | W43: 2000 | X43: 0 | Y43: 2000 | Z43: 0.000120185726 | AC43: 2000 | AD43: 0 | AE43: 2000 | AF43: 0.1063084669 | AG43: 2000 | AH43: 1.401725796e-19 | AI43: 2000 | AJ43: 10.13759804 | AK43: 2000 | AL43: 3.437434331e-08 | AM43: 2000 | AN43: 0.0005909716443 | AQ43: 2000 | AR43: 0 | AS43: 2000 | AT43: 0.08277150329 | AU43: 2000 | AV43: 1.135100156e-07 | AW43: 2000 | AX43: 11.30782133 | AY43: 2000 | AZ43: 3.1037377e-07 | BA43: 2000 | BB43: 0.0009372305478 | BE43: 2000 | BF43: 3.451625172e-05 | BG43: 2000 | BH43: 0 | BI43: 2000 | BJ43: 0 | BK43: 2000 | BL43: 0 | BM43: 2000 | BN43: 0 | BO43: 2000 | BP43: 0 | BS43: 2000 | BT43: 0 | BU43: 2000 | BV43: 0.004443602955 | BW43: 2000 | BX43: 0 | BY43: 2000 | BZ43: 0.01597580668 | CA43: 2000 | CB43: 0 | CC43: 2000 | CD43: 4.305019237e-07 | CG43: 2000 | CH43: 0 | CI43: 2000 | CJ43: 0.02280590609 | CK43: 2000 | CL43: 0 | CM43: 2000 | CN43: 6.108606579 | CO43: 2000 | CP43: 8.919084335e-23 | CQ43: 2000 | CR43: 1.831898274e-06 | CU43: 2000 | CV43: 0 | CW43: 2000 | CX43: 0.04316581902 | CY43: 2000 | CZ43: 0 | DA43: 2000 | DB43: 5.715783285 | DC43: 2000 | DD43: 1.393444108e-18 | DE43: 2000 | DF43: 0.000758426632
A46: Saved 20/05/2025: 15:05:03 Level Number: 5
A48: BREAKTHROUGH RESULTS
A50: Advanced
A51: Pollutant Linkage: New Phases, Base AGB, Haz Compliance | O51: Pollutant Linkage: New Phases, Base AGB, Lower Calc Grit, Nonhaz Compliance | AC51: Pollutant Linkage: New Phases, Side AGB, Highworth Lstn, Nonhaz Compliance | AQ51: Pollutant Linkage: New Phases, Side AGB, Highworth Grit, Nonhaz Compliance | BE51: Pollutant Linkage: Existing Phases, Base AGB, Haz Compliance | BS51: Pollutant Linkage: Existing Phases, Base AGB, Lower Calc Grit, Nonhaz Compliance | CG51: Pollutant Linkage: Existing Phases, Side AGB, Highworth Lstn, Nonhaz Compliance | CU51: Pollutant Linkage: Existing Phases, Side AGB, Highworth Grit, Nonhaz Compliance
A52: Concentrations in mg/L in Haz Compliance | O52: Concentrations in mg/L in Nonhaz Compliance | AC52: Concentrations in mg/L in Nonhaz Compliance | AQ52: Concentrations in mg/L in Nonhaz Compliance | BE52: Concentrations in mg/L in Haz Compliance | BS52: Concentrations in mg/L in Nonhaz Compliance | CG52: Concentrations in mg/L in Nonhaz Compliance | CU52: Concentrations in mg/L in Nonhaz Compliance
A54: Compared with Comp target concentration in mg/L | O54: Compared with Comp target concentration in mg/L | AC54: Compared with Comp target concentration in mg/L | AQ54: Compared with Comp target concentration in mg/L | BE54: Compared with Comp target concentration in mg/L | BS54: Compared with Comp target concentration in mg/L | CG54: Compared with Comp target concentration in mg/L | CU54: Compared with Comp target concentration in mg/L
B55: 0.1 | D55: 0.5 | F55: 0.05 | H55: 250 | J55: 0.004 | L55: 0.0001 | P55: 0.1 | R55: 0.5 | T55: 0.05 | V55: 250 | X55: 0.004 | Z55: 0.0001 | AD55: 0.1 | AF55: 0.5 | AH55: 0.05 | AJ55: 250 | AL55: 0.004 | AN55: 0.0001 | AR55: 0.1 | AT55: 0.5 | AV55: 0.05 | AX55: 250 | AZ55: 0.004 | BB55: 0.0001 | BF55: 0.1 | BH55: 0.5 | BJ55: 0.05 | BL55: 250 | BN55: 0.004 | BP55: 0.0001 | BT55: 0.1 | BV55: 0.5 | BX55: 0.05 | BZ55: 250 | CB55: 0.004 | CD55: 0.0001 | CH55: 0.1 | CJ55: 0.5 | CL55: 0.05 | CN55: 250 | CP55: 0.004 | CR55: 0.0001 | CV55: 0.1 | CX55: 0.5 | CZ55: 0.05 | DB55: 250 | DD55: 0.004 | DF55: 0.0001
B57: Species1 | D57: Species2 | F57: Species3 | H57: Species4 | J57: Species5 | L57: Species6 | P57: Species1 | R57: Species2 | T57: Species3 | V57: Species4 | X57: Species5 | Z57: Species6 | AD57: Species1 | AF57: Species2 | AH57: Species3 | AJ57: Species4 | AL57: Species5 | AN57: Species6 | AR57: Species1 | AT57: Species2 | AV57: Species3 | AX57: Species4 | AZ57: Species5 | BB57: Species6 | BF57: Species1 | BH57: Species2 | BJ57: Species3 | BL57: Species4 | BN57: Species5 | BP57: Species6 | BT57: Species1 | BV57: Species2 | BX57: Species3 | BZ57: Species4 | CB57: Species5 | CD57: Species6 | CH57: Species1 | CJ57: Species2 | CL57: Species3 | CN57: Species4 | CP57: Species5 | CR57: Species6 | CV57: Species1 | CX57: Species2 | CZ57: Species3 | DB57: Species4 | DD57: Species5 | DF57: Species6
A58: Time(years) | B58: Lead | C58: Time(years) | D58: AmmN | E58: Time(years) | F58: Nickel | G58: Time(years) | H58: Chloride | I58: Time(years) | J58: Toluene | K58: Time(years) | L58: Cadmium | O58: Time(years) | P58: Lead | Q58: Time(years) | R58: AmmN | S58: Time(years) | T58: Nickel | U58: Time(years) | V58: Chloride | W58: Time(years) | X58: Toluene | Y58: Time(years) | Z58: Cadmium | AC58: Time(years) | AD58: Lead | AE58: Time(years) | AF58: AmmN | AG58: Time(years) | AH58: Nickel | AI58: Time(years) | AJ58: Chloride | AK58: Time(years) | AL58: Toluene | AM58: Time(years) | AN58: Cadmium | AQ58: Time(years) | AR58: Lead | AS58: Time(years) | AT58: AmmN | AU58: Time(years) | AV58: Nickel | AW58: Time(years) | AX58: Chloride | AY58: Time(years) | AZ58: Toluene | BA58: Time(years) | BB58: Cadmium | BE58: Time(years) | BF58: Lead | BG58: Time(years) | BH58: AmmN | BI58: Time(years) | BJ58: Nickel | BK58: Time(years) | BL58: Chloride | BM58: Time(years) | BN58: Toluene | BO58: Time(years) | BP58: Cadmium | BS58: Time(years) | BT58: Lead | BU58: Time(years) | BV58: AmmN | BW58: Time(years) | BX58: Nickel | BY58: Time(years) | BZ58: Chloride | CA58: Time(years) | CB58: Toluene | CC58: Time(years) | CD58: Cadmium | CG58: Time(years) | CH58: Lead | CI58: Time(years) | CJ58: AmmN | CK58: Time(years) | CL58: Nickel | CM58: Time(years) | CN58: Chloride | CO58: Time(years) | CP58: Toluene | CQ58: Time(years) | CR58: Cadmium | CU58: Time(years) | CV58: Lead | CW58: Time(years) | CX58: AmmN | CY58: Time(years) | CZ58: Nickel | DA58: Time(years) | DB58: Chloride | DC58: Time(years) | DD58: Toluene | DE58: Time(years) | DF58: Cadmium
A59: 0.1 | B59: 0 | C59: 0.1 | D59: 0.0005636720226 | E59: 0.1 | F59: 9.042194935e-40 | G59: 0.1 | H59: 14.25861993 | I59: 0.1 | J59: 0.0007629831305 | K59: 0.1 | L59: 1.043749877e-10 | O59: 0.1 | P59: 0 | Q59: 0.1 | R59: 0 | S59: 0.1 | T59: 0 | U59: 0.1 | V59: 0 | W59: 0.1 | X59: 0 | Y59: 0.1 | Z59: 0 | AC59: 0.1 | AD59: 0 | AE59: 0.1 | AF59: 0 | AG59: 0.1 | AH59: 0 | AI59: 0.1 | AJ59: 0 | AK59: 0.1 | AL59: 0 | AM59: 0.1 | AN59: 0 | AQ59: 0.1 | AR59: 0 | AS59: 0.1 | AT59: 0 | AU59: 0.1 | AV59: 0 | AW59: 0.1 | AX59: 0 | AY59: 0.1 | AZ59: 0 | BA59: 0.1 | BB59: 0 | BE59: 0.1 | BF59: 0 | BG59: 0.1 | BH59: 0.0005636720226 | BI59: 0.1 | BJ59: 9.042194935e-40 | BK59: 0.1 | BL59: 14.25861993 | BM59: 0.1 | BN59: 0.0007629831305 | BO59: 0.1 | BP59: 1.043749877e-10 | BS59: 0.1 | BT59: 0 | BU59: 0.1 | BV59: 0 | BW59: 0.1 | BX59: 0 | BY59: 0.1 | BZ59: 0 | CA59: 0.1 | CB59: 0 | CC59: 0.1 | CD59: 0 | CG59: 0.1 | CH59: 0 | CI59: 0.1 | CJ59: 0 | CK59: 0.1 | CL59: 0 | CM59: 0.1 | CN59: 0 | CO59: 0.1 | CP59: 0 | CQ59: 0.1 | CR59: 0 | CU59: 0.1 | CV59: 0 | CW59: 0.1 | CX59: 0 | CY59: 0.1 | CZ59: 0 | DA59: 0.1 | DB59: 0 | DC59: 0.1 | DD59: 0 | DE59: 0.1 | DF59: 0
A60: 0.5 | B60: 0 | C60: 0.5 | D60: 0.1604586592 | E60: 0.5 | F60: 8.82649177e-21 | G60: 0.5 | H60: 38.19542926 | I60: 0.5 | J60: 0.001251234104 | K60: 0.5 | L60: 0.000830395282 | O60: 0.5 | P60: 0 | Q60: 0.5 | R60: 0 | S60: 0.5 | T60: 0 | U60: 0.5 | V60: 0 | W60: 0.5 | X60: 0 | Y60: 0.5 | Z60: 0 | AC60: 0.5 | AD60: 0 | AE60: 0.5 | AF60: 0 | AG60: 0.5 | AH60: 0 | AI60: 0.5 | AJ60: 0 | AK60: 0.5 | AL60: 6.509920517e-31 | AM60: 0.5 | AN60: 0 | AQ60: 0.5 | AR60: 0 | AS60: 0.5 | AT60: 0 | AU60: 0.5 | AV60: 0 | AW60: 0.5 | AX60: 0 | AY60: 0.5 | AZ60: 8.275563707e-28 | BA60: 0.5 | BB60: 0 | BE60: 0.5 | BF60: 0 | BG60: 0.5 | BH60: 0.1604586592 | BI60: 0.5 | BJ60: 8.82649177e-21 | BK60: 0.5 | BL60: 38.19542926 | BM60: 0.5 | BN60: 0.001251234104 | BO60: 0.5 | BP60: 0.000830395282 | BS60: 0.5 | BT60: 0 | BU60: 0.5 | BV60: 0 | BW60: 0.5 | BX60: 0 | BY60: 0.5 | BZ60: 0 | CA60: 0.5 | CB60: 0 | CC60: 0.5 | CD60: 0 | CG60: 0.5 | CH60: 0 | CI60: 0.5 | CJ60: 0 | CK60: 0.5 | CL60: 0 | CM60: 0.5 | CN60: 0 | CO60: 0.5 | CP60: 0 | CQ60: 0.5 | CR60: 0 | CU60: 0.5 | CV60: 0 | CW60: 0.5 | CX60: 0 | CY60: 0.5 | CZ60: 0 | DA60: 0.5 | DB60: 0 | DC60: 0.5 | DD60: 0 | DE60: 0.5 | DF60: 0
A61: 1 | B61: 0 | C61: 1 | D61: 0.1843619075 | E61: 1 | F61: 1.871617868e-11 | G61: 1 | H61: 37.95192828 | I61: 1 | J61: 0.001324299985 | K61: 1 | L61: 0.003402048067 | O61: 1 | P61: 0 | Q61: 1 | R61: 0 | S61: 1 | T61: 0 | U61: 1 | V61: 0 | W61: 1 | X61: 4.587897623e-24 | Y61: 1 | Z61: 0 | AC61: 1 | AD61: 0 | AE61: 1 | AF61: 0 | AG61: 1 | AH61: 0 | AI61: 1 | AJ61: 0 | AK61: 1 | AL61: 1.301545707e-24 | AM61: 1 | AN61: 0 | AQ61: 1 | AR61: 0 | AS61: 1 | AT61: 0 | AU61: 1 | AV61: 0 | AW61: 1 | AX61: 0 | AY61: 1 | AZ61: 0 | BA61: 1 | BB61: 0 | BE61: 1 | BF61: 0 | BG61: 1 | BH61: 0.1843619075 | BI61: 1 | BJ61: 1.871617868e-11 | BK61: 1 | BL61: 37.95192828 | BM61: 1 | BN61: 0.001324299985 | BO61: 1 | BP61: 0.003402048067 | BS61: 1 | BT61: 0 | BU61: 1 | BV61: 0 | BW61: 1 | BX61: 0 | BY61: 1 | BZ61: 0 | CA61: 1 | CB61: 0 | CC61: 1 | CD61: 0 | CG61: 1 | CH61: 0 | CI61: 1 | CJ61: 0 | CK61: 1 | CL61: 0 | CM61: 1 | CN61: 0 | CO61: 1 | CP61: 0 | CQ61: 1 | CR61: 0 | CU61: 1 | CV61: 0 | CW61: 1 | CX61: 0 | CY61: 1 | CZ61: 0 | DA61: 1 | DB61: 0 | DC61: 1 | DD61: 0 | DE61: 1 | DF61: 0
A62: 2 | B62: 0 | C62: 2 | D62: 0.1824768797 | E62: 2 | F62: 9.53891258e-07 | G62: 2 | H62: 37.45639518 | I62: 2 | J62: 0.001335573748 | K62: 2 | L62: 0.004405679504 | O62: 2 | P62: 0 | Q62: 2 | R62: 0 | S62: 2 | T62: 0 | U62: 2 | V62: 7.6125442e-38 | W62: 2 | X62: 2.738463318e-16 | Y62: 2 | Z62: 0 | AC62: 2 | AD62: 0 | AE62: 2 | AF62: 0 | AG62: 2 | AH62: 0 | AI62: 2 | AJ62: 0 | AK62: 2 | AL62: 9.668806515e-17 | AM62: 2 | AN62: 0 | AQ62: 2 | AR62: 0 | AS62: 2 | AT62: 0 | AU62: 2 | AV62: 0 | AW62: 2 | AX62: 2.922036953e-27 | AY62: 2 | AZ62: 2.10202424e-14 | BA62: 2 | BB62: 0 | BE62: 2 | BF62: 0 | BG62: 2 | BH62: 0.1824768797 | BI62: 2 | BJ62: 9.53891258e-07 | BK62: 2 | BL62: 37.45639518 | BM62: 2 | BN62: 0.001335573748 | BO62: 2 | BP62: 0.004405679504 | BS62: 2 | BT62: 0 | BU62: 2 | BV62: 0 | BW62: 2 | BX62: 0 | BY62: 2 | BZ62: 0 | CA62: 2 | CB62: 0 | CC62: 2 | CD62: 0 | CG62: 2 | CH62: 0 | CI62: 2 | CJ62: 0 | CK62: 2 | CL62: 0 | CM62: 2 | CN62: 0 | CO62: 2 | CP62: 0 | CQ62: 2 | CR62: 0 | CU62: 2 | CV62: 0 | CW62: 2 | CX62: 0 | CY62: 2 | CZ62: 0 | DA62: 2 | DB62: 0 | DC62: 2 | DD62: 0 | DE62: 2 | DF62: 0
A63: 3 | B63: 0 | C63: 3 | D63: 0.180094512 | E63: 3 | F63: 3.271072269e-05 | G63: 3 | H63: 36.96733199 | I63: 3 | J63: 0.001322394967 | K63: 3 | L63: 0.004390302727 | O63: 3 | P63: 0 | Q63: 3 | R63: 0 | S63: 3 | T63: 0 | U63: 3 | V63: 1.174464017e-28 | W63: 3 | X63: 6.485193067e-13 | Y63: 3 | Z63: 0 | AC63: 3 | AD63: 0 | AE63: 3 | AF63: 0 | AG63: 3 | AH63: 0 | AI63: 3 | AJ63: 1.133554978e-34 | AK63: 3 | AL63: 2.663978642e-13 | AM63: 3 | AN63: 0 | AQ63: 3 | AR63: 0 | AS63: 3 | AT63: 0 | AU63: 3 | AV63: 0 | AW63: 3 | AX63: 4.546850926e-23 | AY63: 3 | AZ63: 1.269383183e-11 | BA63: 3 | BB63: 0 | BE63: 3 | BF63: 0 | BG63: 3 | BH63: 0.180094512 | BI63: 3 | BJ63: 3.271072269e-05 | BK63: 3 | BL63: 36.96733199 | BM63: 3 | BN63: 0.001322394967 | BO63: 3 | BP63: 0.004390302727 | BS63: 3 | BT63: 0 | BU63: 3 | BV63: 0 | BW63: 3 | BX63: 0 | BY63: 3 | BZ63: 0 | CA63: 3 | CB63: 0 | CC63: 3 | CD63: 0 | CG63: 3 | CH63: 0 | CI63: 3 | CJ63: 0 | CK63: 3 | CL63: 0 | CM63: 3 | CN63: 0 | CO63: 3 | CP63: 0 | CQ63: 3 | CR63: 0 | CU63: 3 | CV63: 0 | CW63: 3 | CX63: 0 | CY63: 3 | CZ63: 0 | DA63: 3 | DB63: 0 | DC63: 3 | DD63: 3.108289121e-31 | DE63: 3 | DF63: 0
A64: 5 | B64: 0 | C64: 5 | D64: 0.1754222748 | E64: 5 | F64: 0.0004670040487 | G64: 5 | H64: 36.00827912 | I64: 5 | J64: 0.001289144572 | K64: 5 | L64: 0.004277934725 | O64: 5 | P64: 0 | Q64: 5 | R64: 0 | S64: 5 | T64: 0 | U64: 5 | V64: 0 | W64: 5 | X64: 1.259521521e-10 | Y64: 5 | Z64: 0 | AC64: 5 | AD64: 0 | AE64: 5 | AF64: 0 | AG64: 5 | AH64: 0 | AI64: 5 | AJ64: 0 | AK64: 5 | AL64: 5.836651821e-11 | AM64: 5 | AN64: 0 | AQ64: 5 | AR64: 0 | AS64: 5 | AT64: 4.494197502e-35 | AU64: 5 | AV64: 0 | AW64: 5 | AX64: 2.458762394e-17 | AY64: 5 | AZ64: 8.60746395e-10 | BA64: 5 | BB64: 0 | BE64: 5 | BF64: 0 | BG64: 5 | BH64: 0.1754222748 | BI64: 5 | BJ64: 0.0004670040487 | BK64: 5 | BL64: 36.00827912 | BM64: 5 | BN64: 0.001289144572 | BO64: 5 | BP64: 0.004277934725 | BS64: 5 | BT64: 0 | BU64: 5 | BV64: 0 | BW64: 5 | BX64: 0 | BY64: 5 | BZ64: 0 | CA64: 5 | CB64: 3.476889578e-32 | CC64: 5 | CD64: 0 | CG64: 5 | CH64: 0 | CI64: 5 | CJ64: 0 | CK64: 5 | CL64: 0 | CM64: 5 | CN64: 0 | CO64: 5 | CP64: 4.625531579e-32 | CQ64: 5 | CR64: 0 | CU64: 5 | CV64: 0 | CW64: 5 | CX64: 0 | CY64: 5 | CZ64: 0 | DA64: 5 | DB64: 0 | DC64: 5 | DD64: 0 | DE64: 5 | DF64: 0
A65: 10 | B65: 5.590563115e-39 | C65: 10 | D65: 0.1642651316 | E65: 10 | F65: 0.002203731718 | G65: 10 | H65: 33.71809375 | I65: 10 | J65: 0.001207219745 | K65: 10 | L65: 0.004005853086 | O65: 10 | P65: 0 | Q65: 10 | R65: 1.239856014e-39 | S65: 10 | T65: 0 | U65: 10 | V65: 1.427810385e-16 | W65: 10 | X65: 9.10080161e-10 | Y65: 10 | Z65: 0 | AC65: 10 | AD65: 0 | AE65: 10 | AF65: 0 | AG65: 10 | AH65: 0 | AI65: 10 | AJ65: 6.487688504e-18 | AK65: 10 | AL65: 4.646234668e-10 | AM65: 10 | AN65: 0 | AQ65: 10 | AR65: 0 | AS65: 10 | AT65: 0 | AU65: 10 | AV65: 0 | AW65: 10 | AX65: 3.118834382e-10 | AY65: 10 | AZ65: 3.653923631e-09 | BA65: 10 | BB65: 0 | BE65: 10 | BF65: 5.590563115e-39 | BG65: 10 | BH65: 0.1642651316 | BI65: 10 | BJ65: 0.002203731718 | BK65: 10 | BL65: 33.71809375 | BM65: 10 | BN65: 0.001207219745 | BO65: 10 | BP65: 0.004005853086 | BS65: 10 | BT65: 0 | BU65: 10 | BV65: 0 | BW65: 10 | BX65: 0 | BY65: 10 | BZ65: 4.743083123e-28 | CA65: 10 | CB65: 0 | CC65: 10 | CD65: 0 | CG65: 10 | CH65: 0 | CI65: 10 | CJ65: 0 | CK65: 10 | CL65: 0 | CM65: 10 | CN65: 9.827498104e-29 | CO65: 10 | CP65: 0 | CQ65: 10 | CR65: 0 | CU65: 10 | CV65: 0 | CW65: 10 | CX65: 1.30970718e-40 | CY65: 10 | CZ65: 0 | DA65: 10 | DB65: 0 | DC65: 10 | DD65: 8.634080879e-21 | DE65: 10 | DF65: 0
A66: 50 | B66: 1.494397857e-20 | C66: 50 | D66: 0.09710253547 | E66: 50 | F66: 0.001899463368 | G66: 50 | H66: 19.93187702 | I66: 50 | J66: 0.0007136274777 | K66: 50 | L66: 0.00236799184 | O66: 50 | P66: 0 | Q66: 50 | R66: 3.835466423e-19 | S66: 50 | T66: 0 | U66: 50 | V66: 0.04832915769 | W66: 50 | X66: 5.747202482e-10 | Y66: 50 | Z66: 0 | AC66: 50 | AD66: 0 | AE66: 50 | AF66: 0 | AG66: 50 | AH66: 0 | AI66: 50 | AJ66: 0.006535036544 | AK66: 50 | AL66: 4.760372257e-10 | AM66: 50 | AN66: 4.124243812e-32 | AQ66: 50 | AR66: 0 | AS66: 50 | AT66: 2.281054436e-08 | AU66: 50 | AV66: 0 | AW66: 50 | AX66: 3.116408365 | AY66: 50 | AZ66: 3.586040619e-09 | BA66: 50 | BB66: 1.049856708e-21 | BE66: 50 | BF66: 1.494397857e-20 | BG66: 50 | BH66: 0.09710253547 | BI66: 50 | BJ66: 0.001899463368 | BK66: 50 | BL66: 19.93187702 | BM66: 50 | BN66: 0.0007136274777 | BO66: 50 | BP66: 0.00236799184 | BS66: 50 | BT66: 0 | BU66: 50 | BV66: 6.833832574e-31 | BW66: 50 | BX66: 0 | BY66: 50 | BZ66: 5.051662131e-11 | CA66: 50 | CB66: 2.857999398e-22 | CC66: 50 | CD66: 0 | CG66: 50 | CH66: 0 | CI66: 50 | CJ66: 4.121759449e-30 | CK66: 50 | CL66: 0 | CM66: 50 | CN66: 2.253888463e-11 | CO66: 50 | CP66: 3.787924621e-22 | CQ66: 50 | CR66: 0 | CU66: 50 | CV66: 0 | CW66: 50 | CX66: 1.368742278e-20 | CY66: 50 | CZ66: 0 | DA66: 50 | DB66: 0.004386779073 | DC66: 50 | DD66: 4.938167678e-18 | DE66: 50 | DF66: 1.715927695e-31
A67: 75 | B67: 4.315343207e-14 | C67: 75 | D67: 0.06990911598 | E67: 75 | F67: 0.001367524955 | G67: 75 | H67: 14.34998475 | I67: 75 | J67: 0.0005137771724 | K67: 75 | L67: 0.001704839274 | O67: 75 | P67: 0 | Q67: 75 | R67: 3.344379674e-14 | S67: 75 | T67: 0 | U67: 75 | V67: 0.8938191993 | W67: 75 | X67: 4.13770706e-10 | Y67: 75 | Z67: 0 | AC67: 75 | AD67: 0 | AE67: 75 | AF67: 4.077208653e-15 | AG67: 75 | AH67: 0 | AI67: 75 | AJ67: 0.3338496388 | AK67: 75 | AL67: 4.636651952e-10 | AM67: 75 | AN67: 1.359948279e-26 | AQ67: 75 | AR67: 0 | AS67: 75 | AT67: 1.145518963e-05 | AU67: 75 | AV67: 0 | AW67: 75 | AX67: 10.84461343 | AY67: 75 | AZ67: 3.471009716e-09 | BA67: 75 | BB67: 1.110214952e-18 | BE67: 75 | BF67: 4.315343207e-14 | BG67: 75 | BH67: 0.06990911598 | BI67: 75 | BJ67: 0.001367524955 | BK67: 75 | BL67: 14.34998475 | BM67: 75 | BN67: 0.0005137771724 | BO67: 75 | BP67: 0.001704839274 | BS67: 75 | BT67: 0 | BU67: 75 | BV67: 1.676576848e-25 | BW67: 75 | BX67: 0 | BY67: 75 | BZ67: 1.133053828e-06 | CA67: 75 | CB67: 2.057620959e-22 | CC67: 75 | CD67: 0 | CG67: 75 | CH67: 0 | CI67: 75 | CJ67: 0 | CK67: 75 | CL67: 0 | CM67: 75 | CN67: 1.055699195e-06 | CO67: 75 | CP67: 3.688270723e-22 | CQ67: 75 | CR67: 0 | CU67: 75 | CV67: 0 | CW67: 75 | CX67: 1.091209076e-14 | CY67: 75 | CZ67: 0 | DA67: 75 | DB67: 0.2617358204 | DC67: 75 | DD67: 4.77782789e-18 | DE67: 75 | DF67: 0
A68: 100 | B68: 5.517582717e-11 | C68: 100 | D68: 0.05033117281 | E68: 100 | F68: 0.0009845516467 | G68: 100 | H68: 10.33129302 | I68: 100 | J68: 0.0003698946451 | K68: 100 | L68: 0.00122740159 | O68: 100 | P68: 0 | Q68: 100 | R68: 1.01662824e-10 | S68: 100 | T68: 0 | U68: 100 | V68: 3.352474559 | W68: 100 | X68: 2.978948415e-10 | Y68: 100 | Z68: 8.219070097e-25 | AC68: 100 | AD68: 0 | AE68: 100 | AF68: 2.205665284e-11 | AG68: 100 | AH68: 0 | AI68: 100 | AJ68: 1.95391711 | AK68: 100 | AL68: 4.516147092e-10 | AM68: 100 | AN68: 7.473195031e-24 | AQ68: 100 | AR68: 0 | AS68: 100 | AT68: 0.0002401328909 | AU68: 100 | AV68: 0 | AW68: 100 | AX68: 15.5297552 | AY68: 100 | AZ68: 3.359668705e-09 | BA68: 100 | BB68: 2.748817934e-14 | BE68: 100 | BF68: 5.517582717e-11 | BG68: 100 | BH68: 0.05033117281 | BI68: 100 | BJ68: 0.0009845516467 | BK68: 100 | BL68: 10.33129302 | BM68: 100 | BN68: 0.0003698946451 | BO68: 100 | BP68: 0.00122740159 | BS68: 100 | BT68: 0 | BU68: 100 | BV68: 7.376866249e-23 | BW68: 100 | BX68: 0 | BY68: 100 | BZ68: 0.000164189865 | CA68: 100 | CB68: 1.481387299e-22 | CC68: 100 | CD68: 3.182655767e-39 | CG68: 100 | CH68: 0 | CI68: 100 | CJ68: 0 | CK68: 100 | CL68: 0 | CM68: 100 | CN68: 0.0002069113303 | CO68: 100 | CP68: 3.591238551e-22 | CQ68: 100 | CR68: 2.447678783e-39 | CU68: 100 | CV68: 0 | CW68: 100 | CX68: 4.638755601e-11 | CY68: 100 | CZ68: 0 | DA68: 100 | DB68: 1.6611384 | DC68: 100 | DD68: 4.622694252e-18 | DE68: 100 | DF68: 0
A69: 110 | B69: 3.862912054e-10 | C69: 110 | D69: 0.04413248133 | E69: 110 | F69: 0.0008632961412 | G69: 110 | H69: 9.058910631 | I69: 110 | J69: 0.0003243391245 | K69: 110 | L69: 0.001076237145 | O69: 110 | P69: 0 | Q69: 110 | R69: 8.997553613e-10 | S69: 110 | T69: 0 | U69: 110 | V69: 4.634555578 | W69: 110 | X69: 2.612066803e-10 | Y69: 110 | Z69: 3.825165664e-22 | AC69: 110 | AD69: 0 | AE69: 110 | AF69: 2.295274704e-10 | AG69: 110 | AH69: 0 | AI69: 110 | AJ69: 3.021326748 | AK69: 110 | AL69: 4.468826679e-10 | AM69: 110 | AN69: 0 | AQ69: 110 | AR69: 0 | AS69: 110 | AT69: 0.0005406804718 | AU69: 110 | AV69: 0 | AW69: 110 | AX69: 16.37567438 | AY69: 110 | AZ69: 3.316138828e-09 | BA69: 110 | BB69: 4.064823502e-13 | BE69: 110 | BF69: 3.862912054e-10 | BG69: 110 | BH69: 0.04413248133 | BI69: 110 | BJ69: 0.0008632961412 | BK69: 110 | BL69: 9.058910631 | BM69: 110 | BN69: 0.0003243391245 | BO69: 110 | BP69: 0.001076237145 | BS69: 110 | BT69: 0 | BU69: 110 | BV69: 0 | BW69: 110 | BX69: 0 | BY69: 110 | BZ69: 0.0006312139438 | CA69: 110 | CB69: 1.29894246e-22 | CC69: 110 | CD69: 0 | CG69: 110 | CH69: 0 | CI69: 110 | CJ69: 0 | CK69: 110 | CL69: 0 | CM69: 110 | CN69: 0.0008513344359 | CO69: 110 | CP69: 3.553144253e-22 | CQ69: 110 | CR69: 0 | CU69: 110 | CV69: 0 | CW69: 110 | CX69: 4.515484991e-10 | CY69: 110 | CZ69: 0 | DA69: 110 | DB69: 2.62725459 | DC69: 110 | DD69: 4.562060467e-18 | DE69: 110 | DF69: 0
A70: 120 | B70: 1.948749799e-09 | C70: 120 | D70: 0.03869720889 | E70: 120 | F70: 0.0007569742327 | G70: 120 | H70: 7.943232432 | I70: 120 | J70: 0.000284394135 | K70: 120 | L70: 0.0009436898259 | O70: 120 | P70: 0 | Q70: 120 | R70: 5.51606864e-09 | S70: 120 | T70: 0 | U70: 120 | V70: 5.951808027 | W70: 120 | X70: 2.29036963e-10 | Y70: 120 | Z70: 0 | AC70: 120 | AD70: 0 | AE70: 120 | AF70: 1.613078528e-09 | AG70: 120 | AH70: 0 | AI70: 120 | AJ70: 4.249921981 | AK70: 120 | AL70: 4.422002091e-10 | AM70: 120 | AN70: 2.639775578e-22 | AQ70: 120 | AR70: 0 | AS70: 120 | AT70: 0.001053079376 | AU70: 120 | AV70: 0 | AW70: 120 | AX70: 16.84082479 | AY70: 120 | AZ70: 3.27317295e-09 | BA70: 120 | BB70: 3.823795503e-12 | BE70: 120 | BF70: 1.948749799e-09 | BG70: 120 | BH70: 0.03869720889 | BI70: 120 | BJ70: 0.0007569742327 | BK70: 120 | BL70: 7.943232432 | BM70: 120 | BN70: 0.000284394135 | BO70: 120 | BP70: 0.0009436898259 | BS70: 120 | BT70: 0 | BU70: 120 | BV70: 4.424664002e-21 | BW70: 120 | BX70: 0 | BY70: 120 | BZ70: 0.001926866076 | CA70: 120 | CB70: 1.138967181e-22 | CC70: 120 | CD70: 1.077785458e-35 | CG70: 120 | CH70: 0 | CI70: 120 | CJ70: 1.615314084e-20 | CK70: 120 | CL70: 0 | CM70: 120 | CN70: 0.002732292191 | CO70: 120 | CP70: 3.515454044e-22 | CQ70: 120 | CR70: 1.957590592e-35 | CU70: 120 | CV70: 0 | CW70: 120 | CX70: 3.001091734e-09 | CY70: 120 | CZ70: 0 | DA70: 120 | DB70: 3.766159357 | DC70: 120 | DD70: 4.502221988e-18 | DE70: 120 | DF70: 8.70101463e-22
A71: 130 | B71: 7.637352105e-09 | C71: 130 | D71: 0.03393133426 | E71: 130 | F71: 0.0006637467278 | G71: 130 | H71: 6.964959036 | I71: 130 | J71: 0.0002493686943 | K71: 130 | L71: 0.000827466782 | O71: 130 | P71: 0 | Q71: 130 | R71: 2.549129201e-08 | S71: 130 | T71: 0 | U71: 130 | V71: 7.220582794 | W71: 130 | X71: 2.008292068e-10 | Y71: 130 | Z71: 0 | AC71: 130 | AD71: 0 | AE71: 130 | AF71: 8.379764866e-09 | AG71: 130 | AH71: 0 | AI71: 130 | AJ71: 5.565537732 | AK71: 130 | AL71: 4.375668133e-10 | AM71: 130 | AN71: 1.090944227e-21 | AQ71: 130 | AR71: 0 | AS71: 130 | AT71: 0.001834555485 | AU71: 130 | AV71: 0 | AW71: 130 | AX71: 17.04824222 | AY71: 130 | AZ71: 3.230763763e-09 | BA71: 130 | BB71: 2.539599132e-11 | BE71: 130 | BF71: 7.637352105e-09 | BG71: 130 | BH71: 0.03393133426 | BI71: 130 | BJ71: 0.0006637467278 | BK71: 130 | BL71: 6.964959036 | BM71: 130 | BN71: 0.0002493686943 | BO71: 130 | BP71: 0.000827466782 | BS71: 130 | BT71: 0 | BU71: 130 | BV71: 1.266835735e-20 | BW71: 130 | BX71: 0 | BY71: 130 | BZ71: 0.004924147737 | CA71: 130 | CB71: 9.986941514e-23 | CC71: 130 | CD71: 8.617784257e-34 | CG71: 130 | CH71: 0 | CI71: 130 | CJ71: 0 | CK71: 130 | CL71: 0 | CM71: 130 | CN71: 0.007246030882 | CO71: 130 | CP71: 3.478163635e-22 | CQ71: 130 | CR71: 1.377574781e-33 | CU71: 130 | CV71: 0 | CW71: 130 | CX71: 1.486824085e-08 | CY71: 130 | CZ71: 0 | DA71: 130 | DB71: 5.011567805 | DC71: 130 | DD71: 4.443168384e-18 | DE71: 130 | DF71: 0
A72: 140 | B72: 2.453760024e-08 | C72: 140 | D72: 0.02975241567 | E72: 140 | F72: 0.0005820009449 | G72: 140 | H72: 6.107167929 | I72: 140 | J72: 0.0002186569202 | K72: 140 | L72: 0.0007255575469 | O72: 140 | P72: 0 | Q72: 140 | R72: 9.432643752e-08 | S72: 140 | T72: 0 | U72: 140 | V72: 8.375220271 | W72: 140 | X72: 1.760954641e-10 | Y72: 140 | Z72: 1.232891889e-20 | AC72: 140 | AD72: 0 | AE72: 140 | AF72: 3.432439351e-08 | AG72: 140 | AH72: 0 | AI72: 140 | AJ72: 6.898392321 | AK72: 140 | AL72: 4.329819664e-10 | AM72: 140 | AN72: 0 | AQ72: 140 | AR72: 0 | AS72: 140 | AT72: 0.002927764773 | AU72: 140 | AV72: 0 | AW72: 140 | AX72: 17.08905728 | AY72: 140 | AZ72: 3.188904055e-09 | BA72: 140 | BB72: 1.282826643e-10 | BE72: 140 | BF72: 2.453760024e-08 | BG72: 140 | BH72: 0.02975241567 | BI72: 140 | BJ72: 0.0005820009449 | BK72: 140 | BL72: 6.107167929 | BM72: 140 | BN72: 0.0002186569202 | BO72: 140 | BP72: 0.0007255575469 | BS72: 140 | BT72: 0 | BU72: 140 | BV72: 0 | BW72: 140 | BX72: 0 | BY72: 140 | BZ72: 0.01094035047 | CA72: 140 | CB72: 8.756968812e-23 | CC72: 140 | CD72: 2.17227374e-32 | CG72: 140 | CH72: 0 | CI72: 140 | CJ72: 0 | CK72: 140 | CL72: 0 | CM72: 140 | CN72: 0.01654670058 | CO72: 140 | CP72: 3.441268787e-22 | CQ72: 140 | CR72: 4.217767817e-32 | CU72: 140 | CV72: 0 | CW72: 140 | CX72: 5.846581283e-08 | CY72: 140 | CZ72: 0 | DA72: 140 | DB72: 6.296990685 | DC72: 140 | DD72: 4.384889359e-18 | DE72: 140 | DF72: 0
A73: 150 | B73: 6.723082566e-08 | C73: 150 | D73: 0.02608816473 | E73: 150 | F73: 0.0005103228167 | G73: 150 | H73: 5.35502074 | I73: 150 | J73: 0.0001917275497 | K73: 150 | L73: 0.0006361992591 | O73: 150 | P73: 0 | Q73: 150 | R73: 2.921362197e-07 | S73: 150 | T73: 0 | U73: 150 | V73: 9.370410325 | W73: 150 | X73: 1.544078819e-10 | Y73: 150 | Z73: 1.365759825e-20 | AC73: 150 | AD73: 0 | AE73: 150 | AF73: 1.16236919e-07 | AG73: 150 | AH73: 0 | AI73: 150 | AJ73: 8.191245069 | AK73: 150 | AL73: 4.284451598e-10 | AM73: 150 | AN73: 0 | AQ73: 150 | AR73: 0 | AS73: 150 | AT73: 0.004356176616 | AU73: 150 | AV73: 3.743970987e-39 | AW73: 150 | AX73: 17.02590664 | AY73: 150 | AZ73: 3.147586706e-09 | BA73: 150 | BB73: 5.204878413e-10 | BE73: 150 | BF73: 6.723082566e-08 | BG73: 150 | BH73: 0.02608816473 | BI73: 150 | BJ73: 0.0005103228167 | BK73: 150 | BL73: 5.35502074 | BM73: 150 | BN73: 0.0001917275497 | BO73: 150 | BP73: 0.0006361992591 | BS73: 150 | BT73: 0 | BU73: 150 | BV73: 0 | BW73: 150 | BX73: 0 | BY73: 150 | BZ73: 0.02172718006 | CA73: 150 | CB73: 7.678477206e-23 | CC73: 150 | CD73: 1.619861055e-31 | CG73: 150 | CH73: 0 | CI73: 150 | CJ73: 1.313638317e-19 | CK73: 150 | CL73: 0 | CM73: 150 | CN73: 0.0335340688 | CO73: 150 | CP73: 3.404765303e-22 | CQ73: 150 | CR73: 4.173820846e-31 | CU73: 150 | CV73: 0 | CW73: 150 | CX73: 1.910767834e-07 | CY73: 150 | CZ73: 0 | DA73: 150 | DB73: 7.564789746 | DC73: 150 | DD73: 4.327374754e-18 | DE73: 150 | DF73: 4.187971185e-21
A74: 160 | B74: 1.61816459e-07 | C74: 160 | D74: 0.02287519596 | E74: 160 | F74: 0.0004474724302 | G74: 160 | H74: 4.695506567 | I74: 160 | J74: 0.0001681147492 | K74: 160 | L74: 0.0005578461678 | O74: 160 | P74: 0 | Q74: 160 | R74: 7.828412379e-07 | S74: 160 | T74: 0 | U74: 160 | V74: 10.17995868 | W74: 160 | X74: 1.353913011e-10 | Y74: 160 | Z74: 3.756242552e-21 | AC74: 160 | AD74: 0 | AE74: 160 | AF74: 3.372072331e-07 | AG74: 160 | AH74: 0 | AI74: 160 | AJ74: 9.402272455 | AK74: 160 | AL74: 4.239558901e-10 | AM74: 160 | AN74: 2.111989597e-20 | AQ74: 160 | AR74: 0 | AS74: 160 | AT74: 0.006123063173 | AU74: 160 | AV74: 0 | AW74: 160 | AX74: 16.89979541 | AY74: 160 | AZ74: 3.10680469e-09 | BA74: 160 | BB74: 1.767192835e-09 | BE74: 160 | BF74: 1.61816459e-07 | BG74: 160 | BH74: 0.02287519596 | BI74: 160 | BJ74: 0.0004474724302 | BK74: 160 | BL74: 4.695506567 | BM74: 160 | BN74: 0.0001681147492 | BO74: 160 | BP74: 0.0005578461678 | BS74: 160 | BT74: 0 | BU74: 160 | BV74: 3.203407958e-19 | BW74: 160 | BX74: 0 | BY74: 160 | BZ74: 0.03938188105 | CA74: 160 | CB74: 6.732810574e-23 | CC74: 160 | CD74: 0 | CG74: 160 | CH74: 0 | CI74: 160 | CJ74: 8.267701667e-19 | CK74: 160 | CL74: 0 | CM74: 160 | CN74: 0.06169782976 | CO74: 160 | CP74: 3.368649033e-22 | CQ74: 160 | CR74: 0 | CU74: 160 | CV74: 0 | CW74: 160 | CX74: 5.372646089e-07 | CY74: 160 | CZ74: 0 | DA74: 160 | DB74: 8.770331671 | DC74: 160 | DD74: 4.270614542e-18 | DE74: 160 | DF74: 4.781689853e-20
A75: 170 | B75: 3.499830514e-07 | C75: 170 | D75: 0.0200579303 | E75: 170 | F75: 0.0003923625776 | G75: 170 | H75: 4.117216903 | I75: 170 | J75: 0.0001474100562 | K75: 170 | L75: 0.000489142894 | O75: 170 | P75: 0 | Q75: 170 | R75: 1.861800594e-06 | S75: 170 | T75: 0 | U75: 170 | V75: 10.79374806 | W75: 170 | X75: 1.187167661e-10 | Y75: 170 | Z75: 5.101995155e-19 | AC75: 170 | AD75: 0 | AE75: 170 | AF75: 8.611460539e-07 | AG75: 170 | AH75: 0 | AI75: 170 | AJ75: 10.50453852 | AK75: 170 | AL75: 4.195136591e-10 | AM75: 170 | AN75: 5.416902147e-20 | AQ75: 170 | AR75: 0 | AS75: 170 | AT75: 0.008213235403 | AU75: 170 | AV75: 6.353735108e-37 | AW75: 170 | AX75: 16.73667311 | AY75: 170 | AZ75: 3.06655107e-09 | BA75: 170 | BB75: 5.180843426e-09 | BE75: 170 | BF75: 3.499830514e-07 | BG75: 170 | BH75: 0.0200579303 | BI75: 170 | BJ75: 0.0003923625776 | BK75: 170 | BL75: 4.117216903 | BM75: 170 | BN75: 0.0001474100562 | BO75: 170 | BP75: 0.000489142894 | BS75: 170 | BT75: 0 | BU75: 170 | BV75: 7.06970882e-19 | BW75: 170 | BX75: 0 | BY75: 170 | BZ75: 0.06619709066 | CA75: 170 | CB75: 5.903610445e-23 | CC75: 170 | CD75: 0 | CG75: 170 | CH75: 0 | CI75: 170 | CJ75: 5.057664186e-19 | CK75: 170 | CL75: 0 | CM75: 170 | CN75: 0.104855176 | CO75: 170 | CP75: 3.332915868e-22 | CQ75: 170 | CR75: 0 | CU75: 170 | CV75: 0 | CW75: 170 | CX75: 1.334532813e-06 | CY75: 170 | CZ75: 0 | DA75: 170 | DB75: 9.882641262 | DC75: 170 | DD75: 4.214598829e-18 | DE75: 170 | DF75: 3.441727868e-20
A76: 180 | B76: 6.923283153e-07 | C76: 180 | D76: 0.01758763372 | E76: 180 | F76: 0.0003440399494 | G76: 180 | H76: 3.610148293 | I76: 180 | J76: 0.0001292553138 | K76: 180 | L76: 0.0004289009847 | O76: 180 | P76: 0 | Q76: 180 | R76: 4.008204446e-06 | S76: 180 | T76: 0 | U76: 180 | V76: 11.21409433 | W76: 180 | X76: 1.04095835e-10 | Y76: 180 | Z76: 5.291623962e-18 | AC76: 180 | AD76: 0 | AE76: 180 | AF76: 1.977331768e-06 | AG76: 180 | AH76: 0 | AI76: 180 | AJ76: 11.48372232 | AK76: 180 | AL76: 4.151179741e-10 | AM76: 180 | AN76: 8.38166612e-21 | AQ76: 180 | AR76: 0 | AS76: 180 | AT76: 0.01059644513 | AU76: 180 | AV76: 1.739476319e-35 | AW76: 180 | AX76: 16.55256065 | AY76: 180 | AZ76: 3.026819e-09 | BA76: 180 | BB76: 1.343858092e-08 | BE76: 180 | BF76: 6.923283153e-07 | BG76: 180 | BH76: 0.01758763372 | BI76: 180 | BJ76: 0.0003440399494 | BK76: 180 | BL76: 3.610148293 | BM76: 180 | BN76: 0.0001292553138 | BO76: 180 | BP76: 0.0004289009847 | BS76: 180 | BT76: 0 | BU76: 180 | BV76: 7.155574744e-20 | BW76: 180 | BX76: 0 | BY76: 180 | BZ76: 0.1044784038 | CA76: 180 | CB76: 5.176533026e-23 | CC76: 180 | CD76: 0 | CG76: 180 | CH76: 0 | CI76: 180 | CJ76: 1.397512345e-18 | CK76: 180 | CL76: 0 | CM76: 180 | CN76: 0.166839344 | CO76: 180 | CP76: 3.297561746e-22 | CQ76: 180 | CR76: 0 | CU76: 180 | CV76: 0 | CW76: 180 | CX76: 2.989307331e-06 | CY76: 180 | CZ76: 0 | DA76: 180 | DB76: 10.88302304 | DC76: 180 | DD76: 4.159317848e-18 | DE76: 180 | DF76: 7.941762295e-21
A77: 190 | B77: 1.270223617e-06 | C77: 190 | D77: 0.01542157416 | E77: 190 | F77: 0.0003016686439 | G77: 190 | H77: 3.165529288 | I77: 190 | J77: 0.0001133364749 | K77: 190 | L77: 0.0003760783541 | O77: 190 | P77: 0 | Q77: 190 | R77: 7.934243529e-06 | S77: 190 | T77: 0 | U77: 190 | V77: 11.4522011 | W77: 190 | X77: 9.127558993e-11 | Y77: 190 | Z77: 3.719251256e-17 | AC77: 190 | AD77: 0 | AE77: 190 | AF77: 4.151158575e-06 | AG77: 190 | AH77: 0 | AI77: 190 | AJ77: 12.33525486 | AK77: 190 | AL77: 4.107683472e-10 | AM77: 190 | AN77: 1.029770431e-19 | AQ77: 190 | AR77: 0 | AS77: 190 | AT77: 0.01323149395 | AU77: 190 | AV77: 3.193600323e-34 | AW77: 190 | AX77: 16.35716534 | AY77: 190 | AZ77: 2.987601722e-09 | BA77: 190 | BB77: 3.144201763e-08 | BE77: 190 | BF77: 1.270223617e-06 | BG77: 190 | BH77: 0.01542157416 | BI77: 190 | BJ77: 0.0003016686439 | BK77: 190 | BL77: 3.165529288 | BM77: 190 | BN77: 0.0001133364749 | BO77: 190 | BP77: 0.0003760783541 | BS77: 190 | BT77: 0 | BU77: 190 | BV77: 2.233222504e-18 | BW77: 190 | BX77: 0 | BY77: 190 | BZ77: 0.1563597963 | CA77: 190 | CB77: 4.53900108e-23 | CC77: 190 | CD77: 3.610187554e-28 | CG77: 190 | CH77: 0 | CI77: 190 | CJ77: 3.14063049e-17 | CK77: 190 | CL77: 0 | CM77: 190 | CN77: 0.2511959178 | CO77: 190 | CP77: 3.262582645e-22 | CQ77: 190 | CR77: 4.518460304e-28 | CU77: 190 | CV77: 0 | CW77: 190 | CX77: 6.137256246e-06 | CY77: 190 | CZ77: 0 | DA77: 190 | DB77: 11.76277844 | DC77: 190 | DD77: 4.104761963e-18 | DE77: 190 | DF77: 1.111151992e-18
A78: 200 | B78: 2.185779819e-06 | C78: 200 | D78: 0.01352228238 | E78: 200 | F78: 0.0002645157077 | G78: 200 | H78: 2.775668712 | I78: 200 | J78: 9.93781699e-05 | K78: 200 | L78: 0.0003297612582 | O78: 200 | P78: 0 | Q78: 200 | R78: 1.462273398e-05 | S78: 200 | T78: 0 | U78: 200 | V78: 11.52506524 | W78: 200 | X78: 8.003426183e-11 | Y78: 200 | Z78: 2.137535723e-16 | AC78: 200 | AD78: 0 | AE78: 200 | AF78: 8.075346617e-06 | AG78: 200 | AH78: 0 | AI78: 200 | AJ78: 13.06153639 | AK78: 200 | AL78: 4.06464296e-10 | AM78: 200 | AN78: 2.100033003e-18 | AQ78: 200 | AR78: 0 | AS78: 200 | AT78: 0.01607034634 | AU78: 200 | AV78: 4.616233558e-33 | AW78: 200 | AX78: 16.1562822 | AY78: 200 | AZ78: 2.948892567e-09 | BA78: 200 | BB78: 6.738592409e-08 | BE78: 200 | BF78: 2.185779819e-06 | BG78: 200 | BH78: 0.01352228238 | BI78: 200 | BJ78: 0.0002645157077 | BK78: 200 | BL78: 2.775668712 | BM78: 200 | BN78: 9.93781699e-05 | BO78: 200 | BP78: 0.0003297612582 | BS78: 200 | BT78: 0 | BU78: 200 | BV78: 3.532305932e-17 | BW78: 200 | BX78: 0 | BY78: 200 | BZ78: 0.2236413851 | CA78: 200 | CB78: 3.979986356e-23 | CC78: 200 | CD78: 2.280650758e-27 | CG78: 200 | CH78: 0 | CI78: 200 | CJ78: 2.508965893e-16 | CK78: 200 | CL78: 0 | CM78: 200 | CN78: 0.3609291365 | CO78: 200 | CP78: 3.227974587e-22 | CQ78: 200 | CR78: 5.151006229e-27 | CU78: 200 | CV78: 0 | CW78: 200 | CX78: 1.170020862e-05 | CY78: 200 | CZ78: 0 | DA78: 200 | DB78: 12.52074079 | DC78: 200 | DD78: 4.050921662e-18 | DE78: 200 | DF78: 9.874745392e-18
A79: 300 | B79: 5.925187656e-05 | C79: 300 | D79: 0.003632979176 | E79: 300 | F79: 7.106641425e-05 | G79: 300 | H79: 0.7457281515 | I79: 300 | J79: 2.669954761e-05 | K79: 300 | L79: 8.859567852e-05 | O79: 300 | P79: 0 | Q79: 300 | R79: 0.0006187021758 | S79: 300 | T79: 0 | U79: 300 | V79: 7.525577406 | W79: 300 | X79: 2.150249565e-11 | Y79: 300 | Z79: 1.363870764e-11 | AC79: 300 | AD79: 0 | AE79: 300 | AF79: 0.000504404874 | AG79: 300 | AH79: 0 | AI79: 300 | AJ79: 15.53094053 | AK79: 300 | AL79: 3.658278185e-10 | AM79: 300 | AN79: 9.964696949e-13 | AQ79: 300 | AR79: 0 | AS79: 300 | AT79: 0.04562092979 | AU79: 300 | AV79: 4.027143942e-27 | AW79: 300 | AX79: 14.19437153 | AY79: 300 | AZ79: 2.588340737e-09 | BA79: 300 | BB79: 7.583953925e-06 | BE79: 300 | BF79: 5.925187656e-05 | BG79: 300 | BH79: 0.003632979176 | BI79: 300 | BJ79: 7.106641425e-05 | BK79: 300 | BL79: 0.7457281515 | BM79: 300 | BN79: 2.669954761e-05 | BO79: 300 | BP79: 8.859567852e-05 | BS79: 300 | BT79: 0 | BU79: 300 | BV79: 1.486959336e-11 | BW79: 300 | BX79: 0 | BY79: 300 | BZ79: 1.77712775 | CA79: 300 | CB79: 1.069287691e-23 | CC79: 300 | CD79: 0 | CG79: 300 | CH79: 0 | CI79: 300 | CJ79: 5.868420426e-11 | CK79: 300 | CL79: 0 | CM79: 300 | CN79: 2.969879506 | CO79: 300 | CP79: 2.901455807e-22 | CQ79: 300 | CR79: 0 | CU79: 300 | CV79: 0 | CW79: 300 | CX79: 0.0006399852013 | CY79: 300 | CZ79: 0 | DA79: 300 | DB79: 15.14433575 | DC79: 300 | DD79: 3.549870577e-18 | DE79: 300 | DF79: 2.612533932e-12
A80: 400 | B80: 0.0002510420724 | C80: 400 | D80: 0.0009760580815 | E80: 400 | F80: 1.909313412e-05 | G80: 400 | H80: 0.2003518203 | I80: 400 | J80: 7.1732614e-06 | K80: 400 | L80: 2.380264886e-05 | O80: 400 | P80: 0 | Q80: 400 | R80: 0.003327617002 | S80: 400 | T80: 0 | U80: 400 | V80: 3.193298608 | W80: 400 | X80: 5.776990564e-12 | Y80: 400 | Z80: 3.198452552e-09 | AC80: 400 | AD80: 0 | AE80: 400 | AF80: 0.003556499992 | AG80: 400 | AH80: 0 | AI80: 400 | AJ80: 14.60832484 | AK80: 400 | AL80: 3.29253994e-10 | AM80: 400 | AN80: 6.210198047e-10 | AQ80: 400 | AR80: 0 | AS80: 400 | AT80: 0.06170343184 | AU80: 400 | AV80: 4.082014682e-24 | AW80: 400 | AX80: 12.45891852 | AY80: 400 | AZ80: 2.271872449e-09 | BA80: 400 | BB80: 6.942875027e-05 | BE80: 400 | BF80: 0.0002510420724 | BG80: 400 | BH80: 0.0009760580815 | BI80: 400 | BJ80: 1.909313412e-05 | BK80: 400 | BL80: 0.2003518203 | BM80: 400 | BN80: 7.1732614e-06 | BO80: 400 | BP80: 2.380264886e-05 | BS80: 400 | BT80: 0 | BU80: 400 | BV80: 8.766186134e-09 | BW80: 400 | BX80: 0 | BY80: 400 | BZ80: 3.783874623 | CA80: 400 | CB80: 2.872814343e-24 | CC80: 400 | CD80: 0 | CG80: 400 | CH80: 0 | CI80: 400 | CJ80: 2.763275898e-08 | CK80: 400 | CL80: 0 | CM80: 400 | CN80: 6.902085207 | CO80: 400 | CP80: 2.607965323e-22 | CQ80: 400 | CR80: 0 | CU80: 400 | CV80: 0 | CW80: 400 | CX80: 0.00419365131 | CY80: 400 | CZ80: 1.433385004e-38 | DA80: 400 | DB80: 14.04107267 | DC80: 400 | DD80: 3.110793577e-18 | DE80: 400 | DF80: 1.274983081e-09
A81: 500 | B81: 0.0005013969371 | C81: 500 | D81: 0.00026223331 | E81: 500 | F81: 5.129671819e-06 | G81: 500 | H81: 0.05382765889 | I81: 500 | J81: 1.927209176e-06 | K81: 500 | L81: 6.394954769e-06 | O81: 500 | P81: 0 | Q81: 500 | R81: 0.007768807372 | S81: 500 | T81: 6.589723031e-33 | U81: 500 | V81: 1.134580201 | W81: 500 | X81: 1.552079389e-12 | Y81: 500 | Z81: 7.8878446e-08 | AC81: 500 | AD81: 0 | AE81: 500 | AF81: 0.01046774922 | AG81: 500 | AH81: 5.0792238e-35 | AI81: 500 | AJ81: 13.24010862 | AK81: 500 | AL81: 2.963366565e-10 | AM81: 500 | AN81: 2.817398596e-08 | AQ81: 500 | AR81: 0 | AS81: 500 | AT81: 0.06454845699 | AU81: 500 | AV81: 1.713367761e-22 | AW81: 500 | AX81: 10.93560588 | AY81: 500 | AZ81: 1.994097744e-09 | BA81: 500 | BB81: 0.0002328639711 | BE81: 500 | BF81: 0.0005013969371 | BG81: 500 | BH81: 0.00026223331 | BI81: 500 | BJ81: 5.12967182e-06 | BK81: 500 | BL81: 0.05382765889 | BM81: 500 | BN81: 1.927209176e-06 | BO81: 500 | BP81: 6.394954771e-06 | BS81: 500 | BT81: 0 | BU81: 500 | BV81: 3.802513743e-07 | BW81: 500 | BX81: 0 | BY81: 500 | BZ81: 4.72059741 | CA81: 500 | CB81: 7.7182786e-25 | CC81: 500 | CD81: 0 | CG81: 500 | CH81: 0 | CI81: 500 | CJ81: 1.076246251e-06 | CK81: 500 | CL81: 0 | CM81: 500 | CN81: 10.01557143 | CO81: 500 | CP81: 2.344162232e-22 | CQ81: 500 | CR81: 0 | CU81: 500 | CV81: 0 | CW81: 500 | CX81: 0.01174194394 | CY81: 500 | CZ81: 5.989399891e-34 | DA81: 500 | DB81: 12.42770456 | DC81: 500 | DD81: 2.726025207e-18 | DE81: 500 | DF81: 4.978370936e-08
A82: 1000 | B82: 0.0005533443654 | C82: 1000 | D82: 3.665123816e-07 | E82: 1000 | F82: 7.169917557e-09 | G82: 1000 | H82: 7.523297843e-05 | I82: 1000 | J82: 2.693588878e-09 | K82: 1000 | L82: 8.937858424e-09 | O82: 1000 | P82: 0 | Q82: 1000 | R82: 0.01283117652 | S82: 1000 | T82: 0 | U82: 1000 | V82: 0.002803017937 | W82: 1000 | X82: 2.169258214e-15 | Y82: 1000 | Z82: 2.700196793e-05 | AC82: 1000 | AD82: 0 | AE82: 1000 | AF82: 0.0476146446 | AG82: 1000 | AH82: 0 | AI82: 1000 | AJ82: 7.829512051 | AK82: 1000 | AL82: 1.750076367e-10 | AM82: 1000 | AN82: 3.973045206e-05 | AQ82: 1000 | AR82: 0 | AS82: 1000 | AT82: 0.03817185139 | AU82: 1000 | AV82: 9.644739925e-16 | AW82: 1000 | AX82: 5.697119643 | AY82: 1000 | AZ82: 1.038864553e-09 | BA82: 1000 | BB82: 0.001151966214 | BE82: 1000 | BF82: 0.0005533443654 | BG82: 1000 | BH82: 3.665123618e-07 | BI82: 1000 | BJ82: 7.169918082e-09 | BK82: 1000 | BL82: 7.52329812e-05 | BM82: 1000 | BN82: 2.693588711e-09 | BO82: 1000 | BP82: 8.937855603e-09 | BS82: 1000 | BT82: 0 | BU82: 1000 | BV82: 0.0004309599727 | BW82: 1000 | BX82: 0 | BY82: 1000 | BZ82: 1.345910819 | CA82: 1000 | CB82: 1.079322968e-27 | CC82: 1000 | CD82: 2.007611048e-11 | CG82: 1000 | CH82: 0 | CI82: 1000 | CJ82: 0.001241616408 | CK82: 1000 | CL82: 0 | CM82: 1000 | CN82: 10.54533222 | CO82: 1000 | CP82: 1.375361693e-22 | CQ82: 1000 | CR82: 5.397833389e-11 | CU82: 1000 | CV82: 0 | CW82: 1000 | CX82: 0.04585289457 | CY82: 1000 | CZ82: 1.46848004e-24 | DA82: 1000 | DB82: 6.43597903 | DC82: 1000 | DD82: 1.408715315e-18 | DE82: 1000 | DF82: 5.056311407e-05
A83: 2000 | B83: 3.451625172e-05 | C83: 2000 | D83: 0 | E83: 2000 | F83: 0 | G83: 2000 | H83: 0 | I83: 2000 | J83: 0 | K83: 2000 | L83: 0 | O83: 2000 | P83: 0 | Q83: 2000 | R83: 0.00120857002 | S83: 2000 | T83: 3.795956798e-19 | U83: 2000 | V83: 1.665493265e-08 | W83: 2000 | X83: 0 | Y83: 2000 | Z83: 0.0001358098704 | AC83: 2000 | AD83: 0 | AE83: 2000 | AF83: 0.0284749452 | AG83: 2000 | AH83: 8.676945967e-21 | AI83: 2000 | AJ83: 2.730725305 | AK83: 2000 | AL83: 6.103799274e-11 | AM83: 2000 | AN83: 0.0005918684316 | AQ83: 2000 | AR83: 0 | AS83: 2000 | AT83: 0.01038170606 | AU83: 2000 | AV83: 8.665416143e-09 | AW83: 2000 | AX83: 1.546252141 | AY83: 2000 | AZ83: 2.819576554e-10 | BA83: 2000 | BB83: 0.000525942928 | BE83: 2000 | BF83: 3.451625172e-05 | BG83: 2000 | BH83: 0 | BI83: 2000 | BJ83: 0 | BK83: 2000 | BL83: 0 | BM83: 2000 | BN83: 0 | BO83: 2000 | BP83: 0 | BS83: 2000 | BT83: 0 | BU83: 2000 | BV83: 0.004443602955 | BW83: 2000 | BX83: 0 | BY83: 2000 | BZ83: 0.01597580668 | CA83: 2000 | CB83: 0 | CC83: 2000 | CD83: 4.305019237e-07 | CG83: 2000 | CH83: 0 | CI83: 2000 | CJ83: 0.0202769598 | CK83: 2000 | CL83: 0 | CM83: 2000 | CN83: 3.809243314 | CO83: 2000 | CP83: 4.734514376e-23 | CQ83: 2000 | CR83: 1.746764555e-06 | CU83: 2000 | CV83: 0 | CW83: 2000 | CX83: 0.02142132603 | CY83: 2000 | CZ83: 0 | DA83: 2000 | DB83: 1.718705822 | DC83: 2000 | DD83: 3.76192354e-19 | DE83: 2000 | DF83: 0.0005864641804
A86: Pollutant Linkage: New Phases, Base AGB, Haz Compliance | O86: Pollutant Linkage: New Phases, Base AGB, Lower Calc Grit, Nonhaz Compliance | AC86: Pollutant Linkage: New Phases, Side AGB, Highworth Lstn, Nonhaz Compliance | AQ86: Pollutant Linkage: New Phases, Side AGB, Highworth Grit, Nonhaz Compliance | BE86: Pollutant Linkage: Existing Phases, Base AGB, Haz Compliance | BS86: Pollutant Linkage: Existing Phases, Base AGB, Lower Calc Grit, Nonhaz Compliance | CG86: Pollutant Linkage: Existing Phases, Side AGB, Highworth Lstn, Nonhaz Compliance | CU86: Pollutant Linkage: Existing Phases, Side AGB, Highworth Grit, Nonhaz Compliance
A87: Remedial Target Concentrations in mg/L in New Phases | O87: Remedial Target Concentrations in mg/L in New Phases | AC87: Remedial Target Concentrations in mg/L in New Phases | AQ87: Remedial Target Concentrations in mg/L in New Phases | BE87: Remedial Target Concentrations in mg/L in Existing Phases | BS87: Remedial Target Concentrations in mg/L in Existing Phases | CG87: Remedial Target Concentrations in mg/L in Existing Phases | CU87: Remedial Target Concentrations in mg/L in Existing Phases
B89: Species1 | D89: Species2 | F89: Species3 | H89: Species4 | J89: Species5 | L89: Species6 | P89: Species1 | R89: Species2 | T89: Species3 | V89: Species4 | X89: Species5 | Z89: Species6 | AD89: Species1 | AF89: Species2 | AH89: Species3 | AJ89: Species4 | AL89: Species5 | AN89: Species6 | AR89: Species1 | AT89: Species2 | AV89: Species3 | AX89: Species4 | AZ89: Species5 | BB89: Species6 | BF89: Species1 | BH89: Species2 | BJ89: Species3 | BL89: Species4 | BN89: Species5 | BP89: Species6 | BT89: Species1 | BV89: Species2 | BX89: Species3 | BZ89: Species4 | CB89: Species5 | CD89: Species6 | CH89: Species1 | CJ89: Species2 | CL89: Species3 | CN89: Species4 | CP89: Species5 | CR89: Species6 | CV89: Species1 | CX89: Species2 | CZ89: Species3 | DB89: Species4 | DD89: Species5 | DF89: Species6
A90: Time(years) | B90: Lead | C90: Time(years) | D90: AmmN | E90: Time(years) | F90: Nickel | G90: Time(years) | H90: Chloride | I90: Time(years) | J90: Toluene | K90: Time(years) | L90: Cadmium | O90: Time(years) | P90: Lead | Q90: Time(years) | R90: AmmN | S90: Time(years) | T90: Nickel | U90: Time(years) | V90: Chloride | W90: Time(years) | X90: Toluene | Y90: Time(years) | Z90: Cadmium | AC90: Time(years) | AD90: Lead | AE90: Time(years) | AF90: AmmN | AG90: Time(years) | AH90: Nickel | AI90: Time(years) | AJ90: Chloride | AK90: Time(years) | AL90: Toluene | AM90: Time(years) | AN90: Cadmium | AQ90: Time(years) | AR90: Lead | AS90: Time(years) | AT90: AmmN | AU90: Time(years) | AV90: Nickel | AW90: Time(years) | AX90: Chloride | AY90: Time(years) | AZ90: Toluene | BA90: Time(years) | BB90: Cadmium | BE90: Time(years) | BF90: Lead | BG90: Time(years) | BH90: AmmN | BI90: Time(years) | BJ90: Nickel | BK90: Time(years) | BL90: Chloride | BM90: Time(years) | BN90: Toluene | BO90: Time(years) | BP90: Cadmium | BS90: Time(years) | BT90: Lead | BU90: Time(years) | BV90: AmmN | BW90: Time(years) | BX90: Nickel | BY90: Time(years) | BZ90: Chloride | CA90: Time(years) | CB90: Toluene | CC90: Time(years) | CD90: Cadmium | CG90: Time(years) | CH90: Lead | CI90: Time(years) | CJ90: AmmN | CK90: Time(years) | CL90: Nickel | CM90: Time(years) | CN90: Chloride | CO90: Time(years) | CP90: Toluene | CQ90: Time(years) | CR90: Cadmium | CU90: Time(years) | CV90: Lead | CW90: Time(years) | CX90: AmmN | CY90: Time(years) | CZ90: Nickel | DA90: Time(years) | DB90: Chloride | DC90: Time(years) | DD90: Toluene | DE90: Time(years) | DF90: Cadmium
A91: 0.1 | B91: 1e+40 | C91: 0.1 | D91: 165.4330821 | E91: 0.1 | F91: 1.80542447e+35 | G91: 0.1 | H91: 673.101608 | I91: 0.1 | J91: 0.01048515974 | K91: 0.1 | L91: 4330.539434 | O91: 0.1 | P91: 1e+40 | Q91: 0.1 | R91: 1e+40 | S91: 0.1 | T91: 1e+40 | U91: 0.1 | V91: 1e+40 | W91: 0.1 | X91: 1e+40 | Y91: 0.1 | Z91: 1e+40 | AC91: 0.1 | AD91: 1e+40 | AE91: 0.1 | AF91: 1e+40 | AG91: 0.1 | AH91: 1e+40 | AI91: 0.1 | AJ91: 1e+40 | AK91: 0.1 | AL91: 1e+40 | AM91: 0.1 | AN91: 1e+40 | AQ91: 0.1 | AR91: 1e+40 | AS91: 0.1 | AT91: 1e+40 | AU91: 0.1 | AV91: 1e+40 | AW91: 0.1 | AX91: 1e+40 | AY91: 0.1 | AZ91: 1e+40 | BA91: 0.1 | BB91: 1e+40 | BE91: 0.1 | BF91: 1e+40 | BG91: 0.1 | BH91: 165.4330821 | BI91: 0.1 | BJ91: 1.80542447e+35 | BK91: 0.1 | BL91: 673.101608 | BM91: 0.1 | BN91: 0.01048515974 | BO91: 0.1 | BP91: 4330.539434 | BS91: 0.1 | BT91: 1e+40 | BU91: 0.1 | BV91: 1e+40 | BW91: 0.1 | BX91: 1e+40 | BY91: 0.1 | BZ91: 1e+40 | CA91: 0.1 | CB91: 1e+40 | CC91: 0.1 | CD91: 1e+40 | CG91: 0.1 | CH91: 1e+40 | CI91: 0.1 | CJ91: 1e+40 | CK91: 0.1 | CL91: 1e+40 | CM91: 0.1 | CN91: 1e+40 | CO91: 0.1 | CP91: 1e+40 | CQ91: 0.1 | CR91: 1e+40 | CU91: 0.1 | CV91: 1e+40 | CW91: 0.1 | CX91: 1e+40 | CY91: 0.1 | CZ91: 1e+40 | DA91: 0.1 | DB91: 1e+40 | DC91: 0.1 | DD91: 1e+40 | DE91: 0.1 | DF91: 1e+40
A92: 0.5 | B92: 1e+40 | C92: 0.5 | D92: 0.5811465737 | E92: 0.5 | F92: 1.849545711e+16 | G92: 0.5 | H92: 251.2735211 | I92: 0.5 | J92: 0.00639368762 | K92: 0.5 | L92: 0.0005443190849 | O92: 0.5 | P92: 1e+40 | Q92: 0.5 | R92: 1e+40 | S92: 0.5 | T92: 1e+40 | U92: 0.5 | V92: 1e+40 | W92: 0.5 | X92: 1e+40 | Y92: 0.5 | Z92: 1e+40 | AC92: 0.5 | AD92: 1e+40 | AE92: 0.5 | AF92: 1e+40 | AG92: 0.5 | AH92: 1e+40 | AI92: 0.5 | AJ92: 1e+40 | AK92: 0.5 | AL92: 1.228893652e+25 | AM92: 0.5 | AN92: 1e+40 | AQ92: 0.5 | AR92: 1e+40 | AS92: 0.5 | AT92: 1e+40 | AU92: 0.5 | AV92: 1e+40 | AW92: 0.5 | AX92: 1e+40 | AY92: 0.5 | AZ92: 9.667015183e+21 | BA92: 0.5 | BB92: 1e+40 | BE92: 0.5 | BF92: 1e+40 | BG92: 0.5 | BH92: 0.5811465737 | BI92: 0.5 | BJ92: 1.849545711e+16 | BK92: 0.5 | BL92: 251.2735211 | BM92: 0.5 | BN92: 0.00639368762 | BO92: 0.5 | BP92: 0.0005443190849 | BS92: 0.5 | BT92: 1e+40 | BU92: 0.5 | BV92: 1e+40 | BW92: 0.5 | BX92: 1e+40 | BY92: 0.5 | BZ92: 1e+40 | CA92: 0.5 | CB92: 1e+40 | CC92: 0.5 | CD92: 1e+40 | CG92: 0.5 | CH92: 1e+40 | CI92: 0.5 | CJ92: 1e+40 | CK92: 0.5 | CL92: 1e+40 | CM92: 0.5 | CN92: 1e+40 | CO92: 0.5 | CP92: 1e+40 | CQ92: 0.5 | CR92: 1e+40 | CU92: 0.5 | CV92: 1e+40 | CW92: 0.5 | CX92: 1e+40 | CY92: 0.5 | CZ92: 1e+40 | DA92: 0.5 | DB92: 1e+40 | DC92: 0.5 | DD92: 1e+40 | DE92: 0.5 | DF92: 1e+40
A93: 1 | B93: 1e+40 | C93: 1 | D93: 0.5057986288 | E93: 1 | F93: 8722400.166 | G93: 1 | H93: 252.8857013 | I93: 1 | J93: 0.006040927349 | K93: 1 | L93: 0.0001328611446 | O93: 1 | P93: 1e+40 | Q93: 1 | R93: 1e+40 | S93: 1 | T93: 1e+40 | U93: 1 | V93: 1e+40 | W93: 1 | X93: 1.743718072e+18 | Y93: 1 | Z93: 1e+40 | AC93: 1 | AD93: 1e+40 | AE93: 1 | AF93: 1e+40 | AG93: 1 | AH93: 1e+40 | AI93: 1 | AJ93: 1e+40 | AK93: 1 | AL93: 6.146537889e+18 | AM93: 1 | AN93: 1e+40 | AQ93: 1 | AR93: 1e+40 | AS93: 1 | AT93: 1e+40 | AU93: 1 | AV93: 1e+40 | AW93: 1 | AX93: 1e+40 | AY93: 1 | AZ93: 1e+40 | BA93: 1 | BB93: 1e+40 | BE93: 1 | BF93: 1e+40 | BG93: 1 | BH93: 0.5057986288 | BI93: 1 | BJ93: 8722400.166 | BK93: 1 | BL93: 252.8857013 | BM93: 1 | BN93: 0.006040927349 | BO93: 1 | BP93: 0.0001328611446 | BS93: 1 | BT93: 1e+40 | BU93: 1 | BV93: 1e+40 | BW93: 1 | BX93: 1e+40 | BY93: 1 | BZ93: 1e+40 | CA93: 1 | CB93: 1e+40 | CC93: 1 | CD93: 1e+40 | CG93: 1 | CH93: 1e+40 | CI93: 1 | CJ93: 1e+40 | CK93: 1 | CL93: 1e+40 | CM93: 1 | CN93: 1e+40 | CO93: 1 | CP93: 1e+40 | CQ93: 1 | CR93: 1e+40 | CU93: 1 | CV93: 1e+40 | CW93: 1 | CX93: 1e+40 | CY93: 1 | CZ93: 1e+40 | DA93: 1 | DB93: 1e+40 | DC93: 1 | DD93: 1e+40 | DE93: 1 | DF93: 1e+40
A94: 2 | B94: 1e+40 | C94: 2 | D94: 0.5110236439 | E94: 2 | F94: 171.1411009 | G94: 2 | H94: 256.2312778 | I94: 2 | J94: 0.005989935048 | K94: 2 | L94: 0.0001025948437 | O94: 2 | P94: 1e+40 | Q94: 2 | R94: 1e+40 | S94: 2 | T94: 1e+40 | U94: 2 | V94: 1e+40 | W94: 2 | X94: 2.921346417e+10 | Y94: 2 | Z94: 1e+40 | AC94: 2 | AD94: 1e+40 | AE94: 2 | AF94: 1e+40 | AG94: 2 | AH94: 1e+40 | AI94: 2 | AJ94: 1e+40 | AK94: 2 | AL94: 8.274030499e+10 | AM94: 2 | AN94: 1e+40 | AQ94: 2 | AR94: 1e+40 | AS94: 2 | AT94: 1e+40 | AU94: 2 | AV94: 1e+40 | AW94: 2 | AX94: 3.284523829e+30 | AY94: 2 | AZ94: 380585525.5 | BA94: 2 | BB94: 1e+40 | BE94: 2 | BF94: 1e+40 | BG94: 2 | BH94: 0.5110236439 | BI94: 2 | BJ94: 171.1411009 | BK94: 2 | BL94: 256.2312778 | BM94: 2 | BN94: 0.005989935048 | BO94: 2 | BP94: 0.0001025948437 | BS94: 2 | BT94: 1e+40 | BU94: 2 | BV94: 1e+40 | BW94: 2 | BX94: 1e+40 | BY94: 2 | BZ94: 1e+40 | CA94: 2 | CB94: 1e+40 | CC94: 2 | CD94: 1e+40 | CG94: 2 | CH94: 1e+40 | CI94: 2 | CJ94: 1e+40 | CK94: 2 | CL94: 1e+40 | CM94: 2 | CN94: 1e+40 | CO94: 2 | CP94: 1e+40 | CQ94: 2 | CR94: 1e+40 | CU94: 2 | CV94: 1e+40 | CW94: 2 | CX94: 1e+40 | CY94: 2 | CZ94: 1e+40 | DA94: 2 | DB94: 1e+40 | DC94: 2 | DD94: 1e+40 | DE94: 2 | DF94: 1e+40
A95: 3 | B95: 1e+40 | C95: 3 | D95: 0.5177836846 | E95: 3 | F95: 4.990718228 | G95: 3 | H95: 259.6211164 | I95: 3 | J95: 0.006049629802 | K95: 3 | L95: 0.0001029541761 | O95: 3 | P95: 1e+40 | Q95: 3 | R95: 1e+40 | S95: 3 | T95: 1e+40 | U95: 3 | V95: 8.171812726e+31 | W95: 3 | X95: 12335793.12 | Y95: 3 | Z95: 1e+40 | AC95: 3 | AD95: 1e+40 | AE95: 3 | AF95: 1e+40 | AG95: 3 | AH95: 1e+40 | AI95: 3 | AJ95: 8.466726522e+37 | AK95: 3 | AL95: 30030270.79 | AM95: 3 | AN95: 1e+40 | AQ95: 3 | AR95: 1e+40 | AS95: 3 | AT95: 1e+40 | AU95: 3 | AV95: 1e+40 | AW95: 3 | AX95: 2.110801554e+26 | AY95: 3 | AZ95: 630227.3504 | BA95: 3 | BB95: 1e+40 | BE95: 3 | BF95: 1e+40 | BG95: 3 | BH95: 0.5177836846 | BI95: 3 | BJ95: 4.990718228 | BK95: 3 | BL95: 259.6211164 | BM95: 3 | BN95: 0.006049629802 | BO95: 3 | BP95: 0.0001029541761 | BS95: 3 | BT95: 1e+40 | BU95: 3 | BV95: 1e+40 | BW95: 3 | BX95: 1e+40 | BY95: 3 | BZ95: 1e+40 | CA95: 3 | CB95: 1e+40 | CC95: 3 | CD95: 1e+40 | CG95: 3 | CH95: 1e+40 | CI95: 3 | CJ95: 1e+40 | CK95: 3 | CL95: 1e+40 | CM95: 3 | CN95: 1e+40 | CO95: 3 | CP95: 1e+40 | CQ95: 3 | CR95: 1e+40 | CU95: 3 | CV95: 1e+40 | CW95: 3 | CX95: 1e+40 | CY95: 3 | CZ95: 1e+40 | DA95: 3 | DB95: 1e+40 | DC95: 3 | DD95: 2.57376315e+25 | DE95: 3 | DF95: 1e+40
A96: 5 | B96: 1e+40 | C96: 5 | D96: 0.5315744543 | E96: 5 | F96: 0.3495687038 | G96: 5 | H96: 266.5359255 | I96: 5 | J96: 0.006205665505 | K96: 5 | L96: 0.0001056584612 | O96: 5 | P96: 1e+40 | Q96: 5 | R96: 1e+40 | S96: 5 | T96: 1e+40 | U96: 5 | V96: 1e+40 | W96: 5 | X96: 63516.18346 | Y96: 5 | Z96: 1e+40 | AC96: 5 | AD96: 1e+40 | AE96: 5 | AF96: 1e+40 | AG96: 5 | AH96: 1e+40 | AI96: 5 | AJ96: 1e+40 | AK96: 5 | AL96: 137064.8832 | AM96: 5 | AN96: 1e+40 | AQ96: 5 | AR96: 1e+40 | AS96: 5 | AT96: 2.074897687e+33 | AU96: 5 | AV96: 1e+40 | AW96: 5 | AX96: 3.903386527e+20 | AY96: 5 | AZ96: 9294.259083 | BA96: 5 | BB96: 1e+40 | BE96: 5 | BF96: 1e+40 | BG96: 5 | BH96: 0.5315744543 | BI96: 5 | BJ96: 0.3495687038 | BK96: 5 | BL96: 266.5359255 | BM96: 5 | BN96: 0.006205665505 | BO96: 5 | BP96: 0.0001056584612 | BS96: 5 | BT96: 1e+40 | BU96: 5 | BV96: 1e+40 | BW96: 5 | BX96: 1e+40 | BY96: 5 | BZ96: 1e+40 | CA96: 5 | CB96: 2.300907124e+26 | CC96: 5 | CD96: 1e+40 | CG96: 5 | CH96: 1e+40 | CI96: 5 | CJ96: 1e+40 | CK96: 5 | CL96: 1e+40 | CM96: 5 | CN96: 1e+40 | CO96: 5 | CP96: 1.729530944e+26 | CQ96: 5 | CR96: 1e+40 | CU96: 5 | CV96: 1e+40 | CW96: 5 | CX96: 1e+40 | CY96: 5 | CZ96: 1e+40 | DA96: 5 | DB96: 1e+40 | DC96: 5 | DD96: 1e+40 | DE96: 5 | DF96: 1e+40
A97: 10 | B97: 1.430982861e+35 | C97: 10 | D97: 0.5676798178 | E97: 10 | F97: 0.07407889023 | G97: 10 | H97: 284.63946 | I97: 10 | J97: 0.006626796848 | K97: 10 | L97: 0.0001128348919 | O97: 10 | P97: 1e+40 | Q97: 10 | R97: 7.521034618e+37 | S97: 10 | T97: 1e+40 | U97: 10 | V97: 6.721830924e+19 | W97: 10 | X97: 8790.43445 | Y97: 10 | Z97: 1e+40 | AC97: 10 | AD97: 1e+40 | AE97: 10 | AF97: 1e+40 | AG97: 10 | AH97: 1e+40 | AI97: 10 | AJ97: 1.479340445e+21 | AK97: 10 | AL97: 17218.24353 | AM97: 10 | AN97: 1e+40 | AQ97: 10 | AR97: 1e+40 | AS97: 10 | AT97: 1e+40 | AU97: 10 | AV97: 1e+40 | AW97: 10 | AX97: 3.077271449e+13 | AY97: 10 | AZ97: 2189.427259 | BA97: 10 | BB97: 1e+40 | BE97: 10 | BF97: 1.430982861e+35 | BG97: 10 | BH97: 0.5676798178 | BI97: 10 | BJ97: 0.07407889023 | BK97: 10 | BL97: 284.63946 | BM97: 10 | BN97: 0.006626796848 | BO97: 10 | BP97: 0.0001128348919 | BS97: 10 | BT97: 1e+40 | BU97: 10 | BV97: 1e+40 | BW97: 10 | BX97: 1e+40 | BY97: 10 | BZ97: 2.023472866e+31 | CA97: 10 | CB97: 1e+40 | CC97: 10 | CD97: 1e+40 | CG97: 10 | CH97: 1e+40 | CI97: 10 | CJ97: 1e+40 | CK97: 10 | CL97: 1e+40 | CM97: 10 | CN97: 9.765964744e+31 | CO97: 10 | CP97: 1e+40 | CQ97: 10 | CR97: 1e+40 | CU97: 10 | CV97: 1e+40 | CW97: 10 | CX97: 7.119912103e+38 | CY97: 10 | CZ97: 1e+40 | DA97: 10 | DB97: 1e+40 | DC97: 10 | DD97: 9.265606973e+14 | DE97: 10 | DF97: 1e+40
A98: 50 | B98: 5.353326734e+16 | C98: 50 | D98: 0.9603250785 | E98: 50 | F98: 0.08594532684 | G98: 50 | H98: 481.5151121 | I98: 50 | J98: 0.01121033067 | K98: 50 | L98: 0.0001908790361 | O98: 50 | P98: 1e+40 | Q98: 50 | R98: 2.431255803e+17 | S98: 50 | T98: 1e+40 | U98: 50 | V98: 198586.1219 | W98: 50 | X98: 13919.81581 | Y98: 50 | Z98: 1e+40 | AC98: 50 | AD98: 1e+40 | AE98: 50 | AF98: 1e+40 | AG98: 50 | AH98: 1e+40 | AI98: 50 | AJ98: 1468622.239 | AK98: 50 | AL98: 16805.40842 | AM98: 50 | AN98: 1.095958485e+25 | AQ98: 50 | AR98: 1e+40 | AS98: 50 | AT98: 4088021.686 | AU98: 50 | AV98: 1e+40 | AW98: 50 | AX98: 3079.667 | AY98: 50 | AZ98: 2230.872667 | BA98: 50 | BB98: 4.305349449e+14 | BE98: 50 | BF98: 5.353326734e+16 | BG98: 50 | BH98: 0.9603250785 | BI98: 50 | BJ98: 0.08594532684 | BK98: 50 | BL98: 481.5151121 | BM98: 50 | BN98: 0.01121033067 | BO98: 50 | BP98: 0.0001908790361 | BS98: 50 | BT98: 1e+40 | BU98: 50 | BV98: 1.364534454e+29 | BW98: 50 | BX98: 1e+40 | BY98: 50 | BZ98: 1.899869736e+14 | CA98: 50 | CB98: 2.799160841e+16 | CC98: 50 | CD98: 1e+40 | CG98: 50 | CH98: 1e+40 | CI98: 50 | CJ98: 2.262383362e+28 | CK98: 50 | CL98: 1e+40 | CM98: 50 | CN98: 4.258196516e+14 | CO98: 50 | CP98: 2.111974445e+16 | CQ98: 50 | CR98: 1e+40 | CU98: 50 | CV98: 1e+40 | CW98: 50 | CX98: 6.812823822e+18 | CY98: 50 | CZ98: 1e+40 | DA98: 50 | DB98: 2187823.877 | DC98: 50 | DD98: 1.620034094e+12 | DE98: 50 | DF98: 2.634143626e+24
A99: 75 | B99: 1.853850231e+10 | C99: 75 | D99: 1.333874684 | E99: 75 | F99: 0.1193762494 | G99: 75 | H99: 668.8160419 | I99: 75 | J99: 0.0155709526 | K99: 75 | L99: 0.0002651276322 | O99: 75 | P99: 1e+40 | Q99: 75 | R99: 2.788259979e+12 | S99: 75 | T99: 1e+40 | U99: 75 | V99: 10737.63017 | W99: 75 | X99: 19334.37985 | Y99: 75 | Z99: 1e+40 | AC99: 75 | AD99: 1e+40 | AE99: 75 | AF99: 2.287103946e+13 | AG99: 75 | AH99: 1e+40 | AI99: 75 | AJ99: 28747.97179 | AK99: 75 | AL99: 17253.82902 | AM99: 75 | AN99: 3.32365581e+19 | AQ99: 75 | AR99: 1e+40 | AS99: 75 | AT99: 8140.415217 | AU99: 75 | AV99: 1e+40 | AW99: 75 | AX99: 885.0015783 | AY99: 75 | AZ99: 2304.804842 | BA99: 75 | BB99: 4.071283666e+11 | BE99: 75 | BF99: 1.853850231e+10 | BG99: 75 | BH99: 1.333874684 | BI99: 75 | BJ99: 0.1193762494 | BK99: 75 | BL99: 668.8160419 | BM99: 75 | BN99: 0.0155709526 | BO99: 75 | BP99: 0.0002651276322 | BS99: 75 | BT99: 1e+40 | BU99: 75 | BV99: 5.561928171e+23 | BW99: 75 | BX99: 1e+40 | BY99: 75 | BZ99: 8470471363 | CA99: 75 | CB99: 3.88798528e+16 | CC99: 75 | CD99: 1e+40 | CG99: 75 | CH99: 1e+40 | CI99: 75 | CJ99: 1e+40 | CK99: 75 | CL99: 1e+40 | CM99: 75 | CN99: 9091131304 | CO99: 75 | CP99: 2.169038175e+16 | CQ99: 75 | CR99: 1e+40 | CU99: 75 | CV99: 1e+40 | CW99: 75 | CX99: 8.545566756e+12 | CY99: 75 | CZ99: 1e+40 | DA99: 75 | DB99: 36668.6531 | DC99: 75 | DD99: 1.674401043e+12 | DE99: 75 | DF99: 1e+40
A100: 100 | B100: 14499102.98 | C100: 100 | D100: 1.852728534 | E100: 100 | F100: 0.1658115149 | G100: 100 | H100: 928.973748 | I100: 100 | J100: 0.02162777998 | K100: 100 | L100: 0.0003682576296 | O100: 100 | P100: 1e+40 | Q100: 100 | R100: 917247784.1 | S100: 100 | T100: 1e+40 | U100: 100 | V100: 2862.810688 | W100: 100 | X100: 26855.11424 | Y100: 100 | Z100: 5.499405586e+17 | AC100: 100 | AD100: 1e+40 | AE100: 100 | AF100: 4227749363 | AG100: 100 | AH100: 1e+40 | AI100: 100 | AJ100: 4911.927916 | AK100: 100 | AL100: 17714.21488 | AM100: 100 | AN100: 6.048283206e+16 | AQ100: 100 | AR100: 1e+40 | AS100: 100 | AT100: 388.3266455 | AU100: 100 | AV100: 1e+40 | AW100: 100 | AX100: 618.007166 | AY100: 100 | AZ100: 2381.187166 | BA100: 100 | BB100: 16443431.72 | BE100: 100 | BF100: 14499102.98 | BG100: 100 | BH100: 1.852728534 | BI100: 100 | BJ100: 0.1658115149 | BK100: 100 | BL100: 928.973748 | BM100: 100 | BN100: 0.02162777998 | BO100: 100 | BP100: 0.0003682576296 | BS100: 100 | BT100: 1e+40 | BU100: 100 | BV100: 1.264086902e+21 | BW100: 100 | BX100: 1e+40 | BY100: 100 | BZ100: 58453668.88 | CA100: 100 | CB100: 5.400343319e+16 | CC100: 100 | CD100: 1.420197574e+32 | CG100: 100 | CH100: 1e+40 | CI100: 100 | CJ100: 1e+40 | CK100: 100 | CL100: 1e+40 | CM100: 100 | CN100: 46384603.42 | CO100: 100 | CP100: 2.227643719e+16 | CQ100: 100 | CR100: 1.846647539e+32 | CU100: 100 | CV100: 1e+40 | CW100: 100 | CX100: 2010237400 | CY100: 100 | CZ100: 1e+40 | DA100: 100 | DB100: 5777.66428 | DC100: 100 | DD100: 1.7305925e+12 | DE100: 100 | DF100: 1e+40
A101: 110 | B101: 2070976.478 | C101: 110 | D101: 2.112956199 | E101: 110 | F101: 0.1891008105 | G101: 110 | H101: 1059.454099 | I101: 110 | J101: 0.02466554108 | K101: 110 | L101: 0.0004199817875 | O101: 110 | P101: 1e+40 | Q101: 110 | R101: 103639282.4 | S101: 110 | T101: 1e+40 | U101: 110 | V101: 2070.856598 | W101: 110 | X101: 30627.08807 | Y101: 110 | Z101: 1.181648168e+15 | AC101: 110 | AD101: 1e+40 | AE101: 110 | AF101: 406269453.6 | AG101: 110 | AH101: 1e+40 | AI101: 110 | AJ101: 3176.584594 | AK101: 110 | AL101: 17901.79073 | AM101: 110 | AN101: 1e+40 | AQ101: 110 | AR101: 1e+40 | AS101: 110 | AT101: 172.4678528 | AU101: 110 | AV101: 1e+40 | AW101: 110 | AX101: 586.0827333 | AY101: 110 | AZ101: 2412.444236 | BA101: 110 | BB101: 1111979.4 | BE101: 110 | BF101: 2070976.478 | BG101: 110 | BH101: 2.112956199 | BI101: 110 | BJ101: 0.1891008105 | BK101: 110 | BL101: 1059.454099 | BM101: 110 | BN101: 0.02466554108 | BO101: 110 | BP101: 0.0004199817875 | BS101: 110 | BT101: 1e+40 | BU101: 110 | BV101: 1e+40 | BW101: 110 | BX101: 1e+40 | BY101: 110 | BZ101: 15204828.88 | CA101: 110 | CB101: 6.158856335e+16 | CC101: 110 | CD101: 1e+40 | CG101: 110 | CH101: 1e+40 | CI101: 110 | CJ101: 1e+40 | CK101: 110 | CL101: 1e+40 | CM101: 110 | CN101: 11273477.96 | CO101: 110 | CP101: 2.251526938e+16 | CQ101: 110 | CR101: 1e+40 | CU101: 110 | CV101: 1e+40 | CW101: 110 | CX101: 206511593.3 | CY101: 110 | CZ101: 1e+40 | DA101: 110 | DB101: 3653.0529 | DC101: 110 | DD101: 1.753593592e+12 | DE101: 110 | DF101: 1e+40
A102: 120 | B102: 410519.6062 | C102: 120 | D102: 2.409734518 | E102: 120 | F102: 0.2156612378 | G102: 120 | H102: 1208.261257 | I102: 120 | J102: 0.02812997533 | K102: 120 | L102: 0.0004789709369 | O102: 120 | P102: 1e+40 | Q102: 120 | R102: 16905155.84 | S102: 120 | T102: 1e+40 | U102: 120 | V102: 1612.535209 | W102: 120 | X102: 34928.85993 | Y102: 120 | Z102: 1e+40 | AC102: 120 | AD102: 1e+40 | AE102: 120 | AF102: 57808716.94 | AG102: 120 | AH102: 1e+40 | AI102: 120 | AJ102: 2258.27675 | AK102: 120 | AL102: 18091.35282 | AM102: 120 | AN102: 1.712266769e+15 | AQ102: 120 | AR102: 1e+40 | AS102: 120 | AT102: 88.5498303 | AU102: 120 | AV102: 1e+40 | AW102: 120 | AX102: 569.8948906 | AY102: 120 | AZ102: 2444.111608 | BA102: 120 | BB102: 118207.1582 | BE102: 120 | BF102: 410519.6062 | BG102: 120 | BH102: 2.409734518 | BI102: 120 | BJ102: 0.2156612378 | BK102: 120 | BL102: 1208.261257 | BM102: 120 | BN102: 0.02812997533 | BO102: 120 | BP102: 0.0004789709369 | BS102: 120 | BT102: 1e+40 | BU102: 120 | BV102: 2.107504659e+19 | BW102: 120 | BX102: 1e+40 | BY102: 120 | BZ102: 4980885.865 | CA102: 120 | CB102: 7.023907393e+16 | CC102: 120 | CD102: 4.19378455e+28 | CG102: 120 | CH102: 1e+40 | CI102: 120 | CJ102: 5.772871103e+18 | CK102: 120 | CL102: 1e+40 | CM102: 120 | CN102: 3512618.465 | CO102: 120 | CP102: 2.275666216e+16 | CQ102: 120 | CR102: 2.308960831e+28 | CU102: 120 | CV102: 1e+40 | CW102: 120 | CX102: 31072025.87 | CY102: 120 | CZ102: 1e+40 | DA102: 120 | DB102: 2548.352072 | DC102: 120 | DD102: 1.776900389e+12 | DE102: 120 | DF102: 5.19479646e+14
A103: 130 | B103: 104748.3459 | C103: 130 | D103: 2.748197265 | E103: 130 | F103: 0.2459522483 | G103: 130 | H103: 1377.969339 | I103: 130 | J103: 0.0320810117 | K103: 130 | L103: 0.0005462454927 | O103: 130 | P103: 1e+40 | Q103: 130 | R103: 3658111.953 | S103: 130 | T103: 1e+40 | U103: 130 | V103: 1329.186338 | W103: 130 | X103: 39834.84339 | Y103: 130 | Z103: 1e+40 | AC103: 130 | AD103: 1e+40 | AE103: 130 | AF103: 11127997.2 | AG103: 130 | AH103: 1e+40 | AI103: 130 | AJ103: 1724.45152 | AK103: 130 | AL103: 18282.92219 | AM103: 130 | AN103: 4.14319989e+14 | AQ103: 130 | AR103: 1e+40 | AS103: 130 | AT103: 50.82975181 | AU103: 130 | AV103: 1e+40 | AW103: 130 | AX103: 562.9612647 | AY103: 130 | AZ103: 2476.194667 | BA103: 130 | BB103: 17798.08452 | BE103: 130 | BF103: 104748.3459 | BG103: 130 | BH103: 2.748197265 | BI103: 130 | BJ103: 0.2459522483 | BK103: 130 | BL103: 1377.969339 | BM103: 130 | BN103: 0.0320810117 | BO103: 130 | BP103: 0.0005462454927 | BS103: 130 | BT103: 1e+40 | BU103: 130 | BV103: 7.360859614e+18 | BW103: 130 | BX103: 1e+40 | BY103: 130 | BZ103: 1949068.247 | CA103: 130 | CB103: 8.010460449e+16 | CC103: 130 | CD103: 5.244967692e+26 | CG103: 130 | CH103: 1e+40 | CI103: 130 | CJ103: 1e+40 | CK103: 130 | CL103: 1e+40 | CM103: 130 | CN103: 1324518.23 | CO103: 130 | CP103: 2.300064298e+16 | CQ103: 130 | CR103: 3.28112859e+26 | CU103: 130 | CV103: 1e+40 | CW103: 130 | CX103: 6271757.43 | CY103: 130 | CZ103: 1e+40 | DA103: 130 | DB103: 1915.06937 | DC103: 130 | DD103: 1.800516953e+12 | DE103: 130 | DF103: 1e+40
A104: 140 | B104: 32603.02524 | C104: 140 | D104: 3.134199288 | E104: 140 | F104: 0.2804978264 | G104: 140 | H104: 1571.514016 | I104: 140 | J104: 0.03658699662 | K104: 140 | L104: 0.0006229691938 | O104: 140 | P104: 1e+40 | Q104: 140 | R104: 988588.1673 | S104: 140 | T104: 1e+40 | U104: 140 | V104: 1145.94001 | W104: 140 | X104: 45429.90385 | Y104: 140 | Z104: 3.666177091e+13 | AC104: 140 | AD104: 1e+40 | AE104: 140 | AF104: 2716726.807 | AG104: 140 | AH104: 1e+40 | AI104: 140 | AJ104: 1391.26619 | AK104: 140 | AL104: 18476.52009 | AM104: 140 | AN104: 1e+40 | AQ104: 140 | AR104: 1e+40 | AS104: 140 | AT104: 31.85023635 | AU104: 140 | AV104: 1e+40 | AW104: 140 | AX104: 561.6167024 | AY104: 140 | AZ104: 2508.69887 | BA104: 140 | BB104: 3523.469071 | BE104: 140 | BF104: 32603.02524 | BG104: 140 | BH104: 3.134199288 | BI104: 140 | BJ104: 0.2804978264 | BK104: 140 | BL104: 1571.514016 | BM104: 140 | BN104: 0.03658699662 | BO104: 140 | BP104: 0.0006229691938 | BS104: 140 | BT104: 1e+40 | BU104: 140 | BV104: 1e+40 | BW104: 140 | BX104: 1e+40 | BY104: 140 | BZ104: 877257.0885 | CA104: 140 | CB104: 9.13558124e+16 | CC104: 140 | CD104: 2.080769065e+25 | CG104: 140 | CH104: 1e+40 | CI104: 140 | CJ104: 1e+40 | CK104: 140 | CL104: 1e+40 | CM104: 140 | CN104: 580024.9997 | CO104: 140 | CP104: 2.32472396e+16 | CQ104: 140 | CR104: 1.071656904e+25 | CU104: 140 | CV104: 1e+40 | CW104: 140 | CX104: 1594949.176 | CY104: 140 | CZ104: 1e+40 | DA104: 140 | DB104: 1524.140733 | DC104: 140 | DD104: 1.824447402e+12 | DE104: 140 | DF104: 1e+40
A105: 150 | B105: 11899.30351 | C105: 150 | D105: 3.574417786 | E105: 150 | F105: 0.3198955537 | G105: 150 | H105: 1792.243292 | I105: 150 | J105: 0.04172587619 | K105: 150 | L105: 0.0007104692336 | O105: 150 | P105: 1e+40 | Q105: 150 | R105: 319200.4062 | S105: 150 | T105: 1e+40 | U105: 150 | V105: 1024.234763 | W105: 150 | X105: 51810.82663 | Y105: 150 | Z105: 3.309513077e+13 | AC105: 150 | AD105: 1e+40 | AE105: 150 | AF105: 802240.8097 | AG105: 150 | AH105: 1e+40 | AI105: 150 | AJ105: 1171.6778 | AK105: 150 | AL105: 18672.16799 | AM105: 150 | AN105: 1e+40 | AQ105: 150 | AR105: 1e+40 | AS105: 150 | AT105: 21.40638643 | AU105: 150 | AV105: 4.360343618e+34 | AW105: 150 | AX105: 563.6997902 | AY105: 150 | AZ105: 2541.629746 | BA105: 150 | BB105: 868.4160593 | BE105: 150 | BF105: 11899.30351 | BG105: 150 | BH105: 3.574417786 | BI105: 150 | BJ105: 0.3198955537 | BK105: 150 | BL105: 1792.243292 | BM105: 150 | BN105: 0.04172587618 | BO105: 150 | BP105: 0.0007104692336 | BS105: 150 | BT105: 1e+40 | BU105: 150 | BV105: 1e+40 | BW105: 150 | BX105: 1e+40 | BY105: 150 | BZ105: 441727.8253 | CA105: 150 | CB105: 1.04187325e+17 | CC105: 150 | CD105: 2.790362782e+24 | CG105: 150 | CH105: 1e+40 | CI105: 150 | CJ105: 7.098605364e+17 | CK105: 150 | CL105: 1e+40 | CM105: 150 | CN105: 286201.4764 | CO105: 150 | CP105: 2.349648004e+16 | CQ105: 150 | CR105: 1.082940588e+24 | CU105: 150 | CV105: 1e+40 | CW105: 150 | CX105: 488023.7062 | CY105: 150 | CZ105: 1e+40 | DA105: 150 | DB105: 1268.706775 | DC105: 150 | DD105: 1.848695908e+12 | DE105: 150 | DF105: 1.079281542e+14
A106: 160 | B106: 4943.872859 | C106: 160 | D106: 4.076467811 | E106: 160 | F106: 0.3648269457 | G106: 160 | H106: 2043.975419 | I106: 160 | J106: 0.04758654454 | K106: 160 | L106: 0.0008102592186 | O106: 160 | P106: 1e+40 | Q106: 160 | R106: 119117.3836 | S106: 160 | T106: 1e+40 | U106: 160 | V106: 942.7837875 | W106: 160 | X106: 59087.99116 | Y106: 160 | Z106: 1.203330173e+14 | AC106: 160 | AD106: 1e+40 | AE106: 160 | AF106: 276536.1796 | AG106: 160 | AH106: 1e+40 | AI106: 160 | AJ106: 1020.763868 | AK106: 160 | AL106: 18869.88762 | AM106: 160 | AN106: 2.140162057e+13 | AQ106: 160 | AR106: 1e+40 | AS106: 160 | AT106: 15.22930556 | AU106: 160 | AV106: 1e+40 | AW106: 160 | AX106: 567.9062833 | AY106: 160 | AZ106: 2574.992894 | BA106: 160 | BB106: 255.7728795 | BE106: 160 | BF106: 4943.872859 | BG106: 160 | BH106: 4.076467811 | BI106: 160 | BJ106: 0.3648269457 | BK106: 160 | BL106: 2043.975419 | BM106: 160 | BN106: 0.04758654454 | BO106: 160 | BP106: 0.0008102592186 | BS106: 160 | BT106: 1e+40 | BU106: 160 | BV106: 2.910962364e+17 | BW106: 160 | BX106: 1e+40 | BY106: 160 | BZ106: 243703.4429 | CA106: 160 | CB106: 1.188211062e+17 | CC106: 160 | CD106: 1e+40 | CG106: 160 | CH106: 1e+40 | CI106: 160 | CJ106: 1.127882981e+17 | CK106: 160 | CL106: 1e+40 | CM106: 160 | CN106: 155556.525 | CO106: 160 | CP106: 2.374839267e+16 | CQ106: 160 | CR106: 1e+40 | CU106: 160 | CV106: 1e+40 | CW106: 160 | CX106: 173564.3824 | CY106: 160 | CZ106: 1e+40 | DA106: 160 | DB106: 1094.314373 | DC106: 160 | DD106: 1.873266697e+12 | DE106: 160 | DF106: 9.452725164e+12
A107: 170 | B107: 2285.824976 | C107: 170 | D107: 4.649034002 | E107: 170 | F107: 0.4160692414 | G107: 170 | H107: 2331.064947 | I107: 170 | J107: 0.05427038158 | K107: 170 | L107: 0.0009240653509 | O107: 170 | P107: 1e+40 | Q107: 170 | R107: 50085.92237 | S107: 170 | T107: 1e+40 | U107: 170 | V107: 889.1721345 | W107: 170 | X107: 67387.28038 | Y107: 170 | Z107: 8.859279287e+11 | AC107: 170 | AD107: 1e+40 | AE107: 170 | AF107: 108285.9285 | AG107: 170 | AH107: 1e+40 | AI107: 170 | AJ107: 913.6527014 | AK107: 170 | AL107: 19069.70089 | AM107: 170 | AN107: 8.344252633e+12 | AQ107: 170 | AR107: 1e+40 | AS107: 170 | AT107: 11.35362563 | AU107: 170 | AV107: 2.569354832e+32 | AW107: 170 | AX107: 573.4413248 | AY107: 170 | AZ107: 2608.79399 | BA107: 170 | BB107: 87.2444818 | BE107: 170 | BF107: 2285.824976 | BG107: 170 | BH107: 4.649034002 | BI107: 170 | BJ107: 0.4160692414 | BK107: 170 | BL107: 2331.064947 | BM107: 170 | BN107: 0.05427038158 | BO107: 170 | BP107: 0.0009240653509 | BS107: 170 | BT107: 1e+40 | BU107: 170 | BV107: 1.319007648e+17 | BW107: 170 | BX107: 1e+40 | BY107: 170 | BZ107: 144983.7131 | CA107: 170 | CB107: 1.355102962e+17 | CC107: 170 | CD107: 1e+40 | CG107: 170 | CH107: 1e+40 | CI107: 170 | CJ107: 1.843736487e+17 | CK107: 170 | CL107: 1e+40 | CM107: 170 | CN107: 91531.00845 | CO107: 170 | CP107: 2.400300613e+16 | CQ107: 170 | CR107: 1e+40 | CU107: 170 | CV107: 1e+40 | CW107: 170 | CX107: 69874.64011 | CY107: 170 | CZ107: 1e+40 | DA107: 170 | DB107: 971.1472617 | DC107: 170 | DD107: 1.898164054e+12 | DE107: 170 | DF107: 1.313293838e+13
A108: 180 | B108: 1155.521134 | C108: 180 | D108: 5.30202081 | E108: 180 | F108: 0.4745088479 | G108: 180 | H108: 2658.478052 | I108: 180 | J108: 0.06189300667 | K108: 180 | L108: 0.001053856289 | O108: 180 | P108: 1e+40 | Q108: 180 | R108: 23264.78134 | S108: 180 | T108: 1e+40 | U108: 180 | V108: 855.8426315 | W108: 180 | X108: 76852.25831 | Y108: 180 | Z108: 8.541801217e+10 | AC108: 180 | AD108: 1e+40 | AE108: 180 | AF108: 47159.51137 | AG108: 180 | AH108: 1e+40 | AI108: 180 | AJ108: 835.7481775 | AK108: 180 | AL108: 19271.62999 | AM108: 180 | AN108: 5.392722563e+13 | AQ108: 180 | AR108: 1e+40 | AS108: 180 | AT108: 8.800121069 | AU108: 180 | AV108: 9.385008476e+30 | AW108: 180 | AX108: 579.8196548 | AY108: 180 | AZ108: 2643.038781 | BA108: 180 | BB108: 33.63450372 | BE108: 180 | BF108: 1155.521134 | BG108: 180 | BH108: 5.30202081 | BI108: 180 | BJ108: 0.4745088479 | BK108: 180 | BL108: 2658.478052 | BM108: 180 | BN108: 0.06189300667 | BO108: 180 | BP108: 0.001053856289 | BS108: 180 | BT108: 1e+40 | BU108: 180 | BV108: 1.303179735e+18 | BW108: 180 | BX108: 1e+40 | BY108: 180 | BZ108: 91861.08945 | CA108: 180 | CB108: 1.545435905e+17 | CC108: 180 | CD108: 1e+40 | CG108: 180 | CH108: 1e+40 | CI108: 180 | CJ108: 6.672570752e+16 | CK108: 180 | CL108: 1e+40 | CM108: 180 | CN108: 57525.4 | CO108: 180 | CP108: 2.426034936e+16 | CQ108: 180 | CR108: 1e+40 | CU108: 180 | CV108: 1e+40 | CW108: 180 | CX108: 31194.51755 | CY108: 180 | CZ108: 1e+40 | DA108: 180 | DB108: 881.8781292 | DC108: 180 | DD108: 1.923392319e+12 | DE108: 180 | DF108: 5.691431992e+13
A109: 190 | B109: 629.8103651 | C109: 190 | D109: 6.046723831 | E109: 190 | F109: 0.541156674 | G109: 190 | H109: 3031.878441 | I109: 190 | J109: 0.07058627865 | K109: 190 | L109: 0.001201877202 | O109: 190 | P109: 1e+40 | Q109: 190 | R109: 11752.85327 | S109: 190 | T109: 1e+40 | U109: 190 | V109: 838.0485039 | W109: 190 | X109: 87646.65346 | Y109: 190 | Z109: 1.215298373e+10 | AC109: 190 | AD109: 1e+40 | AE109: 190 | AF109: 22463.60825 | AG109: 190 | AH109: 1e+40 | AI109: 190 | AJ109: 778.0544554 | AK109: 190 | AL109: 19475.69732 | AM109: 190 | AN109: 4.389327819e+12 | AQ109: 190 | AR109: 1e+40 | AS109: 190 | AT109: 7.047579085 | AU109: 190 | AV109: 5.111785555e+29 | AW109: 190 | AX109: 586.7459182 | AY109: 190 | AZ109: 2677.733093 | BA109: 190 | BB109: 14.37566779 | BE109: 190 | BF109: 629.8103651 | BG109: 190 | BH109: 6.046723831 | BI109: 190 | BJ109: 0.541156674 | BK109: 190 | BL109: 3031.878441 | BM109: 190 | BN109: 0.07058627865 | BO109: 190 | BP109: 0.001201877202 | BS109: 190 | BT109: 1e+40 | BU109: 190 | BV109: 4.175580348e+16 | BW109: 190 | BX109: 1e+40 | BY109: 190 | BZ109: 61380.86788 | CA109: 190 | CB109: 1.762502335e+17 | CC109: 190 | CD109: 1.252012515e+21 | CG109: 190 | CH109: 1e+40 | CI109: 190 | CJ109: 2.969149039e+15 | CK109: 190 | CL109: 1e+40 | CM109: 190 | CN109: 38207.22918 | CO109: 190 | CP109: 2.452045165e+16 | CQ109: 190 | CR109: 1.000340757e+21 | CU109: 190 | CV109: 1e+40 | CW109: 190 | CX109: 15194.08613 | CY109: 190 | CZ109: 1e+40 | DA109: 190 | DB109: 815.9211744 | DC109: 190 | DD109: 1.948955889e+12 | DE109: 190 | DF109: 4.067850333e+11
A110: 200 | B110: 366.0020982 | C110: 200 | D110: 6.896025198 | E110: 200 | F110: 0.6171656172 | G110: 200 | H110: 3457.725325 | I110: 200 | J110: 0.08050057682 | K110: 200 | L110: 0.001370688608 | O110: 200 | P110: 1e+40 | Q110: 200 | R110: 6377.056448 | S110: 200 | T110: 1e+40 | U110: 200 | V110: 832.7501667 | W110: 200 | X110: 99957.19105 | Y110: 200 | Z110: 2114584543 | AC110: 200 | AD110: 1e+40 | AE110: 200 | AF110: 11547.49194 | AG110: 200 | AH110: 1e+40 | AI110: 200 | AJ110: 734.7910473 | AK110: 200 | AL110: 19681.92552 | AM110: 200 | AN110: 2.152347127e+11 | AQ110: 200 | AR110: 1e+40 | AS110: 200 | AT110: 5.802612962 | AU110: 200 | AV110: 3.53643285e+28 | AW110: 200 | AX110: 594.0413692 | AY110: 200 | AZ110: 2712.882826 | BA110: 200 | BB110: 6.707632285 | BE110: 200 | BF110: 366.0020982 | BG110: 200 | BH110: 6.896025198 | BI110: 200 | BJ110: 0.6171656172 | BK110: 200 | BL110: 3457.725325 | BM110: 200 | BN110: 0.08050057682 | BO110: 200 | BP110: 0.001370688608 | BS110: 200 | BT110: 1e+40 | BU110: 200 | BV110: 2639918562650842 | BW110: 200 | BX110: 1e+40 | BY110: 200 | BZ110: 42914.6868 | CA110: 200 | CB110: 2.010057142e+17 | CC110: 200 | CD110: 1.981890469e+20 | CG110: 200 | CH110: 1e+40 | CI110: 200 | CJ110: 3.716670691e+14 | CK110: 200 | CL110: 1e+40 | CM110: 200 | CN110: 26591.09235 | CO110: 200 | CP110: 2.478334257e+16 | CQ110: 200 | CR110: 8.774984536e+19 | CU110: 200 | CV110: 1e+40 | CW110: 200 | CX110: 7969.943362 | CY110: 200 | CZ110: 1e+40 | DA110: 200 | DB110: 766.528128 | DC110: 200 | DD110: 1.974859221e+12 | DE110: 200 | DF110: 4.577333208e+10
A111: 300 | B111: 13.50168208 | C111: 300 | D111: 25.66763955 | E111: 300 | F111: 2.297146996 | G111: 300 | H111: 12869.97142 | I111: 300 | J111: 0.299630545 | K111: 300 | L111: 0.005101828978 | O111: 300 | P111: 1e+40 | Q111: 300 | R111: 150.71872 | S111: 300 | T111: 1e+40 | U111: 300 | V111: 1275.317425 | W111: 300 | X111: 372049.8369 | Y111: 300 | Z111: 33140.96995 | AC111: 300 | AD111: 1e+40 | AE111: 300 | AF111: 184.8713302 | AG111: 300 | AH111: 1e+40 | AI111: 300 | AJ111: 617.9599992 | AK111: 300 | AL111: 21868.21121 | AM111: 300 | AN111: 453601.3512 | AQ111: 300 | AR111: 1e+40 | AS111: 300 | AT111: 2.044017963 | AU111: 300 | AV111: 4.05374137e+22 | AW111: 300 | AX111: 676.1482874 | AY111: 300 | AZ111: 3090.783174 | BA111: 300 | BB111: 0.05959951821 | BE111: 300 | BF111: 13.50168208 | BG111: 300 | BH111: 25.66763956 | BI111: 300 | BJ111: 2.297146996 | BK111: 300 | BL111: 12869.97142 | BM111: 300 | BN111: 0.2996305449 | BO111: 300 | BP111: 0.005101828978 | BS111: 300 | BT111: 1e+40 | BU111: 300 | BV111: 6271186963 | BW111: 300 | BX111: 1e+40 | BY111: 300 | BZ111: 5400.568418 | CA111: 300 | CB111: 7.481616099e+17 | CC111: 300 | CD111: 1e+40 | CG111: 300 | CH111: 1e+40 | CI111: 300 | CJ111: 1589013623 | CK111: 300 | CL111: 1e+40 | CM111: 300 | CN111: 3231.612589 | CO111: 300 | CP111: 2.75723655e+16 | CQ111: 300 | CR111: 1e+40 | CU111: 300 | CV111: 1e+40 | CW111: 300 | CX111: 145.7064942 | CY111: 300 | CZ111: 1e+40 | DA111: 300 | DB111: 633.7352896 | DC111: 300 | DD111: 2.253603287e+12 | DE111: 300 | DF111: 173012.1069
A112: 400 | B112: 3.186716841 | C112: 400 | D112: 95.53734738 | E112: 400 | F112: 8.550193957 | G112: 400 | H112: 47903.23335 | I112: 400 | J112: 1.115252819 | K112: 400 | L112: 0.01898948317 | O112: 400 | P112: 1e+40 | Q112: 400 | R112: 28.02305672 | S112: 400 | T112: 1e+40 | U112: 400 | V112: 3005.51285 | W112: 400 | X112: 1384804.062 | Y112: 400 | Z112: 141.3183384 | AC112: 400 | AD112: 1e+40 | AE112: 400 | AF112: 26.21959798 | AG112: 400 | AH112: 1e+40 | AI112: 400 | AJ112: 656.9884024 | AK112: 400 | AL112: 24297.35143 | AM112: 400 | AN112: 727.8350813 | AQ112: 400 | AR112: 1e+40 | AS112: 400 | AT112: 1.51126116 | AU112: 400 | AV112: 3.999250681e+19 | AW112: 400 | AX112: 770.3317095 | AY112: 400 | AZ112: 3521.32445 | BA112: 400 | BB112: 0.006510271296 | BE112: 400 | BF112: 3.186716841 | BG112: 400 | BH112: 95.53734739 | BI112: 400 | BJ112: 8.550193957 | BK112: 400 | BL112: 47903.23335 | BM112: 400 | BN112: 1.115252819 | BO112: 400 | BP112: 0.01898948317 | BS112: 400 | BT112: 1e+40 | BU112: 400 | BV112: 10637465.21 | BW112: 400 | BX112: 1e+40 | BY112: 400 | BZ112: 2536.42125 | CA112: 400 | CB112: 2.784725723e+18 | CC112: 400 | CD112: 1e+40 | CG112: 400 | CH112: 1e+40 | CI112: 400 | CJ112: 3374617.788 | CK112: 400 | CL112: 1e+40 | CM112: 400 | CN112: 1390.521808 | CO112: 400 | CP112: 3.067525449e+16 | CQ112: 400 | CR112: 1e+40 | CU112: 400 | CV112: 1e+40 | CW112: 400 | CX112: 22.23599272 | CY112: 400 | CZ112: 1.138912431e+34 | DA112: 400 | DB112: 683.5303988 | DC112: 400 | DD112: 2.57169105e+12 | DE112: 400 | DF112: 354.5145081
A113: 500 | B113: 1.595542256 | C113: 500 | D113: 355.5993707 | E113: 500 | F113: 31.824648 | G113: 500 | H113: 178300.528 | I113: 500 | J113: 4.151080278 | K113: 500 | L113: 0.07068071883 | O113: 500 | P113: 1e+40 | Q113: 500 | R113: 12.00312938 | S113: 500 | T113: 2.477342359e+28 | U113: 500 | V113: 8459.075868 | W113: 500 | X113: 5154375.515 | Y113: 500 | Z113: 5.730336016 | AC113: 500 | AD113: 1e+40 | AE113: 500 | AF113: 8.908314293 | AG113: 500 | AH113: 3.214073773e+30 | AI113: 500 | AJ113: 724.8807601 | AK113: 500 | AL113: 26996.32268 | AM113: 500 | AN113: 16.04316836 | AQ113: 500 | AR113: 1e+40 | AS113: 500 | AT113: 1.444651109 | AU113: 500 | AV113: 9.528018661e+17 | AW113: 500 | AX113: 877.6377007 | AY113: 500 | AZ113: 4011.839453 | BA113: 500 | BB113: 0.001941047375 | BE113: 500 | BF113: 1.595542256 | BG113: 500 | BH113: 355.5993706 | BI113: 500 | BJ113: 31.824648 | BK113: 500 | BL113: 178300.528 | BM113: 500 | BN113: 4.151080277 | BO113: 500 | BP113: 0.07068071882 | BS113: 500 | BT113: 1e+40 | BU113: 500 | BV113: 245232.5128 | BW113: 500 | BX113: 1e+40 | BY113: 500 | BZ113: 2033.111313 | CA113: 500 | CB113: 1.036500548e+19 | CC113: 500 | CD113: 1e+40 | CG113: 500 | CH113: 1e+40 | CI113: 500 | CJ113: 86643.73971 | CK113: 500 | CL113: 1e+40 | CM113: 500 | CN113: 958.2578556 | CO113: 500 | CP113: 3.412733082e+16 | CQ113: 500 | CR113: 1e+40 | CU113: 500 | CV113: 1e+40 | CW113: 500 | CX113: 7.941615162 | CY113: 500 | CZ113: 2.725648696e+29 | DA113: 500 | DB113: 772.2665076 | DC113: 500 | DD113: 2.934675724e+12 | DE113: 500 | DF113: 9.079275245
A114: 1000 | B114: 1.445754308 | C114: 1000 | D114: 254425.2382 | E114: 1000 | F114: 22768.74158 | G114: 1000 | H114: 127570384.7 | I114: 1000 | J114: 2970.015233 | K114: 1000 | L114: 50.57139849 | O114: 1000 | P114: 1e+40 | Q114: 1000 | R114: 7.267455158 | S114: 1000 | T114: 1e+40 | U114: 1000 | V114: 3423988.079 | W114: 1000 | X114: 3687896603 | Y114: 1000 | Z114: 0.01673952066 | AC114: 1000 | AD114: 1e+40 | AE114: 1000 | AF114: 1.958431083 | AG114: 1000 | AH114: 1e+40 | AI114: 1000 | AJ114: 1225.810745 | AK114: 1000 | AL114: 45712.29091 | AM114: 1000 | AN114: 0.01137666391 | AQ114: 1000 | AR114: 1e+40 | AS114: 1000 | AT114: 2.442899587 | AU114: 1000 | AV114: 1.692632474e+11 | AW114: 1000 | AX114: 1684.623213 | AY114: 1000 | AZ114: 7700.715146 | BA114: 1000 | BB114: 0.0003923726186 | BE114: 1000 | BF114: 1.445754308 | BG114: 1000 | BH114: 254425.252 | BI114: 1000 | BJ114: 22768.73991 | BK114: 1000 | BL114: 127570380 | BM114: 1000 | BN114: 2970.015418 | BO114: 1000 | BP114: 50.57141445 | BS114: 1000 | BT114: 1e+40 | BU114: 1000 | BV114: 216.3774037 | BW114: 1000 | BX114: 1e+40 | BY114: 1000 | BZ114: 7130.858796 | CA114: 1000 | CB114: 7.412053885e+21 | CC114: 1000 | CD114: 22514.32122 | CG114: 1000 | CH114: 1e+40 | CI114: 1000 | CJ114: 75.10371111 | CK114: 1000 | CL114: 1e+40 | CM114: 1000 | CN114: 910.1183159 | CO114: 1000 | CP114: 5.816651752e+16 | CQ114: 1000 | CR114: 8373.730114 | CU114: 1000 | CV114: 1e+40 | CW114: 1000 | CX114: 2.0336775 | CY114: 1000 | CZ114: 1.111693694e+20 | DA114: 1000 | DB114: 1491.226114 | DC114: 1000 | DD114: 5.678933079e+12 | DE114: 1000 | DF114: 0.00893932283
A115: 2000 | B115: 23.17748771 | C115: 2000 | D115: 1e+40 | E115: 2000 | F115: 1e+40 | G115: 2000 | H115: 1e+40 | I115: 2000 | J115: 1e+40 | K115: 2000 | L115: 1e+40 | O115: 2000 | P115: 1e+40 | Q115: 2000 | R115: 77.15730031 | S115: 2000 | T115: 4.300628502e+14 | U115: 2000 | V115: 5.762557076e+11 | W115: 2000 | X115: 1e+40 | Y115: 2000 | Z115: 0.003328182249 | AC115: 2000 | AD115: 1e+40 | AE115: 2000 | AF115: 3.274808761 | AG115: 2000 | AH115: 1.881422342e+16 | AI115: 2000 | AJ115: 3514.633999 | AK115: 2000 | AL115: 131065.909 | AM115: 2000 | AN115: 0.0007636832374 | AQ115: 2000 | AR115: 1e+40 | AS115: 2000 | AT115: 8.982146046 | AU115: 2000 | AV115: 18839.2568 | AW115: 2000 | AX115: 6206.943711 | AY115: 2000 | AZ115: 28373.05477 | BA115: 2000 | BB115: 0.0008594088369 | BE115: 2000 | BF115: 23.17748771 | BG115: 2000 | BH115: 1e+40 | BI115: 2000 | BJ115: 1e+40 | BK115: 2000 | BL115: 1e+40 | BM115: 2000 | BN115: 1e+40 | BO115: 2000 | BP115: 1e+40 | BS115: 2000 | BT115: 1e+40 | BU115: 2000 | BV115: 20.98522324 | BW115: 2000 | BX115: 1e+40 | BY115: 2000 | BZ115: 600752.1369 | CA115: 2000 | CB115: 1e+40 | CC115: 2000 | CD115: 1.049937236 | CG115: 2000 | CH115: 1e+40 | CI115: 2000 | CJ115: 4.598815647 | CK115: 2000 | CL115: 1e+40 | CM115: 2000 | CN115: 2519.529263 | CO115: 2000 | CP115: 1.689719233e+17 | CQ115: 2000 | CR115: 0.258764124 | CU115: 2000 | CV115: 1e+40 | CW115: 2000 | CX115: 4.353138544 | CY115: 2000 | CZ115: 1e+40 | DA115: 2000 | DB115: 5584.143533 | DC115: 2000 | DD115: 2.126571663e+13 | DE115: 2000 | DF115: 0.0007707205573
A117: Compared with source concentrations in mg/L | O117: Compared with source concentrations in mg/L | AC117: Compared with source concentrations in mg/L | AQ117: Compared with source concentrations in mg/L | BE117: Compared with source concentrations in mg/L | BS117: Compared with source concentrations in mg/L | CG117: Compared with source concentrations in mg/L | CU117: Compared with source concentrations in mg/L
B118: 0.008 | D118: 0.1865 | F118: 0.003265 | H118: 38.39 | J118: 0.002 | L118: 0.00452 | P118: 0.008 | R118: 0.1865 | T118: 0.003265 | V118: 38.39 | X118: 0.002 | Z118: 0.00452 | AD118: 0.008 | AF118: 0.1865 | AH118: 0.003265 | AJ118: 38.39 | AL118: 0.002 | AN118: 0.00452 | AR118: 0.008 | AT118: 0.1865 | AV118: 0.003265 | AX118: 38.39 | AZ118: 0.002 | BB118: 0.00452 | BF118: 0.008 | BH118: 0.1865 | BJ118: 0.003265 | BL118: 38.39 | BN118: 0.002 | BP118: 0.00452 | BT118: 0.008 | BV118: 0.1865 | BX118: 0.003265 | BZ118: 38.39 | CB118: 0.002 | CD118: 0.00452 | CH118: 0.008 | CJ118: 0.1865 | CL118: 0.003265 | CN118: 38.39 | CP118: 0.002 | CR118: 0.00452 | CV118: 0.008 | CX118: 0.1865 | CZ118: 0.003265 | DB118: 38.39 | DD118: 0.002 | DF118: 0.00452
A121: Pollutant Linkage: New Phases, Base AGB, Haz Compliance | O121: Pollutant Linkage: New Phases, Base AGB, Lower Calc Grit, Nonhaz Compliance | AC121: Pollutant Linkage: New Phases, Side AGB, Highworth Lstn, Nonhaz Compliance | AQ121: Pollutant Linkage: New Phases, Side AGB, Highworth Grit, Nonhaz Compliance | BE121: Pollutant Linkage: Existing Phases, Base AGB, Haz Compliance | BS121: Pollutant Linkage: Existing Phases, Base AGB, Lower Calc Grit, Nonhaz Compliance | CG121: Pollutant Linkage: Existing Phases, Side AGB, Highworth Lstn, Nonhaz Compliance | CU121: Pollutant Linkage: Existing Phases, Side AGB, Highworth Grit, Nonhaz Compliance
A122: Dilution Factor | O122: Dilution Factor | AC122: Dilution Factor | AQ122: Dilution Factor | BE122: Dilution Factor | BS122: Dilution Factor | CG122: Dilution Factor | CU122: Dilution Factor
B124: 1 | C124: for all species and timeslices | P124: 1.067169067 | Q124: for all species and timeslices | AD124: 2.047619048 | AE124: for all species and timeslices | AR124: 2.015384615 | AS124: for all species and timeslices | BF124: 1 | BG124: for all species and timeslices | BT124: 1.068003764 | BU124: for all species and timeslices | CH124: 2.047619048 | CI124: for all species and timeslices | CV124: 2.015384615 | CW124: for all species and timeslices
A127: Pollutant Linkage: New Phases, Base AGB, Haz Compliance | O127: Pollutant Linkage: New Phases, Base AGB, Lower Calc Grit, Nonhaz Compliance | AC127: Pollutant Linkage: New Phases, Side AGB, Highworth Lstn, Nonhaz Compliance | AQ127: Pollutant Linkage: New Phases, Side AGB, Highworth Grit, Nonhaz Compliance | BE127: Pollutant Linkage: Existing Phases, Base AGB, Haz Compliance | BS127: Pollutant Linkage: Existing Phases, Base AGB, Lower Calc Grit, Nonhaz Compliance | CG127: Pollutant Linkage: Existing Phases, Side AGB, Highworth Lstn, Nonhaz Compliance | CU127: Pollutant Linkage: Existing Phases, Side AGB, Highworth Grit, Nonhaz Compliance
A128: Attenuation Factor | O128: Attenuation Factor | AC128: Attenuation Factor | AQ128: Attenuation Factor | BE128: Attenuation Factor | BS128: Attenuation Factor | CG128: Attenuation Factor | CU128: Attenuation Factor
B130: Species1 | D130: Species2 | F130: Species3 | H130: Species4 | J130: Species5 | L130: Species6 | P130: Species1 | R130: Species2 | T130: Species3 | V130: Species4 | X130: Species5 | Z130: Species6 | AD130: Species1 | AF130: Species2 | AH130: Species3 | AJ130: Species4 | AL130: Species5 | AN130: Species6 | AR130: Species1 | AT130: Species2 | AV130: Species3 | AX130: Species4 | AZ130: Species5 | BB130: Species6 | BF130: Species1 | BH130: Species2 | BJ130: Species3 | BL130: Species4 | BN130: Species5 | BP130: Species6 | BT130: Species1 | BV130: Species2 | BX130: Species3 | BZ130: Species4 | CB130: Species5 | CD130: Species6 | CH130: Species1 | CJ130: Species2 | CL130: Species3 | CN130: Species4 | CP130: Species5 | CR130: Species6 | CV130: Species1 | CX130: Species2 | CZ130: Species3 | DB130: Species4 | DD130: Species5 | DF130: Species6
A131: Time(years) | B131: Lead | C131: Time(years) | D131: AmmN | E131: Time(years) | F131: Nickel | G131: Time(years) | H131: Chloride | I131: Time(years) | J131: Toluene | K131: Time(years) | L131: Cadmium | O131: Time(years) | P131: Lead | Q131: Time(years) | R131: AmmN | S131: Time(years) | T131: Nickel | U131: Time(years) | V131: Chloride | W131: Time(years) | X131: Toluene | Y131: Time(years) | Z131: Cadmium | AC131: Time(years) | AD131: Lead | AE131: Time(years) | AF131: AmmN | AG131: Time(years) | AH131: Nickel | AI131: Time(years) | AJ131: Chloride | AK131: Time(years) | AL131: Toluene | AM131: Time(years) | AN131: Cadmium | AQ131: Time(years) | AR131: Lead | AS131: Time(years) | AT131: AmmN | AU131: Time(years) | AV131: Nickel | AW131: Time(years) | AX131: Chloride | AY131: Time(years) | AZ131: Toluene | BA131: Time(years) | BB131: Cadmium | BE131: Time(years) | BF131: Lead | BG131: Time(years) | BH131: AmmN | BI131: Time(years) | BJ131: Nickel | BK131: Time(years) | BL131: Chloride | BM131: Time(years) | BN131: Toluene | BO131: Time(years) | BP131: Cadmium | BS131: Time(years) | BT131: Lead | BU131: Time(years) | BV131: AmmN | BW131: Time(years) | BX131: Nickel | BY131: Time(years) | BZ131: Chloride | CA131: Time(years) | CB131: Toluene | CC131: Time(years) | CD131: Cadmium | CG131: Time(years) | CH131: Lead | CI131: Time(years) | CJ131: AmmN | CK131: Time(years) | CL131: Nickel | CM131: Time(years) | CN131: Chloride | CO131: Time(years) | CP131: Toluene | CQ131: Time(years) | CR131: Cadmium | CU131: Time(years) | CV131: Lead | CW131: Time(years) | CX131: AmmN | CY131: Time(years) | CZ131: Nickel | DA131: Time(years) | DB131: Chloride | DC131: Time(years) | DD131: Toluene | DE131: Time(years) | DF131: Cadmium
A132: 0.1 | B132: 1e+40 | C132: 0.1 | D132: 1.865 | E132: 0.1 | F132: 5.792375476 | G132: 0.1 | H132: 383.9 | I132: 0.1 | J132: 2.211852337e+36 | K132: 0.1 | L132: 0.0452 | O132: 0.1 | P132: 1e+40 | Q132: 0.1 | R132: 1.747614374 | S132: 0.1 | T132: 1e+40 | U132: 0.1 | V132: 359.736814 | W132: 0.1 | X132: 1e+40 | Y132: 0.1 | Z132: 0.04235505078 | AC132: 0.1 | AD132: 1e+40 | AE132: 0.1 | AF132: 0.9108139535 | AG132: 0.1 | AH132: 1e+40 | AI132: 0.1 | AJ132: 187.4860465 | AK132: 0.1 | AL132: 1e+40 | AM132: 0.1 | AN132: 0.0220744186 | AQ132: 0.1 | AR132: 1e+40 | AS132: 0.1 | AT132: 0.9253816794 | AU132: 0.1 | AV132: 1e+40 | AW132: 0.1 | AX132: 190.4847328 | AY132: 0.1 | AZ132: 1e+40 | BA132: 0.1 | BB132: 0.02242748092 | BE132: 0.1 | BF132: 1e+40 | BG132: 0.1 | BH132: 1.865 | BI132: 0.1 | BJ132: 5.792375476 | BK132: 0.1 | BL132: 383.9 | BM132: 0.1 | BN132: 2.211852337e+36 | BO132: 0.1 | BP132: 0.0452 | BS132: 0.1 | BT132: 1e+40 | BU132: 0.1 | BV132: 1.746248528 | BW132: 0.1 | BX132: 1e+40 | BY132: 0.1 | BZ132: 359.4556621 | CA132: 0.1 | CB132: 1e+40 | CC132: 0.1 | CD132: 0.04232194824 | CG132: 0.1 | CH132: 1e+40 | CI132: 0.1 | CJ132: 0.9108139535 | CK132: 0.1 | CL132: 1e+40 | CM132: 0.1 | CN132: 187.4860465 | CO132: 0.1 | CP132: 1e+40 | CQ132: 0.1 | CR132: 0.0220744186 | CU132: 0.1 | CV132: 1e+40 | CW132: 0.1 | CX132: 0.9253816794 | CY132: 0.1 | CZ132: 1e+40 | DA132: 0.1 | DB132: 190.4847328 | DC132: 0.1 | DD132: 1e+40 | DE132: 0.1 | DF132: 0.02242748092
A133: 0.5 | B133: 1e+40 | C133: 0.5 | D133: 0.373 | E133: 0.5 | F133: 0.02034792025 | G133: 0.5 | H133: 76.78 | I133: 0.5 | J133: 2.265905925e+17 | K133: 0.5 | L133: 0.00904 | O133: 0.5 | P133: 1e+40 | Q133: 0.5 | R133: 0.3495228748 | S133: 0.5 | T133: 1e+40 | U133: 0.5 | V133: 71.9473628 | W133: 0.5 | X133: 1e+40 | Y133: 0.5 | Z133: 0.008471010155 | AC133: 0.5 | AD133: 1e+40 | AE133: 0.5 | AF133: 0.1821627907 | AG133: 0.5 | AH133: 1e+40 | AI133: 0.5 | AJ133: 37.4972093 | AK133: 0.5 | AL133: 1e+40 | AM133: 0.5 | AN133: 0.004414883721 | AQ133: 0.5 | AR133: 1e+40 | AS133: 0.5 | AT133: 0.1850763359 | AU133: 0.5 | AV133: 1e+40 | AW133: 0.5 | AX133: 38.09694656 | AY133: 0.5 | AZ133: 1e+40 | BA133: 0.5 | BB133: 0.004485496183 | BE133: 0.5 | BF133: 1e+40 | BG133: 0.5 | BH133: 0.373 | BI133: 0.5 | BJ133: 0.02034792025 | BK133: 0.5 | BL133: 76.78 | BM133: 0.5 | BN133: 2.265905925e+17 | BO133: 0.5 | BP133: 0.00904 | BS133: 0.5 | BT133: 1e+40 | BU133: 0.5 | BV133: 0.3492497056 | BW133: 0.5 | BX133: 1e+40 | BY133: 0.5 | BZ133: 71.89113243 | CA133: 0.5 | CB133: 1e+40 | CC133: 0.5 | CD133: 0.008464389648 | CG133: 0.5 | CH133: 1e+40 | CI133: 0.5 | CJ133: 0.1821627907 | CK133: 0.5 | CL133: 1e+40 | CM133: 0.5 | CN133: 37.4972093 | CO133: 0.5 | CP133: 1e+40 | CQ133: 0.5 | CR133: 0.004414883721 | CU133: 0.5 | CV133: 1e+40 | CW133: 0.5 | CX133: 0.1850763359 | CY133: 0.5 | CZ133: 1e+40 | DA133: 0.5 | DB133: 38.09694656 | DC133: 0.5 | DD133: 1e+40 | DE133: 0.5 | DF133: 0.004485496183
A134: 1 | B134: 1e+40 | C134: 1 | D134: 0.1865 | E134: 1 | F134: 0.01770973215 | G134: 1 | H134: 38.39 | I134: 1 | J134: 106859420.1 | K134: 1 | L134: 0.00452 | O134: 1 | P134: 1e+40 | Q134: 1 | R134: 0.1747614374 | S134: 1 | T134: 1e+40 | U134: 1 | V134: 35.9736814 | W134: 1 | X134: 1e+40 | Y134: 1 | Z134: 0.004235505078 | AC134: 1 | AD134: 1e+40 | AE134: 1 | AF134: 0.09108139535 | AG134: 1 | AH134: 1e+40 | AI134: 1 | AJ134: 18.74860465 | AK134: 1 | AL134: 1e+40 | AM134: 1 | AN134: 0.00220744186 | AQ134: 1 | AR134: 1e+40 | AS134: 1 | AT134: 0.09253816794 | AU134: 1 | AV134: 1e+40 | AW134: 1 | AX134: 19.04847328 | AY134: 1 | AZ134: 1e+40 | BA134: 1 | BB134: 0.002242748092 | BE134: 1 | BF134: 1e+40 | BG134: 1 | BH134: 0.1865 | BI134: 1 | BJ134: 0.01770973215 | BK134: 1 | BL134: 38.39 | BM134: 1 | BN134: 106859420.1 | BO134: 1 | BP134: 0.00452 | BS134: 1 | BT134: 1e+40 | BU134: 1 | BV134: 0.1746248528 | BW134: 1 | BX134: 1e+40 | BY134: 1 | BZ134: 35.94556621 | CA134: 1 | CB134: 1e+40 | CC134: 1 | CD134: 0.004232194824 | CG134: 1 | CH134: 1e+40 | CI134: 1 | CJ134: 0.09108139535 | CK134: 1 | CL134: 1e+40 | CM134: 1 | CN134: 18.74860465 | CO134: 1 | CP134: 1e+40 | CQ134: 1 | CR134: 0.00220744186 | CU134: 1 | CV134: 1e+40 | CW134: 1 | CX134: 0.09253816794 | CY134: 1 | CZ134: 1e+40 | DA134: 1 | DB134: 19.04847328 | DC134: 1 | DD134: 1e+40 | DE134: 1 | DF134: 0.002242748092
A135: 2 | B135: 1e+40 | C135: 2 | D135: 0.09325 | E135: 2 | F135: 0.01789267772 | G135: 2 | H135: 19.195 | I135: 2 | J135: 2096.675049 | K135: 2 | L135: 0.00226 | O135: 2 | P135: 1e+40 | Q135: 2 | R135: 0.08738071869 | S135: 2 | T135: 1e+40 | U135: 2 | V135: 17.9868407 | W135: 2 | X135: 1e+40 | Y135: 2 | Z135: 0.002117752539 | AC135: 2 | AD135: 1e+40 | AE135: 2 | AF135: 0.04554069767 | AG135: 2 | AH135: 1e+40 | AI135: 2 | AJ135: 9.374302326 | AK135: 2 | AL135: 1e+40 | AM135: 2 | AN135: 0.00110372093 | AQ135: 2 | AR135: 1e+40 | AS135: 2 | AT135: 0.04626908397 | AU135: 2 | AV135: 1e+40 | AW135: 2 | AX135: 9.524236641 | AY135: 2 | AZ135: 1e+40 | BA135: 2 | BB135: 0.001121374046 | BE135: 2 | BF135: 1e+40 | BG135: 2 | BH135: 0.09325 | BI135: 2 | BJ135: 0.01789267772 | BK135: 2 | BL135: 19.195 | BM135: 2 | BN135: 2096.675049 | BO135: 2 | BP135: 0.00226 | BS135: 2 | BT135: 1e+40 | BU135: 2 | BV135: 0.0873124264 | BW135: 2 | BX135: 1e+40 | BY135: 2 | BZ135: 17.97278311 | CA135: 2 | CB135: 1e+40 | CC135: 2 | CD135: 0.002116097412 | CG135: 2 | CH135: 1e+40 | CI135: 2 | CJ135: 0.04554069767 | CK135: 2 | CL135: 1e+40 | CM135: 2 | CN135: 9.374302326 | CO135: 2 | CP135: 1e+40 | CQ135: 2 | CR135: 0.00110372093 | CU135: 2 | CV135: 1e+40 | CW135: 2 | CX135: 0.04626908397 | CY135: 2 | CZ135: 1e+40 | DA135: 2 | DB135: 9.524236641 | DC135: 2 | DD135: 1e+40 | DE135: 2 | DF135: 0.001121374046
A136: 3 | B136: 1e+40 | C136: 3 | D136: 0.06216666667 | E136: 3 | F136: 0.01812936976 | G136: 3 | H136: 12.79666667 | I136: 3 | J136: 61.14203036 | K136: 3 | L136: 0.001506666667 | O136: 3 | P136: 1e+40 | Q136: 3 | R136: 0.05825381246 | S136: 3 | T136: 1e+40 | U136: 3 | V136: 11.99122713 | W136: 3 | X136: 1e+40 | Y136: 3 | Z136: 0.001411835026 | AC136: 3 | AD136: 1e+40 | AE136: 3 | AF136: 0.03036046512 | AG136: 3 | AH136: 1e+40 | AI136: 3 | AJ136: 6.249534884 | AK136: 3 | AL136: 1e+40 | AM136: 3 | AN136: 0.0007358139535 | AQ136: 3 | AR136: 1e+40 | AS136: 3 | AT136: 0.03084605598 | AU136: 3 | AV136: 1e+40 | AW136: 3 | AX136: 6.349491094 | AY136: 3 | AZ136: 1e+40 | BA136: 3 | BB136: 0.0007475826972 | BE136: 3 | BF136: 1e+40 | BG136: 3 | BH136: 0.06216666667 | BI136: 3 | BJ136: 0.01812936976 | BK136: 3 | BL136: 12.79666667 | BM136: 3 | BN136: 61.14203036 | BO136: 3 | BP136: 0.001506666667 | BS136: 3 | BT136: 1e+40 | BU136: 3 | BV136: 0.05820828427 | BW136: 3 | BX136: 1e+40 | BY136: 3 | BZ136: 11.9818554 | CA136: 3 | CB136: 1e+40 | CC136: 3 | CD136: 0.001410731608 | CG136: 3 | CH136: 1e+40 | CI136: 3 | CJ136: 0.03036046512 | CK136: 3 | CL136: 1e+40 | CM136: 3 | CN136: 6.249534884 | CO136: 3 | CP136: 1e+40 | CQ136: 3 | CR136: 0.0007358139535 | CU136: 3 | CV136: 1e+40 | CW136: 3 | CX136: 0.03084605598 | CY136: 3 | CZ136: 1e+40 | DA136: 3 | DB136: 6.349491094 | DC136: 3 | DD136: 1e+40 | DE136: 3 | DF136: 0.0007475826972
A137: 5 | B137: 1e+40 | C137: 5 | D137: 0.0373 | E137: 5 | F137: 0.01861223156 | G137: 5 | H137: 7.678 | I137: 5 | J137: 4.282618117 | K137: 5 | L137: 0.000904 | O137: 5 | P137: 1e+40 | Q137: 5 | R137: 0.03495228748 | S137: 5 | T137: 1e+40 | U137: 5 | V137: 7.19473628 | W137: 5 | X137: 1e+40 | Y137: 5 | Z137: 0.0008471010155 | AC137: 5 | AD137: 1e+40 | AE137: 5 | AF137: 0.01821627907 | AG137: 5 | AH137: 1e+40 | AI137: 5 | AJ137: 3.74972093 | AK137: 5 | AL137: 1e+40 | AM137: 5 | AN137: 0.0004414883721 | AQ137: 5 | AR137: 1e+40 | AS137: 5 | AT137: 0.01850763359 | AU137: 5 | AV137: 3.604732919e+31 | AW137: 5 | AX137: 3.809694656 | AY137: 5 | AZ137: 1e+40 | BA137: 5 | BB137: 0.0004485496183 | BE137: 5 | BF137: 1e+40 | BG137: 5 | BH137: 0.0373 | BI137: 5 | BJ137: 0.01861223156 | BK137: 5 | BL137: 7.678 | BM137: 5 | BN137: 4.282618117 | BO137: 5 | BP137: 0.000904 | BS137: 5 | BT137: 1e+40 | BU137: 5 | BV137: 0.03492497056 | BW137: 5 | BX137: 1e+40 | BY137: 5 | BZ137: 7.189113243 | CA137: 5 | CB137: 1e+40 | CC137: 5 | CD137: 0.0008464389648 | CG137: 5 | CH137: 1e+40 | CI137: 5 | CJ137: 0.01821627907 | CK137: 5 | CL137: 1e+40 | CM137: 5 | CN137: 3.74972093 | CO137: 5 | CP137: 1e+40 | CQ137: 5 | CR137: 0.0004414883721 | CU137: 5 | CV137: 1e+40 | CW137: 5 | CX137: 0.01850763359 | CY137: 5 | CZ137: 1e+40 | DA137: 5 | DB137: 3.809694656 | DC137: 5 | DD137: 1e+40 | DE137: 5 | DF137: 0.0004485496183
A138: 10 | B138: 1.430982861e+36 | C138: 10 | D138: 0.01865 | E138: 10 | F138: 0.01987640327 | G138: 10 | H138: 3.839 | I138: 10 | J138: 0.9075514882 | K138: 10 | L138: 0.000452 | O138: 10 | P138: 1e+40 | Q138: 10 | R138: 0.01747614374 | S138: 10 | T138: 2.467622405e+36 | U138: 10 | V138: 3.59736814 | W138: 10 | X138: 1e+40 | Y138: 10 | Z138: 0.0004235505078 | AC138: 10 | AD138: 1e+40 | AE138: 10 | AF138: 0.009108139535 | AG138: 10 | AH138: 1e+40 | AI138: 10 | AJ138: 1.874860465 | AK138: 10 | AL138: 1e+40 | AM138: 10 | AN138: 0.000220744186 | AQ138: 10 | AR138: 1e+40 | AS138: 10 | AT138: 0.009253816794 | AU138: 10 | AV138: 1e+40 | AW138: 10 | AX138: 1.904847328 | AY138: 10 | AZ138: 1e+40 | BA138: 10 | BB138: 0.0002242748092 | BE138: 10 | BF138: 1.430982861e+36 | BG138: 10 | BH138: 0.01865 | BI138: 10 | BJ138: 0.01987640327 | BK138: 10 | BL138: 3.839 | BM138: 10 | BN138: 0.9075514882 | BO138: 10 | BP138: 0.000452 | BS138: 10 | BT138: 1e+40 | BU138: 10 | BV138: 0.01746248528 | BW138: 10 | BX138: 1e+40 | BY138: 10 | BZ138: 3.594556621 | CA138: 10 | CB138: 1e+40 | CC138: 10 | CD138: 0.0004232194824 | CG138: 10 | CH138: 1e+40 | CI138: 10 | CJ138: 0.009108139535 | CK138: 10 | CL138: 1e+40 | CM138: 10 | CN138: 1.874860465 | CO138: 10 | CP138: 1e+40 | CQ138: 10 | CR138: 0.000220744186 | CU138: 10 | CV138: 1e+40 | CW138: 10 | CX138: 0.009253816794 | CY138: 10 | CZ138: 1.236946848e+37 | DA138: 10 | DB138: 1.904847328 | DC138: 10 | DD138: 1e+40 | DE138: 10 | DF138: 0.0002242748092
A139: 50 | B139: 5.353326734e+17 | C139: 50 | D139: 0.00373 | E139: 50 | F139: 0.03362425074 | G139: 50 | H139: 0.7678 | I139: 50 | J139: 1.052928966 | K139: 50 | L139: 9.04e-05 | O139: 50 | P139: 1e+40 | Q139: 50 | R139: 0.003495228748 | S139: 50 | T139: 7976856371568627 | U139: 50 | V139: 0.719473628 | W139: 50 | X139: 1e+40 | Y139: 50 | Z139: 8.471010155e-05 | AC139: 50 | AD139: 1e+40 | AE139: 50 | AF139: 0.001821627907 | AG139: 50 | AH139: 1e+40 | AI139: 50 | AJ139: 0.374972093 | AK139: 50 | AL139: 1e+40 | AM139: 50 | AN139: 4.414883721e-05 | AQ139: 50 | AR139: 1e+40 | AS139: 50 | AT139: 0.001850763359 | AU139: 50 | AV139: 71021.46019 | AW139: 50 | AX139: 0.3809694656 | AY139: 50 | AZ139: 1e+40 | BA139: 50 | BB139: 4.485496183e-05 | BE139: 50 | BF139: 5.353326734e+17 | BG139: 50 | BH139: 0.00373 | BI139: 50 | BJ139: 0.03362425074 | BK139: 50 | BL139: 0.7678 | BM139: 50 | BN139: 1.052928966 | BO139: 50 | BP139: 9.04e-05 | BS139: 50 | BT139: 1e+40 | BU139: 50 | BV139: 0.003492497056 | BW139: 50 | BX139: 4.47348585e+27 | BY139: 50 | BZ139: 0.7189113243 | CA139: 50 | CB139: 1e+40 | CC139: 50 | CD139: 8.464389648e-05 | CG139: 50 | CH139: 1e+40 | CI139: 50 | CJ139: 0.001821627907 | CK139: 50 | CL139: 3.868578221e+26 | CM139: 50 | CN139: 0.374972093 | CO139: 50 | CP139: 1e+40 | CQ139: 50 | CR139: 4.414883721e-05 | CU139: 50 | CV139: 1e+40 | CW139: 50 | CX139: 0.001850763359 | CY139: 50 | CZ139: 1.183596206e+17 | DA139: 50 | DB139: 0.3809694656 | DC139: 50 | DD139: 1e+40 | DE139: 50 | DF139: 4.485496183e-05
A140: 75 | B140: 1.853850231e+11 | C140: 75 | D140: 0.002486666667 | E140: 75 | F140: 0.0467034943 | G140: 75 | H140: 0.5118666667 | I140: 75 | J140: 1.462496164 | K140: 75 | L140: 6.026666667e-05 | O140: 75 | P140: 1e+40 | Q140: 75 | R140: 0.002330152498 | S140: 75 | T140: 9.148173281e+10 | U140: 75 | V140: 0.4796490853 | W140: 75 | X140: 1e+40 | Y140: 75 | Z140: 5.647340103e-05 | AC140: 75 | AD140: 1e+40 | AE140: 75 | AF140: 0.001214418605 | AG140: 75 | AH140: 3.910849357e+11 | AI140: 75 | AJ140: 0.2499813953 | AK140: 75 | AL140: 1e+40 | AM140: 75 | AN140: 2.943255814e-05 | AQ140: 75 | AR140: 1e+40 | AS140: 75 | AT140: 0.001233842239 | AU140: 75 | AV140: 141.4239502 | AW140: 75 | AX140: 0.2539796438 | AY140: 75 | AZ140: 1e+40 | BA140: 75 | BB140: 2.990330789e-05 | BE140: 75 | BF140: 1.853850231e+11 | BG140: 75 | BH140: 0.002486666667 | BI140: 75 | BJ140: 0.0467034943 | BK140: 75 | BL140: 0.5118666667 | BM140: 75 | BN140: 1.462496164 | BO140: 75 | BP140: 6.026666667e-05 | BS140: 75 | BT140: 1e+40 | BU140: 75 | BV140: 0.002328331371 | BW140: 75 | BX140: 1.82342094e+22 | BY140: 75 | BZ140: 0.4792742162 | CA140: 75 | CB140: 1e+40 | CC140: 75 | CD140: 5.642926432e-05 | CG140: 75 | CH140: 1e+40 | CI140: 75 | CJ140: 0.001214418605 | CK140: 75 | CL140: 1e+40 | CM140: 75 | CN140: 0.2499813953 | CO140: 75 | CP140: 1e+40 | CQ140: 75 | CR140: 2.943255814e-05 | CU140: 75 | CV140: 1e+40 | CW140: 75 | CX140: 0.001233842239 | CY140: 75 | CZ140: 1.484626736e+11 | DA140: 75 | DB140: 0.2539796438 | DC140: 75 | DD140: 1e+40 | DE140: 75 | DF140: 2.990330789e-05
A141: 100 | B141: 144991029.8 | C141: 100 | D141: 0.001865 | E141: 100 | F141: 0.06487033419 | G141: 100 | H141: 0.3839 | I141: 100 | J141: 2.031381499 | K141: 100 | L141: 4.52e-05 | O141: 100 | P141: 1e+40 | Q141: 100 | R141: 0.001747614374 | S141: 100 | T141: 30094545.46 | U141: 100 | V141: 0.359736814 | W141: 100 | X141: 1e+40 | Y141: 100 | Z141: 4.235505078e-05 | AC141: 100 | AD141: 1e+40 | AE141: 100 | AF141: 0.0009108139535 | AG141: 100 | AH141: 72292695.32 | AI141: 100 | AJ141: 0.1874860465 | AK141: 100 | AL141: 1e+40 | AM141: 100 | AN141: 2.20744186e-05 | AQ141: 100 | AR141: 1e+40 | AS141: 100 | AT141: 0.0009253816794 | AU141: 100 | AV141: 6.746423456 | AW141: 100 | AX141: 0.1904847328 | AY141: 100 | AZ141: 1e+40 | BA141: 100 | BB141: 2.242748092e-05 | BE141: 100 | BF141: 144991029.8 | BG141: 100 | BH141: 0.001865 | BI141: 100 | BJ141: 0.06487033419 | BK141: 100 | BL141: 0.3839 | BM141: 100 | BN141: 2.031381499 | BO141: 100 | BP141: 4.52e-05 | BS141: 100 | BT141: 1e+40 | BU141: 100 | BV141: 0.001746248528 | BW141: 100 | BX141: 4.144178881e+19 | BY141: 100 | BZ141: 0.3594556621 | CA141: 100 | CB141: 1e+40 | CC141: 100 | CD141: 4.232194824e-05 | CG141: 100 | CH141: 1e+40 | CI141: 100 | CJ141: 0.0009108139535 | CK141: 100 | CL141: 1e+40 | CM141: 100 | CN141: 0.1874860465 | CO141: 100 | CP141: 1e+40 | CQ141: 100 | CR141: 2.20744186e-05 | CU141: 100 | CV141: 1e+40 | CW141: 100 | CX141: 0.0009253816794 | CY141: 100 | CZ141: 34923981.93 | DA141: 100 | DB141: 0.1904847328 | DC141: 100 | DD141: 1e+40 | DE141: 100 | DF141: 2.242748092e-05
A142: 110 | B142: 20709764.78 | C142: 110 | D142: 0.001695454545 | E142: 110 | F142: 0.07398179077 | G142: 110 | H142: 0.349 | I142: 110 | J142: 2.316702119 | K142: 110 | L142: 4.109090909e-05 | O142: 110 | P142: 1e+40 | Q142: 110 | R142: 0.00158874034 | S142: 110 | T142: 3400364.82 | U142: 110 | V142: 0.3270334673 | W142: 110 | X142: 1e+40 | Y142: 110 | Z142: 3.850459161e-05 | AC142: 110 | AD142: 1e+40 | AE142: 110 | AF142: 0.000828012685 | AG142: 110 | AH142: 6947032.879 | AI142: 110 | AJ142: 0.1704418605 | AK142: 110 | AL142: 1e+40 | AM142: 110 | AN142: 2.006765328e-05 | AQ142: 110 | AR142: 1e+40 | AS142: 110 | AT142: 0.0008412560722 | AU142: 110 | AV142: 2.996294951 | AW142: 110 | AX142: 0.1731679389 | AY142: 110 | AZ142: 1e+40 | BA142: 110 | BB142: 2.038861901e-05 | BE142: 110 | BF142: 20709764.78 | BG142: 110 | BH142: 0.001695454545 | BI142: 110 | BJ142: 0.07398179077 | BK142: 110 | BL142: 0.349 | BM142: 110 | BN142: 2.316702119 | BO142: 110 | BP142: 4.109090909e-05 | BS142: 110 | BT142: 1e+40 | BU142: 110 | BV142: 0.001587498662 | BW142: 110 | BX142: 1e+40 | BY142: 110 | BZ142: 0.3267778747 | CA142: 110 | CB142: 1e+40 | CC142: 110 | CD142: 3.84744984e-05 | CG142: 110 | CH142: 1e+40 | CI142: 110 | CJ142: 0.000828012685 | CK142: 110 | CL142: 1e+40 | CM142: 110 | CN142: 0.1704418605 | CO142: 110 | CP142: 1e+40 | CQ142: 110 | CR142: 2.006765328e-05 | CU142: 110 | CV142: 1e+40 | CW142: 110 | CX142: 0.0008412560722 | CY142: 110 | CZ142: 3587739.017 | DA142: 110 | DB142: 0.1731679389 | DC142: 110 | DD142: 1e+40 | DE142: 110 | DF142: 2.038861901e-05
A143: 120 | B143: 4105196.062 | C143: 120 | D143: 0.001554166667 | E143: 120 | F143: 0.08437301019 | G143: 120 | H143: 0.3199166667 | I143: 120 | J143: 2.64209786 | K143: 120 | L143: 3.766666667e-05 | O143: 120 | P143: 1e+40 | Q143: 120 | R143: 0.001456345312 | S143: 120 | T143: 554651.6327 | U143: 120 | V143: 0.2997806783 | W143: 120 | X143: 1e+40 | Y143: 120 | Z143: 3.529587565e-05 | AC143: 120 | AD143: 1e+40 | AE143: 120 | AF143: 0.0007590116279 | AG143: 120 | AH143: 988504.1902 | AI143: 120 | AJ143: 0.1562383721 | AK143: 120 | AL143: 1e+40 | AM143: 120 | AN143: 1.839534884e-05 | AQ143: 120 | AR143: 1e+40 | AS143: 120 | AT143: 0.0007711513995 | AU143: 120 | AV143: 1.538381821 | AW143: 120 | AX143: 0.1587372774 | AY143: 120 | AZ143: 1e+40 | BA143: 120 | BB143: 1.868956743e-05 | BE143: 120 | BF143: 4105196.062 | BG143: 120 | BH143: 0.001554166667 | BI143: 120 | BJ143: 0.08437301019 | BK143: 120 | BL143: 0.3199166667 | BM143: 120 | BN143: 2.64209786 | BO143: 120 | BP143: 3.766666667e-05 | BS143: 120 | BT143: 1e+40 | BU143: 120 | BV143: 0.001455207107 | BW143: 120 | BX143: 6.909237245e+17 | BY143: 120 | BZ143: 0.2995463851 | CA143: 120 | CB143: 1e+40 | CC143: 120 | CD143: 3.52682902e-05 | CG143: 120 | CH143: 1e+40 | CI143: 120 | CJ143: 0.0007590116279 | CK143: 120 | CL143: 9.871361236e+16 | CM143: 120 | CN143: 0.1562383721 | CO143: 120 | CP143: 1e+40 | CQ143: 120 | CR143: 1.839534884e-05 | CU143: 120 | CV143: 1e+40 | CW143: 120 | CX143: 0.0007711513995 | CY143: 120 | CZ143: 539816.2774 | DA143: 120 | DB143: 0.1587372774 | DC143: 120 | DD143: 1e+40 | DE143: 120 | DF143: 1.868956743e-05
A144: 130 | B144: 1047483.459 | C144: 130 | D144: 0.001434615385 | E144: 130 | F144: 0.09622374338 | G144: 130 | H144: 0.2953076923 | I144: 130 | J144: 3.013197529 | K144: 130 | L144: 3.476923077e-05 | O144: 130 | P144: 1e+40 | Q144: 130 | R144: 0.001344318749 | S144: 130 | T144: 120021.2401 | U144: 130 | V144: 0.2767206262 | W144: 130 | X144: 1e+40 | Y144: 130 | Z144: 3.258080829e-05 | AC144: 130 | AD144: 1e+40 | AE144: 130 | AF144: 0.0007006261181 | AG144: 130 | AH144: 190283.9649 | AI144: 130 | AJ144: 0.1442200358 | AK144: 130 | AL144: 1e+40 | AM144: 130 | AN144: 1.6980322e-05 | AQ144: 130 | AR144: 1e+40 | AS144: 130 | AT144: 0.0007118320611 | AU144: 130 | AV144: 0.883068504 | AW144: 130 | AX144: 0.1465267176 | AY144: 130 | AZ144: 1e+40 | BA144: 130 | BB144: 1.72519084e-05 | BE144: 130 | BF144: 1047483.459 | BG144: 130 | BH144: 0.001434615385 | BI144: 130 | BJ144: 0.09622374338 | BK144: 130 | BL144: 0.2953076923 | BM144: 130 | BN144: 3.013197529 | BO144: 130 | BP144: 3.476923077e-05 | BS144: 130 | BT144: 1e+40 | BU144: 130 | BV144: 0.001343268098 | BW144: 130 | BX144: 2.41318211e+17 | BY144: 130 | BZ144: 0.2765043555 | CA144: 130 | CB144: 1e+40 | CC144: 130 | CD144: 3.25553448e-05 | CG144: 130 | CH144: 1e+40 | CI144: 130 | CJ144: 0.0007006261181 | CK144: 130 | CL144: 1e+40 | CM144: 130 | CN144: 0.1442200358 | CO144: 130 | CP144: 1e+40 | CQ144: 130 | CR144: 1.6980322e-05 | CU144: 130 | CV144: 1e+40 | CW144: 130 | CX144: 0.0007118320611 | CY144: 130 | CZ144: 108959.6398 | DA144: 130 | DB144: 0.1465267176 | DC144: 130 | DD144: 1e+40 | DE144: 130 | DF144: 1.72519084e-05
A145: 140 | B145: 326030.2524 | C145: 140 | D145: 0.001332142857 | E145: 140 | F145: 0.1097389885 | G145: 140 | H145: 0.2742142857 | I145: 140 | J145: 3.436420538 | K145: 140 | L145: 3.228571429e-05 | O145: 140 | P145: 1e+40 | Q145: 140 | R145: 0.001248295981 | S145: 140 | T145: 32435.19588 | U145: 140 | V145: 0.2569548671 | W145: 140 | X145: 1e+40 | Y145: 140 | Z145: 3.02536077e-05 | AC145: 140 | AD145: 1e+40 | AE145: 140 | AF145: 0.0006505813953 | AG145: 140 | AH145: 46454.85967 | AI145: 140 | AJ145: 0.1339186047 | AK145: 140 | AL145: 1e+40 | AM145: 140 | AN145: 1.576744186e-05 | AQ145: 140 | AR145: 1e+40 | AS145: 140 | AT145: 0.0006609869138 | AU145: 140 | AV145: 0.5533361774 | AW145: 140 | AX145: 0.1360605234 | AY145: 140 | AZ145: 1e+40 | BA145: 140 | BB145: 1.601962923e-05 | BE145: 140 | BF145: 326030.2524 | BG145: 140 | BH145: 0.001332142857 | BI145: 140 | BJ145: 0.1097389885 | BK145: 140 | BL145: 0.2742142857 | BM145: 140 | BN145: 3.436420538 | BO145: 140 | BP145: 3.228571429e-05 | BS145: 140 | BT145: 1e+40 | BU145: 140 | BV145: 0.001247320377 | BW145: 140 | BX145: 1e+40 | BY145: 140 | BZ145: 0.2567540444 | CA145: 140 | CB145: 1e+40 | CC145: 140 | CD145: 3.022996303e-05 | CG145: 140 | CH145: 1e+40 | CI145: 140 | CJ145: 0.0006505813953 | CK145: 140 | CL145: 1e+40 | CM145: 140 | CN145: 0.1339186047 | CO145: 140 | CP145: 1e+40 | CQ145: 140 | CR145: 1.576744186e-05 | CU145: 140 | CV145: 1e+40 | CW145: 140 | CX145: 0.0006609869138 | CY145: 140 | CZ145: 27709.15326 | DA145: 140 | DB145: 0.1360605234 | DC145: 140 | DD145: 1e+40 | DE145: 140 | DF145: 1.601962923e-05
A146: 150 | B146: 118993.0351 | C146: 150 | D146: 0.001243333333 | E146: 150 | F146: 0.1251525369 | G146: 150 | H146: 0.2559333333 | I146: 150 | J146: 3.919087947 | K146: 150 | L146: 3.013333333e-05 | O146: 150 | P146: 1e+40 | Q146: 150 | R146: 0.001165076249 | S146: 150 | T146: 10472.84202 | U146: 150 | V146: 0.2398245427 | W146: 150 | X146: 1e+40 | Y146: 150 | Z146: 2.823670052e-05 | AC146: 150 | AD146: 1e+40 | AE146: 150 | AF146: 0.0006072093023 | AG146: 150 | AH146: 13717.97272 | AI146: 150 | AJ146: 0.1249906977 | AK146: 150 | AL146: 1e+40 | AM146: 150 | AN146: 1.471627907e-05 | AQ146: 150 | AR146: 1e+40 | AS146: 150 | AT146: 0.0006169211196 | AU146: 150 | AV146: 0.37189451 | AW146: 150 | AX146: 0.1269898219 | AY146: 150 | AZ146: 2.650571854e+35 | BA146: 150 | BB146: 1.495165394e-05 | BE146: 150 | BF146: 118993.0351 | BG146: 150 | BH146: 0.001243333333 | BI146: 150 | BJ146: 0.1251525369 | BK146: 150 | BL146: 0.2559333333 | BM146: 150 | BN146: 3.919087947 | BO146: 150 | BP146: 3.013333333e-05 | BS146: 150 | BT146: 1e+40 | BU146: 150 | BV146: 0.001164165685 | BW146: 150 | BX146: 1e+40 | BY146: 150 | BZ146: 0.2396371081 | CA146: 150 | CB146: 1e+40 | CC146: 150 | CD146: 2.821463216e-05 | CG146: 150 | CH146: 1e+40 | CI146: 150 | CJ146: 0.0006072093023 | CK146: 150 | CL146: 1.213830979e+16 | CM146: 150 | CN146: 0.1249906977 | CO146: 150 | CP146: 1e+40 | CQ146: 150 | CR146: 1.471627907e-05 | CU146: 150 | CV146: 1e+40 | CW146: 150 | CX146: 0.0006169211196 | CY146: 150 | CZ146: 8478.46682 | DA146: 150 | DB146: 0.1269898219 | DC146: 150 | DD146: 1e+40 | DE146: 150 | DF146: 1.495165394e-05
A147: 160 | B147: 49438.72859 | C147: 160 | D147: 0.001165625 | E147: 160 | F147: 0.1427310177 | G147: 160 | H147: 0.2399375 | I147: 160 | J147: 4.469549105 | K147: 160 | L147: 2.825e-05 | O147: 160 | P147: 1e+40 | Q147: 160 | R147: 0.001092258984 | S147: 160 | T147: 3908.19534 | U147: 160 | V147: 0.2248355088 | W147: 160 | X147: 1e+40 | Y147: 160 | Z147: 2.647190674e-05 | AC147: 160 | AD147: 1e+40 | AE147: 160 | AF147: 0.0005692587209 | AG147: 160 | AH147: 4728.649706 | AI147: 160 | AJ147: 0.1171787791 | AK147: 160 | AL147: 1e+40 | AM147: 160 | AN147: 1.379651163e-05 | AQ147: 160 | AR147: 1e+40 | AS147: 160 | AT147: 0.0005783635496 | AU147: 160 | AV147: 0.2645796919 | AW147: 160 | AX147: 0.119052958 | AY147: 160 | AZ147: 1e+40 | BA147: 160 | BB147: 1.401717557e-05 | BE147: 160 | BF147: 49438.72859 | BG147: 160 | BH147: 0.001165625 | BI147: 160 | BJ147: 0.1427310177 | BK147: 160 | BL147: 0.2399375 | BM147: 160 | BN147: 4.469549105 | BO147: 160 | BP147: 2.825e-05 | BS147: 160 | BT147: 1e+40 | BU147: 160 | BV147: 0.00109140533 | BW147: 160 | BX147: 9543290683670916 | BY147: 160 | BZ147: 0.2246597888 | CA147: 160 | CB147: 1e+40 | CC147: 160 | CD147: 2.645121765e-05 | CG147: 160 | CH147: 1e+40 | CI147: 160 | CJ147: 0.0005692587209 | CK147: 160 | CL147: 1.928631375e+15 | CM147: 160 | CN147: 0.1171787791 | CO147: 160 | CP147: 1e+40 | CQ147: 160 | CR147: 1.379651163e-05 | CU147: 160 | CV147: 1e+40 | CW147: 160 | CX147: 0.0005783635496 | CY147: 160 | CZ147: 3015.34503 | DA147: 160 | DB147: 0.119052958 | DC147: 160 | DD147: 1e+40 | DE147: 160 | DF147: 1.401717557e-05
A148: 170 | B148: 22858.24976 | C148: 170 | D148: 0.001097058824 | E148: 170 | F148: 0.1627785096 | G148: 170 | H148: 0.2258235294 | I148: 170 | J148: 5.097326081 | K148: 170 | L148: 2.658823529e-05 | O148: 170 | P148: 1e+40 | Q148: 170 | R148: 0.001028008455 | S148: 170 | T148: 1643.299765 | U148: 170 | V148: 0.2116098906 | W148: 170 | X148: 1e+40 | Y148: 170 | Z148: 2.491473575e-05 | AC148: 170 | AD148: 1e+40 | AE148: 170 | AF148: 0.0005357729138 | AG148: 170 | AH148: 1851.642792 | AI148: 170 | AJ148: 0.1102859097 | AK148: 170 | AL148: 1e+40 | AM148: 170 | AN148: 1.298495212e-05 | AQ148: 170 | AR148: 1e+40 | AS148: 170 | AT148: 0.0005443421643 | AU148: 170 | AV148: 0.1972472587 | AW148: 170 | AX148: 0.1120498428 | AY148: 170 | AZ148: 1.561863054e+33 | BA148: 170 | BB148: 1.319263583e-05 | BE148: 170 | BF148: 22858.24976 | BG148: 170 | BH148: 0.001097058824 | BI148: 170 | BJ148: 0.1627785096 | BK148: 170 | BL148: 0.2258235294 | BM148: 170 | BN148: 5.097326081 | BO148: 170 | BP148: 2.658823529e-05 | BS148: 170 | BT148: 1e+40 | BU148: 170 | BV148: 0.001027205016 | BW148: 170 | BX148: 4324230897735589 | BY148: 170 | BZ148: 0.2114445071 | CA148: 170 | CB148: 1e+40 | CC148: 170 | CD148: 2.489526367e-05 | CG148: 170 | CH148: 1e+40 | CI148: 170 | CJ148: 0.0005357729138 | CK148: 170 | CL148: 3152710075339357 | CM148: 170 | CN148: 0.1102859097 | CO148: 170 | CP148: 1e+40 | CQ148: 170 | CR148: 1.298495212e-05 | CU148: 170 | CV148: 1e+40 | CW148: 170 | CX148: 0.0005443421643 | CY148: 170 | CZ148: 1213.936557 | DA148: 170 | DB148: 0.1120498428 | DC148: 170 | DD148: 1e+40 | DE148: 170 | DF148: 1.319263583e-05
A149: 180 | B149: 11555.21134 | C149: 180 | D149: 0.001036111111 | E149: 180 | F149: 0.185641801 | G149: 180 | H149: 0.2132777778 | I149: 180 | J149: 5.813278382 | K149: 180 | L149: 2.511111111e-05 | O149: 180 | P149: 1e+40 | Q149: 180 | R149: 0.0009708968744 | S149: 180 | T149: 763.3084885 | U149: 180 | V149: 0.1998537856 | W149: 180 | X149: 1e+40 | Y149: 180 | Z149: 2.353058376e-05 | AC149: 180 | AD149: 1e+40 | AE149: 180 | AF149: 0.0005060077519 | AG149: 180 | AH149: 806.4073564 | AI149: 180 | AJ149: 0.1041589147 | AK149: 180 | AL149: 1e+40 | AM149: 180 | AN149: 1.226356589e-05 | AQ149: 180 | AR149: 1e+40 | AS149: 180 | AT149: 0.000514100933 | AU149: 180 | AV149: 0.1528850618 | AW149: 180 | AX149: 0.1058248516 | AY149: 180 | AZ149: 5.704972245e+31 | BA149: 180 | BB149: 1.245971162e-05 | BE149: 180 | BF149: 11555.21134 | BG149: 180 | BH149: 0.001036111111 | BI149: 180 | BJ149: 0.185641801 | BK149: 180 | BL149: 0.2132777778 | BM149: 180 | BN149: 5.813278382 | BO149: 180 | BP149: 2.511111111e-05 | BS149: 180 | BT149: 1e+40 | BU149: 180 | BV149: 0.0009701380711 | BW149: 180 | BX149: 4.272340715e+16 | BY149: 180 | BZ149: 0.1996975901 | CA149: 180 | CB149: 1e+40 | CC149: 180 | CD149: 2.351219347e-05 | CG149: 180 | CH149: 1e+40 | CI149: 180 | CJ149: 0.0005060077519 | CK149: 180 | CL149: 1.140980893e+15 | CM149: 180 | CN149: 0.1041589147 | CO149: 180 | CP149: 1e+40 | CQ149: 180 | CR149: 1.226356589e-05 | CU149: 180 | CV149: 1e+40 | CW149: 180 | CX149: 0.000514100933 | CY149: 180 | CZ149: 541.9443331 | DA149: 180 | DB149: 0.1058248516 | DC149: 180 | DD149: 1e+40 | DE149: 180 | DF149: 1.245971162e-05
A150: 190 | B150: 6298.103651 | C150: 190 | D150: 0.0009815789474 | E150: 190 | F150: 0.2117163893 | G150: 190 | H150: 0.2020526316 | I150: 190 | J150: 6.6297908 | K150: 190 | L150: 2.378947368e-05 | O150: 190 | P150: 1e+40 | Q150: 190 | R150: 0.0009197970389 | S150: 190 | T150: 385.6065757 | U150: 190 | V150: 0.1893351653 | W150: 190 | X150: 1e+40 | Y150: 190 | Z150: 2.229213199e-05 | AC150: 190 | AD150: 1e+40 | AE150: 190 | AF150: 0.000479375765 | AG150: 190 | AH150: 384.1180371 | AI150: 190 | AJ150: 0.09867686659 | AK150: 190 | AL150: 1e+40 | AM150: 190 | AN150: 1.161811506e-05 | AQ150: 190 | AR150: 1e+40 | AS150: 190 | AT150: 0.0004870429892 | AU150: 190 | AV150: 0.1224380387 | AW150: 190 | AX150: 0.1002551225 | AY150: 190 | AZ150: 3.107359443e+30 | BA150: 190 | BB150: 1.180393732e-05 | BE150: 190 | BF150: 6298.103651 | BG150: 190 | BH150: 0.0009815789474 | BI150: 190 | BJ150: 0.2117163893 | BK150: 190 | BL150: 0.2020526316 | BM150: 190 | BN150: 6.6297908 | BO150: 190 | BP150: 2.378947368e-05 | BS150: 190 | BT150: 1e+40 | BU150: 190 | BV150: 0.0009190781726 | BW150: 190 | BX150: 1368921066420596 | BY150: 190 | BZ150: 0.1891871906 | CA150: 190 | CB150: 1e+40 | CC150: 190 | CD150: 2.22747096e-05 | CG150: 190 | CH150: 1e+40 | CI150: 190 | CJ150: 0.000479375765 | CK150: 190 | CL150: 5.077117123e+13 | CM150: 190 | CN150: 0.09867686659 | CO150: 190 | CP150: 1e+40 | CQ150: 190 | CR150: 1.161811506e-05 | CU150: 190 | CV150: 1e+40 | CW150: 190 | CX150: 0.0004870429892 | CY150: 190 | CZ150: 263.9678226 | DA150: 190 | DB150: 0.1002551225 | DC150: 190 | DD150: 1e+40 | DE150: 190 | DF150: 1.180393732e-05
A151: 200 | B151: 3660.020982 | C151: 200 | D151: 0.0009325 | E151: 200 | F151: 0.241453322 | G151: 200 | H151: 0.19195 | I151: 200 | J151: 7.560987653 | K151: 200 | L151: 2.26e-05 | O151: 200 | P151: 1e+40 | Q151: 200 | R151: 0.0008738071869 | S151: 200 | T151: 209.2287586 | U151: 200 | V151: 0.179868407 | W151: 200 | X151: 1e+40 | Y151: 200 | Z151: 2.117752539e-05 | AC151: 200 | AD151: 1e+40 | AE151: 200 | AF151: 0.0004554069767 | AG151: 200 | AH151: 197.4571445 | AI151: 200 | AJ151: 0.09374302326 | AK151: 200 | AL151: 1e+40 | AM151: 200 | AN151: 1.10372093e-05 | AQ151: 200 | AR151: 1e+40 | AS151: 200 | AT151: 0.0004626908397 | AU151: 200 | AV151: 0.1008091632 | AW151: 200 | AX151: 0.09524236641 | AY151: 200 | AZ151: 2.14973181e+29 | BA151: 200 | BB151: 1.121374046e-05 | BE151: 200 | BF151: 3660.020982 | BG151: 200 | BH151: 0.0009325 | BI151: 200 | BJ151: 0.241453322 | BK151: 200 | BL151: 0.19195 | BM151: 200 | BN151: 7.560987653 | BO151: 200 | BP151: 2.26e-05 | BS151: 200 | BT151: 1e+40 | BU151: 200 | BV151: 0.000873124264 | BW151: 200 | BX151: 8.654701462e+13 | BY151: 200 | BZ151: 0.1797278311 | CA151: 200 | CB151: 1e+40 | CC151: 200 | CD151: 2.116097412e-05 | CG151: 200 | CH151: 1e+40 | CI151: 200 | CJ151: 0.0004554069767 | CK151: 200 | CL151: 6.35534699e+12 | CM151: 200 | CN151: 0.09374302326 | CO151: 200 | CP151: 1e+40 | CQ151: 200 | CR151: 1.10372093e-05 | CU151: 200 | CV151: 1e+40 | CW151: 200 | CX151: 0.0004626908397 | CY151: 200 | CZ151: 138.4623318 | DA151: 200 | DB151: 0.09524236641 | DC151: 200 | DD151: 1e+40 | DE151: 200 | DF151: 1.121374046e-05
A152: 300 | B152: 135.0168208 | C152: 300 | D152: 0.0006216666667 | E152: 300 | F152: 0.8987114546 | G152: 300 | H152: 0.1279666667 | I152: 300 | J152: 28.14268908 | K152: 300 | L152: 1.506666667e-05 | O152: 300 | P152: 1e+40 | Q152: 300 | R152: 0.0005825381246 | S152: 300 | T152: 4.945022981 | U152: 300 | V152: 0.1199122713 | W152: 300 | X152: 1e+40 | Y152: 300 | Z152: 1.411835026e-05 | AC152: 300 | AD152: 1e+40 | AE152: 300 | AF152: 0.0003036046512 | AG152: 300 | AH152: 3.161220214 | AI152: 300 | AJ152: 0.06249534884 | AK152: 300 | AL152: 1e+40 | AM152: 300 | AN152: 7.358139535e-06 | AQ152: 300 | AR152: 1e+40 | AS152: 300 | AT152: 0.0003084605598 | AU152: 300 | AV152: 0.0355108538 | AW152: 300 | AX152: 0.06349491094 | AY152: 300 | AZ152: 2.464194045e+23 | BA152: 300 | BB152: 7.475826972e-06 | BE152: 300 | BF152: 135.0168208 | BG152: 300 | BH152: 0.0006216666667 | BI152: 300 | BJ152: 0.8987114547 | BK152: 300 | BL152: 0.1279666667 | BM152: 300 | BN152: 28.14268908 | BO152: 300 | BP152: 1.506666667e-05 | BS152: 300 | BT152: 1e+40 | BU152: 300 | BV152: 0.0005820828427 | BW152: 300 | BX152: 205594413.9 | BY152: 300 | BZ152: 0.119818554 | CA152: 300 | CB152: 1e+40 | CC152: 300 | CD152: 1.410731608e-05 | CG152: 300 | CH152: 1e+40 | CI152: 300 | CJ152: 0.0003036046512 | CK152: 300 | CL152: 27171449.35 | CM152: 300 | CN152: 0.06249534884 | CO152: 300 | CP152: 1e+40 | CQ152: 300 | CR152: 7.358139535e-06 | CU152: 300 | CV152: 1e+40 | CW152: 300 | CX152: 0.0003084605598 | CY152: 300 | CZ152: 2.53136817 | DA152: 300 | DB152: 0.06349491094 | DC152: 300 | DD152: 1e+40 | DE152: 300 | DF152: 7.475826972e-06
A153: 400 | B153: 31.86716841 | C153: 400 | D153: 0.00046625 | E153: 400 | F153: 3.34508782 | G153: 400 | H153: 0.095975 | I153: 400 | J153: 104.7496963 | K153: 400 | L153: 1.13e-05 | O153: 400 | P153: 1e+40 | Q153: 400 | R153: 0.0004369035935 | S153: 400 | T153: 0.9194256658 | U153: 400 | V153: 0.0899342035 | W153: 400 | X153: 1e+40 | Y153: 400 | Z153: 1.058876269e-05 | AC153: 400 | AD153: 1e+40 | AE153: 400 | AF153: 0.0002277034884 | AG153: 400 | AH153: 0.4483438457 | AI153: 400 | AJ153: 0.04687151163 | AK153: 400 | AL153: 1e+40 | AM153: 400 | AN153: 5.518604651e-06 | AQ153: 400 | AR153: 1e+40 | AS153: 400 | AT153: 0.0002313454198 | AU153: 400 | AV153: 0.02625523605 | AW153: 400 | AX153: 0.04762118321 | AY153: 400 | AZ153: 2.431070169e+20 | BA153: 400 | BB153: 5.606870229e-06 | BE153: 400 | BF153: 31.86716841 | BG153: 400 | BH153: 0.00046625 | BI153: 400 | BJ153: 3.34508782 | BK153: 400 | BL153: 0.095975 | BM153: 400 | BN153: 104.7496963 | BO153: 400 | BP153: 1.13e-05 | BS153: 400 | BT153: 1e+40 | BU153: 400 | BV153: 0.000436562132 | BW153: 400 | BX153: 348738.355 | BY153: 400 | BZ153: 0.08986391554 | CA153: 400 | CB153: 1e+40 | CC153: 400 | CD153: 1.058048706e-05 | CG153: 400 | CH153: 1e+40 | CI153: 400 | CJ153: 0.0002277034884 | CK153: 400 | CL153: 57704.51241 | CM153: 400 | CN153: 0.04687151163 | CO153: 400 | CP153: 1e+40 | CQ153: 400 | CR153: 5.518604651e-06 | CU153: 400 | CV153: 1e+40 | CW153: 400 | CX153: 0.0002313454198 | CY153: 400 | CZ153: 0.3863073127 | DA153: 400 | DB153: 0.04762118321 | DC153: 400 | DD153: 6.923237017e+34 | DE153: 400 | DF153: 5.606870229e-06
A154: 500 | B154: 15.95542256 | C154: 500 | D154: 0.000373 | E154: 500 | F154: 12.45074472 | G154: 500 | H154: 0.07678 | I154: 500 | J154: 389.88849 | K154: 500 | L154: 9.04e-06 | O154: 500 | P154: 1e+40 | Q154: 500 | R154: 0.0003495228748 | S154: 500 | T154: 0.3938180381 | U154: 500 | V154: 0.0719473628 | W154: 500 | X154: 2.844000093e+29 | Y154: 500 | Z154: 8.471010155e-06 | AC154: 500 | AD154: 1e+40 | AE154: 500 | AF154: 0.0001821627907 | AG154: 500 | AH154: 0.152328342 | AI154: 500 | AJ154: 0.0374972093 | AK154: 500 | AL154: 1.923018604e+31 | AM154: 500 | AN154: 4.414883721e-06 | AQ154: 500 | AR154: 1e+40 | AS154: 500 | AT154: 0.0001850763359 | AU154: 500 | AV154: 0.02509801541 | AW154: 500 | AX154: 0.03809694656 | AY154: 500 | AZ154: 5.791905479e+18 | BA154: 500 | BB154: 4.485496183e-06 | BE154: 500 | BF154: 15.95542256 | BG154: 500 | BH154: 0.000373 | BI154: 500 | BJ154: 12.45074472 | BK154: 500 | BL154: 0.07678 | BM154: 500 | BN154: 389.88849 | BO154: 500 | BP154: 9.04e-06 | BS154: 500 | BT154: 1e+40 | BU154: 500 | BV154: 0.0003492497056 | BW154: 500 | BX154: 8039.695683 | BY154: 500 | BZ154: 0.07189113243 | CA154: 500 | CB154: 1e+40 | CC154: 500 | CD154: 8.464389648e-06 | CG154: 500 | CH154: 1e+40 | CI154: 500 | CJ154: 0.0001821627907 | CK154: 500 | CL154: 1481.570675 | CM154: 500 | CN154: 0.0374972093 | CO154: 500 | CP154: 1e+40 | CQ154: 500 | CR154: 4.414883721e-06 | CU154: 500 | CV154: 1e+40 | CW154: 500 | CX154: 0.0001850763359 | CY154: 500 | CZ154: 0.1379701842 | DA154: 500 | DB154: 0.03809694656 | DC154: 500 | DD154: 1.65687119e+30 | DE154: 500 | DF154: 4.485496183e-06
A155: 1000 | B155: 14.45754308 | C155: 1000 | D155: 0.0001865 | E155: 1000 | F155: 8908.293864 | G155: 1000 | H155: 0.03839 | I155: 1000 | J155: 278943.2353 | K155: 1000 | L155: 4.52e-06 | O155: 1000 | P155: 1e+40 | Q155: 1000 | R155: 0.0001747614374 | S155: 1000 | T155: 0.2384423963 | U155: 1000 | V155: 0.0359736814 | W155: 1000 | X155: 1e+40 | Y155: 1000 | Z155: 4.235505078e-06 | AC155: 1000 | AD155: 1e+40 | AE155: 1000 | AF155: 9.108139535e-05 | AG155: 1000 | AH155: 0.033488329 | AI155: 1000 | AJ155: 0.01874860465 | AK155: 1000 | AL155: 1e+40 | AM155: 1000 | AN155: 2.20744186e-06 | AQ155: 1000 | AR155: 1e+40 | AS155: 1000 | AT155: 9.253816794e-05 | AU155: 1000 | AV155: 0.04244064956 | AW155: 1000 | AX155: 0.01904847328 | AY155: 1000 | AZ155: 1.028919826e+12 | BA155: 1000 | BB155: 2.242748092e-06 | BE155: 1000 | BF155: 14.45754308 | BG155: 1000 | BH155: 0.0001865 | BI155: 1000 | BJ155: 8908.294345 | BK155: 1000 | BL155: 0.03839 | BM155: 1000 | BN155: 278943.2149 | BO155: 1000 | BP155: 4.52e-06 | BS155: 1000 | BT155: 1e+40 | BU155: 1000 | BV155: 0.0001746248528 | BW155: 1000 | BX155: 7.093710612 | BY155: 1000 | BZ155: 0.03594556621 | CA155: 1000 | CB155: 1e+40 | CC155: 1000 | CD155: 4.232194824e-06 | CG155: 1000 | CH155: 1e+40 | CI155: 1000 | CJ155: 9.108139535e-05 | CK155: 1000 | CL155: 1.28424115 | CM155: 1000 | CN155: 0.01874860465 | CO155: 1000 | CP155: 1e+40 | CQ155: 1000 | CR155: 2.20744186e-06 | CU155: 1000 | CV155: 1e+40 | CW155: 1000 | CX155: 9.253816794e-05 | CY155: 1000 | CZ155: 0.03533120827 | DA155: 1000 | DB155: 0.01904847328 | DC155: 1000 | DD155: 6.757779373e+20 | DE155: 1000 | DF155: 2.242748092e-06
A156: 2000 | B156: 231.7748771 | C156: 2000 | D156: 9.325e-05 | E156: 2000 | F156: 1e+40 | G156: 2000 | H156: 0.019195 | I156: 2000 | J156: 1e+40 | K156: 2000 | L156: 2.26e-06 | O156: 2000 | P156: 1e+40 | Q156: 2000 | R156: 8.738071869e-05 | S156: 2000 | T156: 2.531501217 | U156: 2000 | V156: 0.0179868407 | W156: 2000 | X156: 4937140727763550 | Y156: 2000 | Z156: 2.117752539e-06 | AC156: 2000 | AD156: 1e+40 | AE156: 2000 | AF156: 4.554069767e-05 | AG156: 2000 | AH156: 0.05599782098 | AI156: 2000 | AJ156: 0.009374302326 | AK156: 2000 | AL156: 1.125677387e+17 | AM156: 2000 | AN156: 1.10372093e-06 | AQ156: 2000 | AR156: 1e+40 | AS156: 2000 | AT156: 4.626908397e-05 | AU156: 2000 | AV156: 0.1560473933 | AW156: 2000 | AX156: 0.009524236641 | AY156: 2000 | AZ156: 114520.3411 | BA156: 2000 | BB156: 1.121374046e-06 | BE156: 2000 | BF156: 231.7748771 | BG156: 2000 | BH156: 9.325e-05 | BI156: 2000 | BJ156: 1e+40 | BK156: 2000 | BL156: 0.019195 | BM156: 2000 | BN156: 1e+40 | BO156: 2000 | BP156: 2.26e-06 | BS156: 2000 | BT156: 1e+40 | BU156: 2000 | BV156: 8.73124264e-05 | BW156: 2000 | BX156: 0.6879789582 | BY156: 2000 | BZ156: 0.01797278311 | CA156: 2000 | CB156: 1e+40 | CC156: 2000 | CD156: 2.116097412e-06 | CG156: 2000 | CH156: 1e+40 | CI156: 2000 | CJ156: 4.554069767e-05 | CK156: 2000 | CL156: 0.07863776914 | CM156: 2000 | CN156: 0.009374302326 | CO156: 2000 | CP156: 1e+40 | CQ156: 2000 | CR156: 1.10372093e-06 | CU156: 2000 | CV156: 1e+40 | CW156: 2000 | CX156: 4.626908397e-05 | CY156: 2000 | CZ156: 0.07562735218 | DA156: 2000 | DB156: 0.009524236641 | DC156: 2000 | DD156: 1e+40 | DE156: 2000 | DF156: 1.121374046e-06
A159: Saved 20/05/2025: 16:38:25 Level Number: 5
A161: BREAKTHROUGH RESULTS
A163: Advanced
A164: Pollutant Linkage: New Phases, Base AGB, Haz Compliance | O164: Pollutant Linkage: New Phases, Base AGB, Lower Calc Grit, Nonhaz Compliance | AC164: Pollutant Linkage: New Phases, Side AGB, Highworth Lstn, Nonhaz Compliance | AQ164: Pollutant Linkage: New Phases, Side AGB, Highworth Grit, Nonhaz Compliance | BE164: Pollutant Linkage: Existing Phases, Base AGB, Haz Compliance | BS164: Pollutant Linkage: Existing Phases, Base AGB, Lower Calc Grit, Nonhaz Compliance | CG164: Pollutant Linkage: Existing Phases, Side AGB, Highworth Lstn, Nonhaz Compliance | CU164: Pollutant Linkage: Existing Phases, Side AGB, Highworth Grit, Nonhaz Compliance
A165: Concentrations in mg/L in Haz Compliance | O165: Concentrations in mg/L in Nonhaz Compliance | AC165: Concentrations in mg/L in Nonhaz Compliance | AQ165: Concentrations in mg/L in Nonhaz Compliance | BE165: Concentrations in mg/L in Haz Compliance | BS165: Concentrations in mg/L in Nonhaz Compliance | CG165: Concentrations in mg/L in Nonhaz Compliance | CU165: Concentrations in mg/L in Nonhaz Compliance
A167: Compared with Comp target concentration in mg/L | O167: Compared with Comp target concentration in mg/L | AC167: Compared with Comp target concentration in mg/L | AQ167: Compared with Comp target concentration in mg/L | BE167: Compared with Comp target concentration in mg/L | BS167: Compared with Comp target concentration in mg/L | CG167: Compared with Comp target concentration in mg/L | CU167: Compared with Comp target concentration in mg/L
B168: 0.1 | D168: 0.5 | F168: 0.05 | H168: 250 | J168: 0.004 | L168: 0.0001 | P168: 0.1 | R168: 0.5 | T168: 0.05 | V168: 250 | X168: 0.004 | Z168: 0.0001 | AD168: 0.1 | AF168: 0.5 | AH168: 0.05 | AJ168: 250 | AL168: 0.004 | AN168: 0.0001 | AR168: 0.1 | AT168: 0.5 | AV168: 0.05 | AX168: 250 | AZ168: 0.004 | BB168: 0.0001 | BF168: 0.1 | BH168: 0.5 | BJ168: 0.05 | BL168: 250 | BN168: 0.004 | BP168: 0.0001 | BT168: 0.1 | BV168: 0.5 | BX168: 0.05 | BZ168: 250 | CB168: 0.004 | CD168: 0.0001 | CH168: 0.1 | CJ168: 0.5 | CL168: 0.05 | CN168: 250 | CP168: 0.004 | CR168: 0.0001 | CV168: 0.1 | CX168: 0.5 | CZ168: 0.05 | DB168: 250 | DD168: 0.004 | DF168: 0.0001
B170: Species1 | D170: Species2 | F170: Species3 | H170: Species4 | J170: Species5 | L170: Species6 | P170: Species1 | R170: Species2 | T170: Species3 | V170: Species4 | X170: Species5 | Z170: Species6 | AD170: Species1 | AF170: Species2 | AH170: Species3 | AJ170: Species4 | AL170: Species5 | AN170: Species6 | AR170: Species1 | AT170: Species2 | AV170: Species3 | AX170: Species4 | AZ170: Species5 | BB170: Species6 | BF170: Species1 | BH170: Species2 | BJ170: Species3 | BL170: Species4 | BN170: Species5 | BP170: Species6 | BT170: Species1 | BV170: Species2 | BX170: Species3 | BZ170: Species4 | CB170: Species5 | CD170: Species6 | CH170: Species1 | CJ170: Species2 | CL170: Species3 | CN170: Species4 | CP170: Species5 | CR170: Species6 | CV170: Species1 | CX170: Species2 | CZ170: Species3 | DB170: Species4 | DD170: Species5 | DF170: Species6
A171: Time(years) | B171: Lead | C171: Time(years) | D171: AmmN | E171: Time(years) | F171: Nickel | G171: Time(years) | H171: Chloride | I171: Time(years) | J171: Toluene | K171: Time(years) | L171: Cadmium | O171: Time(years) | P171: Lead | Q171: Time(years) | R171: AmmN | S171: Time(years) | T171: Nickel | U171: Time(years) | V171: Chloride | W171: Time(years) | X171: Toluene | Y171: Time(years) | Z171: Cadmium | AC171: Time(years) | AD171: Lead | AE171: Time(years) | AF171: AmmN | AG171: Time(years) | AH171: Nickel | AI171: Time(years) | AJ171: Chloride | AK171: Time(years) | AL171: Toluene | AM171: Time(years) | AN171: Cadmium | AQ171: Time(years) | AR171: Lead | AS171: Time(years) | AT171: AmmN | AU171: Time(years) | AV171: Nickel | AW171: Time(years) | AX171: Chloride | AY171: Time(years) | AZ171: Toluene | BA171: Time(years) | BB171: Cadmium | BE171: Time(years) | BF171: Lead | BG171: Time(years) | BH171: AmmN | BI171: Time(years) | BJ171: Nickel | BK171: Time(years) | BL171: Chloride | BM171: Time(years) | BN171: Toluene | BO171: Time(years) | BP171: Cadmium | BS171: Time(years) | BT171: Lead | BU171: Time(years) | BV171: AmmN | BW171: Time(years) | BX171: Nickel | BY171: Time(years) | BZ171: Chloride | CA171: Time(years) | CB171: Toluene | CC171: Time(years) | CD171: Cadmium | CG171: Time(years) | CH171: Lead | CI171: Time(years) | CJ171: AmmN | CK171: Time(years) | CL171: Nickel | CM171: Time(years) | CN171: Chloride | CO171: Time(years) | CP171: Toluene | CQ171: Time(years) | CR171: Cadmium | CU171: Time(years) | CV171: Lead | CW171: Time(years) | CX171: AmmN | CY171: Time(years) | CZ171: Nickel | DA171: Time(years) | DB171: Chloride | DC171: Time(years) | DD171: Toluene | DE171: Time(years) | DF171: Cadmium
A172: 2 | B172: 0 | C172: 2 | D172: 0.1824768797 | E172: 2 | F172: 9.53891258e-07 | G172: 0.1 | H172: 14.25861993 | I172: 0.01 | J172: 1.429761802e-05 | K172: 2 | L172: 0.004405679504 | O172: 2 | P172: 0 | Q172: 2 | R172: 0 | S172: 2 | T172: 0 | U172: 0.1 | V172: 0 | W172: 0.01 | X172: 0 | Y172: 2 | Z172: 0 | AC172: 2 | AD172: 0 | AE172: 2 | AF172: 0 | AG172: 2 | AH172: 0 | AI172: 0.1 | AJ172: 0 | AK172: 0.01 | AL172: 0 | AM172: 2 | AN172: 0 | AQ172: 2 | AR172: 0 | AS172: 2 | AT172: 0 | AU172: 2 | AV172: 0 | AW172: 0.1 | AX172: 0 | AY172: 0.01 | AZ172: 0 | BA172: 2 | BB172: 0 | BE172: 2 | BF172: 0 | BG172: 2 | BH172: 0.1824768797 | BI172: 2 | BJ172: 9.53891258e-07 | BK172: 0.1 | BL172: 14.25861993 | BM172: 0.01 | BN172: 1.429761802e-05 | BO172: 2 | BP172: 0.004405679504 | BS172: 2 | BT172: 0 | BU172: 2 | BV172: 0 | BW172: 2 | BX172: 0 | BY172: 0.1 | BZ172: 0 | CA172: 0.01 | CB172: 0 | CC172: 2 | CD172: 0 | CG172: 2 | CH172: 0 | CI172: 2 | CJ172: 0 | CK172: 2 | CL172: 0 | CM172: 0.1 | CN172: 0 | CO172: 0.01 | CP172: 0 | CQ172: 2 | CR172: 0 | CU172: 2 | CV172: 0 | CW172: 2 | CX172: 0 | CY172: 2 | CZ172: 0 | DA172: 0.1 | DB172: 0 | DC172: 0.01 | DD172: 0 | DE172: 2 | DF172: 0
A173: 3 | B173: 0 | C173: 3 | D173: 0.180094512 | E173: 3 | F173: 3.271072269e-05 | G173: 0.5 | H173: 38.19542926 | I173: 0.05 | J173: 0.0004506117999 | K173: 3 | L173: 0.004390302727 | O173: 3 | P173: 0 | Q173: 3 | R173: 0 | S173: 3 | T173: 0 | U173: 0.5 | V173: 0 | W173: 0.05 | X173: 0 | Y173: 3 | Z173: 0 | AC173: 3 | AD173: 0 | AE173: 3 | AF173: 0 | AG173: 3 | AH173: 0 | AI173: 0.5 | AJ173: 0 | AK173: 0.05 | AL173: 0 | AM173: 3 | AN173: 0 | AQ173: 3 | AR173: 0 | AS173: 3 | AT173: 0 | AU173: 3 | AV173: 0 | AW173: 0.5 | AX173: 0 | AY173: 0.05 | AZ173: 0 | BA173: 3 | BB173: 0 | BE173: 3 | BF173: 0 | BG173: 3 | BH173: 0.180094512 | BI173: 3 | BJ173: 3.271072269e-05 | BK173: 0.5 | BL173: 38.19542926 | BM173: 0.05 | BN173: 0.0004506117999 | BO173: 3 | BP173: 0.004390302727 | BS173: 3 | BT173: 0 | BU173: 3 | BV173: 0 | BW173: 3 | BX173: 0 | BY173: 0.5 | BZ173: 0 | CA173: 0.05 | CB173: 0 | CC173: 3 | CD173: 0 | CG173: 3 | CH173: 0 | CI173: 3 | CJ173: 0 | CK173: 3 | CL173: 0 | CM173: 0.5 | CN173: 0 | CO173: 0.05 | CP173: 0 | CQ173: 3 | CR173: 0 | CU173: 3 | CV173: 0 | CW173: 3 | CX173: 0 | CY173: 3 | CZ173: 0 | DA173: 0.5 | DB173: 0 | DC173: 0.05 | DD173: 0 | DE173: 3 | DF173: 0
A174: 5 | B174: 0 | C174: 5 | D174: 0.1754222748 | E174: 5 | F174: 0.0004670040487 | G174: 1 | H174: 37.95192828 | I174: 0.75 | J174: 0.001302789282 | K174: 5 | L174: 0.004277934725 | O174: 5 | P174: 0 | Q174: 5 | R174: 0 | S174: 5 | T174: 0 | U174: 1 | V174: 0 | W174: 0.75 | X174: 2.843041721e-26 | Y174: 5 | Z174: 0 | AC174: 5 | AD174: 0 | AE174: 5 | AF174: 0 | AG174: 5 | AH174: 0 | AI174: 1 | AJ174: 0 | AK174: 0.75 | AL174: 4.973794576e-28 | AM174: 5 | AN174: 0 | AQ174: 5 | AR174: 0 | AS174: 5 | AT174: 4.494197502e-35 | AU174: 5 | AV174: 0 | AW174: 1 | AX174: 0 | AY174: 0.75 | AZ174: 0 | BA174: 5 | BB174: 0 | BE174: 5 | BF174: 0 | BG174: 5 | BH174: 0.1754222748 | BI174: 5 | BJ174: 0.0004670040487 | BK174: 1 | BL174: 37.95192828 | BM174: 0.75 | BN174: 0.001302789282 | BO174: 5 | BP174: 0.004277934725 | BS174: 5 | BT174: 0 | BU174: 5 | BV174: 0 | BW174: 5 | BX174: 0 | BY174: 1 | BZ174: 0 | CA174: 0.75 | CB174: 0 | CC174: 5 | CD174: 0 | CG174: 5 | CH174: 0 | CI174: 5 | CJ174: 0 | CK174: 5 | CL174: 0 | CM174: 1 | CN174: 0 | CO174: 0.75 | CP174: 0 | CQ174: 5 | CR174: 0 | CU174: 5 | CV174: 0 | CW174: 5 | CX174: 0 | CY174: 5 | CZ174: 0 | DA174: 1 | DB174: 0 | DC174: 0.75 | DD174: 0 | DE174: 5 | DF174: 0
A175: 10 | B175: 5.590563115e-39 | C175: 10 | D175: 0.1642651316 | E175: 10 | F175: 0.002203731718 | G175: 2 | H175: 37.45639518 | I175: 0.1 | J175: 0.0007629831305 | K175: 10 | L175: 0.004005853086 | O175: 10 | P175: 0 | Q175: 10 | R175: 1.239856014e-39 | S175: 10 | T175: 0 | U175: 2 | V175: 7.6125442e-38 | W175: 0.1 | X175: 0 | Y175: 10 | Z175: 0 | AC175: 10 | AD175: 0 | AE175: 10 | AF175: 0 | AG175: 10 | AH175: 0 | AI175: 2 | AJ175: 0 | AK175: 0.1 | AL175: 0 | AM175: 10 | AN175: 0 | AQ175: 10 | AR175: 0 | AS175: 10 | AT175: 0 | AU175: 10 | AV175: 0 | AW175: 2 | AX175: 2.922036953e-27 | AY175: 0.1 | AZ175: 0 | BA175: 10 | BB175: 0 | BE175: 10 | BF175: 5.590563115e-39 | BG175: 10 | BH175: 0.1642651316 | BI175: 10 | BJ175: 0.002203731718 | BK175: 2 | BL175: 37.45639518 | BM175: 0.1 | BN175: 0.0007629831305 | BO175: 10 | BP175: 0.004005853086 | BS175: 10 | BT175: 0 | BU175: 10 | BV175: 0 | BW175: 10 | BX175: 0 | BY175: 2 | BZ175: 0 | CA175: 0.1 | CB175: 0 | CC175: 10 | CD175: 0 | CG175: 10 | CH175: 0 | CI175: 10 | CJ175: 0 | CK175: 10 | CL175: 0 | CM175: 2 | CN175: 0 | CO175: 0.1 | CP175: 0 | CQ175: 10 | CR175: 0 | CU175: 10 | CV175: 0 | CW175: 10 | CX175: 1.30970718e-40 | CY175: 10 | CZ175: 0 | DA175: 2 | DB175: 0 | DC175: 0.1 | DD175: 0 | DE175: 10 | DF175: 0
A176: 50 | B176: 1.494397857e-20 | C176: 50 | D176: 0.09710253547 | E176: 50 | F176: 0.001899463368 | G176: 3 | H176: 36.96733199 | I176: 0.5 | J176: 0.001251234104 | K176: 50 | L176: 0.00236799184 | O176: 50 | P176: 0 | Q176: 50 | R176: 3.835466423e-19 | S176: 50 | T176: 0 | U176: 3 | V176: 1.174464017e-28 | W176: 0.5 | X176: 0 | Y176: 50 | Z176: 0 | AC176: 50 | AD176: 0 | AE176: 50 | AF176: 0 | AG176: 50 | AH176: 0 | AI176: 3 | AJ176: 1.133554978e-34 | AK176: 0.5 | AL176: 6.509920517e-31 | AM176: 50 | AN176: 4.124243812e-32 | AQ176: 50 | AR176: 0 | AS176: 50 | AT176: 2.281054436e-08 | AU176: 50 | AV176: 0 | AW176: 3 | AX176: 4.546850926e-23 | AY176: 0.5 | AZ176: 8.275563707e-28 | BA176: 50 | BB176: 1.049856708e-21 | BE176: 50 | BF176: 1.494397857e-20 | BG176: 50 | BH176: 0.09710253547 | BI176: 50 | BJ176: 0.001899463368 | BK176: 3 | BL176: 36.96733199 | BM176: 0.5 | BN176: 0.001251234104 | BO176: 50 | BP176: 0.00236799184 | BS176: 50 | BT176: 0 | BU176: 50 | BV176: 6.833832574e-31 | BW176: 50 | BX176: 0 | BY176: 3 | BZ176: 0 | CA176: 0.5 | CB176: 0 | CC176: 50 | CD176: 0 | CG176: 50 | CH176: 0 | CI176: 50 | CJ176: 4.121759449e-30 | CK176: 50 | CL176: 0 | CM176: 3 | CN176: 0 | CO176: 0.5 | CP176: 0 | CQ176: 50 | CR176: 0 | CU176: 50 | CV176: 0 | CW176: 50 | CX176: 1.368742278e-20 | CY176: 50 | CZ176: 0 | DA176: 3 | DB176: 0 | DC176: 0.5 | DD176: 0 | DE176: 50 | DF176: 1.715927695e-31
A177: 75 | B177: 4.315343207e-14 | C177: 75 | D177: 0.06990911598 | E177: 75 | F177: 0.001367524955 | G177: 5 | H177: 36.00827912 | I177: 1 | J177: 0.001324299985 | K177: 75 | L177: 0.001704839274 | O177: 75 | P177: 0 | Q177: 75 | R177: 3.344379674e-14 | S177: 75 | T177: 0 | U177: 5 | V177: 0 | W177: 1 | X177: 4.587897623e-24 | Y177: 75 | Z177: 0 | AC177: 75 | AD177: 0 | AE177: 75 | AF177: 4.077208653e-15 | AG177: 75 | AH177: 0 | AI177: 5 | AJ177: 0 | AK177: 1 | AL177: 1.301545707e-24 | AM177: 75 | AN177: 1.359948279e-26 | AQ177: 75 | AR177: 0 | AS177: 75 | AT177: 1.145518963e-05 | AU177: 75 | AV177: 0 | AW177: 5 | AX177: 2.458762394e-17 | AY177: 1 | AZ177: 0 | BA177: 75 | BB177: 1.110214952e-18 | BE177: 75 | BF177: 4.315343207e-14 | BG177: 75 | BH177: 0.06990911598 | BI177: 75 | BJ177: 0.001367524955 | BK177: 5 | BL177: 36.00827912 | BM177: 1 | BN177: 0.001324299985 | BO177: 75 | BP177: 0.001704839274 | BS177: 75 | BT177: 0 | BU177: 75 | BV177: 1.676576848e-25 | BW177: 75 | BX177: 0 | BY177: 5 | BZ177: 0 | CA177: 1 | CB177: 0 | CC177: 75 | CD177: 0 | CG177: 75 | CH177: 0 | CI177: 75 | CJ177: 0 | CK177: 75 | CL177: 0 | CM177: 5 | CN177: 0 | CO177: 1 | CP177: 0 | CQ177: 75 | CR177: 0 | CU177: 75 | CV177: 0 | CW177: 75 | CX177: 1.091209076e-14 | CY177: 75 | CZ177: 0 | DA177: 5 | DB177: 0 | DC177: 1 | DD177: 0 | DE177: 75 | DF177: 0
A178: 100 | B178: 5.517582717e-11 | C178: 100 | D178: 0.05033117281 | E178: 100 | F178: 0.0009845516467 | G178: 10 | H178: 33.71809375 | I178: 2 | J178: 0.001335573748 | K178: 100 | L178: 0.00122740159 | O178: 100 | P178: 0 | Q178: 100 | R178: 1.01662824e-10 | S178: 100 | T178: 0 | U178: 10 | V178: 1.427810385e-16 | W178: 2 | X178: 2.738463318e-16 | Y178: 100 | Z178: 8.219070097e-25 | AC178: 100 | AD178: 0 | AE178: 100 | AF178: 2.205665284e-11 | AG178: 100 | AH178: 0 | AI178: 10 | AJ178: 6.487688504e-18 | AK178: 2 | AL178: 9.668806515e-17 | AM178: 100 | AN178: 7.473195031e-24 | AQ178: 100 | AR178: 0 | AS178: 100 | AT178: 0.0002401328909 | AU178: 100 | AV178: 0 | AW178: 10 | AX178: 3.118834382e-10 | AY178: 2 | AZ178: 2.10202424e-14 | BA178: 100 | BB178: 2.748817934e-14 | BE178: 100 | BF178: 5.517582717e-11 | BG178: 100 | BH178: 0.05033117281 | BI178: 100 | BJ178: 0.0009845516467 | BK178: 10 | BL178: 33.71809375 | BM178: 2 | BN178: 0.001335573748 | BO178: 100 | BP178: 0.00122740159 | BS178: 100 | BT178: 0 | BU178: 100 | BV178: 7.376866249e-23 | BW178: 100 | BX178: 0 | BY178: 10 | BZ178: 4.743083123e-28 | CA178: 2 | CB178: 0 | CC178: 100 | CD178: 3.182655767e-39 | CG178: 100 | CH178: 0 | CI178: 100 | CJ178: 0 | CK178: 100 | CL178: 0 | CM178: 10 | CN178: 9.827498104e-29 | CO178: 2 | CP178: 0 | CQ178: 100 | CR178: 2.447678783e-39 | CU178: 100 | CV178: 0 | CW178: 100 | CX178: 4.638755601e-11 | CY178: 100 | CZ178: 0 | DA178: 10 | DB178: 0 | DC178: 2 | DD178: 0 | DE178: 100 | DF178: 0
A179: 110 | B179: 3.862912054e-10 | C179: 110 | D179: 0.04413248133 | E179: 110 | F179: 0.0008632961412 | G179: 50 | H179: 19.93187702 | I179: 5 | J179: 0.001289144572 | K179: 110 | L179: 0.001076237145 | O179: 110 | P179: 0 | Q179: 110 | R179: 8.997553613e-10 | S179: 110 | T179: 0 | U179: 50 | V179: 0.04832915769 | W179: 5 | X179: 1.259521521e-10 | Y179: 110 | Z179: 3.825165664e-22 | AC179: 110 | AD179: 0 | AE179: 110 | AF179: 2.295274704e-10 | AG179: 110 | AH179: 0 | AI179: 50 | AJ179: 0.006535036544 | AK179: 5 | AL179: 5.836651821e-11 | AM179: 110 | AN179: 0 | AQ179: 110 | AR179: 0 | AS179: 110 | AT179: 0.0005406804718 | AU179: 110 | AV179: 0 | AW179: 50 | AX179: 3.116408365 | AY179: 5 | AZ179: 8.60746395e-10 | BA179: 110 | BB179: 4.064823502e-13 | BE179: 110 | BF179: 3.862912054e-10 | BG179: 110 | BH179: 0.04413248133 | BI179: 110 | BJ179: 0.0008632961412 | BK179: 50 | BL179: 19.93187702 | BM179: 5 | BN179: 0.001289144572 | BO179: 110 | BP179: 0.001076237145 | BS179: 110 | BT179: 0 | BU179: 110 | BV179: 0 | BW179: 110 | BX179: 0 | BY179: 50 | BZ179: 5.051662131e-11 | CA179: 5 | CB179: 3.476889578e-32 | CC179: 110 | CD179: 0 | CG179: 110 | CH179: 0 | CI179: 110 | CJ179: 0 | CK179: 110 | CL179: 0 | CM179: 50 | CN179: 2.253888463e-11 | CO179: 5 | CP179: 4.625531579e-32 | CQ179: 110 | CR179: 0 | CU179: 110 | CV179: 0 | CW179: 110 | CX179: 4.515484991e-10 | CY179: 110 | CZ179: 0 | DA179: 50 | DB179: 0.004386779073 | DC179: 5 | DD179: 0 | DE179: 110 | DF179: 0
A180: 120 | B180: 1.948749799e-09 | C180: 120 | D180: 0.03869720889 | E180: 120 | F180: 0.0007569742327 | G180: 75 | H180: 14.34998475 | I180: 10 | J180: 0.001207219745 | K180: 120 | L180: 0.0009436898259 | O180: 120 | P180: 0 | Q180: 120 | R180: 5.51606864e-09 | S180: 120 | T180: 0 | U180: 75 | V180: 0.8938191993 | W180: 10 | X180: 9.10080161e-10 | Y180: 120 | Z180: 0 | AC180: 120 | AD180: 0 | AE180: 120 | AF180: 1.613078528e-09 | AG180: 120 | AH180: 0 | AI180: 75 | AJ180: 0.3338496388 | AK180: 10 | AL180: 4.646234668e-10 | AM180: 120 | AN180: 2.639775578e-22 | AQ180: 120 | AR180: 0 | AS180: 120 | AT180: 0.001053079376 | AU180: 120 | AV180: 0 | AW180: 75 | AX180: 10.84461343 | AY180: 10 | AZ180: 3.653923631e-09 | BA180: 120 | BB180: 3.823795503e-12 | BE180: 120 | BF180: 1.948749799e-09 | BG180: 120 | BH180: 0.03869720889 | BI180: 120 | BJ180: 0.0007569742327 | BK180: 75 | BL180: 14.34998475 | BM180: 10 | BN180: 0.001207219745 | BO180: 120 | BP180: 0.0009436898259 | BS180: 120 | BT180: 0 | BU180: 120 | BV180: 4.424664002e-21 | BW180: 120 | BX180: 0 | BY180: 75 | BZ180: 1.133053828e-06 | CA180: 10 | CB180: 0 | CC180: 120 | CD180: 1.077785458e-35 | CG180: 120 | CH180: 0 | CI180: 120 | CJ180: 1.615314084e-20 | CK180: 120 | CL180: 0 | CM180: 75 | CN180: 1.055699195e-06 | CO180: 10 | CP180: 0 | CQ180: 120 | CR180: 1.957590592e-35 | CU180: 120 | CV180: 0 | CW180: 120 | CX180: 3.001091734e-09 | CY180: 120 | CZ180: 0 | DA180: 75 | DB180: 0.2617358204 | DC180: 10 | DD180: 8.634080879e-21 | DE180: 120 | DF180: 8.70101463e-22
A181: 130 | B181: 7.637352105e-09 | C181: 130 | D181: 0.03393133426 | E181: 130 | F181: 0.0006637467278 | G181: 100 | H181: 10.33129302 | I181: 50 | J181: 0.0007136274777 | K181: 130 | L181: 0.000827466782 | O181: 130 | P181: 0 | Q181: 130 | R181: 2.549129201e-08 | S181: 130 | T181: 0 | U181: 100 | V181: 3.352474559 | W181: 50 | X181: 5.747202482e-10 | Y181: 130 | Z181: 0 | AC181: 130 | AD181: 0 | AE181: 130 | AF181: 8.379764866e-09 | AG181: 130 | AH181: 0 | AI181: 100 | AJ181: 1.95391711 | AK181: 50 | AL181: 4.760372257e-10 | AM181: 130 | AN181: 1.090944227e-21 | AQ181: 130 | AR181: 0 | AS181: 130 | AT181: 0.001834555485 | AU181: 130 | AV181: 0 | AW181: 100 | AX181: 15.5297552 | AY181: 50 | AZ181: 3.586040619e-09 | BA181: 130 | BB181: 2.539599132e-11 | BE181: 130 | BF181: 7.637352105e-09 | BG181: 130 | BH181: 0.03393133426 | BI181: 130 | BJ181: 0.0006637467278 | BK181: 100 | BL181: 10.33129302 | BM181: 50 | BN181: 0.0007136274777 | BO181: 130 | BP181: 0.000827466782 | BS181: 130 | BT181: 0 | BU181: 130 | BV181: 1.266835735e-20 | BW181: 130 | BX181: 0 | BY181: 100 | BZ181: 0.000164189865 | CA181: 50 | CB181: 2.857999398e-22 | CC181: 130 | CD181: 8.617784257e-34 | CG181: 130 | CH181: 0 | CI181: 130 | CJ181: 0 | CK181: 130 | CL181: 0 | CM181: 100 | CN181: 0.0002069113303 | CO181: 50 | CP181: 3.787924621e-22 | CQ181: 130 | CR181: 1.377574781e-33 | CU181: 130 | CV181: 0 | CW181: 130 | CX181: 1.486824085e-08 | CY181: 130 | CZ181: 0 | DA181: 100 | DB181: 1.6611384 | DC181: 50 | DD181: 4.938167678e-18 | DE181: 130 | DF181: 0
A182: 140 | B182: 2.453760024e-08 | C182: 140 | D182: 0.02975241567 | E182: 140 | F182: 0.0005820009449 | G182: 110 | H182: 9.058910631 | I182: 100 | J182: 0.0003698946451 | K182: 140 | L182: 0.0007255575469 | O182: 140 | P182: 0 | Q182: 140 | R182: 9.432643752e-08 | S182: 140 | T182: 0 | U182: 110 | V182: 4.634555578 | W182: 100 | X182: 2.978948415e-10 | Y182: 140 | Z182: 1.232891889e-20 | AC182: 140 | AD182: 0 | AE182: 140 | AF182: 3.432439351e-08 | AG182: 140 | AH182: 0 | AI182: 110 | AJ182: 3.021326748 | AK182: 100 | AL182: 4.516147092e-10 | AM182: 140 | AN182: 0 | AQ182: 140 | AR182: 0 | AS182: 140 | AT182: 0.002927764773 | AU182: 140 | AV182: 0 | AW182: 110 | AX182: 16.37567438 | AY182: 100 | AZ182: 3.359668705e-09 | BA182: 140 | BB182: 1.282826643e-10 | BE182: 140 | BF182: 2.453760024e-08 | BG182: 140 | BH182: 0.02975241567 | BI182: 140 | BJ182: 0.0005820009449 | BK182: 110 | BL182: 9.058910631 | BM182: 100 | BN182: 0.0003698946451 | BO182: 140 | BP182: 0.0007255575469 | BS182: 140 | BT182: 0 | BU182: 140 | BV182: 0 | BW182: 140 | BX182: 0 | BY182: 110 | BZ182: 0.0006312139438 | CA182: 100 | CB182: 1.481387299e-22 | CC182: 140 | CD182: 2.17227374e-32 | CG182: 140 | CH182: 0 | CI182: 140 | CJ182: 0 | CK182: 140 | CL182: 0 | CM182: 110 | CN182: 0.0008513344359 | CO182: 100 | CP182: 3.591238551e-22 | CQ182: 140 | CR182: 4.217767817e-32 | CU182: 140 | CV182: 0 | CW182: 140 | CX182: 5.846581283e-08 | CY182: 140 | CZ182: 0 | DA182: 110 | DB182: 2.62725459 | DC182: 100 | DD182: 4.622694252e-18 | DE182: 140 | DF182: 0
A183: 150 | B183: 6.723082566e-08 | C183: 150 | D183: 0.02608816473 | E183: 150 | F183: 0.0005103228167 | G183: 120 | H183: 7.943232432 | I183: 120 | J183: 0.000284394135 | K183: 150 | L183: 0.0006361992591 | O183: 150 | P183: 0 | Q183: 150 | R183: 2.921362197e-07 | S183: 150 | T183: 0 | U183: 120 | V183: 5.951808027 | W183: 120 | X183: 2.29036963e-10 | Y183: 150 | Z183: 1.365759825e-20 | AC183: 150 | AD183: 0 | AE183: 150 | AF183: 1.16236919e-07 | AG183: 150 | AH183: 0 | AI183: 120 | AJ183: 4.249921981 | AK183: 120 | AL183: 4.422002091e-10 | AM183: 150 | AN183: 0 | AQ183: 150 | AR183: 0 | AS183: 150 | AT183: 0.004356176616 | AU183: 150 | AV183: 3.743970987e-39 | AW183: 120 | AX183: 16.84082479 | AY183: 120 | AZ183: 3.27317295e-09 | BA183: 150 | BB183: 5.204878413e-10 | BE183: 150 | BF183: 6.723082566e-08 | BG183: 150 | BH183: 0.02608816473 | BI183: 150 | BJ183: 0.0005103228167 | BK183: 120 | BL183: 7.943232432 | BM183: 120 | BN183: 0.000284394135 | BO183: 150 | BP183: 0.0006361992591 | BS183: 150 | BT183: 0 | BU183: 150 | BV183: 0 | BW183: 150 | BX183: 0 | BY183: 120 | BZ183: 0.001926866076 | CA183: 120 | CB183: 1.138967181e-22 | CC183: 150 | CD183: 1.619861055e-31 | CG183: 150 | CH183: 0 | CI183: 150 | CJ183: 1.313638317e-19 | CK183: 150 | CL183: 0 | CM183: 120 | CN183: 0.002732292191 | CO183: 120 | CP183: 3.515454044e-22 | CQ183: 150 | CR183: 4.173820846e-31 | CU183: 150 | CV183: 0 | CW183: 150 | CX183: 1.910767834e-07 | CY183: 150 | CZ183: 0 | DA183: 120 | DB183: 3.766159357 | DC183: 120 | DD183: 4.502221988e-18 | DE183: 150 | DF183: 4.187971185e-21
A184: 160 | B184: 1.61816459e-07 | C184: 160 | D184: 0.02287519596 | E184: 160 | F184: 0.0004474724302 | G184: 130 | H184: 6.964959036 | I184: 130 | J184: 0.0002493686943 | K184: 160 | L184: 0.0005578461678 | O184: 160 | P184: 0 | Q184: 160 | R184: 7.828412379e-07 | S184: 160 | T184: 0 | U184: 130 | V184: 7.220582794 | W184: 130 | X184: 2.008292068e-10 | Y184: 160 | Z184: 3.756242552e-21 | AC184: 160 | AD184: 0 | AE184: 160 | AF184: 3.372072331e-07 | AG184: 160 | AH184: 0 | AI184: 130 | AJ184: 5.565537732 | AK184: 130 | AL184: 4.375668133e-10 | AM184: 160 | AN184: 2.111989597e-20 | AQ184: 160 | AR184: 0 | AS184: 160 | AT184: 0.006123063173 | AU184: 160 | AV184: 0 | AW184: 130 | AX184: 17.04824222 | AY184: 130 | AZ184: 3.230763763e-09 | BA184: 160 | BB184: 1.767192835e-09 | BE184: 160 | BF184: 1.61816459e-07 | BG184: 160 | BH184: 0.02287519596 | BI184: 160 | BJ184: 0.0004474724302 | BK184: 130 | BL184: 6.964959036 | BM184: 130 | BN184: 0.0002493686943 | BO184: 160 | BP184: 0.0005578461678 | BS184: 160 | BT184: 0 | BU184: 160 | BV184: 3.203407958e-19 | BW184: 160 | BX184: 0 | BY184: 130 | BZ184: 0.004924147737 | CA184: 130 | CB184: 9.986941514e-23 | CC184: 160 | CD184: 0 | CG184: 160 | CH184: 0 | CI184: 160 | CJ184: 8.267701667e-19 | CK184: 160 | CL184: 0 | CM184: 130 | CN184: 0.007246030882 | CO184: 130 | CP184: 3.478163635e-22 | CQ184: 160 | CR184: 0 | CU184: 160 | CV184: 0 | CW184: 160 | CX184: 5.372646089e-07 | CY184: 160 | CZ184: 0 | DA184: 130 | DB184: 5.011567805 | DC184: 130 | DD184: 4.443168384e-18 | DE184: 160 | DF184: 4.781689853e-20
A185: 170 | B185: 3.499830514e-07 | C185: 170 | D185: 0.0200579303 | E185: 170 | F185: 0.0003923625776 | G185: 140 | H185: 6.107167929 | I185: 140 | J185: 0.0002186569202 | K185: 170 | L185: 0.000489142894 | O185: 170 | P185: 0 | Q185: 170 | R185: 1.861800594e-06 | S185: 170 | T185: 0 | U185: 140 | V185: 8.375220271 | W185: 140 | X185: 1.760954641e-10 | Y185: 170 | Z185: 5.101995155e-19 | AC185: 170 | AD185: 0 | AE185: 170 | AF185: 8.611460539e-07 | AG185: 170 | AH185: 0 | AI185: 140 | AJ185: 6.898392321 | AK185: 140 | AL185: 4.329819664e-10 | AM185: 170 | AN185: 5.416902147e-20 | AQ185: 170 | AR185: 0 | AS185: 170 | AT185: 0.008213235403 | AU185: 170 | AV185: 6.353735108e-37 | AW185: 140 | AX185: 17.08905728 | AY185: 140 | AZ185: 3.188904055e-09 | BA185: 170 | BB185: 5.180843426e-09 | BE185: 170 | BF185: 3.499830514e-07 | BG185: 170 | BH185: 0.0200579303 | BI185: 170 | BJ185: 0.0003923625776 | BK185: 140 | BL185: 6.107167929 | BM185: 140 | BN185: 0.0002186569202 | BO185: 170 | BP185: 0.000489142894 | BS185: 170 | BT185: 0 | BU185: 170 | BV185: 7.06970882e-19 | BW185: 170 | BX185: 0 | BY185: 140 | BZ185: 0.01094035047 | CA185: 140 | CB185: 8.756968812e-23 | CC185: 170 | CD185: 0 | CG185: 170 | CH185: 0 | CI185: 170 | CJ185: 5.057664186e-19 | CK185: 170 | CL185: 0 | CM185: 140 | CN185: 0.01654670058 | CO185: 140 | CP185: 3.441268787e-22 | CQ185: 170 | CR185: 0 | CU185: 170 | CV185: 0 | CW185: 170 | CX185: 1.334532813e-06 | CY185: 170 | CZ185: 0 | DA185: 140 | DB185: 6.296990685 | DC185: 140 | DD185: 4.384889359e-18 | DE185: 170 | DF185: 3.441727868e-20
